Workbook

Sheet Notes
A1: IRSTS Oscillators.xlsm
A2: Coded beginning 2013-June-07 by Ronald McAllister (rpmac_xltt@sprynet.com)
A4: This Workbook demonstrates an EXCEL version of the ideas presented
A5: by Sylvain Vervoort in an article titled "Oscillators, Smoothed"
A6: which appears in the September 2013 issue of
A7: "Technical Analysis of Stocks and Commodities" magazine.
A9: New Feature for the basic TradersTips Template
A10: 1 | C10: Direct download from Yahoo Finance to the InputPriceData tab.
C11: Unlike the previous traders tips which required on to Import price data from a disk based CSV file (capability still in this version),
C12: pre-downloading of intermediary disk files is no longer absolutely required.
C13: To support this capability I have resurrected some VBA code I wrote in September of 2010 which explored the posibility of
C14: downloading price history data from Yahoo Finance directly into a spreadsheet tab.
C15: That old VBA code required several modifications to get it to place the resulting price history data
C16: on the InputPriceData tab. Also needed some "user friendly" in the way of a couple of simple error handlers to support
C17: query building, and query execution faults.
C18: I also added a query to the Yahoo fundamentals URL to retrieve the company name and exchange name.
C19: The result is a pair of web URL direct to spreadsheet tab queries.
C20: The data is just what we ask for, so no VBA code is necessary to perform screen scraping:
C21: No effort spent to remove extraneous web page artifact bits we do not want or need.
C22: Minimal subsequent formatting and a simple set of cell formulations to compute close adjusted prices.
C24: Usage: On the InputPriceData tab the user enters the same 4 items one would provide on the yahoo history page.
C25: Enter a stock or index symbol, two dates specifying beginning and end of the historical interval of interest, and a data type.
C26: Then click the "Get Historical Data" Button
C28: While dividends and splits are interesting data points, they are of no particular use to this traders tip workbook.
C29: I have included the capability only for completeness of this direct to worksheet data retrieval example.
A31: CalculationsAndCharts construction Notes:
A33: 1 | C33: The September 2013 traders tip spreadsheet is the August 2013 traders tip spreadsheet modified to add
C34: Mr. Vervoort's version of the PercentB oscillator and a Stochastic.
C35: With all of the bits Mr. Vervoort has given us to consider over the course of this article series, things are getting a bit busy
C36: on the CalculationsAndCharts sheet. The necessary calculations for the August tip begin in column BE and extend to the right.
C37: Control values for the required calculations will also be found in that area as well.
C39: Figures from Mr. Vervoort's September article can be approximated using the following symbols and date ranges:
C40: Figure 1: Ford Motor Company (F) -NYSE with bars from 4/2/2007 thru 7/23/2007
C41: Figure 2: Ford Motor Company (F) -NYSE with bars from 6/23/2010 thru 10/19/2010
C42: Figure 3: Ford Motor Company (F) -NYSE with bars from 6/13/2006 thru 9/13/2006
C43: Figure 4: Alcoa Inc. Common (AA) -NYSE with bars from 4/16/2009 thru 8/6/2009
C44: Figure 5: US Steel (X) - NYSE with bars from 1/11/2007 thru 6/26/2007
A47: 6 | C47: I am taking advantage of scatter plots and of the fact that an empty cell in a charted data series
C48: simply does not plot on the chart.
C49: By using VBA code to apply "clear contents" to the cells of a data series I can make the series
C50: seem to disappear from the chart; without actually removing the series specification from the
C51: chart and thus loosing any series specific formatting.
C52: Subsequent use of VBA to fill in only a few cells of a scatter chart series allows the corresponding
C53: points to "magically" appear on the chart.
C54: And, since the series specification never left the chart, these "New" points appear on the chart with
C55: the previously established series formatting intact.
A57: 7 | C57: I am plotting the Zigzag and related indicators as separate scatter chart type series.
C58: The Pivot Limit and the Unconfirmed leg indicators are also separate scatter plot data series.
C59: The Unconfirmed leg is intended to show where the next Zag leg might lie, pending confirmation
C60: by way of the HLPivot limit test. The x and y components for these scatter series are generated
C61: by a macro invoked with the "Refresh Zigzag" button on the CalculationsAndCharts tab.
A63: 8 | C63: The ZigZag computation is quite intensive and doing it in a VBA subroutine is quite slow.
C64: Patience please! Let it run to completion.
A66: 9 | C66: Candlestick detection: In this article Mr. Vervoort is only interested in 4 distinct candle patterns
C67: and then only if they occur at Zig reversal points. So once I have confirmed a reversal, the zigzag
C68: code calls a routine to check for all of the patterns of interest at the newly confirmed reversal.
A69: 10 | C69: Mr. Vervoort considers a Body Gap to be a special case of his Step pattern and has chosen to
C70: plot it under the same indicator as a Step pattern. I wanted to be able to see it as a special case
C71: so my code sets both the Step pattern flag and a separate Gap pattern flag.
A72: 11 | C72: Plotting Candle type indicators: These are plotted as 8 individual scatterplots: One scatter plot
C73: each for the 4 bullish patterns and one each for the 4 bearish patterns.
C74: These 8 data series scatter plots are formatted with no marker and no line. So they do not actually
C75: show on the chart. I also removed their Legend entries to reduce chart clutter.
C76: However, these "invisible" series are the necessary anchor points for series associated Data Labels.
C77: Each Data Label series gets a custom format, exactly 4 characters long. The custom formats are
C78: designed to suppress the numeric value for the data point, and instead display an appropriate
C79: pattern id text made up of underscores, and letters. The custom format for Bullish data label series
C80: are set to Blue and they appear under the "invisible" data points of the series. The Bearish formats
C81: are set to Red and they appear above the "invisible" data points of the series.
C82: The magic of the displayed pattern indicator is in how the letters and underscores are positioned
C83: in the data label formats. If multiple pattern types are detected at a given turning point, then multiple
C84: data labels will be placed at that point on the chart. By making each of the data label formats
C85: exactly 4 characters long, and giving each pattern type its own position out of the 4 possible,
C86: we take advantage of the graph engine Data Label centering logic to have any multiple hit labels
C87: appear to merge with each other. This creates the composite flag display we see on the chart.
C88: Note: You will need to pay close attention to the candles around a turning point candle and review
C89: Mr. Vervoort's descriptions of the patterns to understand which pair set which flag.
A90: 12 | C90: Using the "Chart Window" settings button on the CalculationsAndCharts tab or the "Import Data"
C91: button on the InputPriceData tab will clear the zigzag plot and candle flags.
C92: Changing either of the chart data window specifications in cells A11 or A12 should also invalidate
C93: the Zigzag and flag plots, but I have not coded for that in this spread sheet.
C94: You will need to use the "Refresh ZigZag" button on the CalculationsAndCharts tab to plot a fresh set.
A95: 13 | C95: With a completed ZigZag displayed, you may use the check boxes at the right of the chart to
C96: dynamically display or hide the flags for the various candle patterns.
A97: 14 | C97: The check box values are examined at Refresh ZigZag time to determine if a relrow and price value
C98: are placed in the pattern type column at scan time.
A99: 15 | C99: After a completed zigzag is displayed, the check boxes drive VBA macro code which displays or
C100: hides the pattern indicators by filling in or clearing the relrow and price value cells in the appropriate
C101: flag series columns.
A103: Data for this EXCEL example:
A105: Price history for various STOCK symbols and some INDEX symbols may be available for downloaded
A106: as .csv formatted files from Yahoo Finance: http://finance.yahoo.com
A107: Enter a symbol and select "Historical Prices" from the left margin.
A108: Hint: You might want to copy the name and symbol text from the top of the history page to use as
A109: your downloaded file name (via Paste).
A110: Then go to the bottom of the page and click "Download to Spreadsheet".
A111: Use the "Save As" option to name and save the file to your drive for later input processing. (See
A112: Automated data import below)
A113: Note: The resulting .csv file is in date-descending sequence (most recent first) and may be used in
A114: this spread sheet with out sorting.
A116: Automated data import
A117: The InputPriceData tab now has a button that will automate importing Price History data which you
A118: have previously downloaded to your hard drive from Yahoo Finance (.csv format please!)
A119: The VBA macro code behind this button uses the standard EXCEL file open dialog to allow you to
A120: navigate to the directory where you have stored the downloaded history files. You may then select the
A121: file you are interested in.
A122: Subsequent processing will adjust the Open, High, Low, and Close prices as indicated by the
B123: Adjusted Close values provided in the downloaded file.
A124: Both the Raw and the Adjusted data will be copied to the InputPriceData tab for use in this workbook.
A125: However, YOU must enter the symbol and description in cell A1 of the InputPriceData tab after you
A126: use the button: YAHOO history files DO NOT contain the symbol or a description!
A127: If you used the name and symbol copied from the top of the history page as your file name you may not
A128: need to adjust A1.
A129: Note: After the data has been transferred to this workbook, the source history file will be closed
A130: with out saving it so that it remains unchanged for future uses.
A132: Development Notes:
A133: 1 | C133: This workbook contains and uses VBA macros.
A134: 2 | C134: Input Data
C135: The data in this workbook is sorted date descending (most recent date at the top). All formulas and
C136: VBA routines are built accordingly.
A137: Calculation and Chart Worksheet Usage Comments:
A138: 1 | C138: In General, Items in Bolded BLUE are items you may freely change to play what-if games.
C139: Be sure to have a backup copy of the spreadsheet before you alter anything else.
A140: 2 | C140: Several of the column formulas begin with "IF" logic that determines when there is sufficient data
C141: available for the subsequent calculations to be relevant. The cell will calculate to blank or the
C142: result of the calculation.
C143: In a couple of cases, this "IF" logic also sets starter values for subsequent smoothing calculations.
A144: 3 | C144: Data windowing can be performed by changing cell A11. Positive values logically "Pan" the
C145: data window represented by the Calculation sheet down the input sheet and back in time.
C146: This can have two side effects: First, data may fall outside of the fixed Y-axis scales and be clipped
C147: or fall well inside the Y-axis scales wasting a lot of chart vertical space. Second, you may move far
C148: enough back that you do not have sufficient data points to fill the left of the chart.
A149: 4 | C149: The VBA macros behind the SetChart button address these Data Windowing problems and also
C150: resizes and vertically aligns all charts on the work sheet to match the Price chart and then
C151: horizontally adjusts the X-axis positions of all charts on the work sheet so that the corresponding
C152: data points align vertically.
C153: The macros behind the SetChart button are sensitive to the user control values in cells A11 and
C154: A12, and also uses the computed values in cells A8, F11, and F12

Sheet InputPriceData
A1: United States Ste (X) -NYSE | L1: Notes: | M1: Online Yahoo Finance Query Interfaces used in the VBA code to obtain this data:
M2: A.) Price History Only: "http://ichart.finance.yahoo.com/table.csv"
A3: Request Online Yahoo History for: | M3: B.) Price History w/ imbedded divs n splits: "http://ichart.finance.yahoo.com/x"
A4: Symbol | B4: x | D4: Valid
A5: From | B5: 1960-01-01 | D5: Data | M5: C.) Fundamentals (in this case name and exchange):
A6: To | B6: =TODAY() -> 2013-07-08 | D6: Types | E6: =VLOOKUP(B7,D7:E10,2,FALSE) -> d | M6: "http://download.finance.yahoo.com/d/quotes.csv?"
A7: Data Type | B7: Daily | D7: Daily | E7: d | M7: For some how-to doc regarding this particular interface, including a list of the
D8: Weekly | E8: w | M8: specific fields you can include in a request to this interface see:
A9: Available Data | D9: Monthly | E9: m | M9: http://www.gummy-stuff.org/Yahoo-data.htm
A10: Bar Count: | B10: =COUNTA(B16:B64994) -> 5600 | D10: Div/Split | E10: v | M10: This web site includes a downloadable working EXCEL/VBA example
A11: From: | B11: =IF(B10<=0,"",OFFSET(B15,B10,IF(HistReqDataType="v",1,0),1,1)) -> 1991-04-12 | M11: of the capabilities of this interface.
A12: To: | B12: =IF(B10<=0,"",IF(HistReqDataType="v",OFFSET(B15,2,1,1,1),OFFSET(B15,1,0,1,1))) -> 2013-07-03
B14: Raw Data Values | H14: Adjusted | I14: Adjustment | J14: Adjusted Values
A15: RelRow | B15: Date | C15: Open | D15: High | E15: Low | F15: Close | G15: Volume | H15: Adj Close | I15: Factor | J15: Open | K15: High | L15: Low | M15: Close
A16: 1 | B16: 2013-07-03 | C16: 18.75 | D16: 18.97 | E16: 18.04 | F16: 18.18 | G16: 10802300 | H16: 18.18 | I16: =H16/F16 -> 1 | J16: =ROUND($I16*C16,2) -> 18.75 | K16: =ROUND($I16*D16,2) -> 18.97 | L16: 18.04 | M16: 18.18
A17: 2 | B17: 2013-07-02 | C17: 17.73 | D17: 19.4 | E17: 17.65 | F17: 19.25 | G17: 15656700 | H17: 19.25 | I17: =H17/F17 -> 1 | J17: =ROUND($I17*C17,2) -> 17.73 | K17: =ROUND($I17*D17,2) -> 19.4 | L17: =ROUND($I17*E17,2) -> 17.65 | M17: =ROUND($I17*F17,2) -> 19.25
A18: 3 | B18: 2013-07-01 | C18: 17.67 | D18: 17.98 | E18: 17.5 | F18: 17.77 | G18: 5018500 | H18: 17.77 | I18: 1 | J18: 17.67 | K18: 17.98 | L18: 17.5 | M18: 17.77
A19: 4 | B19: 2013-06-28 | C19: 17.91 | D19: 17.98 | E19: 17.51 | F19: 17.53 | G19: 5903300 | H19: 17.53 | I19: 1 | J19: 17.91 | K19: 17.98 | L19: 17.51 | M19: 17.53
A20: 5 | B20: 2013-06-27 | C20: 17.62 | D20: 18.26 | E20: 17.55 | F20: 18.06 | G20: 9346000 | H20: 18.06 | I20: 1 | J20: 17.62 | K20: 18.26 | L20: 17.55 | M20: 18.06
A21: 6 | B21: 2013-06-26 | C21: 17.2 | D21: 17.65 | E21: 17.02 | F21: 17.46 | G21: 7582100 | H21: 17.46 | I21: 1 | J21: 17.2 | K21: 17.65 | L21: 17.02 | M21: 17.46
A22: 7 | B22: 2013-06-25 | C22: 16.67 | D22: 17.07 | E22: 16.27 | F22: 17.05 | G22: 7387100 | H22: 17.05 | I22: 1 | J22: 16.67 | K22: 17.07 | L22: 16.27 | M22: 17.05
A23: 8 | B23: 2013-06-24 | C23: 16.83 | D23: 16.88 | E23: 16.12 | F23: 16.44 | G23: 8277200 | H23: 16.44 | I23: 1 | J23: 16.83 | K23: 16.88 | L23: 16.12 | M23: 16.44
A24: 9 | B24: 2013-06-21 | C24: 17.53 | D24: 17.57 | E24: 16.9 | F24: 17.1 | G24: 8047300 | H24: 17.1 | I24: 1 | J24: 17.53 | K24: 17.57 | L24: 16.9 | M24: 17.1
A25: 10 | B25: 2013-06-20 | C25: 17.39 | D25: 17.83 | E25: 17.11 | F25: 17.36 | G25: 7674500 | H25: 17.36 | I25: 1 | J25: 17.39 | K25: 17.83 | L25: 17.11 | M25: 17.36
A26: 11 | B26: 2013-06-19 | C26: 17.85 | D26: 18.05 | E26: 17.5 | F26: 17.7 | G26: 5300500 | H26: 17.7 | I26: 1 | J26: 17.85 | K26: 18.05 | L26: 17.5 | M26: 17.7
A27: 12 | B27: 2013-06-18 | C27: 17.4 | D27: 18.05 | E27: 17.31 | F27: 17.86 | G27: 6227100 | H27: 17.86 | I27: 1 | J27: 17.4 | K27: 18.05 | L27: 17.31 | M27: 17.86
A28: 13 | B28: 2013-06-17 | C28: 18.09 | D28: 18.13 | E28: 17.4 | F28: 17.48 | G28: 6405000 | H28: 17.48 | I28: 1 | J28: 18.09 | K28: 18.13 | L28: 17.4 | M28: 17.48
A29: 14 | B29: 2013-06-14 | C29: 18.22 | D29: 18.46 | E29: 17.66 | F29: 17.89 | G29: 8255700 | H29: 17.89 | I29: 1 | J29: 18.22 | K29: 18.46 | L29: 17.66 | M29: 17.89
A30: 15 | B30: 2013-06-13 | C30: 17.3 | D30: 18.25 | E30: 17.27 | F30: 18.15 | G30: 10624000 | H30: 18.15 | I30: 1 | J30: 17.3 | K30: 18.25 | L30: 17.27 | M30: 18.15
A31: 16 | B31: 2013-06-12 | C31: 17.3 | D31: 17.69 | E31: 17.14 | F31: 17.2 | G31: 6444100 | H31: 17.2 | I31: 1 | J31: 17.3 | K31: 17.69 | L31: 17.14 | M31: 17.2
A32: 17 | B32: 2013-06-11 | C32: 16.91 | D32: 17.27 | E32: 16.79 | F32: 17.14 | G32: 6312200 | H32: 17.14 | I32: 1 | J32: 16.91 | K32: 17.27 | L32: 16.79 | M32: 17.14
A33: 18 | B33: 2013-06-10 | C33: 17.28 | D33: 17.48 | E33: 17 | F33: 17.24 | G33: 4677500 | H33: 17.24 | I33: 1 | J33: 17.28 | K33: 17.48 | L33: 17 | M33: 17.24
A34: 19 | B34: 2013-06-07 | C34: 17.42 | D34: 17.61 | E34: 17.23 | F34: 17.35 | G34: 5304200 | H34: 17.35 | I34: 1 | J34: 17.42 | K34: 17.61 | L34: 17.23 | M34: 17.35
A35: 20 | B35: 2013-06-06 | C35: 17.34 | D35: 17.6 | E35: 17.16 | F35: 17.46 | G35: 5028300 | H35: 17.46 | I35: 1 | J35: 17.34 | K35: 17.6 | L35: 17.16 | M35: 17.46
A36: 21 | B36: 2013-06-05 | C36: 17.51 | D36: 17.73 | E36: 17.22 | F36: 17.37 | G36: 5267600 | H36: 17.37 | I36: 1 | J36: 17.51 | K36: 17.73 | L36: 17.22 | M36: 17.37
A37: 22 | B37: 2013-06-04 | C37: 17.81 | D37: 17.95 | E37: 17.5 | F37: 17.64 | G37: 4984700 | H37: 17.64 | I37: 1 | J37: 17.81 | K37: 17.95 | L37: 17.5 | M37: 17.64
A38: 23 | B38: 2013-06-03 | C38: 17.93 | D38: 18.07 | E38: 17.48 | F38: 17.73 | G38: 7706300 | H38: 17.73 | I38: 1 | J38: 17.93 | K38: 18.07 | L38: 17.48 | M38: 17.73
A39: 24 | B39: 2013-05-31 | C39: 18.11 | D39: 18.23 | E39: 17.69 | F39: 17.69 | G39: 10506800 | H39: 17.69 | I39: 1 | J39: 18.11 | K39: 18.23 | L39: 17.69 | M39: 17.69
A40: 25 | B40: 2013-05-30 | C40: 18.18 | D40: 18.53 | E40: 17.99 | F40: 18.25 | G40: 6707100 | H40: 18.25 | I40: 1 | J40: 18.18 | K40: 18.53 | L40: 17.99 | M40: 18.25
A41: 26 | B41: 2013-05-29 | C41: 18.3 | D41: 18.46 | E41: 17.88 | F41: 18.05 | G41: 8298000 | H41: 18.05 | I41: 1 | J41: 18.3 | K41: 18.46 | L41: 17.88 | M41: 18.05
A42: 27 | B42: 2013-05-28 | C42: 18.7 | D42: 18.88 | E42: 18.4 | F42: 18.47 | G42: 6777900 | H42: 18.47 | I42: 1 | J42: 18.7 | K42: 18.88 | L42: 18.4 | M42: 18.47
A43: 28 | B43: 2013-05-24 | C43: 18.31 | D43: 18.81 | E43: 18.28 | F43: 18.42 | G43: 5173200 | H43: 18.42 | I43: 1 | J43: 18.31 | K43: 18.81 | L43: 18.28 | M43: 18.42
A44: 29 | B44: 2013-05-23 | C44: 18.48 | D44: 18.62 | E44: 18.23 | F44: 18.5 | G44: 8249800 | H44: 18.5 | I44: 1 | J44: 18.48 | K44: 18.62 | L44: 18.23 | M44: 18.5
A45: 30 | B45: 2013-05-22 | C45: 19.26 | D45: 19.7 | E45: 18.57 | F45: 18.83 | G45: 11006300 | H45: 18.83 | I45: 1 | J45: 19.26 | K45: 19.7 | L45: 18.57 | M45: 18.83
A46: 31 | B46: 2013-05-21 | C46: 19.15 | D46: 19.57 | E46: 18.94 | F46: 19.11 | G46: 10009600 | H46: 19.11 | I46: 1 | J46: 19.15 | K46: 19.57 | L46: 18.94 | M46: 19.11
A47: 32 | B47: 2013-05-20 | C47: 18.32 | D47: 19.08 | E47: 18.27 | F47: 18.93 | G47: 7501400 | H47: 18.93 | I47: 1 | J47: 18.32 | K47: 19.08 | L47: 18.27 | M47: 18.93
A48: 33 | B48: 2013-05-17 | C48: 18.21 | D48: 18.53 | E48: 18.11 | F48: 18.32 | G48: 8001600 | H48: 18.32 | I48: 1 | J48: 18.21 | K48: 18.53 | L48: 18.11 | M48: 18.32
A49: 34 | B49: 2013-05-16 | C49: 17.96 | D49: 18.41 | E49: 17.65 | F49: 17.87 | G49: 8292800 | H49: 17.87 | I49: 1 | J49: 17.96 | K49: 18.41 | L49: 17.65 | M49: 17.87
A50: 35 | B50: 2013-05-15 | C50: 18.45 | D50: 18.45 | E50: 17.91 | F50: 18.07 | G50: 8715300 | H50: 18.07 | I50: 1 | J50: 18.45 | K50: 18.45 | L50: 17.91 | M50: 18.07
A51: 36 | B51: 2013-05-14 | C51: 18.5 | D51: 19.13 | E51: 18.25 | F51: 18.5 | G51: 8888400 | H51: 18.5 | I51: 1 | J51: 18.5 | K51: 19.13 | L51: 18.25 | M51: 18.5
A52: 37 | B52: 2013-05-13 | C52: 19.18 | D52: 19.18 | E52: 18.43 | F52: 18.56 | G52: 7350200 | H52: 18.56 | I52: 1 | J52: 19.18 | K52: 19.18 | L52: 18.43 | M52: 18.56
A53: 38 | B53: 2013-05-10 | C53: 19.11 | D53: 19.27 | E53: 18.59 | F53: 19.23 | G53: 8874100 | H53: 19.23 | I53: 1 | J53: 19.11 | K53: 19.27 | L53: 18.59 | M53: 19.23
A54: 39 | B54: 2013-05-09 | C54: 19.27 | D54: 19.33 | E54: 18.83 | F54: 18.97 | G54: 6980100 | H54: 18.92 | I54: 0.9973642594 | J54: 19.22 | K54: 19.28 | L54: 18.78 | M54: 18.92
A55: 40 | B55: 2013-05-08 | C55: 18.42 | D55: 19.47 | E55: 18.32 | F55: 19.26 | G55: 11291200 | H55: 19.21 | I55: 0.997403946 | J55: 18.37 | K55: 19.42 | L55: 18.27 | M55: 19.21
A56: 41 | B56: 2013-05-07 | C56: 18.29 | D56: 18.66 | E56: 18.19 | F56: 18.23 | G56: 5761900 | H56: 18.18 | I56: 0.9972572682 | J56: 18.24 | K56: 18.61 | L56: 18.14 | M56: 18.18
A57: 42 | B57: 2013-05-06 | C57: 18.28 | D57: 18.35 | E57: 17.8 | F57: 18.11 | G57: 5459400 | H57: 18.06 | I57: 0.9972390944 | J57: 18.23 | K57: 18.3 | L57: 17.75 | M57: 18.06
A58: 43 | B58: 2013-05-03 | C58: 17.49 | D58: 18.23 | E58: 17.4 | F58: 18.14 | G58: 9503200 | H58: 18.09 | I58: 0.9972436604 | J58: 17.44 | K58: 18.18 | L58: 17.35 | M58: 18.09
A59: 44 | B59: 2013-05-02 | C59: 17.44 | D59: 17.45 | E59: 16.9 | F59: 17.06 | G59: 5960200 | H59: 17.02 | I59: 0.9976553341 | J59: 17.4 | K59: 17.41 | L59: 16.86 | M59: 17.02
A60: 45 | B60: 2013-05-01 | C60: 17.62 | D60: 17.62 | E60: 16.97 | F60: 17.3 | G60: 7578500 | H60: 17.25 | I60: 0.9971098266 | J60: 17.57 | K60: 17.57 | L60: 16.92 | M60: 17.25
A61: 46 | B61: 2013-04-30 | C61: 16.85 | D61: 17.8 | E61: 16.7 | F61: 17.8 | G61: 9966400 | H61: 17.75 | I61: 0.9971910112 | J61: 16.8 | K61: 17.75 | L61: 16.65 | M61: 17.75
A62: 47 | B62: 2013-04-29 | C62: 17.45 | D62: 17.89 | E62: 17.26 | F62: 17.54 | G62: 8643900 | H62: 17.49 | I62: 0.9971493729 | J62: 17.4 | K62: 17.84 | L62: 17.21 | M62: 17.49
A63: 48 | B63: 2013-04-26 | C63: 17.53 | D63: 17.55 | E63: 17.01 | F63: 17.36 | G63: 8739700 | H63: 17.31 | I63: 0.9971198157 | J63: 17.48 | K63: 17.5 | L63: 16.96 | M63: 17.31
A64: 49 | B64: 2013-04-25 | C64: 17.31 | D64: 17.9 | E64: 17.01 | F64: 17.62 | G64: 12816000 | H64: 17.57 | I64: 0.9971623156 | J64: 17.26 | K64: 17.85 | L64: 16.96 | M64: 17.57
A65: 50 | B65: 2013-04-24 | C65: 16.36 | D65: 17.16 | E65: 16.35 | F65: 17.06 | G65: 8926400 | H65: 17.02 | I65: 0.9976553341 | J65: 16.32 | K65: 17.12 | L65: 16.31 | M65: 17.02
A66: 51 | B66: 2013-04-23 | C66: 16.4 | D66: 16.64 | E66: 15.96 | F66: 16.18 | G66: 9582300 | H66: 16.14 | I66: 0.9975278121 | J66: 16.36 | K66: 16.6 | L66: 15.92 | M66: 16.14
A67: 52 | B67: 2013-04-22 | C67: 16.45 | D67: 16.51 | E67: 15.8 | F67: 16.28 | G67: 9413600 | H67: 16.24 | I67: 0.9975429975 | J67: 16.41 | K67: 16.47 | L67: 15.76 | M67: 16.24
A68: 53 | B68: 2013-04-19 | C68: 16.64 | D68: 16.76 | E68: 16.1 | F68: 16.39 | G68: 7011900 | H68: 16.35 | I68: 0.9975594875 | J68: 16.6 | K68: 16.72 | L68: 16.06 | M68: 16.35
A69: 54 | B69: 2013-04-18 | C69: 16.28 | D69: 16.88 | E69: 16.06 | F69: 16.44 | G69: 10533200 | H69: 16.4 | I69: 0.99756691 | J69: 16.24 | K69: 16.84 | L69: 16.02 | M69: 16.4
A70: 55 | B70: 2013-04-17 | C70: 16.37 | D70: 16.5 | E70: 16.01 | F70: 16.26 | G70: 9160000 | H70: 16.22 | I70: 0.9975399754 | J70: 16.33 | K70: 16.46 | L70: 15.97 | M70: 16.22
A71: 56 | B71: 2013-04-16 | C71: 16.87 | D71: 16.97 | E71: 16.38 | F71: 16.62 | G71: 9435400 | H71: 16.58 | I71: 0.9975932611 | J71: 16.83 | K71: 16.93 | L71: 16.34 | M71: 16.58
A72: 57 | B72: 2013-04-15 | C72: 17.24 | D72: 17.24 | E72: 16.51 | F72: 16.63 | G72: 13497600 | H72: 16.59 | I72: 0.9975947084 | J72: 17.2 | K72: 17.2 | L72: 16.47 | M72: 16.59
A73: 58 | B73: 2013-04-12 | C73: 17.53 | D73: 17.6 | E73: 17.09 | F73: 17.45 | G73: 8135800 | H73: 17.4 | I73: 0.9971346705 | J73: 17.48 | K73: 17.55 | L73: 17.04 | M73: 17.4
A74: 59 | B74: 2013-04-11 | C74: 17.76 | D74: 18.01 | E74: 17.42 | F74: 17.55 | G74: 8454000 | H74: 17.5 | I74: 0.9971509972 | J74: 17.71 | K74: 17.96 | L74: 17.37 | M74: 17.5
A75: 60 | B75: 2013-04-10 | C75: 18.12 | D75: 18.19 | E75: 17.72 | F75: 17.83 | G75: 7985800 | H75: 17.78 | I75: 0.9971957375 | J75: 18.07 | K75: 18.14 | L75: 17.67 | M75: 17.78
A76: 61 | B76: 2013-04-09 | C76: 17.44 | D76: 18.31 | E76: 17.38 | F76: 17.99 | G76: 11344800 | H76: 17.94 | I76: 0.9972206782 | J76: 17.39 | K76: 18.26 | L76: 17.33 | M76: 17.94
A77: 62 | B77: 2013-04-08 | C77: 17.3 | D77: 17.6 | E77: 17.02 | F77: 17.23 | G77: 5724900 | H77: 17.18 | I77: 0.9970980847 | J77: 17.25 | K77: 17.55 | L77: 16.97 | M77: 17.18
A78: 63 | B78: 2013-04-05 | C78: 17.26 | D78: 17.53 | E78: 17.01 | F78: 17.28 | G78: 10837400 | H78: 17.23 | I78: 0.9971064815 | J78: 17.21 | K78: 17.48 | L78: 16.96 | M78: 17.23
A79: 64 | B79: 2013-04-04 | C79: 17.49 | D79: 17.84 | E79: 17.22 | F79: 17.55 | G79: 10465600 | H79: 17.5 | I79: 0.9971509972 | J79: 17.44 | K79: 17.79 | L79: 17.17 | M79: 17.5
A80: 65 | B80: 2013-04-03 | C80: 17.69 | D80: 17.77 | E80: 16.87 | F80: 17.44 | G80: 16191200 | H80: 17.39 | I80: 0.9971330275 | J80: 17.64 | K80: 17.72 | L80: 16.82 | M80: 17.39
A81: 66 | B81: 2013-04-02 | C81: 18.44 | D81: 18.52 | E81: 17.4 | F81: 17.65 | G81: 22246200 | H81: 17.6 | I81: =H81/F81 -> 0.9971671388 | J81: =ROUND($I81*C81,2) -> 18.39 | K81: =ROUND($I81*D81,2) -> 18.47 | L81: =ROUND($I81*E81,2) -> 17.35 | M81: =ROUND($I81*F81,2) -> 17.6
A82: 67 | B82: 2013-04-01 | C82: 19.5 | D82: 19.56 | E82: 18.62 | F82: 18.72 | G82: 9034500 | H82: 18.67 | I82: 0.9973290598 | J82: 19.45 | K82: 19.51 | L82: 18.57 | M82: 18.67
A83: 68 | B83: 2013-03-28 | C83: 19.82 | D83: 19.82 | E83: 19.36 | F83: 19.5 | G83: 6686500 | H83: 19.45 | I83: 0.9974358974 | J83: 19.77 | K83: 19.77 | L83: 19.31 | M83: 19.45
A84: 69 | B84: 2013-03-27 | C84: 19.72 | D84: 19.94 | E84: 19.55 | F84: 19.82 | G84: 6096500 | H84: 19.77 | I84: 0.9974772957 | J84: 19.67 | K84: 19.89 | L84: 19.5 | M84: 19.77
A85: 70 | B85: 2013-03-26 | C85: 19.85 | D85: 19.96 | E85: 19.46 | F85: 19.96 | G85: 5853500 | H85: 19.91 | I85: 0.99749499 | J85: 19.8 | K85: 19.91 | L85: 19.41 | M85: 19.91
A86: 71 | B86: 2013-03-25 | C86: 19.82 | D86: 19.88 | E86: 19.4 | F86: 19.73 | G86: 4524700 | H86: 19.68 | I86: 0.9974657881 | J86: 19.77 | K86: 19.83 | L86: 19.35 | M86: 19.68
A87: 72 | B87: 2013-03-22 | C87: 19.75 | D87: 19.97 | E87: 19.7 | F87: 19.81 | G87: 5169000 | H87: 19.76 | I87: 0.9974760222 | J87: 19.7 | K87: 19.92 | L87: 19.65 | M87: 19.76
A88: 73 | B88: 2013-03-21 | C88: 19.26 | D88: 20.01 | E88: 19.25 | F88: 19.7 | G88: 9276900 | H88: 19.65 | I88: 0.9974619289 | J88: 19.21 | K88: 19.96 | L88: 19.2 | M88: 19.65
A89: 74 | B89: 2013-03-20 | C89: 19.67 | D89: 19.79 | E89: 19.19 | F89: 19.45 | G89: 11435900 | H89: 19.4 | I89: 0.9974293059 | J89: 19.62 | K89: 19.74 | L89: 19.14 | M89: 19.4
A90: 75 | B90: 2013-03-19 | C90: 20.01 | D90: 20.23 | E90: 19.4 | F90: 19.64 | G90: 9667400 | H90: 19.59 | I90: 0.9974541752 | J90: 19.96 | K90: 20.18 | L90: 19.35 | M90: 19.59
A91: 76 | B91: 2013-03-18 | C91: 19.8 | D91: 20.3 | E91: 19.75 | F91: 20.11 | G91: 5519800 | H91: 20.06 | I91: 0.9975136748 | J91: 19.75 | K91: 20.25 | L91: 19.7 | M91: 20.06
A92: 77 | B92: 2013-03-15 | C92: 19.84 | D92: 20.3 | E92: 19.82 | F92: 20.21 | G92: 7788000 | H92: 20.16 | I92: 0.9975259772 | J92: 19.79 | K92: 20.25 | L92: 19.77 | M92: 20.16
A93: 78 | B93: 2013-03-14 | C93: 20.12 | D93: 20.15 | E93: 19.55 | F93: 19.82 | G93: 11160800 | H93: 19.77 | I93: 0.9974772957 | J93: 20.07 | K93: 20.1 | L93: 19.5 | M93: 19.77
A94: 79 | B94: 2013-03-13 | C94: 20.63 | D94: 20.67 | E94: 19.82 | F94: 20.04 | G94: 9417800 | H94: 19.99 | I94: 0.99750499 | J94: 20.58 | K94: 20.62 | L94: 19.77 | M94: 19.99
A95: 80 | B95: 2013-03-12 | C95: 20.76 | D95: 21.07 | E95: 20.4 | F95: 20.69 | G95: 5625700 | H95: 20.64 | I95: 0.9975833736 | J95: 20.71 | K95: 21.02 | L95: 20.35 | M95: 20.64
A96: 81 | B96: 2013-03-11 | C96: 20.83 | D96: 20.96 | E96: 20.6 | F96: 20.74 | G96: 4534500 | H96: 20.69 | I96: 0.9975891996 | J96: 20.78 | K96: 20.91 | L96: 20.55 | M96: 20.69
A97: 82 | B97: 2013-03-08 | C97: 20.97 | D97: 21.36 | E97: 20.7 | F97: 20.93 | G97: 6869200 | H97: 20.87 | I97: 0.9971333015 | J97: 20.91 | K97: 21.3 | L97: 20.64 | M97: 20.87
A98: 83 | B98: 2013-03-07 | C98: 20.77 | D98: 21.15 | E98: 20.65 | F98: 20.67 | G98: 6033300 | H98: 20.62 | I98: 0.9975810353 | J98: 20.72 | K98: 21.1 | L98: 20.6 | M98: 20.62
A99: 84 | B99: 2013-03-06 | C99: 20.12 | D99: 20.82 | E99: 20.08 | F99: 20.76 | G99: 7037300 | H99: 20.71 | I99: 0.9975915222 | J99: 20.07 | K99: 20.77 | L99: 20.03 | M99: 20.71
A100: 85 | B100: 2013-03-05 | C100: 20.3 | D100: 20.59 | E100: 19.93 | F100: 19.99 | G100: 6811700 | H100: 19.94 | I100: 0.9974987494 | J100: 20.25 | K100: 20.54 | L100: 19.88 | M100: 19.94
A101: 86 | B101: 2013-03-04 | C101: 20.35 | D101: 20.36 | E101: 19.76 | F101: 20.03 | G101: 7363700 | H101: 19.98 | I101: 0.9975037444 | J101: 20.3 | K101: 20.31 | L101: 19.71 | M101: 19.98
A102: 87 | B102: 2013-03-01 | C102: 20.6 | D102: 20.64 | E102: 20.1 | F102: 20.31 | G102: 8068700 | H102: 20.26 | I102: 0.9975381585 | J102: 20.55 | K102: 20.59 | L102: 20.05 | M102: 20.26
A103: 88 | B103: 2013-02-28 | C103: 21.09 | D103: 21.25 | E103: 20.73 | F103: 20.84 | G103: 6558000 | H103: 20.79 | I103: 0.9976007678 | J103: 21.04 | K103: 21.2 | L103: 20.68 | M103: 20.79
A104: 89 | B104: 2013-02-27 | C104: 20.57 | D104: 21.32 | E104: 20.56 | F104: 21.05 | G104: 7829200 | H104: 20.99 | I104: 0.9971496437 | J104: 20.51 | K104: 21.26 | L104: 20.5 | M104: 20.99
A105: 90 | B105: 2013-02-26 | C105: 20.68 | D105: 20.76 | E105: 20.14 | F105: 20.71 | G105: 9282400 | H105: 20.66 | I105: 0.9975857074 | J105: 20.63 | K105: 20.71 | L105: 20.09 | M105: 20.66
A106: 91 | B106: 2013-02-25 | C106: 21.51 | D106: 21.62 | E106: 20.5 | F106: 20.51 | G106: 5810500 | H106: 20.46 | I106: 0.9975621648 | J106: 21.46 | K106: 21.57 | L106: 20.45 | M106: 20.46
A107: 92 | B107: 2013-02-22 | C107: 21.62 | D107: 21.68 | E107: 20.9 | F107: 21.33 | G107: 6323400 | H107: 21.27 | I107: 0.9971870605 | J107: 21.56 | K107: 21.62 | L107: 20.84 | M107: 21.27
A108: 93 | B108: 2013-02-21 | C108: 21.75 | D108: 21.94 | E108: 21.13 | F108: 21.37 | G108: 9023100 | H108: 21.31 | I108: 0.9971923257 | J108: 21.69 | K108: 21.88 | L108: 21.07 | M108: 21.31
A109: 94 | B109: 2013-02-20 | C109: 23.13 | D109: 23.17 | E109: 21.94 | F109: 22.01 | G109: 6275600 | H109: 21.95 | I109: 0.9972739664 | J109: 23.07 | K109: 23.11 | L109: 21.88 | M109: 21.95
A110: 95 | B110: 2013-02-19 | C110: 23.28 | D110: 24 | E110: 23.05 | F110: 23.14 | G110: 7455300 | H110: 23.08 | I110: 0.9974070873 | J110: 23.22 | K110: 23.94 | L110: 22.99 | M110: 23.08
A111: 96 | B111: 2013-02-15 | C111: 23.73 | D111: 23.73 | E111: 23 | F111: 23.16 | G111: 6139500 | H111: 23.1 | I111: 0.9974093264 | J111: 23.67 | K111: 23.67 | L111: 22.94 | M111: 23.1
A112: 97 | B112: 2013-02-14 | C112: 22.67 | D112: 23.7 | E112: 22.65 | F112: 23.57 | G112: 7603900 | H112: 23.51 | I112: 0.9974543912 | J112: 22.61 | K112: 23.64 | L112: 22.59 | M112: 23.51
A113: 98 | B113: 2013-02-13 | C113: 22.56 | D113: 22.9 | E113: 22.47 | F113: 22.85 | G113: 4445000 | H113: 22.79 | I113: 0.9973741794 | J113: 22.5 | K113: 22.84 | L113: 22.41 | M113: 22.79
A114: 99 | B114: 2013-02-12 | C114: 22.45 | D114: 22.96 | E114: 22.32 | F114: 22.63 | G114: 4471100 | H114: 22.57 | I114: 0.9973486522 | J114: 22.39 | K114: 22.9 | L114: 22.26 | M114: 22.57
A115: 100 | B115: 2013-02-11 | C115: 22.35 | D115: 22.68 | E115: 22.3 | F115: 22.53 | G115: 3774000 | H115: 22.47 | I115: 0.9973368842 | J115: 22.29 | K115: 22.62 | L115: 22.24 | M115: 22.47
A116: 101 | B116: 2013-02-08 | C116: 22.4 | D116: 22.67 | E116: 22.23 | F116: 22.47 | G116: 5636700 | H116: 22.41 | I116: 0.997329773 | J116: 22.34 | K116: 22.61 | L116: 22.17 | M116: 22.41
A117: 102 | B117: 2013-02-07 | C117: 22.85 | D117: 22.86 | E117: 22.12 | F117: 22.32 | G117: 8030300 | H117: 22.21 | I117: 0.9950716846 | J117: 22.74 | K117: 22.75 | L117: 22.01 | M117: 22.21
A118: 103 | B118: 2013-02-06 | C118: 22.2 | D118: 23.38 | E118: 22.12 | F118: 22.72 | G118: 15720800 | H118: 22.61 | I118: 0.9951584507 | J118: 22.09 | K118: 23.27 | L118: 22.01 | M118: 22.61
A119: 104 | B119: 2013-02-05 | C119: 22.15 | D119: 22.43 | E119: 21.88 | F119: 22.18 | G119: 7024000 | H119: 22.07 | I119: 0.9950405771 | J119: 22.04 | K119: 22.32 | L119: 21.77 | M119: 22.07
A120: 105 | B120: 2013-02-04 | C120: 22.32 | D120: 22.42 | E120: 21.91 | F120: 21.94 | G120: 7013200 | H120: 21.83 | I120: 0.9949863263 | J120: 22.21 | K120: 22.31 | L120: 21.8 | M120: 21.83
A121: 106 | B121: 2013-02-01 | C121: 22.7 | D121: 22.75 | E121: 22.28 | F121: 22.38 | G121: 8537200 | H121: 22.27 | I121: 0.9950848972 | J121: 22.59 | K121: 22.64 | L121: 22.17 | M121: 22.27
A122: 107 | B122: 2013-01-31 | C122: 22.25 | D122: 22.6 | E122: 22.17 | F122: 22.35 | G122: 7432300 | H122: 22.24 | I122: 0.9950782998 | J122: 22.14 | K122: 22.49 | L122: 22.06 | M122: 22.24
A123: 108 | B123: 2013-01-30 | C123: 23.2 | D123: 23.37 | E123: 22.17 | F123: 22.32 | G123: 13513700 | H123: 22.21 | I123: 0.9950716846 | J123: 23.09 | K123: 23.25 | L123: 22.06 | M123: 22.21
A124: 109 | B124: 2013-01-29 | C124: 24.19 | D124: 24.33 | E124: 23.04 | F124: 23.2 | G124: 11930500 | H124: 23.09 | I124: 0.9952586207 | J124: 24.08 | K124: 24.21 | L124: 22.93 | M124: 23.09
A125: 110 | B125: 2013-01-28 | C125: 24.51 | D125: 24.52 | E125: 23.63 | F125: 23.72 | G125: 9274900 | H125: 23.6 | I125: 0.9949409781 | J125: 24.39 | K125: 24.4 | L125: 23.51 | M125: 23.6
A126: 111 | B126: 2013-01-25 | C126: 24.39 | D126: 24.56 | E126: 24 | F126: 24.53 | G126: 6465000 | H126: 24.41 | I126: 0.995108031 | J126: 24.27 | K126: 24.44 | L126: 23.88 | M126: 24.41
A127: 112 | B127: 2013-01-24 | C127: 24.89 | D127: 25.19 | E127: 24.16 | F127: 24.22 | G127: 7598400 | H127: 24.1 | I127: 0.995045417 | J127: 24.77 | K127: 25.07 | L127: 24.04 | M127: 24.1
A128: 113 | B128: 2013-01-23 | C128: 25.22 | D128: 25.22 | E128: 24.55 | F128: 24.99 | G128: 6959600 | H128: 24.87 | I128: 0.9951980792 | J128: 25.1 | K128: 25.1 | L128: 24.43 | M128: 24.87
A129: 114 | B129: 2013-01-22 | C129: 24.87 | D129: 25.23 | E129: 24.6 | F129: 25.18 | G129: 7414200 | H129: 25.06 | I129: 0.9952343129 | J129: 24.75 | K129: 25.11 | L129: 24.48 | M129: 25.06
A130: 115 | B130: 2013-01-18 | C130: 24.81 | D130: 24.94 | E130: 24.3 | F130: 24.77 | G130: 6903700 | H130: 24.65 | I130: 0.99515543 | J130: 24.69 | K130: 24.82 | L130: 24.18 | M130: 24.65
A131: 116 | B131: 2013-01-17 | C131: 24.66 | D131: 24.89 | E131: 24.46 | F131: 24.7 | G131: 4865100 | H131: 24.58 | I131: 0.9951417004 | J131: 24.54 | K131: 24.77 | L131: 24.34 | M131: 24.58
A132: 117 | B132: 2013-01-16 | C132: 24.5 | D132: 24.63 | E132: 24.25 | F132: 24.52 | G132: 5209100 | H132: 24.4 | I132: 0.9951060359 | J132: 24.38 | K132: 24.51 | L132: 24.13 | M132: 24.4
A133: 118 | B133: 2013-01-15 | C133: 24.24 | D133: 24.86 | E133: 24.15 | F133: 24.74 | G133: 5698600 | H133: 24.62 | I133: 0.9951495554 | J133: 24.12 | K133: 24.74 | L133: 24.03 | M133: 24.62
A134: 119 | B134: 2013-01-14 | C134: 24.95 | D134: 25.14 | E134: 24.24 | F134: 24.38 | G134: 6832600 | H134: 24.26 | I134: 0.9950779327 | J134: 24.83 | K134: 25.02 | L134: 24.12 | M134: 24.26
A135: 120 | B135: 2013-01-11 | C135: 25.69 | D135: 25.69 | E135: 24.75 | F135: 24.88 | G135: 7290300 | H135: 24.76 | I135: 0.9951768489 | J135: 25.57 | K135: 25.57 | L135: 24.63 | M135: 24.76
A136: 121 | B136: 2013-01-10 | C136: 25.75 | D136: 26.1 | E136: 25.41 | F136: 25.73 | G136: 7921100 | H136: 25.6 | I136: 0.9949475321 | J136: 25.62 | K136: 25.97 | L136: 25.28 | M136: 25.6
A137: 122 | B137: 2013-01-09 | C137: 25.24 | D137: 25.64 | E137: 24.8 | F137: 25.46 | G137: 8572100 | H137: 25.34 | I137: 0.9952867243 | J137: 25.12 | K137: 25.52 | L137: 24.68 | M137: 25.34
A138: 123 | B138: 2013-01-08 | C138: 25.68 | D138: 25.71 | E138: 24.94 | F138: 25.01 | G138: 6625300 | H138: 24.89 | I138: 0.9952019192 | J138: 25.56 | K138: 25.59 | L138: 24.82 | M138: 24.89
A139: 124 | B139: 2013-01-07 | C139: 25.46 | D139: 26.15 | E139: 25.44 | F139: 25.71 | G139: 6687800 | H139: 25.58 | I139: 0.9949436017 | J139: 25.33 | K139: 26.02 | L139: 25.31 | M139: 25.58
A140: 125 | B140: 2013-01-04 | C140: 25.55 | D140: 25.79 | E140: 25.33 | F140: 25.7 | G140: 5800700 | H140: 25.57 | I140: 0.9949416342 | J140: 25.42 | K140: 25.66 | L140: 25.2 | M140: 25.57
A141: 126 | B141: 2013-01-03 | C141: 25.79 | D141: 26.29 | E141: 25.35 | F141: 25.42 | G141: 8834500 | H141: 25.3 | I141: 0.9952793076 | J141: 25.67 | K141: 26.17 | L141: 25.23 | M141: 25.3
A142: 127 | B142: 2013-01-02 | C142: 25.18 | D142: 25.92 | E142: 24.85 | F142: 25.89 | G142: 15628600 | H142: 25.76 | I142: 0.9949787563 | J142: 25.05 | K142: 25.79 | L142: 24.73 | M142: 25.76
A143: 128 | B143: 2012-12-31 | C143: 23.15 | D143: 23.89 | E143: 22.93 | F143: 23.85 | G143: 8117900 | H143: 23.73 | I143: 0.9949685535 | J143: 23.03 | K143: 23.77 | L143: 22.81 | M143: 23.73
A144: 129 | B144: 2012-12-28 | C144: 23.28 | D144: 23.45 | E144: 22.95 | F144: 23.03 | G144: 5399500 | H144: 22.92 | I144: 0.9952236214 | J144: 23.17 | K144: 23.34 | L144: 22.84 | M144: 22.92
A145: 130 | B145: 2012-12-27 | C145: 24.43 | D145: 24.51 | E145: 23.28 | F145: 23.64 | G145: 7066100 | H145: 23.52 | I145: =H145/F145 -> 0.9949238579 | J145: =ROUND($I145*C145,2) -> 24.31 | K145: =ROUND($I145*D145,2) -> 24.39 | L145: =ROUND($I145*E145,2) -> 23.16 | M145: =ROUND($I145*F145,2) -> 23.52
A146: 131 | B146: 2012-12-26 | C146: 24.16 | D146: 24.78 | E146: 24.16 | F146: 24.26 | G146: 4211300 | H146: 24.14 | I146: 0.9950535862 | J146: 24.04 | K146: 24.66 | L146: 24.04 | M146: 24.14
A147: 132 | B147: 2012-12-24 | C147: 23.94 | D147: 24.07 | E147: 23.63 | F147: 24.06 | G147: 1856000 | H147: 23.94 | I147: 0.9950124688 | J147: 23.82 | K147: 23.95 | L147: 23.51 | M147: 23.94
A148: 133 | B148: 2012-12-21 | C148: 23.99 | D148: 24.24 | E148: 23.64 | F148: 23.94 | G148: 9551200 | H148: 23.82 | I148: 0.9949874687 | J148: 23.87 | K148: 24.12 | L148: 23.52 | M148: 23.82
A149: 134 | B149: 2012-12-20 | C149: 24.37 | D149: 24.62 | E149: 24.1 | F149: 24.62 | G149: 5552500 | H149: 24.5 | I149: 0.9951259139 | J149: 24.25 | K149: 24.5 | L149: 23.98 | M149: 24.5
A150: 135 | B150: 2012-12-19 | C150: 24.52 | D150: 24.75 | E150: 24.28 | F150: 24.43 | G150: 6460600 | H150: 24.31 | I150: 0.9950880065 | J150: 24.4 | K150: 24.63 | L150: 24.16 | M150: 24.31
A151: 136 | B151: 2012-12-18 | C151: 24.15 | D151: 24.51 | E151: 24 | F151: 24.43 | G151: 8404200 | H151: 24.31 | I151: 0.9950880065 | J151: 24.03 | K151: 24.39 | L151: 23.88 | M151: 24.31
A152: 137 | B152: 2012-12-17 | C152: 24.2 | D152: 24.58 | E152: 23.72 | F152: 24.02 | G152: 11274000 | H152: 23.9 | I152: 0.9950041632 | J152: 24.08 | K152: 24.46 | L152: 23.6 | M152: 23.9
A153: 138 | B153: 2012-12-14 | C153: 22.5 | D153: 24.08 | E153: 22.48 | F153: 23.85 | G153: 19818600 | H153: 23.73 | I153: 0.9949685535 | J153: 22.39 | K153: 23.96 | L153: 22.37 | M153: 23.73
A154: 139 | B154: 2012-12-13 | C154: 22.21 | D154: 22.8 | E154: 22.16 | F154: 22.33 | G154: 8353300 | H154: 22.22 | I154: 0.9950738916 | J154: 22.1 | K154: 22.69 | L154: 22.05 | M154: 22.22
A155: 140 | B155: 2012-12-12 | C155: 22.52 | D155: 22.84 | E155: 21.94 | F155: 22.16 | G155: 11118400 | H155: 22.05 | I155: 0.9950361011 | J155: 22.41 | K155: 22.73 | L155: 21.83 | M155: 22.05
A156: 141 | B156: 2012-12-11 | C156: 22.04 | D156: 22.64 | E156: 21.76 | F156: 22.41 | G156: 10304900 | H156: 22.3 | I156: 0.995091477 | J156: 21.93 | K156: 22.53 | L156: 21.65 | M156: 22.3
A157: 142 | B157: 2012-12-10 | C157: 21.46 | D157: 22.14 | E157: 21.42 | F157: 21.85 | G157: 7760900 | H157: 21.74 | I157: 0.9949656751 | J157: 21.35 | K157: 22.03 | L157: 21.31 | M157: 21.74
A158: 143 | B158: 2012-12-07 | C158: 22.12 | D158: 22.23 | E158: 21.65 | F158: 21.77 | G158: 5277500 | H158: 21.66 | I158: 0.994947175 | J158: 22.01 | K158: 22.12 | L158: 21.54 | M158: 21.66
A159: 144 | B159: 2012-12-06 | C159: 21.99 | D159: 22.25 | E159: 21.67 | F159: 22 | G159: 5257500 | H159: 21.89 | I159: 0.995 | J159: 21.88 | K159: 22.14 | L159: 21.56 | M159: 21.89
A160: 145 | B160: 2012-12-05 | C160: 21.83 | D160: 22.25 | E160: 21.66 | F160: 22.06 | G160: 6970700 | H160: 21.95 | I160: 0.9950135993 | J160: 21.72 | K160: 22.14 | L160: 21.55 | M160: 21.95
A161: 146 | B161: 2012-12-04 | C161: 21.36 | D161: 21.99 | E161: 21.3 | F161: 21.66 | G161: 5730900 | H161: 21.55 | I161: 0.9949215143 | J161: 21.25 | K161: 21.88 | L161: 21.19 | M161: 21.55
A162: 147 | B162: 2012-12-03 | C162: 21.84 | D162: 21.92 | E162: 21.27 | F162: 21.37 | G162: 6583000 | H162: 21.27 | I162: 0.9953205428 | J162: 21.74 | K162: 21.82 | L162: 21.17 | M162: 21.27
A163: 148 | B163: 2012-11-30 | C163: 21.79 | D163: 22.13 | E163: 21.4 | F163: 21.56 | G163: 5761700 | H163: 21.46 | I163: 0.9953617811 | J163: 21.69 | K163: 22.03 | L163: 21.3 | M163: 21.46
A164: 149 | B164: 2012-11-29 | C164: 21.94 | D164: 22.23 | E164: 21.64 | F164: 21.78 | G164: 7302800 | H164: 21.67 | I164: 0.9949494949 | J164: 21.83 | K164: 22.12 | L164: 21.53 | M164: 21.67
A165: 150 | B165: 2012-11-28 | C165: 21.14 | D165: 21.75 | E165: 20.92 | F165: 21.74 | G165: 6962000 | H165: 21.63 | I165: 0.9949402024 | J165: 21.03 | K165: 21.64 | L165: 20.81 | M165: 21.63
A166: 151 | B166: 2012-11-27 | C166: 21.49 | D166: 21.89 | E166: 21.21 | F166: 21.26 | G166: 5133300 | H166: 21.16 | I166: 0.9952963311 | J166: 21.39 | K166: 21.79 | L166: 21.11 | M166: 21.16
A167: 152 | B167: 2012-11-26 | C167: 21.47 | D167: 21.91 | E167: 21.36 | F167: 21.61 | G167: 4300200 | H167: 21.5 | I167: 0.994909764 | J167: 21.36 | K167: 21.8 | L167: 21.25 | M167: 21.5
A168: 153 | B168: 2012-11-23 | C168: 21.96 | D168: 22 | E168: 21.42 | F168: 21.64 | G168: 3305800 | H168: 21.53 | I168: 0.9949168207 | J168: 21.85 | K168: 21.89 | L168: 21.31 | M168: 21.53
A169: 154 | B169: 2012-11-21 | C169: 21.18 | D169: 21.7 | E169: 20.88 | F169: 21.7 | G169: 6673800 | H169: 21.59 | I169: 0.9949308756 | J169: 21.07 | K169: 21.59 | L169: 20.77 | M169: 21.59
A170: 155 | B170: 2012-11-20 | C170: 21.11 | D170: 21.41 | E170: 20.92 | F170: 21.08 | G170: 5346200 | H170: 20.98 | I170: 0.995256167 | J170: 21.01 | K170: 21.31 | L170: 20.82 | M170: 20.98
A171: 156 | B171: 2012-11-19 | C171: 20.69 | D171: 21.19 | E171: 20.69 | F171: 21.15 | G171: 8530600 | H171: 21.05 | I171: 0.9952718676 | J171: 20.59 | K171: 21.09 | L171: 20.59 | M171: 21.05
A172: 157 | B172: 2012-11-16 | C172: 20.07 | D172: 20.33 | E172: 19.56 | F172: 20.06 | G172: 9859900 | H172: 19.96 | I172: 0.9950149551 | J172: 19.97 | K172: 20.23 | L172: 19.46 | M172: 19.96
A173: 158 | B173: 2012-11-15 | C173: 20.33 | D173: 20.76 | E173: 19.88 | F173: 20.14 | G173: 7782500 | H173: 20.04 | I173: 0.9950347567 | J173: 20.23 | K173: 20.66 | L173: 19.78 | M173: 20.04
A174: 159 | B174: 2012-11-14 | C174: 21.51 | D174: 21.57 | E174: 20.25 | F174: 20.37 | G174: 10274900 | H174: 20.27 | I174: 0.9950908198 | J174: 21.4 | K174: 21.46 | L174: 20.15 | M174: 20.27
A175: 160 | B175: 2012-11-13 | C175: 21.09 | D175: 21.45 | E175: 21 | F175: 21.31 | G175: 8301400 | H175: 21.21 | I175: 0.9953073674 | J175: 20.99 | K175: 21.35 | L175: 20.9 | M175: 21.21
A176: 161 | B176: 2012-11-12 | C176: 21.42 | D176: 21.71 | E176: 21.23 | F176: 21.53 | G176: 4436400 | H176: 21.43 | I176: 0.9953553182 | J176: 21.32 | K176: 21.61 | L176: 21.13 | M176: 21.43
A177: 162 | B177: 2012-11-09 | C177: 21.01 | D177: 21.9 | E177: 20.95 | F177: 21.1 | G177: 8398900 | H177: 21 | I177: 0.9952606635 | J177: 20.91 | K177: 21.8 | L177: 20.85 | M177: 21
A178: 163 | B178: 2012-11-08 | C178: 21.5 | D178: 21.95 | E178: 21.03 | F178: 21.15 | G178: 6102000 | H178: 21 | I178: 0.9929078014 | J178: 21.35 | K178: 21.79 | L178: 20.88 | M178: 21
A179: 164 | B179: 2012-11-07 | C179: 21.69 | D179: 21.96 | E179: 21.29 | F179: 21.56 | G179: 9089300 | H179: 21.4 | I179: 0.9925788497 | J179: 21.53 | K179: 21.8 | L179: 21.13 | M179: 21.4
A180: 165 | B180: 2012-11-06 | C180: 21.66 | D180: 22.47 | E180: 21.66 | F180: 22.26 | G180: 10591300 | H180: 22.1 | I180: 0.9928122192 | J180: 21.5 | K180: 22.31 | L180: 21.5 | M180: 22.1
A181: 166 | B181: 2012-11-05 | C181: 20.74 | D181: 21.46 | E181: 20.69 | F181: 21.13 | G181: 8167500 | H181: 20.98 | I181: 0.9929010885 | J181: 20.59 | K181: 21.31 | L181: 20.54 | M181: 20.98
A182: 167 | B182: 2012-11-02 | C182: 21.89 | D182: 22.01 | E182: 20.65 | F182: 20.84 | G182: 10452200 | H182: 20.69 | I182: 0.9928023033 | J182: 21.73 | K182: 21.85 | L182: 20.5 | M182: 20.69
A183: 168 | B183: 2012-11-01 | C183: 20.63 | D183: 21.69 | E183: 20.51 | F183: 21.55 | G183: 12617800 | H183: 21.39 | I183: 0.992575406 | J183: 20.48 | K183: 21.53 | L183: 20.36 | M183: 21.39
A184: 169 | B184: 2012-10-31 | C184: 21.35 | D184: 21.48 | E184: 20.05 | F184: 20.39 | G184: 13725000 | H184: 20.24 | I184: 0.9926434527 | J184: 21.19 | K184: 21.32 | L184: 19.9 | M184: 20.24
A185: 170 | B185: 2012-10-26 | C185: 21.51 | D185: 21.76 | E185: 21.05 | F185: 21.15 | G185: 5938100 | H185: 21 | I185: 0.9929078014 | J185: 21.36 | K185: 21.61 | L185: 20.9 | M185: 21
A186: 171 | B186: 2012-10-25 | C186: 22.02 | D186: 22.07 | E186: 21.35 | F186: 21.41 | G186: 5875200 | H186: 21.26 | I186: 0.9929939281 | J186: 21.87 | K186: 21.92 | L186: 21.2 | M186: 21.26
A187: 172 | B187: 2012-10-24 | C187: 22.13 | D187: 22.36 | E187: 21.63 | F187: 21.67 | G187: 5378100 | H187: 21.51 | I187: 0.9926165205 | J187: 21.97 | K187: 22.19 | L187: 21.47 | M187: 21.51
A188: 173 | B188: 2012-10-23 | C188: 22.36 | D188: 22.63 | E188: 21.81 | F188: 21.9 | G188: 9688200 | H188: 21.74 | I188: 0.9926940639 | J188: 22.2 | K188: 22.46 | L188: 21.65 | M188: 21.74
A189: 174 | B189: 2012-10-22 | C189: 22.13 | D189: 23.05 | E189: 22.1 | F189: 22.91 | G189: 8629600 | H189: 22.74 | I189: 0.9925796595 | J189: 21.97 | K189: 22.88 | L189: 21.94 | M189: 22.74
A190: 175 | B190: 2012-10-19 | C190: 22.89 | D190: 22.97 | E190: 22.1 | F190: 22.15 | G190: 9337900 | H190: 21.99 | I190: 0.9927765237 | J190: 22.72 | K190: 22.8 | L190: 21.94 | M190: 21.99
A191: 176 | B191: 2012-10-18 | C191: 22.53 | D191: 23.33 | E191: 22.26 | F191: 22.86 | G191: 11712900 | H191: 22.69 | I191: 0.9925634296 | J191: 22.36 | K191: 23.16 | L191: 22.09 | M191: 22.69
A192: 177 | B192: 2012-10-17 | C192: 22.27 | D192: 23.13 | E192: 21.7 | F192: 22.83 | G192: 14064000 | H192: 22.67 | I192: 0.9929916776 | J192: 22.11 | K192: 22.97 | L192: 21.55 | M192: 22.67
A193: 178 | B193: 2012-10-16 | C193: 21.7 | D193: 22.23 | E193: 21.64 | F193: 22.13 | G193: 9754100 | H193: 21.97 | I193: 0.9927699955 | J193: 21.54 | K193: 22.07 | L193: 21.48 | M193: 21.97
A194: 179 | B194: 2012-10-15 | C194: 21.28 | D194: 21.51 | E194: 21.03 | F194: 21.46 | G194: 7421000 | H194: 21.31 | I194: 0.9930102516 | J194: 21.13 | K194: 21.36 | L194: 20.88 | M194: 21.31
A195: 180 | B195: 2012-10-12 | C195: 21.35 | D195: 21.7 | E195: 21.01 | F195: 21.19 | G195: 8760700 | H195: 21.04 | I195: 0.9929211892 | J195: 21.2 | K195: 21.55 | L195: 20.86 | M195: 21.04
A196: 181 | B196: 2012-10-11 | C196: 21.08 | D196: 21.85 | E196: 20.96 | F196: 21.51 | G196: 11750500 | H196: 21.35 | I196: 0.9925615993 | J196: 20.92 | K196: 21.69 | L196: 20.8 | M196: 21.35
A197: 182 | B197: 2012-10-10 | C197: 21.15 | D197: 21.2 | E197: 20.63 | F197: 20.78 | G197: 12600200 | H197: 20.63 | I197: 0.9927815207 | J197: 21 | K197: 21.05 | L197: 20.48 | M197: 20.63
A198: 183 | B198: 2012-10-09 | C198: 20.68 | D198: 21.45 | E198: 20.6 | F198: 21.1 | G198: 18863400 | H198: 20.95 | I198: 0.9928909953 | J198: 20.53 | K198: 21.3 | L198: 20.45 | M198: 20.95
A199: 184 | B199: 2012-10-08 | C199: 19.47 | D199: 20.6 | E199: 19.36 | F199: 20.37 | G199: 9451500 | H199: 20.22 | I199: 0.9926362297 | J199: 19.33 | K199: 20.45 | L199: 19.22 | M199: 20.22
A200: 185 | B200: 2012-10-05 | C200: 19.98 | D200: 20.21 | E200: 19.59 | F200: 19.83 | G200: 10789300 | H200: 19.69 | I200: 0.9929399899 | J200: 19.84 | K200: 20.07 | L200: 19.45 | M200: 19.69
A201: 186 | B201: 2012-10-04 | C201: 19.07 | D201: 20.06 | E201: 19.07 | F201: 19.72 | G201: 12279600 | H201: 19.58 | I201: 0.9929006085 | J201: 18.93 | K201: 19.92 | L201: 18.93 | M201: 19.58
... 5414 more rows

Sheet CalculationsAndCharts
A1: IRSTS Oscillators.xlsm | S1: Pattern Flags
A2: =InputPriceData!A1&B3 -> United States Ste (X) -NYSE w/ SVEVolatility(8,13,3.55,0.9) | S2: Bearish | T2: Bullish
B3: =IF(S15," w/ "&C18&"("&F18&","&F19&","&F20&","&F21&")","") -> w/ SVEVolatility(8,13,3.55,0.9)
A4: User Charting Controls | S4: FALSE
A5: Data Control
A6: =InputPriceData!$B$10 -> 5600 | B6: Available Input Data Rows | E6: Earliest: | F6: =OFFSET(InputPriceData!B15,CalculationsAndCharts!A6,0,1,1) -> 1991-04-12 | S6: FALSE
B7: Use Close Adjusted: | C7: TRUE | E7: Latest: | F7: =OFFSET(InputPriceData!B15,1,0,1,1) -> 2013-07-03
A8: =MIN(A6-A11,COUNTA(B32:B9982)) -> 841 | B8: Logically Available for Calc / Plot | S8: FALSE
A10: Price Chart Windowing Controls | F10: Y-axis Range | S10: FALSE
A11: 1516 | B11: Input Data Offset (Pan) | E11: Max High+ | F11: =CEILING(MAX(OFFSET($E$32,0,0,$A$12,1),IF($S$16,OFFSET(H32,0,0,$A$12,4),0),IF($S$15,OFFSET(S32,0,0,$A$12,3),0))+2*F14,0.1) -> 126.1
A12: 115 | B12: Data Points to Plot (Zoom) | E12: Min Low- | F12: =FLOOR(MIN(OFFSET($F$32,0,0,$A$12,1),IF($S$16,OFFSET(H32,0,0,$A$12,4),F11),IF($S$15,OFFSET(S32,0,0,$A$12,3),F11))-2*F14,0.1) -> 56.5
B13: First: | C13: =OFFSET(B31,A12,0,1,1) -> 2007-01-11 | E13: White space %: | F13: 0.05
B14: Last: | C14: =B32 -> 2007-06-26 | E14: Allowance: | F14: =FLOOR((CEILING(MAX(OFFSET($E$32,0,0,$A$12,1)),1)-FLOOR(MIN(OFFSET($F$32,0,0,$A$12,1)),1))*F13,0.01) -> 2.8 | S14: Chart Clutter Control
A15: ZigZag Control Factors: | D15: TRUE | S15: TRUE
A16: ZZ%: | B16: 0.05 | C16: ATR Period: | D16: 3 | E16: ATR Factor: | F16: 1 | S16: FALSE
A17: 8 | B17: EMA | C17: =2/(A17+1) -> 0.2222222222 | D17: =1-C17 -> 0.7777777778 | E17: =2/(F18+1) -> 0.2222222222 | F17: =1-E17 -> 0.7777777778
A18: 50 | B18: SMA | C18: SVEVolatility | E18: Band Average: | F18: 8
A19: 100 | B19: SMA | C19: Calculation | E19: Summing Period: | F19: 13
A20: 200 | B20: SMA | C20: Factors | E20: Deviation Factor: | F20: 3.55
E21: Lower Band Adjust: | F21: 0.9
A22: Help! I would like to plot data | D22: Chart Windowing values to use | BE22: User Control Specifications for Vervoort Oscillators
B23: From | C23: 2007-01-11 | D23: =OFFSET(InputPriceData!$A$15,MATCH(C23,OFFSET(InputPriceData!B15,1,0,InputPriceData!$B$10,1),0),0,1,1)-D24 -> 115 | E23: ==> for Points to Plot | BG23: WMA & | BH23: For use
B24: To | C24: 2007-06-26 | D24: =OFFSET(InputPriceData!$A$15,MATCH(C24,OFFSET(InputPriceData!$B$15,1,0,InputPriceData!$B$10,1),0),0,1,1)-1 -> 1516 | E24: ==> for Offset | BF24: TEMA | BG24: Standard | BH24: In WMA,
D25: Date at Cursor | BE25: SMA | BF25: EMA | BG25: Dev | BH25: Sum of | BI25: Period | BJ25: Smooth
BE26: Lookback | BF26: Smooth | BG26: Period | BH26: Weights | BI26: K | BJ26: K
D27: =OFFSET($B$31,B27,0,1,1) -> Date | H27: @ Scroll Bar => | I27: =OFFSET(A31,$B$28,0,1,1)&"(RR)" -> 35(RR) | J27: =TEXT(OFFSET(D31,$B$28,0,1,1),"#,##0.00")&"(o)" -> 102.05(o) | K27: =TEXT(OFFSET(E31,$B$28,0,1,1),"#,##0.00")&"(h)" -> 104.79(h) | L27: =TEXT(OFFSET(F31,$B$28,0,1,1),"#,##0.00")&"(l)" -> 101.20(l) | M27: =TEXT(OFFSET(G31,$B$28,0,1,1),"#,##0.00")&"(c)" -> 104.53(c) | O27: =TEXT(OFFSET(X31,$B$28,0,1,1),"#,##0.0000")&"(HLPvt)" -> 0.0800(HLPvt) | AG27: Step, and Various Other Candle Pattern ID Point Tables | BE27: 2 | BF27: 3 | BG27: 18 | BH27: =BG27*(BG27+1)/2 -> 171 | BI27: 30 | BJ27: 3
A28: 81 | B28: =$A$12-$A$28+1 -> 35 | D28: =OFFSET($B$31,B28,0,1,1) -> 2007-05-08 | E28: Scroll Price => | BE28: Alpha | BF28: =2/(BF27+1) -> 0.5 | BY28: Stick of
Y29: Price Cursor | BE29: 1-alpha | BF29: =1-BF28 -> 0.5 | BX29: StdDev | BY29: Weights | BZ29: WMA | CG29: Indicator Threshold Lines
A30: Rel Row | D30: Price Sources | H30: Averages | L30: Vervoort Volatility Band Computations | R30: EMA of Vmedavg | V30: True Range | Z30: ZigZag | AC30: Unconfirmed Zag | AE30: Pivot Limit | AG30: Up Step | AJ30: Down Step | AM30: Gap Up | AP30: Gap Down | AS30: Bull Harami | AV30: Bear Harami | AY30: Bull Engulfing | BB30: Bear Engulfing | BO30: Rainbow | BS30: ZLRB | BT30: EMA^1 | BU30: EMA^2 | BV30: EMA^3 | BW30: TEMA of | BX30: TEMA of | BY30: for WMA | BZ30: TEMA of | CA30: PB Plot | CF30: K | CG30: 100 | CH30: 50 | CI30: 0 | CJ30: 100
B31: Date | C31: Volume | D31: Open | E31: High | F31: Low | G31: Close | H31: =A17 -> 8 | I31: =A18 -> 50 | J31: =A19 -> 100 | K31: =A20 -> 200 | L31: TYPICAL | M31: Vtypical | N31: VDeviation | O31: Vdevhigh | P31: Vdevlow | Q31: Vmedianavg | S31: V Median | T31: V Upper | U31: V Lower | W31: =$D$16 -> 3 | X31: HL Pivot | Y31: =$F$11 -> 126.1 | Z31: Date | AA31: Relrow | AB31: Price | AC31: Relrow | AD31: Price | AE31: Relrow | AF31: Price | AG31: Flag | AH31: Relrow | AI31: Price | AJ31: Flag | AK31: Relrow | AL31: Price | AM31: Flag | AN31: Relrow | AO31: Price | AP31: Flag | AQ31: Relrow | AR31: Price | AS31: Flag | AT31: Relrow | AU31: Price | AV31: Flag | AW31: Relrow | AX31: Price | AY31: Flag | AZ31: Relrow | BA31: Price | BB31: Flag | BC31: Relrow | BD31: Price | BE31: SMA^1 | BF31: SMA^2 | BG31: SMA^3 | BH31: SMA^4 | BI31: SMA^5 | BJ31: SMA^6 | BK31: SMA^7 | BL31: SMA^8 | BM31: SMA^9 | BN31: SMA^10 | BO31: Value | BP31: EMA^1 | BQ31: EMA^2 | BR31: Diff | BS31: Value | BT31: ZLRB | BU31: ZLRB | BV31: ZLRB | BW31: ZLRB | BX31: ZLRB | BY31: Calc | BZ31: ZLRB | CA31: ="SVEZLRBPercB("&BG27&","&BF27&","&BI27&","&BJ27&")" -> SVEZLRBPercB(18,3,30,3) | CB31: RBC | CC31: nom | CD31: den | CE31: Fast K | CF31: Smoothed Stochastic | CG31: Overbought | CH31: Neutral | CI31: OverSold | CJ31: Cursor
A32: 1 | B32: =OFFSET(InputPriceData!B$15,CalculationsAndCharts!$A32+$A$11,0,1,1) -> 2007-06-26 | C32: =OFFSET(InputPriceData!G$15,CalculationsAndCharts!$A32+$A$11,0,1,1) -> 3128900 | D32: =OFFSET(InputPriceData!C$15,CalculationsAndCharts!$A32+$A$11,IF($C$7,7,0),1,1) -> 105.94 | E32: =OFFSET(InputPriceData!D$15,CalculationsAndCharts!$A32+$A$11,IF($C$7,7,0),1,1) -> 106.14 | F32: =OFFSET(InputPriceData!E$15,CalculationsAndCharts!$A32+$A$11,IF($C$7,7,0),1,1) -> 101.41 | G32: =OFFSET(InputPriceData!F$15,CalculationsAndCharts!$A32+$A$11,IF($C$7,7,0),1,1) -> 102.29 | H32: =IF($S$16,$C$17*G32+$D$17*H33,0) -> 0 | I32: =IF($S$16,AVERAGE(OFFSET($G32,0,0,I$31,1)),0) -> 0 | J32: 0 | K32: 0 | L32: =AVERAGE(E32:G32) -> 103.28 | M32: =IF(L32>=L33,L32-F33,L33-F32) -> 5.126666667 | N32: =AVERAGE(OFFSET(M32,0,0,$F$19,1))*$F$20 -> 11.22164103 | O32: =(N32*$E$17+O33*$F$17) -> 10.78572858 | P32: =O32*$F$21 -> 9.707155722 | Q32: =(L32*$E$17+Q33*$F$17) -> 106.9166092 | R32: =Q32*$E$17+R33*$F$17 -> 108.2067563 | S32: =IF($S$15,AVERAGE(OFFSET(Q32,0,0,$F$18,1)),0) -> 108.54673 | T32: =IF($S$15,R32+O32,0) -> 118.9924849 | U32: =IF($S$15,R32-P32,0) -> 98.49960062 | V32: =MAX(E32-F32,ABS(E32-G33),ABS(F32-G33)) -> 4.73 | W32: =(W33*($W$31-1)+V32)/$W$31 -> 3.503319254 | X32: =$B$16+W32/G32*$F$16 -> 0.08424889289 | Y32: =IF($A32=$B$28,Y$31,0) -> 0 | BE32: =AVERAGE(OFFSET($G$31,$A32,0,$BE$27,1)) -> 104.12 | BF32: =AVERAGE(OFFSET(BE$31,$A32,0,$BE$27,1)) -> 105.385 | BG32: 106.295 | BH32: 106.835625 | BI32: 107.1271875 | BJ32: 107.298125 | BK32: 107.4398437 | BL32: 107.6042969 | BM32: 107.8088281 | BN32: 108.0424219 | BO32: =(5*BE32+4*BF32+3*BG32+2*BH32+BI32+BJ32+BK32+BL32+BM32+BN32)/20 -> 106.0008477 | BP32: =BO32*$BF$28+$BF$29*BP33 -> 106.8476373 | BQ32: =BP32*$BF$28+$BF$29*BQ33 -> 107.4440423 | BR32: =BP32-BQ32 -> -0.5964050043 | BS32: =BP32+BR32 -> 106.2512322 | BT32: =BS32*$BF$28+$BF$29*BT33 -> 106.9684177 | BU32: =BT32*$BF$28+$BF$29*BU33 -> 107.5049262 | BV32: =BU32*$BF$28+$BF$29*BV33 -> 107.9617132 | BW32: =3*BT32-3*BU32+BV32 -> 106.3521876 | BX32: =_xlfn.STDEV.P(OFFSET(BW32,0,0,$BG$27,1)) -> 1.878873169 | BY32: =$BG$27 -> 18 | BZ32: =SUMPRODUCT(OFFSET(BW32,0,0,$BG$27,1),OFFSET($BY$31,1,0,$BG$27,1))/$BH$27 -> 108.8912729 | CA32: =(BW32+2*BX32-BZ32)/(4*BX32)*100 -> 16.21531781 | CB32: =(BO32+L32)/2 -> 104.6404238 | CC32: =CB32-MIN(OFFSET(F32,0,0,$BI$27,1)) -> 4.990423828 | CD32: =MAX(OFFSET(E32,0,0,$BI$27,1))-MIN(OFFSET(CB32,0,0,$BI$27,1)) -> 18.93072762 | CE32: =IF(CD32<0.000000000001,IF($A32>=$A$8,50,CE33),MIN(100,MAX(0,100*CC32/CD32))) -> 26.36150035 | CF32: =AVERAGE(OFFSET(CE$31,$A32,0,$BJ$27,1)) -> 36.17661685 | CG32: =CG$30 -> 100 | CH32: =CH$30 -> 50 | CI32: 0 | CJ32: =IF($A32=$B$28,CJ$30,0) -> 0
A33: 2 | B33: =OFFSET(InputPriceData!B$15,CalculationsAndCharts!$A33+$A$11,0,1,1) -> 2007-06-25 | C33: =OFFSET(InputPriceData!G$15,CalculationsAndCharts!$A33+$A$11,0,1,1) -> 2672000 | D33: =OFFSET(InputPriceData!C$15,CalculationsAndCharts!$A33+$A$11,IF($C$7,7,0),1,1) -> 107.27 | E33: =OFFSET(InputPriceData!D$15,CalculationsAndCharts!$A33+$A$11,IF($C$7,7,0),1,1) -> 107.91 | F33: =OFFSET(InputPriceData!E$15,CalculationsAndCharts!$A33+$A$11,IF($C$7,7,0),1,1) -> 105.75 | G33: =OFFSET(InputPriceData!F$15,CalculationsAndCharts!$A33+$A$11,IF($C$7,7,0),1,1) -> 105.95 | H33: 0 | I33: 0 | J33: 0 | K33: 0 | L33: 106.5366667 | M33: 2.266666667 | N33: =AVERAGE(OFFSET(M33,0,0,$F$19,1))*$F$20 -> 10.46976923 | O33: =(N33*$E$17+O34*$F$17) -> 10.66118217 | P33: =O33*$F$21 -> 9.59506395 | Q33: 107.9556405 | R33: 108.5753698 | S33: =IF($S$15,AVERAGE(OFFSET(Q33,0,0,$F$18,1)),0) -> 108.8707957 | T33: =IF($S$15,R33+O33,0) -> 119.236552 | U33: =IF($S$15,R33-P33,0) -> 98.98030585 | V33: 2.16 | W33: 2.889978881 | X33: 0.07727681813 | Y33: 0 | BE33: =AVERAGE(OFFSET($G$31,$A33,0,$BE$27,1)) -> 106.65 | BF33: =AVERAGE(OFFSET(BE$31,$A33,0,$BE$27,1)) -> 107.205 | BG33: 107.37625 | BH33: 107.41875 | BI33: 107.4690625 | BJ33: 107.5815625 | BK33: 107.76875 | BL33: 108.0133594 | BM33: 108.2760156 | BN33: 108.5116797 | BO33: =(5*BE33+4*BF33+3*BG33+2*BH33+BI33+BJ33+BK33+BL33+BM33+BN33)/20 -> 107.332834 | BP33: 107.6944268 | BQ33: 108.0404473 | BR33: -0.3460204145 | BS33: 107.3484064 | BT33: 107.6856031 | BU33: 108.0414347 | BV33: 108.4185001 | BW33: =3*BT33-3*BU33+BV33 -> 107.3510052 | BX33: =_xlfn.STDEV.P(OFFSET(BW33,0,0,$BG$27,1)) -> 2.066918655 | BY33: =BY32-1 -> 17 | BZ33: =SUMPRODUCT(OFFSET(BW33,0,0,$BG$27,1),OFFSET($BY$31,1,0,$BG$27,1))/$BH$27 -> 109.1864265 | CA33: =(BW33+2*BX33-BZ33)/(4*BX33)*100 -> 27.80003031 | CB33: =(BO33+L33)/2 -> 106.9347503 | CC33: =CB33-MIN(OFFSET(F33,0,0,$BI$27,1)) -> 7.284750326 | CD33: =MAX(OFFSET(E33,0,0,$BI$27,1))-MIN(OFFSET(CB33,0,0,$BI$27,1)) -> 18.93072762 | CE33: =IF(CD33<0.000000000001,IF($A33>=$A$8,50,CE34),MIN(100,MAX(0,100*CC33/CD33))) -> 38.48108996 | CF33: =AVERAGE(OFFSET(CE$31,$A33,0,$BJ$27,1)) -> 41.82901212 | CG33: =CG$30 -> 100 | CH33: 50 | CI33: 0 | CJ33: =IF($A33=$B$28,CJ$30,0) -> 0
A34: 3 | B34: =OFFSET(InputPriceData!B$15,CalculationsAndCharts!$A34+$A$11,0,1,1) -> 2007-06-22 | C34: =OFFSET(InputPriceData!G$15,CalculationsAndCharts!$A34+$A$11,0,1,1) -> 2531800 | D34: =OFFSET(InputPriceData!C$15,CalculationsAndCharts!$A34+$A$11,IF($C$7,7,0),1,1) -> 108.1 | E34: =OFFSET(InputPriceData!D$15,CalculationsAndCharts!$A34+$A$11,IF($C$7,7,0),1,1) -> 109.66 | F34: =OFFSET(InputPriceData!E$15,CalculationsAndCharts!$A34+$A$11,IF($C$7,7,0),1,1) -> 107.04 | G34: =OFFSET(InputPriceData!F$15,CalculationsAndCharts!$A34+$A$11,IF($C$7,7,0),1,1) -> 107.35 | H34: 0 | I34: 0 | J34: 0 | K34: 0 | L34: 108.0166667 | M34: 3.036666667 | N34: 10.62724359 | O34: 10.71587158 | P34: 9.644284419 | Q34: 108.3610615 | R34: 108.7524353 | S34: 109.0519755 | T34: 119.4683069 | U34: 99.10815091 | V34: 2.62 | W34: 3.254968322 | X34: 0.08032108358 | Y34: 0 | Z34: =IF(AA34="","",OFFSET($B$31,AA34,0,1,1)) ->  | BE34: 107.76 | BF34: =AVERAGE(OFFSET(BE$31,$A34,0,$BE$27,1)) -> 107.5475 | BG34: 107.46125 | BH34: 107.519375 | BI34: 107.6940625 | BJ34: 107.9559375 | BK34: 108.2579688 | BL34: 108.5386719 | BM34: 108.7473437 | BN34: 108.872832 | BO34: 107.8239658 | BP34: 108.0560197 | BQ34: 108.3864677 | BR34: -0.3304479687 | BS34: 107.7255717 | BT34: 108.0227997 | BU34: 108.3972664 | BV34: 108.7955656 | BW34: 107.6721657 | BX34: 2.451748706 | BY34: =BY33-1 -> 16 | BZ34: 109.3521457 | CA34: 32.86957326 | CB34: 107.9203162 | CC34: 8.270316243 | CD34: 18.93072762 | CE34: 43.68726025 | CF34: 43.21404544 | CG34: 100 | CH34: 50 | CI34: 0 | CJ34: 0
A35: 4 | B35: =OFFSET(InputPriceData!B$15,CalculationsAndCharts!$A35+$A$11,0,1,1) -> 2007-06-21 | C35: =OFFSET(InputPriceData!G$15,CalculationsAndCharts!$A35+$A$11,0,1,1) -> 3912500 | D35: =OFFSET(InputPriceData!C$15,CalculationsAndCharts!$A35+$A$11,IF($C$7,7,0),1,1) -> 106.86 | E35: =OFFSET(InputPriceData!D$15,CalculationsAndCharts!$A35+$A$11,IF($C$7,7,0),1,1) -> 110.37 | F35: =OFFSET(InputPriceData!E$15,CalculationsAndCharts!$A35+$A$11,IF($C$7,7,0),1,1) -> 104.98 | G35: =OFFSET(InputPriceData!F$15,CalculationsAndCharts!$A35+$A$11,IF($C$7,7,0),1,1) -> 108.17 | H35: 0 | I35: 0 | J35: 0 | K35: 0 | L35: 107.84 | M35: 1.69 | N35: 10.23219231 | O35: 10.74119386 | P35: 9.667074473 | Q35: 108.4594601 | R35: 108.8642564 | S35: 109.2420637 | T35: 119.6054503 | U35: 99.19718193 | V35: 5.39 | W35: 3.572452483 | X35: 0.08302627792 | Y35: 0 | BE35: 107.335 | BF35: =AVERAGE(OFFSET(BE$31,$A35,0,$BE$27,1)) -> 107.375 | BG35: 107.5775 | BH35: 107.86875 | BI35: 108.2178125 | BJ35: 108.56 | BK35: 108.819375 | BL35: 108.9560156 | BM35: 108.9983203 | BN35: 109.0251758 | BO35: 107.861085 | BP35: 108.2880736 | BQ35: 108.7169156 | BR35: -0.4288420528 | BS35: 107.8592315 | BT35: 108.3200277 | BU35: 108.771733 | BV35: 109.1938648 | BW35: 107.8387489 | BX35: 2.896689245 | BY35: 15 | BZ35: 109.4516774 | CA35: 36.07955214 | CB35: 107.8505425 | CC35: 8.20054248 | CD35: 18.93072762 | CE35: 43.31868613 | CF35: 44.05795299 | CG35: 100 | CH35: 50 | CI35: 0 | CJ35: 0
A36: 5 | B36: =OFFSET(InputPriceData!B$15,CalculationsAndCharts!$A36+$A$11,0,1,1) -> 2007-06-20 | C36: =OFFSET(InputPriceData!G$15,CalculationsAndCharts!$A36+$A$11,0,1,1) -> 2209400 | D36: =OFFSET(InputPriceData!C$15,CalculationsAndCharts!$A36+$A$11,IF($C$7,7,0),1,1) -> 108.33 | E36: =OFFSET(InputPriceData!D$15,CalculationsAndCharts!$A36+$A$11,IF($C$7,7,0),1,1) -> 109.05 | F36: =OFFSET(InputPriceData!E$15,CalculationsAndCharts!$A36+$A$11,IF($C$7,7,0),1,1) -> 106.15 | G36: =OFFSET(InputPriceData!F$15,CalculationsAndCharts!$A36+$A$11,IF($C$7,7,0),1,1) -> 106.5 | H36: 0 | I36: 0 | J36: 0 | K36: 0 | L36: 107.2333333 | M36: 1.853333333 | N36: 10.39148718 | O36: 10.88662287 | P36: 9.797960586 | Q36: 108.6364487 | R36: 108.9799125 | S36: 109.5032485 | T36: 119.8665354 | U36: 99.18195192 | V36: 2.9 | W36: 2.663678724 | X36: 0.07501106783 | Y36: 0 | BE36: 107.415 | BF36: =AVERAGE(OFFSET(BE$31,$A36,0,$BE$27,1)) -> 107.78 | BG36: 108.16 | BH36: 108.566875 | BI36: 108.9021875 | BJ36: 109.07875 | BK36: 109.0926563 | BL36: 109.040625 | BM36: 109.0520312 | BN36: 109.2119727 | BO36: 108.2093486 | BP36: 108.7150622 | BQ36: 109.1457577 | BR36: -0.4306954771 | BS36: 108.2843667 | BT36: 108.7808238 | BU36: 109.2234383 | BV36: 109.6159967 | BW36: 108.2881532 | BX36: 3.303576063 | BY36: 14 | BZ36: 109.4976611 | CA36: 40.8469803 | CB36: 107.721341 | CC36: 8.071340983 | CD36: 18.93072762 | CE36: 42.63618993 | CF36: 44.63003939 | CG36: 100 | CH36: 50 | CI36: 0 | CJ36: 0
A37: 6 | B37: =OFFSET(InputPriceData!B$15,CalculationsAndCharts!$A37+$A$11,0,1,1) -> 2007-06-19 | C37: =OFFSET(InputPriceData!G$15,CalculationsAndCharts!$A37+$A$11,0,1,1) -> 1944800 | D37: =OFFSET(InputPriceData!C$15,CalculationsAndCharts!$A37+$A$11,IF($C$7,7,0),1,1) -> 107.96 | E37: =OFFSET(InputPriceData!D$15,CalculationsAndCharts!$A37+$A$11,IF($C$7,7,0),1,1) -> 108.66 | F37: =OFFSET(InputPriceData!E$15,CalculationsAndCharts!$A37+$A$11,IF($C$7,7,0),1,1) -> 107.02 | G37: =OFFSET(InputPriceData!F$15,CalculationsAndCharts!$A37+$A$11,IF($C$7,7,0),1,1) -> 108.33 | H37: 0 | I37: 0 | J37: 0 | K37: 0 | L37: 108.0033333 | M37: 1.116666667 | N37: 10.80565385 | O37: 11.02809021 | P37: 9.925281193 | Q37: 109.0373388 | R37: 109.078045 | S37: 109.7138196 | T37: 120.1061352 | U37: 99.15276383 | V37: 1.64 | W37: 2.545518086 | X37: 0.07349781304 | Y37: 0 | BE37: 108.145 | BF37: =AVERAGE(OFFSET(BE$31,$A37,0,$BE$27,1)) -> 108.54 | BG37: 108.97375 | BH37: 109.2375 | BI37: 109.2553125 | BJ37: 109.1065625 | BK37: 108.9885938 | BL37: 109.0634375 | BM37: 109.3719141 | BN37: 109.8498535 | BO37: 108.7958462 | BP37: 109.2207758 | BQ37: 109.5764532 | BR37: -0.3556773692 | BS37: 108.8650984 | BT37: 109.2772809 | BU37: 109.6660528 | BV37: 110.008555 | BW37: 108.8422394 | BX37: 3.610833131 | BY37: 13 | BZ37: 109.4590495 | CA37: 45.72944762 | CB37: 108.3995898 | CC37: 8.749589762 | CD37: 18.93072762 | CE37: 46.2189829 | CF37: 48.25534397 | CG37: 100 | CH37: 50 | CI37: 0 | CJ37: 0
A38: 7 | B38: =OFFSET(InputPriceData!B$15,CalculationsAndCharts!$A38+$A$11,0,1,1) -> 2007-06-18 | C38: =OFFSET(InputPriceData!G$15,CalculationsAndCharts!$A38+$A$11,0,1,1) -> 2863300 | D38: =OFFSET(InputPriceData!C$15,CalculationsAndCharts!$A38+$A$11,IF($C$7,7,0),1,1) -> 109.16 | E38: =OFFSET(InputPriceData!D$15,CalculationsAndCharts!$A38+$A$11,IF($C$7,7,0),1,1) -> 109.16 | F38: =OFFSET(InputPriceData!E$15,CalculationsAndCharts!$A38+$A$11,IF($C$7,7,0),1,1) -> 107.29 | G38: =OFFSET(InputPriceData!F$15,CalculationsAndCharts!$A38+$A$11,IF($C$7,7,0),1,1) -> 107.96 | H38: 0 | I38: 0 | J38: 0 | K38: 0 | L38: 108.1366667 | M38: 2.963333333 | N38: 11.76233333 | O38: 11.09164346 | P38: 9.982479116 | Q38: 109.3327689 | R38: 109.0896754 | S38: 109.695387 | T38: 120.1813188 | U38: 99.10719626 | V38: 2.62 | W38: 2.998277129 | X38: 0.07777211124 | Y38: 0 | BE38: 108.935 | BF38: =AVERAGE(OFFSET(BE$31,$A38,0,$BE$27,1)) -> 109.4075 | BG38: 109.50125 | BH38: 109.273125 | BI38: 108.9578125 | BJ38: 108.870625 | BK38: 109.1382813 | BL38: 109.6803906 | BM38: 110.327793 | BN38: 110.9271875 | BO38: 109.3628545 | BP38: 109.6457054 | BQ38: 109.9321305 | BR38: -0.2864251268 | BS38: 109.3592803 | BT38: 109.6894634 | BU38: 110.0548246 | BV38: 110.3510572 | BW38: 109.2549735 | BX38: 3.802955312 | BY38: 12 | BZ38: 109.3254128 | CA38: 49.5369442 | CB38: 108.7497606 | CC38: 9.549760579 | CD38: 21.20522298 | CE38: 45.03494534 | CF38: 51.18706634 | CG38: 100 | CH38: 50 | CI38: 0 | CJ38: 0
A39: 8 | B39: =OFFSET(InputPriceData!B$15,CalculationsAndCharts!$A39+$A$11,0,1,1) -> 2007-06-15 | C39: =OFFSET(InputPriceData!G$15,CalculationsAndCharts!$A39+$A$11,0,1,1) -> 2447300 | D39: =OFFSET(InputPriceData!C$15,CalculationsAndCharts!$A39+$A$11,IF($C$7,7,0),1,1) -> 110.84 | E39: =OFFSET(InputPriceData!D$15,CalculationsAndCharts!$A39+$A$11,IF($C$7,7,0),1,1) -> 111.2 | F39: =OFFSET(InputPriceData!E$15,CalculationsAndCharts!$A39+$A$11,IF($C$7,7,0),1,1) -> 109.65 | G39: =OFFSET(InputPriceData!F$15,CalculationsAndCharts!$A39+$A$11,IF($C$7,7,0),1,1) -> 109.91 | H39: 0 | I39: 0 | J39: 0 | K39: 0 | L39: 110.2533333 | M39: 1.393333333 | N39: 11.65583333 | O39: 10.90001779 | P39: 9.810016007 | Q39: 109.6745124 | R39: 109.0202201 | S39: 109.5732357 | T39: 119.9202379 | U39: 99.21020408 | V39: 1.55 | W39: 3.187415694 | X39: 0.07900023378 | Y39: 0 | BE39: 109.88 | BF39: =AVERAGE(OFFSET(BE$31,$A39,0,$BE$27,1)) -> 109.595 | BG39: 109.045 | BH39: 108.6425 | BI39: 108.7834375 | BJ39: 109.4059375 | BK39: 110.2225 | BL39: 110.9751953 | BM39: 111.526582 | BN39: 111.8445703 | BO39: 109.7479111 | BP39: 109.9285563 | BQ39: 110.2185557 | BR39: -0.2899993312 | BS39: 109.638557 | BT39: 110.0196465 | BU39: 110.4201859 | BV39: 110.6472898 | BW39: 109.4456718 | BX39: 3.899164515 | BY39: 11 | BZ39: 109.1135932 | CA39: 52.12916513 | CB39: 110.0006222 | CC39: 11.76062223 | CD39: 21.97749935 | CE39: 53.51210366 | CF39: 54.09288308 | CG39: 100 | CH39: 50 | CI39: 0 | CJ39: 0
A40: 9 | B40: =OFFSET(InputPriceData!B$15,CalculationsAndCharts!$A40+$A$11,0,1,1) -> 2007-06-14 | C40: =OFFSET(InputPriceData!G$15,CalculationsAndCharts!$A40+$A$11,0,1,1) -> 2555700 | D40: =OFFSET(InputPriceData!C$15,CalculationsAndCharts!$A40+$A$11,IF($C$7,7,0),1,1) -> 109.17 | E40: =OFFSET(InputPriceData!D$15,CalculationsAndCharts!$A40+$A$11,IF($C$7,7,0),1,1) -> 110.91 | F40: =OFFSET(InputPriceData!E$15,CalculationsAndCharts!$A40+$A$11,IF($C$7,7,0),1,1) -> 108.86 | G40: =OFFSET(InputPriceData!F$15,CalculationsAndCharts!$A40+$A$11,IF($C$7,7,0),1,1) -> 109.85 | H40: 0 | I40: 0 | J40: 0 | K40: 0 | L40: 109.8733333 | M40: 4.203333333 | N40: 11.97260256 | O40: 10.68407049 | P40: 9.615663437 | Q40: 109.509135 | R40: 108.8332794 | S40: 109.2788031 | T40: 119.5173499 | U40: 99.217616 | V40: 2.14 | W40: 4.006123541 | X40: 0.08646903542 | Y40: 0 | BE40: 109.31 | BF40: =AVERAGE(OFFSET(BE$31,$A40,0,$BE$27,1)) -> 108.495 | BG40: 108.24 | BH40: 108.924375 | BI40: 110.0284375 | BJ40: 111.0390625 | BK40: 111.7278906 | BL40: 112.0779687 | BM40: 112.1625586 | BN40: 112.0680469 | BO40: 109.6101357 | BP40: 110.1092015 | BQ40: 110.508555 | BR40: -0.3993534583 | BS40: 109.7098481 | BT40: 110.400736 | BU40: 110.8207252 | BV40: 110.8743938 | BW40: 109.6144262 | BX40: 3.934237334 | BY40: 10 | BZ40: 108.8489506 | CA40: 54.86419294 | CB40: 109.7417345 | CC40: 12.33173454 | CD40: 22.4155686 | CE40: 55.01415001 | CF40: 57.69334833 | CG40: 100 | CH40: 50 | CI40: 0 | CJ40: 0
A41: 10 | B41: =OFFSET(InputPriceData!B$15,CalculationsAndCharts!$A41+$A$11,0,1,1) -> 2007-06-13 | C41: =OFFSET(InputPriceData!G$15,CalculationsAndCharts!$A41+$A$11,0,1,1) -> 3844500 | D41: =OFFSET(InputPriceData!C$15,CalculationsAndCharts!$A41+$A$11,IF($C$7,7,0),1,1) -> 107.44 | E41: =OFFSET(InputPriceData!D$15,CalculationsAndCharts!$A41+$A$11,IF($C$7,7,0),1,1) -> 108.77 | F41: =OFFSET(InputPriceData!E$15,CalculationsAndCharts!$A41+$A$11,IF($C$7,7,0),1,1) -> 105.67 | G41: =OFFSET(InputPriceData!F$15,CalculationsAndCharts!$A41+$A$11,IF($C$7,7,0),1,1) -> 108.77 | H41: 0 | I41: 0 | J41: 0 | K41: 0 | L41: 107.7366667 | M41: 1.386666667 | N41: 11.60758974 | O41: 10.31591846 | P41: 9.284326617 | Q41: 109.4050783 | R41: 108.6401779 | S41: 108.8867944 | T41: 118.9560963 | U41: 99.35585123 | V41: 3.1 | W41: 4.939185312 | X41: 0.09540944481 | Y41: 0 | BE41: 107.68 | BF41: =AVERAGE(OFFSET(BE$31,$A41,0,$BE$27,1)) -> 107.985 | BG41: 109.60875 | BH41: 111.1325 | BI41: 112.0496875 | BJ41: 112.4167188 | BK41: 112.4280469 | BL41: 112.2471484 | BM41: 111.9735352 | BN41: 111.6538379 | BO41: 109.7100112 | BP41: 110.6082673 | BQ41: 110.9079085 | BR41: -0.2996411177 | BS41: 110.3086262 | BT41: 111.091624 | BU41: 111.2407144 | BV41: 110.9280623 | BW41: 110.4807911 | BX41: 3.925750655 | BY41: 9 | BZ41: 108.5346849 | CA41: 62.39321061 | CB41: 108.7233389 | CC41: 12.45333895 | CD41: 23.16797013 | CE41: 53.75239556 | CF41: 64.70936096 | CG41: 100 | CH41: 50 | CI41: 0 | CJ41: 0
A42: 11 | B42: =OFFSET(InputPriceData!B$15,CalculationsAndCharts!$A42+$A$11,0,1,1) -> 2007-06-12 | C42: =OFFSET(InputPriceData!G$15,CalculationsAndCharts!$A42+$A$11,0,1,1) -> 5449800 | D42: =OFFSET(InputPriceData!C$15,CalculationsAndCharts!$A42+$A$11,IF($C$7,7,0),1,1) -> 109.65 | E42: =OFFSET(InputPriceData!D$15,CalculationsAndCharts!$A42+$A$11,IF($C$7,7,0),1,1) -> 109.7 | F42: =OFFSET(InputPriceData!E$15,CalculationsAndCharts!$A42+$A$11,IF($C$7,7,0),1,1) -> 106.35 | G42: =OFFSET(InputPriceData!F$15,CalculationsAndCharts!$A42+$A$11,IF($C$7,7,0),1,1) -> 106.59 | H42: 0 | I42: 0 | J42: 0 | K42: 0 | L42: 107.5466667 | M42: 4.996666667 | N42: 11.87975641 | O42: 9.946869527 | P42: 8.952182574 | Q42: 109.8817673 | R42: 108.4216349 | S42: 108.3838547 | T42: 118.3685044 | U42: 99.46945229 | V42: 3.64 | W42: 5.858777968 | X42: 0.1049655499 | Y42: 0 | BE42: 108.29 | BF42: =AVERAGE(OFFSET(BE$31,$A42,0,$BE$27,1)) -> 111.2325 | BG42: 112.65625 | BH42: 112.966875 | BI42: 112.78375 | BJ42: 112.439375 | BK42: 112.06625 | BL42: 111.6999219 | BM42: 111.3341406 | BN42: 110.9483691 | BO42: 111.0777153 | BP42: 111.5065234 | BQ42: 111.2075496 | BR42: 0.2989738741 | BS42: 111.8054973 | BT42: 111.8746218 | BU42: 111.3898048 | BV42: 110.6154102 | BW42: 112.069861 | BX42: 3.833914472 | BY42: 8 | BZ42: 108.0951553 | CA42: 75.91806464 | CB42: 109.312191 | CC42: 15.522191 | CD42: 24.13519889 | CE42: 64.31349942 | CF42: 74.2570713 | CG42: 100 | CH42: 50 | CI42: 0 | CJ42: 0
A43: 12 | B43: =OFFSET(InputPriceData!B$15,CalculationsAndCharts!$A43+$A$11,0,1,1) -> 2007-06-11 | C43: =OFFSET(InputPriceData!G$15,CalculationsAndCharts!$A43+$A$11,0,1,1) -> 7365400 | D43: =OFFSET(InputPriceData!C$15,CalculationsAndCharts!$A43+$A$11,IF($C$7,7,0),1,1) -> 113.17 | E43: =OFFSET(InputPriceData!D$15,CalculationsAndCharts!$A43+$A$11,IF($C$7,7,0),1,1) -> 114.06 | F43: =OFFSET(InputPriceData!E$15,CalculationsAndCharts!$A43+$A$11,IF($C$7,7,0),1,1) -> 109.99 | G43: =OFFSET(InputPriceData!F$15,CalculationsAndCharts!$A43+$A$11,IF($C$7,7,0),1,1) -> 109.99 | H43: 0 | I43: 0 | J43: 0 | K43: 0 | L43: 111.3466667 | M43: 5.34 | N43: 10.8985 | O43: 9.394616131 | P43: 8.455154518 | Q43: 110.548939 | R43: 108.0044542 | S43: 107.6678132 | T43: 117.3990703 | U43: 99.54929964 | V43: 8.37 | W43: 6.968166952 | X43: 0.1133527316 | Y43: 0 | BE43: 114.175 | BF43: =AVERAGE(OFFSET(BE$31,$A43,0,$BE$27,1)) -> 114.08 | BG43: 113.2775 | BH43: 112.600625 | BI43: 112.095 | BJ43: 111.693125 | BK43: 111.3335938 | BL43: 110.9683594 | BM43: 110.5625977 | BN43: 110.0956543 | BO43: 112.948854 | BP43: 111.9353316 | BQ43: 110.9085757 | BR43: 1.026755866 | BS43: 112.9620874 | BT43: 111.9437462 | BU43: 110.9049879 | BV43: 109.8410156 | BW43: 112.9572906 | BX43: 3.576393552 | BY43: 7 | BZ43: 107.4471598 | CA43: 88.51736875 | CB43: 112.1477603 | CC43: 18.35776034 | CD43: 24.13519889 | CE43: 76.06218791 | CF43: 86.1525715 | CG43: 100 | CH43: 50 | CI43: 0 | CJ43: 0
A44: 13 | B44: =OFFSET(InputPriceData!B$15,CalculationsAndCharts!$A44+$A$11,0,1,1) -> 2007-06-08 | C44: =OFFSET(InputPriceData!G$15,CalculationsAndCharts!$A44+$A$11,0,1,1) -> 14185400 | D44: =OFFSET(InputPriceData!C$15,CalculationsAndCharts!$A44+$A$11,IF($C$7,7,0),1,1) -> 109.61 | E44: =OFFSET(InputPriceData!D$15,CalculationsAndCharts!$A44+$A$11,IF($C$7,7,0),1,1) -> 120.45 | F44: =OFFSET(InputPriceData!E$15,CalculationsAndCharts!$A44+$A$11,IF($C$7,7,0),1,1) -> 107.18 | G44: =OFFSET(InputPriceData!F$15,CalculationsAndCharts!$A44+$A$11,IF($C$7,7,0),1,1) -> 118.36 | H44: 0 | I44: 0 | J44: 0 | K44: 0 | L44: 115.33 | M44: 5.72 | N44: 10.28680769 | O44: 8.964935026 | P44: 8.068441523 | Q44: 110.3210168 | R44: 107.2774585 | S44: 106.7656408 | T44: 116.2423935 | U44: 99.20901697 | V44: 13.27 | W44: 6.267250428 | X44: 0.1029507471 | Y44: 0 | BE44: 113.985 | BF44: =AVERAGE(OFFSET(BE$31,$A44,0,$BE$27,1)) -> 112.475 | BG44: 111.92375 | BH44: 111.589375 | BI44: 111.29125 | BJ44: 110.9740625 | BK44: 110.603125 | BL44: 110.1568359 | BM44: 109.6287109 | BN44: 109.0239844 | BO44: 112.0226484 | BP44: 110.9218091 | BQ44: 109.8818198 | BR44: 1.039989294 | BS44: 111.9617984 | BT44: =BS44*$BF$28+$BF$29*BT45 -> 110.9254049 | BU44: =BT44*$BF$28+$BF$29*BU45 -> 109.8662296 | BV44: =BU44*$BF$28+$BF$29*BV45 -> 108.7770434 | BW44: =3*BT44-3*BU44+BV44 -> 111.9545695 | BX44: 3.143910209 | BY44: 6 | BZ44: 106.659368 | CA44: 92.10681232 | CB44: 113.6763242 | CC44: 19.88632422 | CD44: 24.13519889 | CE44: 82.39552658 | CF44: 94.13184219 | CG44: 100 | CH44: 50 | CI44: 0 | CJ44: 0
A45: 14 | B45: =OFFSET(InputPriceData!B$15,CalculationsAndCharts!$A45+$A$11,0,1,1) -> 2007-06-07 | C45: =OFFSET(InputPriceData!G$15,CalculationsAndCharts!$A45+$A$11,0,1,1) -> 4365100 | D45: =OFFSET(InputPriceData!C$15,CalculationsAndCharts!$A45+$A$11,IF($C$7,7,0),1,1) -> 111.7 | E45: =OFFSET(InputPriceData!D$15,CalculationsAndCharts!$A45+$A$11,IF($C$7,7,0),1,1) -> 113.06 | F45: =OFFSET(InputPriceData!E$15,CalculationsAndCharts!$A45+$A$11,IF($C$7,7,0),1,1) -> 109.61 | G45: =OFFSET(InputPriceData!F$15,CalculationsAndCharts!$A45+$A$11,IF($C$7,7,0),1,1) -> 109.61 | H45: 0 | I45: 0 | J45: 0 | K45: 0 | L45: 110.76 | M45: 2.373333333 | N45: 9.134423077 | O45: 8.587257121 | P45: 7.728531409 | Q45: 108.8898787 | R45: 106.4078704 | S45: 105.8218953 | T45: 114.9951275 | U45: 98.67933901 | V45: 3.45 | W45: 2.765875642 | X45: 0.07523378927 | Y45: 0 | BE45: 110.965 | BF45: =AVERAGE(OFFSET(BE$31,$A45,0,$BE$27,1)) -> 111.3725 | BG45: 111.255 | BH45: 110.993125 | BI45: 110.656875 | BJ45: 110.2321875 | BK45: 109.7105469 | BL45: 109.1005859 | BM45: 108.4192578 | BN45: 107.6859668 | BO45: 110.5935835 | BP45: 109.8209698 | BQ45: 108.8418305 | BR45: 0.9791392808 | BS45: 110.8001091 | BT45: 109.8890115 | BU45: 108.8070542 | BV45: 107.6878572 | BW45: 110.933729 | BX45: 2.723035241 | BY45: 5 | BZ45: 105.9359215 | CA45: 95.88452872 | CB45: 110.6767917 | CC45: 16.88679175 | CD45: 16.74519889 | CE45: 100 | CF45: 100 | CG45: 100 | CH45: 50 | CI45: 0 | CJ45: 0
A46: 15 | B46: =OFFSET(InputPriceData!B$15,CalculationsAndCharts!$A46+$A$11,0,1,1) -> 2007-06-06 | C46: =OFFSET(InputPriceData!G$15,CalculationsAndCharts!$A46+$A$11,0,1,1) -> 4513600 | D46: =OFFSET(InputPriceData!C$15,CalculationsAndCharts!$A46+$A$11,IF($C$7,7,0),1,1) -> 111.22 | E46: =OFFSET(InputPriceData!D$15,CalculationsAndCharts!$A46+$A$11,IF($C$7,7,0),1,1) -> 112.99 | F46: =OFFSET(InputPriceData!E$15,CalculationsAndCharts!$A46+$A$11,IF($C$7,7,0),1,1) -> 110.64 | G46: =OFFSET(InputPriceData!F$15,CalculationsAndCharts!$A46+$A$11,IF($C$7,7,0),1,1) -> 112.32 | H46: 0 | I46: 0 | J46: 0 | K46: 0 | L46: 111.9833333 | M46: 2.843333333 | N46: 8.835858974 | O46: 8.430923991 | P46: 7.587831592 | Q46: 108.3555583 | R46: 105.6987252 | S46: 105.0233892 | T46: 114.1296492 | U46: 98.11089361 | V46: 2.35 | W46: 2.423813463 | X46: 0.07157953582 | Y46: 0 | BE46: 111.78 | BF46: =AVERAGE(OFFSET(BE$31,$A46,0,$BE$27,1)) -> 111.1375 | BG46: 110.73125 | BH46: 110.320625 | BI46: 109.8075 | BJ46: 109.1889063 | BK46: 108.490625 | BL46: 107.7379297 | BM46: 106.9526758 | BN46: 106.157959 | BO46: 110.2310298 | BP46: 109.0483561 | BQ46: 107.8626913 | BR46: 1.185664888 | BS46: 110.234021 | BT46: 108.9779138 | BU46: 107.7250969 | BV46: 106.5686603 | BW46: 110.3271109 | BX46: 2.324149755 | BY46: 4 | BZ46: 105.2828319 | CA46: 104.2594017 | CB46: 111.1071816 | CC46: 17.31718156 | CD46: 16.67519889 | CE46: 100 | CF46: 100 | CG46: 100 | CH46: 50 | CI46: 0 | CJ46: 0
A47: 16 | B47: =OFFSET(InputPriceData!B$15,CalculationsAndCharts!$A47+$A$11,0,1,1) -> 2007-06-05 | C47: =OFFSET(InputPriceData!G$15,CalculationsAndCharts!$A47+$A$11,0,1,1) -> 3753400 | D47: =OFFSET(InputPriceData!C$15,CalculationsAndCharts!$A47+$A$11,IF($C$7,7,0),1,1) -> 109.5 | E47: =OFFSET(InputPriceData!D$15,CalculationsAndCharts!$A47+$A$11,IF($C$7,7,0),1,1) -> 111.51 | F47: =OFFSET(InputPriceData!E$15,CalculationsAndCharts!$A47+$A$11,IF($C$7,7,0),1,1) -> 109.14 | G47: =OFFSET(InputPriceData!F$15,CalculationsAndCharts!$A47+$A$11,IF($C$7,7,0),1,1) -> 111.24 | H47: 0 | I47: 0 | J47: 0 | K47: 0 | L47: 110.63 | M47: 1.59 | N47: 8.713884615 | O47: 8.315228281 | P47: 7.483705453 | Q47: 107.3190512 | R47: 104.93963 | S47: 104.2911433 | T47: 113.2548583 | U47: 97.45592456 | V47: 2.37 | W47: 2.460720194 | X47: 0.0721208216 | Y47: 0 | BE47: 110.495 | BF47: =AVERAGE(OFFSET(BE$31,$A47,0,$BE$27,1)) -> 110.325 | BG47: 109.91 | BH47: 109.294375 | BI47: 108.5703125 | BJ47: 107.7923438 | BK47: 106.9852344 | BL47: 106.1674219 | BM47: 105.3632422 | BN47: 104.603877 | BO47: 109.0788091 | BP47: 107.8656825 | BQ47: 106.6770264 | BR47: 1.188656139 | BS47: 109.0543387 | BT47: 107.7218066 | BU47: 106.47228 | BV47: 105.4122236 | BW47: 109.1608033 | BX47: 1.894055005 | BY47: 3 | BZ47: 104.6545896 | CA47: 109.4783905 | CB47: 109.8544045 | CC47: 16.06440454 | CD47: 15.19519889 | CE47: 100 | CF47: 99.36825025 | CG47: 100 | CH47: 50 | CI47: 0 | CJ47: 0
A48: 17 | B48: =OFFSET(InputPriceData!B$15,CalculationsAndCharts!$A48+$A$11,0,1,1) -> 2007-06-04 | C48: =OFFSET(InputPriceData!G$15,CalculationsAndCharts!$A48+$A$11,0,1,1) -> 2248800 | D48: =OFFSET(InputPriceData!C$15,CalculationsAndCharts!$A48+$A$11,IF($C$7,7,0),1,1) -> 110.74 | E48: =OFFSET(InputPriceData!D$15,CalculationsAndCharts!$A48+$A$11,IF($C$7,7,0),1,1) -> 110.74 | F48: =OFFSET(InputPriceData!E$15,CalculationsAndCharts!$A48+$A$11,IF($C$7,7,0),1,1) -> 109.04 | G48: =OFFSET(InputPriceData!F$15,CalculationsAndCharts!$A48+$A$11,IF($C$7,7,0),1,1) -> 109.75 | H48: 0 | I48: 0 | J48: 0 | K48: 0 | L48: 109.8433333 | M48: 2.273333333 | N48: 8.883192308 | O48: 8.201326471 | P48: 7.381193824 | Q48: 106.3730658 | R48: 104.2597954 | S48: 103.73647 | T48: 112.4611219 | U48: 96.87860158 | V48: 1.7 | W48: 2.506080292 | X48: 0.07283444457 | Y48: 0 | BE48: 110.155 | BF48: =AVERAGE(OFFSET(BE$31,$A48,0,$BE$27,1)) -> 109.495 | BG48: 108.67875 | BH48: 107.84625 | BI48: 107.014375 | BJ48: 106.178125 | BK48: 105.3496094 | BL48: 104.5590625 | BM48: 103.8445117 | BN48: 103.2418262 | BO48: 108.033563 | BP48: 106.6525559 | BQ48: 105.4883702 | BR48: 1.164185707 | BS48: 107.8167416 | BT48: 106.3892746 | BU48: 105.2227535 | BV48: 104.3521672 | BW48: 107.8517305 | BX48: 1.586896005 | BY48: 2 | BZ48: 104.1057006 | CA48: 109.0150509 | CB48: 108.9384482 | CC48: 15.14844816 | CD48: 14.59519889 | CE48: 100 | CF48: 99.36825025 | CG48: 100 | CH48: 50 | CI48: 0 | CJ48: 0
A49: 18 | B49: =OFFSET(InputPriceData!B$15,CalculationsAndCharts!$A49+$A$11,0,1,1) -> 2007-06-01 | C49: =OFFSET(InputPriceData!G$15,CalculationsAndCharts!$A49+$A$11,0,1,1) -> 3871100 | D49: =OFFSET(InputPriceData!C$15,CalculationsAndCharts!$A49+$A$11,IF($C$7,7,0),1,1) -> 108 | E49: =OFFSET(InputPriceData!D$15,CalculationsAndCharts!$A49+$A$11,IF($C$7,7,0),1,1) -> 110.91 | F49: =OFFSET(InputPriceData!E$15,CalculationsAndCharts!$A49+$A$11,IF($C$7,7,0),1,1) -> 107.57 | G49: =OFFSET(InputPriceData!F$15,CalculationsAndCharts!$A49+$A$11,IF($C$7,7,0),1,1) -> 110.56 | H49: 0 | I49: 0 | J49: 0 | K49: 0 | L49: 109.68 | M49: 3.37 | N49: 8.620128205 | O49: 8.006507661 | P49: 7.205856895 | Q49: 105.3815608 | R49: 103.6560039 | S49: 103.3303424 | T49: 111.6625115 | U49: 96.45014696 | V49: 3.8 | W49: 2.909120437 | X49: 0.0763125944 | Y49: 0 | BE49: 108.835 | BF49: =AVERAGE(OFFSET(BE$31,$A49,0,$BE$27,1)) -> 107.8625 | BG49: 107.01375 | BH49: 106.1825 | BI49: 105.341875 | BJ49: 104.5210938 | BK49: 103.7685156 | BL49: 103.1299609 | BM49: 102.6391406 | BN49: 102.3115039 | BO49: 106.537167 | BP49: 105.2715489 | BQ49: 104.3241845 | BR49: 0.9473643667 | BS49: 106.2189133 | BT49: 104.9618075 | BU49: 104.0562324 | BV49: 103.4815809 | BW49: 106.1983063 | BX49: 1.591258261 | BY49: 1 | BZ49: 103.6460588 | CA49: 90.0979464 | CB49: 108.1085835 | CC49: 14.3185835 | CD49: 14.59519889 | CE49: 98.10475075 | CF49: 97.78433644 | CG49: 100 | CH49: 50 | CI49: 0 | CJ49: 0
A50: 19 | B50: =OFFSET(InputPriceData!B$15,CalculationsAndCharts!$A50+$A$11,0,1,1) -> 2007-05-31 | C50: =OFFSET(InputPriceData!G$15,CalculationsAndCharts!$A50+$A$11,0,1,1) -> 3121500 | D50: =OFFSET(InputPriceData!C$15,CalculationsAndCharts!$A50+$A$11,IF($C$7,7,0),1,1) -> 106.98 | E50: =OFFSET(InputPriceData!D$15,CalculationsAndCharts!$A50+$A$11,IF($C$7,7,0),1,1) -> 107.67 | F50: =OFFSET(InputPriceData!E$15,CalculationsAndCharts!$A50+$A$11,IF($C$7,7,0),1,1) -> 106.31 | G50: =OFFSET(InputPriceData!F$15,CalculationsAndCharts!$A50+$A$11,IF($C$7,7,0),1,1) -> 107.11 | H50: 0 | I50: 0 | J50: 0 | K50: 0 | L50: 107.03 | M50: 4.62 | N50: 8.012987179 | O50: 7.831187506 | P50: 7.048068755 | Q50: 104.1534353 | R50: 103.1629876 | S50: 103.1043687 | T50: 110.9941751 | U50: 96.11491883 | V50: 1.36 | W50: 2.463680656 | X50: 0.07300140655 | Y50: 0 | BE50: 106.89 | BF50: =AVERAGE(OFFSET(BE$31,$A50,0,$BE$27,1)) -> 106.165 | BG50: 105.35125 | BH50: 104.50125 | BI50: 103.7003125 | BJ50: 103.0159375 | BK50: 102.4914063 | BL50: 102.1483203 | BM50: 101.9838672 | BN50: 101.9727051 | BO50: 104.9739399 | BP50: 104.0059308 | BQ50: 103.3768202 | BR50: 0.6291106353 | BS50: 104.6350414 | BT50: 103.7047018 | BU50: 103.1506572 | BV50: 102.9069294 | BW50: 104.5690631 | BX50: 1.853648217 | BY50: 0 | BZ50: 103.3141426 | CA50: 66.92500891 | CB50: 106.00197 | CC50: 12.21196997 | CD50: 11.35519889 | CE50: 100 | CF50: 92.809 | CG50: 100 | CH50: 50 | CI50: 0 | CJ50: 0
A51: 20 | B51: =OFFSET(InputPriceData!B$15,CalculationsAndCharts!$A51+$A$11,0,1,1) -> 2007-05-30 | C51: =OFFSET(InputPriceData!G$15,CalculationsAndCharts!$A51+$A$11,0,1,1) -> 3775500 | D51: =OFFSET(InputPriceData!C$15,CalculationsAndCharts!$A51+$A$11,IF($C$7,7,0),1,1) -> 102.99 | E51: =OFFSET(InputPriceData!D$15,CalculationsAndCharts!$A51+$A$11,IF($C$7,7,0),1,1) -> 106.8 | F51: =OFFSET(InputPriceData!E$15,CalculationsAndCharts!$A51+$A$11,IF($C$7,7,0),1,1) -> 102.41 | G51: =OFFSET(InputPriceData!F$15,CalculationsAndCharts!$A51+$A$11,IF($C$7,7,0),1,1) -> 106.67 | H51: 0 | I51: 0 | J51: 0 | K51: 0 | L51: 105.2933333 | M51: 2.573333333 | N51: 7.140961538 | O51: 7.779244742 | P51: 7.001320268 | Q51: 103.3315597 | R51: 102.8800025 | S51: 103.0263312 | T51: 110.6592473 | U51: 95.87868226 | V51: 4.39 | W51: 3.015520984 | X51: 0.0782696258 | Y51: 0 | BE51: 105.44 | BF51: =AVERAGE(OFFSET(BE$31,$A51,0,$BE$27,1)) -> 104.5375 | BG51: 103.65125 | BH51: 102.899375 | BI51: 102.3315625 | BJ51: 101.966875 | BK51: 101.8052344 | BL51: 101.8194141 | BM51: 101.961543 | BN51: 102.1804492 | BO51: 103.7083789 | BP51: 103.0379217 | BQ51: 102.7477095 | BR51: 0.2902121252 | BS51: 103.3281338 | BT51: 102.7743621 | BU51: 102.5966126 | BV51: 102.6632015 | BW51: 103.1964499 | BX51: 2.184552071 | BY51: -1 | BZ51: 103.1133055 | CA51: 50.951504 | CB51: 104.5008561 | CC51: 10.71085612 | CD51: 11.24519889 | CE51: 95.24825858 | CF51: 84.40115884 | CG51: 100 | CH51: 50 | CI51: 0 | CJ51: 0
A52: 21 | B52: =OFFSET(InputPriceData!B$15,CalculationsAndCharts!$A52+$A$11,0,1,1) -> 2007-05-29 | C52: =OFFSET(InputPriceData!G$15,CalculationsAndCharts!$A52+$A$11,0,1,1) -> 3078000 | D52: =OFFSET(InputPriceData!C$15,CalculationsAndCharts!$A52+$A$11,IF($C$7,7,0),1,1) -> 103.1 | E52: =OFFSET(InputPriceData!D$15,CalculationsAndCharts!$A52+$A$11,IF($C$7,7,0),1,1) -> 104.21 | F52: =OFFSET(InputPriceData!E$15,CalculationsAndCharts!$A52+$A$11,IF($C$7,7,0),1,1) -> 102.72 | G52: =OFFSET(InputPriceData!F$15,CalculationsAndCharts!$A52+$A$11,IF($C$7,7,0),1,1) -> 104.21 | H52: 0 | I52: =IF($S$16,AVERAGE(OFFSET($G52,0,0,I$31,1)),0) -> 0 | J52: 0 | K52: 0 | L52: 103.7133333 | M52: 2.553333333 | N52: 7.108192308 | O52: 7.961611371 | P52: 7.165450234 | Q52: 102.7710529 | R52: 102.7509862 | S52: 103.0584973 | T52: 110.7125976 | U52: 95.58553596 | V52: 1.49 | W52: 2.328281476 | X52: 0.07234220781 | Y52: 0 | BE52: 103.635 | BF52: =AVERAGE(OFFSET(BE$31,$A52,0,$BE$27,1)) -> 102.765 | BG52: 102.1475 | BH52: 101.76375 | BI52: 101.6021875 | BJ52: 101.6435938 | BK52: 101.8335938 | BL52: 102.1036719 | BM52: 102.3993555 | BN52: 102.6905273 | BO52: 102.5738965 | BP52: 102.3674644 | BQ52: 102.4574974 | BR52: -0.09003300501 | BS52: 102.2774314 | BT52: 102.2205905 | BU52: 102.4188632 | BV52: 102.7297903 | BW52: 102.1349723 | BX52: 2.521808204 | BY52: -2 | BZ52: 103.0213047 | CA52: 41.21332524 | CB52: 103.1436149 | CC52: 9.353614909 | CD52: 11.24519889 | CE52: 83.17874141 | CF52: 75.56306485 | CG52: 100 | CH52: 50 | CI52: 0 | CJ52: 0
A53: 22 | B53: =OFFSET(InputPriceData!B$15,CalculationsAndCharts!$A53+$A$11,0,1,1) -> 2007-05-25 | C53: =OFFSET(InputPriceData!G$15,CalculationsAndCharts!$A53+$A$11,0,1,1) -> 2638400 | D53: =OFFSET(InputPriceData!C$15,CalculationsAndCharts!$A53+$A$11,IF($C$7,7,0),1,1) -> 101.19 | E53: =OFFSET(InputPriceData!D$15,CalculationsAndCharts!$A53+$A$11,IF($C$7,7,0),1,1) -> 103.33 | F53: =OFFSET(InputPriceData!E$15,CalculationsAndCharts!$A53+$A$11,IF($C$7,7,0),1,1) -> 101.16 | G53: =OFFSET(InputPriceData!F$15,CalculationsAndCharts!$A53+$A$11,IF($C$7,7,0),1,1) -> 103.06 | H53: 0 | I53: 0 | J53: 0 | K53: 0 | L53: 102.5166667 | M53: 2.866666667 | N53: 7.763576923 | O53: 8.205445389 | P53: 7.38490085 | Q53: 102.5018299 | R53: 102.7452528 | S53: 103.183187 | T53: 110.9506982 | U53: 95.36035199 | V53: 2.6 | W53: 2.747422214 | X53: 0.07665847287 | Y53: 0 | BE53: 101.895 | BF53: =AVERAGE(OFFSET(BE$31,$A53,0,$BE$27,1)) -> 101.53 | BG53: 101.38 | BH53: 101.440625 | BI53: 101.685 | BJ53: 102.0235938 | BK53: 102.37375 | BL53: 102.6950391 | BM53: 102.9816992 | BN53: 103.241875 | BO53: 101.8808604 | BP53: 102.1610323 | BQ53: 102.5475304 | BR53: -0.386498099 | BS53: 101.7745342 | BT53: 102.1637496 | BU53: 102.6171358 | BV53: 103.0407175 | BW53: 101.6805588 | BX53: 2.824110672 | BY53: -3 | BZ53: 103.0097231 | CA53: 38.23377955 | CB53: 102.1987635 | CC53: 8.408763509 | CD53: 11.24519889 | CE53: 74.77647651 | CF53: 72.81252398 | CG53: 100 | CH53: 50 | CI53: 0 | CJ53: 0
A54: 23 | B54: =OFFSET(InputPriceData!B$15,CalculationsAndCharts!$A54+$A$11,0,1,1) -> 2007-05-24 | C54: =OFFSET(InputPriceData!G$15,CalculationsAndCharts!$A54+$A$11,0,1,1) -> 4602100 | D54: =OFFSET(InputPriceData!C$15,CalculationsAndCharts!$A54+$A$11,IF($C$7,7,0),1,1) -> 101.75 | E54: =OFFSET(InputPriceData!D$15,CalculationsAndCharts!$A54+$A$11,IF($C$7,7,0),1,1) -> 103.08 | F54: =OFFSET(InputPriceData!E$15,CalculationsAndCharts!$A54+$A$11,IF($C$7,7,0),1,1) -> 99.65 | G54: =OFFSET(InputPriceData!F$15,CalculationsAndCharts!$A54+$A$11,IF($C$7,7,0),1,1) -> 100.73 | H54: 0 | I54: 0 | J54: 0 | K54: 0 | L54: 101.1533333 | M54: 2.383333333 | N54: 8.156807692 | O54: 8.331693523 | P54: 7.49852417 | Q54: 102.4975909 | R54: 102.8148022 | S54: 103.317669 | T54: 111.1464958 | U54: 95.31627807 | V54: 3.43 | W54: 2.821133322 | X54: 0.07800688297 | Y54: 0 | BE54: 101.165 | BF54: =AVERAGE(OFFSET(BE$31,$A54,0,$BE$27,1)) -> 101.23 | BG54: 101.50125 | BH54: 101.929375 | BI54: 102.3621875 | BJ54: 102.7239062 | BK54: 103.0163281 | BL54: 103.2683594 | BM54: 103.5020508 | BN54: 103.7238965 | BO54: 101.8852114 | BP54: 102.4412043 | BQ54: 102.9340285 | BR54: -0.4928242434 | BS54: 101.94838 | BT54: 102.552965 | BU54: 103.0705221 | BV54: 103.4642992 | BW54: 101.9116279 | BX54: 3.041936209 | BY54: -4 | BZ54: 103.0191695 | CA54: 40.89772484 | CB54: 101.5192724 | CC54: 7.72927238 | CD54: 11.24519889 | CE54: 68.73397663 | CF54: 73.30871133 | CG54: 100 | CH54: 50 | CI54: 0 | CJ54: 0
A55: 24 | B55: =OFFSET(InputPriceData!B$15,CalculationsAndCharts!$A55+$A$11,0,1,1) -> 2007-05-23 | C55: =OFFSET(InputPriceData!G$15,CalculationsAndCharts!$A55+$A$11,0,1,1) -> 3168300 | D55: =OFFSET(InputPriceData!C$15,CalculationsAndCharts!$A55+$A$11,IF($C$7,7,0),1,1) -> 101.49 | E55: =OFFSET(InputPriceData!D$15,CalculationsAndCharts!$A55+$A$11,IF($C$7,7,0),1,1) -> 103.6 | F55: =OFFSET(InputPriceData!E$15,CalculationsAndCharts!$A55+$A$11,IF($C$7,7,0),1,1) -> 100.9 | G55: =OFFSET(InputPriceData!F$15,CalculationsAndCharts!$A55+$A$11,IF($C$7,7,0),1,1) -> 101.6 | H55: 0 | I55: 0 | J55: 0 | K55: 0 | L55: 102.0333333 | M55: 1.403333333 | N55: 7.992961538 | O55: 8.381660903 | P55: 7.543494812 | Q55: 102.8816645 | R55: 102.9054341 | S55: 103.3915268 | T55: 111.287095 | U55: 95.36193924 | V55: 2.7 | W55: 2.516699982 | X55: 0.07477066912 | Y55: 0 | BE55: 101.295 | BF55: =AVERAGE(OFFSET(BE$31,$A55,0,$BE$27,1)) -> 101.7725 | BG55: 102.3575 | BH55: 102.795 | BI55: 103.085625 | BJ55: 103.30875 | BK55: 103.5203906 | BL55: 103.7357422 | BM55: 103.9457422 | BN55: 104.1377246 | BO55: 102.3980737 | BP55: 102.9971971 | BQ55: 103.4268527 | BR55: -0.4296556514 | BS55: 102.5675414 | BT55: 103.15755 | BU55: 103.5880792 | BV55: 103.8580763 | BW55: 102.5664886 | BX55: 3.169789274 | BY55: -5 | BZ55: 102.9806492 | CA55: 46.73353214 | CB55: 102.2157035 | CC55: 8.425703532 | CD55: 11.24519889 | CE55: 74.92711878 | CF55: 80.0039647 | CG55: 100 | CH55: 50 | CI55: 0 | CJ55: 0
A56: 25 | B56: =OFFSET(InputPriceData!B$15,CalculationsAndCharts!$A56+$A$11,0,1,1) -> 2007-05-22 | C56: =OFFSET(InputPriceData!G$15,CalculationsAndCharts!$A56+$A$11,0,1,1) -> 3539300 | D56: =OFFSET(InputPriceData!C$15,CalculationsAndCharts!$A56+$A$11,IF($C$7,7,0),1,1) -> 102.89 | E56: =OFFSET(InputPriceData!D$15,CalculationsAndCharts!$A56+$A$11,IF($C$7,7,0),1,1) -> 103.03 | F56: =OFFSET(InputPriceData!E$15,CalculationsAndCharts!$A56+$A$11,IF($C$7,7,0),1,1) -> 100.63 | G56: =OFFSET(InputPriceData!F$15,CalculationsAndCharts!$A56+$A$11,IF($C$7,7,0),1,1) -> 100.99 | H56: 0 | I56: 0 | J56: 0 | K56: 0 | L56: 101.55 | M56: 3.1 | N56: 8.039384615 | O56: 8.492717864 | P56: 7.643446078 | Q56: 103.1240448 | R56: 102.9122254 | S56: 103.3606535 | T56: 111.4049432 | U56: 95.26877929 | V56: 2.88 | W56: 2.425049973 | X56: 0.07401277328 | Y56: 0 | BE56: 102.25 | BF56: =AVERAGE(OFFSET(BE$31,$A56,0,$BE$27,1)) -> 102.9425 | BG56: 103.2325 | BH56: 103.37625 | BI56: 103.531875 | BJ56: 103.7320313 | BK56: 103.9510937 | BL56: 104.1557422 | BM56: 104.329707 | BN56: 104.4757617 | BO56: 103.1823105 | BP56: 103.5963205 | BQ56: 103.8565084 | BR56: -0.260187937 | BS56: 103.3361325 | BT56: 103.7475585 | BU56: 104.0186084 | BV56: 104.1280734 | BW56: 103.3149236 | BX56: 3.229738746 | BY56: -6 | BZ56: 102.8498458 | CA56: 53.59996451 | CB56: =(BO56+L56)/2 -> 102.3661553 | CC56: =CB56-MIN(OFFSET(F56,0,0,$BI$27,1)) -> 8.576155273 | CD56: =MAX(OFFSET(E56,0,0,$BI$27,1))-MIN(OFFSET(CB56,0,0,$BI$27,1)) -> 11.24519889 | CE56: 76.26503857 | CF56: 84.22090058 | CG56: 100 | CH56: 50 | CI56: 0 | CJ56: 0
A57: 26 | B57: =OFFSET(InputPriceData!B$15,CalculationsAndCharts!$A57+$A$11,0,1,1) -> 2007-05-21 | C57: =OFFSET(InputPriceData!G$15,CalculationsAndCharts!$A57+$A$11,0,1,1) -> 2910200 | D57: =OFFSET(InputPriceData!C$15,CalculationsAndCharts!$A57+$A$11,IF($C$7,7,0),1,1) -> 103.78 | E57: =OFFSET(InputPriceData!D$15,CalculationsAndCharts!$A57+$A$11,IF($C$7,7,0),1,1) -> 104.94 | F57: =OFFSET(InputPriceData!E$15,CalculationsAndCharts!$A57+$A$11,IF($C$7,7,0),1,1) -> 102.74 | G57: =OFFSET(InputPriceData!F$15,CalculationsAndCharts!$A57+$A$11,IF($C$7,7,0),1,1) -> 103.51 | H57: 0 | I57: 0 | J57: 0 | K57: 0 | L57: 103.73 | M57: 1.5 | N57: 7.818192308 | O57: 8.622241649 | P57: 7.760017484 | Q57: 103.5737719 | R57: 102.8517055 | S57: 103.2104831 | T57: 111.4739472 | U57: 95.09168804 | V57: 2.2 | W57: 2.19757496 | X57: 0.07123055705 | Y57: 0 | BE57: 103.635 | BF57: =AVERAGE(OFFSET(BE$31,$A57,0,$BE$27,1)) -> 103.5225 | BG57: 103.52 | BH57: 103.6875 | BI57: 103.9321875 | BJ57: 104.1701562 | BK57: 104.3603906 | BL57: 104.5036719 | BM57: 104.6218164 | BN57: 104.7300195 | BO57: 103.8259121 | BP57: 104.0103304 | BQ57: 104.1166963 | BR57: -0.1063659587 | BS57: 103.9039644 | BT57: 104.1589844 | BU57: 104.2896583 | BV57: 104.2375383 | BW57: 103.8455167 | BX57: 3.229853513 | BY57: -7 | BZ57: 102.6155831 | CA57: 59.52004203 | CB57: 103.7779561 | CC57: 9.987956055 | CD57: 11.24519889 | CE57: 88.81973676 | CF57: 87.87020349 | CG57: 100 | CH57: 50 | CI57: 0 | CJ57: 0
A58: 27 | B58: =OFFSET(InputPriceData!B$15,CalculationsAndCharts!$A58+$A$11,0,1,1) -> 2007-05-18 | C58: =OFFSET(InputPriceData!G$15,CalculationsAndCharts!$A58+$A$11,0,1,1) -> 3036600 | D58: =OFFSET(InputPriceData!C$15,CalculationsAndCharts!$A58+$A$11,IF($C$7,7,0),1,1) -> 103.84 | E58: =OFFSET(InputPriceData!D$15,CalculationsAndCharts!$A58+$A$11,IF($C$7,7,0),1,1) -> 103.97 | F58: =OFFSET(InputPriceData!E$15,CalculationsAndCharts!$A58+$A$11,IF($C$7,7,0),1,1) -> 102.23 | G58: =OFFSET(InputPriceData!F$15,CalculationsAndCharts!$A58+$A$11,IF($C$7,7,0),1,1) -> 103.76 | H58: 0 | I58: 0 | J58: 0 | K58: 0 | L58: 103.32 | M58: 1.28 | N58: 8.445358974 | O58: 8.851970033 | P58: 7.966773029 | Q58: 103.5291353 | R58: 102.6454009 | S58: 102.8995497 | T58: 111.4973709 | U58: 94.67862782 | V58: 1.74 | W58: 2.19636244 | X58: 0.0711677182 | Y58: 0 | BE58: 103.41 | BF58: =AVERAGE(OFFSET(BE$31,$A58,0,$BE$27,1)) -> 103.5175 | BG58: 103.855 | BH58: 104.176875 | BI58: 104.408125 | BJ58: 104.550625 | BK58: 104.6469531 | BL58: 104.7399609 | BM58: 104.8382227 | BN58: 104.9098437 | BO58: 103.956624 | BP58: 104.1947486 | BQ58: 104.2230623 | BR58: -0.0283136494 | BS58: 104.166435 | BT58: 104.4140044 | BU58: 104.4203321 | BV58: 104.1854184 | BW58: 104.1664351 | BX58: 3.173746036 | BY58: -8 | BZ58: 102.3008494 | CA58: 64.69545509 | CB58: 103.638312 | CC58: 9.848312012 | CD58: 11.24519889 | CE58: 87.57792641 | CF58: 88.34451425 | CG58: 100 | CH58: 50 | CI58: 0 | CJ58: 0
A59: 28 | B59: =OFFSET(InputPriceData!B$15,CalculationsAndCharts!$A59+$A$11,0,1,1) -> 2007-05-17 | C59: =OFFSET(InputPriceData!G$15,CalculationsAndCharts!$A59+$A$11,0,1,1) -> 2962800 | D59: =OFFSET(InputPriceData!C$15,CalculationsAndCharts!$A59+$A$11,IF($C$7,7,0),1,1) -> 103.46 | E59: =OFFSET(InputPriceData!D$15,CalculationsAndCharts!$A59+$A$11,IF($C$7,7,0),1,1) -> 103.78 | F59: =OFFSET(InputPriceData!E$15,CalculationsAndCharts!$A59+$A$11,IF($C$7,7,0),1,1) -> 102.04 | G59: =OFFSET(InputPriceData!F$15,CalculationsAndCharts!$A59+$A$11,IF($C$7,7,0),1,1) -> 103.06 | H59: 0 | I59: 0 | J59: 0 | K59: 0 | L59: 102.96 | M59: 2.396666667 | N59: 8.932346154 | O59: 8.968144621 | P59: 8.071330159 | Q59: 103.5888882 | R59: 102.3929053 | S59: 102.4132306 | T59: 111.3610499 | U59: 94.32157514 | V59: 2.15 | W59: 2.42454366 | X59: 0.07352555463 | Y59: 0 | BE59: 103.625 | BF59: =AVERAGE(OFFSET(BE$31,$A59,0,$BE$27,1)) -> 104.1925 | BG59: 104.49875 | BH59: 104.639375 | BI59: 104.693125 | BJ59: 104.7432813 | BK59: 104.8329688 | BL59: 104.9364844 | BM59: 104.9814648 | BN59: 104.8934766 | BO59: 104.33754 | BP59: 104.4328733 | BQ59: 104.2513759 | BR59: 0.1814973233 | BS59: 104.6143706 | BT59: 104.6615738 | BU59: 104.4266599 | BV59: 103.9505047 | BW59: 104.6552462 | BX59: 3.071296252 | BY59: -9 | BZ59: 101.9300253 | CA59: 72.1829861 | CB59: 103.64877 | CC59: 9.85877002 | CD59: 11.30425049 | CE59: 87.21294729 | CF59: 88.80090099 | CG59: 100 | CH59: 50 | CI59: 0 | CJ59: 0
A60: 29 | B60: =OFFSET(InputPriceData!B$15,CalculationsAndCharts!$A60+$A$11,0,1,1) -> 2007-05-16 | C60: =OFFSET(InputPriceData!G$15,CalculationsAndCharts!$A60+$A$11,0,1,1) -> 2275400 | D60: =OFFSET(InputPriceData!C$15,CalculationsAndCharts!$A60+$A$11,IF($C$7,7,0),1,1) -> 105.82 | E60: =OFFSET(InputPriceData!D$15,CalculationsAndCharts!$A60+$A$11,IF($C$7,7,0),1,1) -> 106.04 | F60: =OFFSET(InputPriceData!E$15,CalculationsAndCharts!$A60+$A$11,IF($C$7,7,0),1,1) -> 103.08 | G60: =OFFSET(InputPriceData!F$15,CalculationsAndCharts!$A60+$A$11,IF($C$7,7,0),1,1) -> 104.19 | H60: 0 | I60: 0 | J60: 0 | K60: 0 | L60: 104.4366667 | M60: 2.21 | N60: 8.656538462 | O60: 8.978372754 | P60: 8.080535479 | Q60: 103.7685706 | R60: 102.0511959 | S60: 101.7812965 | T60: 111.0295686 | U60: 93.97066042 | V60: 2.96 | W60: 2.56181549 | X60: 0.07458792101 | Y60: 0 | BE60: 104.76 | BF60: =AVERAGE(OFFSET(BE$31,$A60,0,$BE$27,1)) -> 104.805 | BG60: 104.78 | BH60: 104.746875 | BI60: 104.7934375 | BJ60: 104.9226563 | BK60: 105.04 | BL60: 105.0264453 | BM60: 104.8054883 | BN60: 104.3661328 | BO60: 104.7903955 | BP60: 104.5282065 | BQ60: 104.0698786 | BR60: 0.4583278752 | BS60: 104.9865344 | BT60: 104.7087769 | BU60: 104.1917461 | BV60: 103.4743494 | BW60: 105.0254419 | BX60: 2.913635011 | BY60: -10 | BZ60: 101.4843222 | CA60: 80.38403666 | CB60: 104.6135311 | CC60: 10.82353109 | CD60: 11.99380648 | CE60: 90.24266906 | CF60: 87.48898427 | CG60: 100 | CH60: 50 | CI60: 0 | CJ60: 0
A61: 30 | B61: =OFFSET(InputPriceData!B$15,CalculationsAndCharts!$A61+$A$11,0,1,1) -> 2007-05-15 | C61: =OFFSET(InputPriceData!G$15,CalculationsAndCharts!$A61+$A$11,0,1,1) -> 2338600 | D61: =OFFSET(InputPriceData!C$15,CalculationsAndCharts!$A61+$A$11,IF($C$7,7,0),1,1) -> 104.92 | E61: =OFFSET(InputPriceData!D$15,CalculationsAndCharts!$A61+$A$11,IF($C$7,7,0),1,1) -> 106.18 | F61: =OFFSET(InputPriceData!E$15,CalculationsAndCharts!$A61+$A$11,IF($C$7,7,0),1,1) -> 104.36 | G61: =OFFSET(InputPriceData!F$15,CalculationsAndCharts!$A61+$A$11,IF($C$7,7,0),1,1) -> 105.33 | H61: 0 | I61: 0 | J61: 0 | K61: 0 | L61: 105.29 | M61: 1.31 | N61: 8.635602564 | O61: 9.070325409 | P61: 8.163292868 | Q61: 103.577686 | R61: 101.5605174 | S61: 101.0736907 | T61: 110.6308428 | U61: 93.39722455 | V61: 1.82 | W61: 2.362723236 | X61: 0.07243162666 | Y61: 0 | BE61: 104.85 | BF61: =AVERAGE(OFFSET(BE$31,$A61,0,$BE$27,1)) -> 104.755 | BG61: 104.71375 | BH61: 104.84 | BI61: 105.051875 | BJ61: 105.1573437 | BK61: 105.0128906 | BL61: 104.5845312 | BM61: 103.9267773 | BN61: 103.132373 | BO61: 104.6978521 | BP61: 104.2660175 | BQ61: 103.6115507 | BR61: 0.6544667388 | BS61: 104.9204842 | BT61: 104.4310195 | BU61: 103.6747153 | BV61: 102.7569527 | BW61: 105.0258653 | BX61: 2.692002821 | BY61: -11 | BZ61: 100.9728885 | CA61: 87.63904678 | CB61: 104.993926 | CC61: 11.20392603 | CD61: 12.59616976 | CE61: 88.94708661 | CF61: 84.95166357 | CG61: 100 | CH61: 50 | CI61: 0 | CJ61: 0
A62: 31 | B62: =OFFSET(InputPriceData!B$15,CalculationsAndCharts!$A62+$A$11,0,1,1) -> 2007-05-14 | C62: =OFFSET(InputPriceData!G$15,CalculationsAndCharts!$A62+$A$11,0,1,1) -> 2146000 | D62: =OFFSET(InputPriceData!C$15,CalculationsAndCharts!$A62+$A$11,IF($C$7,7,0),1,1) -> 105.01 | E62: =OFFSET(InputPriceData!D$15,CalculationsAndCharts!$A62+$A$11,IF($C$7,7,0),1,1) -> 105.68 | F62: =OFFSET(InputPriceData!E$15,CalculationsAndCharts!$A62+$A$11,IF($C$7,7,0),1,1) -> 103.98 | G62: =OFFSET(InputPriceData!F$15,CalculationsAndCharts!$A62+$A$11,IF($C$7,7,0),1,1) -> 104.37 | H62: 0 | I62: 0 | J62: 0 | K62: 0 | L62: 104.6766667 | M62: 1.146666667 | N62: 8.583717949 | O62: 9.194531936 | P62: 8.275078742 | Q62: 103.0884534 | R62: 100.9841835 | S62: 100.3586738 | T62: 110.1787155 | U62: 92.7091048 | V62: 1.7 | W62: 2.634084854 | X62: 0.07523795012 | Y62: 0 | BE62: 104.66 | BF62: =AVERAGE(OFFSET(BE$31,$A62,0,$BE$27,1)) -> 104.6725 | BG62: 104.96625 | BH62: 105.26375 | BI62: 105.2628125 | BJ62: 104.8684375 | BK62: 104.1561719 | BL62: 103.2690234 | BM62: 102.3379687 | BN62: 101.4479395 | BO62: 104.4379302 | BP62: 103.8341829 | BQ62: 102.957084 | BR62: 0.8770989115 | BS62: 104.7112818 | BT62: 103.9415547 | BU62: 102.9184111 | BV62: 101.8391902 | BW62: 104.908621 | BX62: 2.423245981 | BY62: -12 | BZ62: 100.434353 | CA62: 96.15986174 | CB62: 104.5572984 | CC62: 10.94729842 | CD62: 13.14561344 | CE62: 83.27719713 | CF62: 84.81748989 | CG62: 100 | CH62: 50 | CI62: 0 | CJ62: 0
A63: 32 | B63: =OFFSET(InputPriceData!B$15,CalculationsAndCharts!$A63+$A$11,0,1,1) -> 2007-05-11 | C63: =OFFSET(InputPriceData!G$15,CalculationsAndCharts!$A63+$A$11,0,1,1) -> 2488700 | D63: =OFFSET(InputPriceData!C$15,CalculationsAndCharts!$A63+$A$11,IF($C$7,7,0),1,1) -> 104.85 | E63: =OFFSET(InputPriceData!D$15,CalculationsAndCharts!$A63+$A$11,IF($C$7,7,0),1,1) -> 106.42 | F63: =OFFSET(InputPriceData!E$15,CalculationsAndCharts!$A63+$A$11,IF($C$7,7,0),1,1) -> 104.01 | G63: =OFFSET(InputPriceData!F$15,CalculationsAndCharts!$A63+$A$11,IF($C$7,7,0),1,1) -> 104.95 | H63: 0 | I63: 0 | J63: 0 | K63: 0 | L63: 105.1266667 | M63: 1.426666667 | N63: 9.250935897 | O63: 9.369050218 | P63: 8.432145196 | Q63: 102.6346782 | R63: 100.3829636 | S63: 99.67972342 | T63: 109.7520138 | U63: 91.95081839 | V63: 2.41 | W63: 3.10112728 | X63: 0.0795486163 | Y63: 0 | BE63: 104.685 | BF63: =AVERAGE(OFFSET(BE$31,$A63,0,$BE$27,1)) -> 105.26 | BG63: 105.56125 | BH63: 105.261875 | BI63: 104.4740625 | BJ63: 103.4439062 | BK63: 102.381875 | BL63: 101.4069141 | BM63: 100.5579102 | BN63: 99.82949219 | BO63: 104.188333 | BP63: 103.2304357 | BQ63: 102.0799851 | BR63: 1.150450566 | BS63: 104.3808862 | BT63: 103.1718275 | BU63: 101.8952675 | BV63: 100.7599693 | BW63: 104.5896494 | BX63: 2.105631219 | BY63: -13 | BZ63: 99.88173535 | CA63: 105.8967068 | CB63: 104.6574998 | CC63: 11.23749984 | CD63: 13.59966561 | CE63: 82.63070696 | CF63: 84.482712 | CG63: 100 | CH63: 50 | CI63: 0 | CJ63: 0
A64: 33 | B64: =OFFSET(InputPriceData!B$15,CalculationsAndCharts!$A64+$A$11,0,1,1) -> 2007-05-10 | C64: =OFFSET(InputPriceData!G$15,CalculationsAndCharts!$A64+$A$11,0,1,1) -> 3032000 | D64: =OFFSET(InputPriceData!C$15,CalculationsAndCharts!$A64+$A$11,IF($C$7,7,0),1,1) -> 106.3 | E64: =OFFSET(InputPriceData!D$15,CalculationsAndCharts!$A64+$A$11,IF($C$7,7,0),1,1) -> 106.43 | F64: =OFFSET(InputPriceData!E$15,CalculationsAndCharts!$A64+$A$11,IF($C$7,7,0),1,1) -> 103.7 | G64: =OFFSET(InputPriceData!F$15,CalculationsAndCharts!$A64+$A$11,IF($C$7,7,0),1,1) -> 104.42 | H64: 0 | I64: 0 | J64: 0 | K64: 0 | L64: 104.85 | M64: 2.453333333 | N64: 10.58537179 | O64: 9.402797167 | P64: 8.46251745 | Q64: 101.9226815 | R64: 99.73961656 | S64: 99.06000155 | T64: 109.1424137 | U64: 91.27709911 | V64: 3.55 | W64: 3.44669092 | X64: 0.08300795748 | Y64: 0 | BE64: 105.835 | BF64: =AVERAGE(OFFSET(BE$31,$A64,0,$BE$27,1)) -> 105.8625 | BG64: 104.9625 | BH64: 103.68625 | BI64: 102.41375 | BJ64: 101.3198437 | BK64: 100.4319531 | BL64: 99.70890625 | BM64: 99.10107422 | BN64: 98.57901367 | BO64: 103.8219771 | BP64: 102.2725383 | BQ64: 100.9295345 | BR64: 1.343003785 | BS64: 103.6155421 | BT64: 101.9627688 | BU64: 100.6187075 | BV64: 99.62467107 | BW64: 103.6568552 | BX64: 1.738934203 | BY64: -14 | BZ64: 99.33581082 | CA64: 112.1220222 | CB64: 104.3359885 | CC64: 12.33598853 | CD64: 13.93195443 | CE64: 88.54456559 | CF64: 83.45080807 | CG64: 100 | CH64: 50 | CI64: 0 | CJ64: 0
A65: 34 | B65: =OFFSET(InputPriceData!B$15,CalculationsAndCharts!$A65+$A$11,0,1,1) -> 2007-05-09 | C65: =OFFSET(InputPriceData!G$15,CalculationsAndCharts!$A65+$A$11,0,1,1) -> 4775200 | D65: =OFFSET(InputPriceData!C$15,CalculationsAndCharts!$A65+$A$11,IF($C$7,7,0),1,1) -> 103.79 | E65: =OFFSET(InputPriceData!D$15,CalculationsAndCharts!$A65+$A$11,IF($C$7,7,0),1,1) -> 107.56 | F65: =OFFSET(InputPriceData!E$15,CalculationsAndCharts!$A65+$A$11,IF($C$7,7,0),1,1) -> 103.65 | G65: =OFFSET(InputPriceData!F$15,CalculationsAndCharts!$A65+$A$11,IF($C$7,7,0),1,1) -> 107.25 | H65: 0 | I65: 0 | J65: 0 | K65: 0 | L65: 106.1533333 | M65: 4.953333333 | N65: 10.23310256 | O65: 9.064918702 | P65: 8.158426831 | Q65: 101.0863047 | R65: 99.11588374 | S65: 98.60285913 | T65: 108.1808024 | U65: 90.95745691 | V65: 3.91 | W65: 3.395036381 | X65: 0.08165535087 | Y65: 0 | BE65: 105.89 | BF65: =AVERAGE(OFFSET(BE$31,$A65,0,$BE$27,1)) -> 104.0625 | BG65: 102.41 | BH65: 101.14125 | BI65: 100.2259375 | BJ65: 99.5440625 | BK65: 98.98585937 | BL65: 98.49324219 | BM65: 98.05695312 | BN65: 97.6946875 | BO65: 102.4106621 | BP65: 100.7230996 | BQ65: 99.58653074 | BR65: 1.136568834 | BS65: 101.8596684 | BT65: 100.3099956 | BU65: 99.27464609 | BV65: 98.63063467 | BW65: 101.7366831 | BX65: 1.40049996 | BY65: -15 | BZ65: 98.86066883 | CA65: 101.3390644 | CB65: 104.2819977 | CC65: 12.79199772 | CD65: 15.54825879 | CE65: 82.27286344 | CF65: 81.17136789 | CG65: 100 | CH65: 50 | CI65: 0 | CJ65: 0
A66: 35 | B66: =OFFSET(InputPriceData!B$15,CalculationsAndCharts!$A66+$A$11,0,1,1) -> 2007-05-08 | C66: =OFFSET(InputPriceData!G$15,CalculationsAndCharts!$A66+$A$11,0,1,1) -> 5579100 | D66: =OFFSET(InputPriceData!C$15,CalculationsAndCharts!$A66+$A$11,IF($C$7,7,0),1,1) -> 102.05 | E66: =OFFSET(InputPriceData!D$15,CalculationsAndCharts!$A66+$A$11,IF($C$7,7,0),1,1) -> 104.79 | F66: =OFFSET(InputPriceData!E$15,CalculationsAndCharts!$A66+$A$11,IF($C$7,7,0),1,1) -> 101.2 | G66: =OFFSET(InputPriceData!F$15,CalculationsAndCharts!$A66+$A$11,IF($C$7,7,0),1,1) -> 104.53 | H66: 0 | I66: 0 | J66: 0 | K66: 0 | L66: 103.5066667 | M66: 4.306666667 | N66: 9.577717949 | O66: 8.731151884 | P66: 7.858036695 | Q66: 99.63858227 | R66: 98.55290631 | S66: 98.30069983 | T66: 107.2840582 | U66: 90.69486962 | V66: 4.85 | W66: 3.137554571 | X66: 0.08001582867 | Y66: 126.1 | BE66: 102.235 | BF66: =AVERAGE(OFFSET(BE$31,$A66,0,$BE$27,1)) -> 100.7575 | BG66: 99.8725 | BH66: 99.310625 | BI66: 98.8621875 | BJ66: 98.42765625 | BK66: 98.000625 | BL66: 97.62066406 | BM66: 97.33242187 | BN66: 97.16172852 | BO66: 99.99245166 | BP66: 99.03553705 | BQ66: 98.44996191 | BR66: 0.5855751376 | BS66: 99.62111219 | BT66: 98.76032275 | BU66: 98.23929661 | BV66: 97.98662325 | BW66: 99.54970168 | BX66: 1.277403307 | BY66: -16 | BZ66: 98.5650278 | CA66: 69.27100604 | CB66: 101.7495592 | CC66: 10.25955916 | CD66: 12.89942765 | CE66: 79.53499519 | CF66: 77.48034458 | CG66: 100 | CH66: 50 | CI66: 0 | CJ66: 100
A67: 36 | B67: =OFFSET(InputPriceData!B$15,CalculationsAndCharts!$A67+$A$11,0,1,1) -> 2007-05-07 | C67: =OFFSET(InputPriceData!G$15,CalculationsAndCharts!$A67+$A$11,0,1,1) -> 2255100 | D67: =OFFSET(InputPriceData!C$15,CalculationsAndCharts!$A67+$A$11,IF($C$7,7,0),1,1) -> 99.68 | E67: =OFFSET(InputPriceData!D$15,CalculationsAndCharts!$A67+$A$11,IF($C$7,7,0),1,1) -> 100.93 | F67: =OFFSET(InputPriceData!E$15,CalculationsAndCharts!$A67+$A$11,IF($C$7,7,0),1,1) -> 99.2 | G67: =OFFSET(InputPriceData!F$15,CalculationsAndCharts!$A67+$A$11,IF($C$7,7,0),1,1) -> 99.94 | H67: 0 | I67: 0 | J67: 0 | K67: 0 | L67: 100.0233333 | M67: 1.783333333 | N67: 8.874089744 | O67: 8.489275865 | P67: 7.640348279 | Q67: 98.5334153 | R67: 98.24271318 | S67: 98.22744741 | T67: 106.731989 | U67: 90.6023649 | V67: 2.31 | W67: 2.281331856 | X67: 0.07282701477 | Y67: 0 | BE67: 99.28 | BF67: =AVERAGE(OFFSET(BE$31,$A67,0,$BE$27,1)) -> 98.9875 | BG67: 98.74875 | BH67: 98.41375 | BI67: 97.993125 | BJ67: 97.57359375 | BK67: 97.24070312 | BL67: 97.04417969 | BM67: 96.99103516 | BN67: 97.05802734 | BO67: 98.4662207 | BP67: 98.07862244 | BQ67: 97.86438677 | BR67: 0.2142356632 | BS67: 98.2928581 | BT67: 97.89953331 | BU67: 97.71827046 | BV67: 97.73394989 | BW67: 98.27773844 | BX67: 1.33121307 | BY67: -17 | BZ67: 98.48543596 | CA67: 46.09946892 | CB67: 99.24477702 | CC67: 9.274777018 | CD67: 11.35136857 | CE67: 81.70624502 | CF67: 72.71198847 | CG67: 100 | CH67: 50 | CI67: 0 | CJ67: 0
A68: 37 | B68: =OFFSET(InputPriceData!B$15,CalculationsAndCharts!$A68+$A$11,0,1,1) -> 2007-05-04 | C68: =OFFSET(InputPriceData!G$15,CalculationsAndCharts!$A68+$A$11,0,1,1) -> 1870300 | D68: =OFFSET(InputPriceData!C$15,CalculationsAndCharts!$A68+$A$11,IF($C$7,7,0),1,1) -> 99.3 | E68: =OFFSET(InputPriceData!D$15,CalculationsAndCharts!$A68+$A$11,IF($C$7,7,0),1,1) -> 100.09 | F68: =OFFSET(InputPriceData!E$15,CalculationsAndCharts!$A68+$A$11,IF($C$7,7,0),1,1) -> 98.24 | G68: =OFFSET(InputPriceData!F$15,CalculationsAndCharts!$A68+$A$11,IF($C$7,7,0),1,1) -> 98.62 | H68: 0 | I68: 0 | J68: 0 | K68: 0 | L68: 98.98333333 | M68: 1.573333333 | N68: 8.790346154 | O68: 8.379329043 | P68: 7.541396139 | Q68: 98.10772443 | R68: 98.15965544 | S68: 98.31052762 | T68: 106.5389845 | U68: 90.6182593 | V68: 1.85 | W68: 2.266997785 | X68: 0.07298720122 | Y68: 0 | BE68: 98.695 | BF68: =AVERAGE(OFFSET(BE$31,$A68,0,$BE$27,1)) -> 98.51 | BG68: 98.07875 | BH68: 97.5725 | BI68: 97.1540625 | BJ68: 96.9078125 | BK68: 96.84765625 | BL68: 96.93789063 | BM68: 97.12501953 | BN68: 97.36466797 | BO68: 97.96166797 | BP68: 97.69102417 | BQ68: 97.65015111 | BR68: 0.0408730592 | BS68: 97.73189723 | BT68: 97.50620853 | BU68: 97.53700761 | BV68: 97.74962931 | BW68: 97.65723206 | BX68: 1.4054183 | BY68: -18 | BZ68: 98.53098913 | CA68: 34.4573485 | CB68: 98.47250065 | CC68: 8.852500651 | CD68: 12.43332349 | CE68: 71.19979353 | CF68: 68.97095637 | CG68: 100 | CH68: 50 | CI68: 0 | CJ68: 0
A69: 38 | B69: =OFFSET(InputPriceData!B$15,CalculationsAndCharts!$A69+$A$11,0,1,1) -> 2007-05-03 | C69: =OFFSET(InputPriceData!G$15,CalculationsAndCharts!$A69+$A$11,0,1,1) -> 2286000 | D69: =OFFSET(InputPriceData!C$15,CalculationsAndCharts!$A69+$A$11,IF($C$7,7,0),1,1) -> 99.39 | E69: =OFFSET(InputPriceData!D$15,CalculationsAndCharts!$A69+$A$11,IF($C$7,7,0),1,1) -> 99.5 | F69: =OFFSET(InputPriceData!E$15,CalculationsAndCharts!$A69+$A$11,IF($C$7,7,0),1,1) -> 97.41 | G69: =OFFSET(InputPriceData!F$15,CalculationsAndCharts!$A69+$A$11,IF($C$7,7,0),1,1) -> 98.77 | H69: 0 | I69: 0 | J69: 0 | K69: 0 | L69: 98.56 | M69: 2.29 | N69: 8.692038462 | O69: 8.261895583 | P69: 7.435706024 | Q69: 97.85755046 | R69: 98.17449287 | S69: 98.46532122 | T69: 106.4363884 | U69: 90.73878684 | V69: 2.09 | W69: 2.475496677 | X69: 0.07506324468 | Y69: 0 | BE69: 98.325 | BF69: =AVERAGE(OFFSET(BE$31,$A69,0,$BE$27,1)) -> 97.6475 | BG69: 97.06625 | BH69: 96.735625 | BI69: 96.6615625 | BJ69: 96.7875 | BK69: 97.028125 | BL69: 97.31214844 | BM69: 97.60431641 | BN69: 97.89860352 | BO69: 97.50886279 | BP69: 97.42038037 | BQ69: 97.60927805 | BR69: -0.1888976815 | BS69: 97.23148269 | BT69: 97.28051982 | BU69: 97.56780669 | BV69: 97.96225101 | BW69: 97.1003904 | BX69: 1.460018264 | BY69: -19 | BZ69: 98.63635942 | CA69: 23.69948958 | CB69: 98.0344314 | CC69: 8.554431396 | CD69: 13.11427409 | CE69: 65.22992686 | CF69: 67.79927949 | CG69: 100 | CH69: 50 | CI69: 0 | CJ69: 0
A70: 39 | B70: =OFFSET(InputPriceData!B$15,CalculationsAndCharts!$A70+$A$11,0,1,1) -> 2007-05-02 | C70: =OFFSET(InputPriceData!G$15,CalculationsAndCharts!$A70+$A$11,0,1,1) -> 2078900 | D70: =OFFSET(InputPriceData!C$15,CalculationsAndCharts!$A70+$A$11,IF($C$7,7,0),1,1) -> 96.39 | E70: =OFFSET(InputPriceData!D$15,CalculationsAndCharts!$A70+$A$11,IF($C$7,7,0),1,1) -> 98.61 | F70: =OFFSET(InputPriceData!E$15,CalculationsAndCharts!$A70+$A$11,IF($C$7,7,0),1,1) -> 96.27 | G70: =OFFSET(InputPriceData!F$15,CalculationsAndCharts!$A70+$A$11,IF($C$7,7,0),1,1) -> 97.88 | H70: 0 | I70: 0 | J70: 0 | K70: 0 | L70: 97.58666667 | M70: 3.796666667 | N70: 8.993333333 | O70: 8.138997617 | P70: 7.325097855 | Q70: 97.65685059 | R70: 98.26504784 | S70: 98.727913 | T70: 106.4040455 | U70: 90.93994998 | V70: 2.55 | W70: 2.668245015 | X70: 0.07726037 | Y70: 0 | BE70: 96.97 | BF70: =AVERAGE(OFFSET(BE$31,$A70,0,$BE$27,1)) -> 96.485 | BG70: 96.405 | BH70: 96.5875 | BI70: 96.9134375 | BJ70: 97.26875 | BK70: 97.59617188 | BL70: 97.89648438 | BM70: 98.19289063 | BN70: 98.50012695 | BO70: 96.97739307 | BP70: 97.33189795 | BQ70: 97.79817573 | BR70: -0.4662777868 | BS70: 96.86562016 | BT70: 97.32955696 | BU70: 97.85509356 | BV70: 98.35669533 | BW70: 96.78008552 | BX70: 1.511489482 | BY70: -20 | BZ70: 98.79610782 | CA70: 16.65503914 | CB70: 97.28202987 | CC70: 9.882029867 | CD70: 14.02041488 | CE70: 70.48314871 | CF70: 72.0262771 | CG70: 100 | CH70: 50 | CI70: 0 | CJ70: 0
A71: 40 | B71: =OFFSET(InputPriceData!B$15,CalculationsAndCharts!$A71+$A$11,0,1,1) -> 2007-05-01 | C71: =OFFSET(InputPriceData!G$15,CalculationsAndCharts!$A71+$A$11,0,1,1) -> 3418700 | D71: =OFFSET(InputPriceData!C$15,CalculationsAndCharts!$A71+$A$11,IF($C$7,7,0),1,1) -> 96.15 | E71: =OFFSET(InputPriceData!D$15,CalculationsAndCharts!$A71+$A$11,IF($C$7,7,0),1,1) -> 97 | F71: =OFFSET(InputPriceData!E$15,CalculationsAndCharts!$A71+$A$11,IF($C$7,7,0),1,1) -> 93.79 | G71: =OFFSET(InputPriceData!F$15,CalculationsAndCharts!$A71+$A$11,IF($C$7,7,0),1,1) -> 96.06 | H71: 0 | I71: 0 | J71: 0 | K71: 0 | L71: 95.61666667 | M71: 3.063333333 | N71: 8.43625641 | O71: 7.894901698 | P71: 7.105411528 | Q71: 97.67690314 | R71: 98.43881848 | S71: 98.96398338 | T71: 106.3337202 | U71: 91.33340695 | V71: 3.21 | W71: 2.727367523 | X71: 0.07839233316 | Y71: 0 | BE71: 96 | BF71: =AVERAGE(OFFSET(BE$31,$A71,0,$BE$27,1)) -> 96.325 | BG71: 96.77 | BH71: 97.239375 | BI71: 97.6240625 | BJ71: 97.92359375 | BK71: 98.19679688 | BL71: 98.48929688 | BM71: 98.80736328 | BN71: 99.12884766 | BO71: 97.01293555 | BP71: 97.68640282 | BQ71: 98.26445352 | BR71: -0.578050695 | BS71: 97.10835213 | BT71: 97.79349376 | BU71: 98.38063017 | BV71: 98.85829709 | BW71: 97.09688787 | BX71: 1.598943705 | BY71: -21 | BZ71: 98.98343682 | CA71: 20.50319935 | CB71: 96.31480111 | CC71: 10.80480111 | CD71: 15.96341724 | CE71: 67.6847629 | CF71: 75.15876662 | CG71: 100 | CH71: 50 | CI71: 0 | CJ71: 0
A72: 41 | B72: =OFFSET(InputPriceData!B$15,CalculationsAndCharts!$A72+$A$11,0,1,1) -> 2007-04-30 | C72: =OFFSET(InputPriceData!G$15,CalculationsAndCharts!$A72+$A$11,0,1,1) -> 2674300 | D72: =OFFSET(InputPriceData!C$15,CalculationsAndCharts!$A72+$A$11,IF($C$7,7,0),1,1) -> 97.41 | E72: =OFFSET(InputPriceData!D$15,CalculationsAndCharts!$A72+$A$11,IF($C$7,7,0),1,1) -> 98.68 | F72: =OFFSET(InputPriceData!E$15,CalculationsAndCharts!$A72+$A$11,IF($C$7,7,0),1,1) -> 95.94 | G72: =OFFSET(InputPriceData!F$15,CalculationsAndCharts!$A72+$A$11,IF($C$7,7,0),1,1) -> 95.94 | H72: 0 | I72: =IF($S$16,AVERAGE(OFFSET($G72,0,0,I$31,1)),0) -> 0 | J72: 0 | K72: 0 | L72: 96.85333333 | M72: 1.386666667 | N72: 8.236 | O72: 7.740228923 | P72: 6.966206031 | Q72: 98.26554213 | R72: 98.65650858 | S72: 99.14833578 | T72: 106.3967375 | U72: 91.69030255 | V72: 2.74 | W72: 2.486051285 | X72: 0.0759125629 | Y72: 0 | BE72: 96.65 | BF72: =AVERAGE(OFFSET(BE$31,$A72,0,$BE$27,1)) -> 97.215 | BG72: 97.70875 | BH72: 98.00875 | BI72: 98.223125 | BJ72: 98.47 | BK72: 98.78179687 | BL72: 99.12542969 | BM72: 99.45033203 | BN72: 99.72180664 | BO72: 97.75131201 | BP72: 98.3598701 | BQ72: 98.84250421 | BR72: -0.4826341131 | BS72: 97.87723599 | BT72: 98.47863539 | BU72: 98.96776657 | BV72: 99.33596401 | BW72: 97.86857048 | BX72: 1.7558303 | BY72: -22 | BZ72: 99.12585825 | CA72: 32.09838714 | CB72: 97.30232267 | CC72: 13.51232267 | CD72: 17.34329761 | CE72: 77.9109197 | CF72: 80.84082636 | CG72: 100 | CH72: 50 | CI72: 0 | CJ72: 0
A73: 42 | B73: =OFFSET(InputPriceData!B$15,CalculationsAndCharts!$A73+$A$11,0,1,1) -> 2007-04-27 | C73: =OFFSET(InputPriceData!G$15,CalculationsAndCharts!$A73+$A$11,0,1,1) -> 2240200 | D73: =OFFSET(InputPriceData!C$15,CalculationsAndCharts!$A73+$A$11,IF($C$7,7,0),1,1) -> 98.2 | E73: =OFFSET(InputPriceData!D$15,CalculationsAndCharts!$A73+$A$11,IF($C$7,7,0),1,1) -> 98.21 | F73: =OFFSET(InputPriceData!E$15,CalculationsAndCharts!$A73+$A$11,IF($C$7,7,0),1,1) -> 96.41 | G73: =OFFSET(InputPriceData!F$15,CalculationsAndCharts!$A73+$A$11,IF($C$7,7,0),1,1) -> 97.36 | H73: 0 | I73: 0 | J73: 0 | K73: 0 | L73: 97.32666667 | M73: 2.133333333 | N73: 8.198679487 | O73: 7.598580044 | P73: 6.83872204 | Q73: 98.66903036 | R73: 98.76821328 | S73: 99.24107457 | T73: 106.3667933 | U73: 91.92949124 | V73: 1.8 | W73: 2.359076927 | X73: 0.07423045323 | Y73: 0 | BE73: 97.78 | BF73: =AVERAGE(OFFSET(BE$31,$A73,0,$BE$27,1)) -> 98.2025 | BG73: 98.30875 | BH73: 98.4375 | BI73: 98.716875 | BJ73: 99.09359375 | BK73: 99.4690625 | BL73: 99.77523437 | BM73: 99.99328125 | BN73: 100.1392773 | BO73: 98.53492871 | BP73: 98.96842819 | BQ73: 99.32513833 | BR73: -0.3567101373 | BS73: 98.61171805 | BT73: 99.0800348 | BU73: 99.45689775 | BV73: 99.70416145 | BW73: 98.57357262 | BX73: 1.961975587 | BY73: -23 | BZ73: 99.16801122 | CA73: 42.42550968 | CB73: 97.93079769 | CC73: 14.14079769 | CD73: 17.70241414 | CE73: 79.88061726 | CF73: 87.03611254 | CG73: 100 | CH73: 50 | CI73: 0 | CJ73: 0
A74: 43 | B74: =OFFSET(InputPriceData!B$15,CalculationsAndCharts!$A74+$A$11,0,1,1) -> 2007-04-26 | C74: =OFFSET(InputPriceData!G$15,CalculationsAndCharts!$A74+$A$11,0,1,1) -> 2185300 | D74: =OFFSET(InputPriceData!C$15,CalculationsAndCharts!$A74+$A$11,IF($C$7,7,0),1,1) -> 99.87 | E74: =OFFSET(InputPriceData!D$15,CalculationsAndCharts!$A74+$A$11,IF($C$7,7,0),1,1) -> 99.87 | F74: =OFFSET(InputPriceData!E$15,CalculationsAndCharts!$A74+$A$11,IF($C$7,7,0),1,1) -> 97.56 | G74: =OFFSET(InputPriceData!F$15,CalculationsAndCharts!$A74+$A$11,IF($C$7,7,0),1,1) -> 98.2 | H74: 0 | I74: 0 | J74: 0 | K74: 0 | L74: 98.54333333 | M74: 1.12 | N74: 8.148615385 | O74: 7.427123061 | P74: 6.684410755 | Q74: 99.05256284 | R74: 98.79655125 | S74: 99.24435778 | T74: 106.2236743 | U74: 92.1121405 | V74: 2.31 | W74: 2.63861539 | X74: 0.07686981049 | Y74: 0 | BE74: 98.625 | BF74: =AVERAGE(OFFSET(BE$31,$A74,0,$BE$27,1)) -> 98.415 | BG74: 98.56625 | BH74: 98.99625 | BI74: 99.4703125 | BJ74: 99.84453125 | BK74: 100.0814063 | BL74: 100.2113281 | BM74: 100.2852734 | BN74: 100.341123 | BO74: 99.03551123 | BP74: =BO74*$BF$28+$BF$29*BP75 -> 99.40192767 | BQ74: =BP74*$BF$28+$BF$29*BQ75 -> 99.68184846 | BR74: =BP74-BQ74 -> -0.2799207959 | BS74: =BP74+BR74 -> 99.12200687 | BT74: 99.54835155 | BU74: 99.83376069 | BV74: 99.95142515 | BW74: 99.09519774 | BX74: 2.177356567 | BY74: -24 | BZ74: 99.10988828 | CA74: 49.83132592 | CB74: 98.78942228 | CC74: 14.99942228 | CD74: 17.70241414 | CE74: 84.73094212 | CF74: 91.94075372 | CG74: 100 | CH74: 50 | CI74: 0 | CJ74: 0
A75: 44 | B75: =OFFSET(InputPriceData!B$15,CalculationsAndCharts!$A75+$A$11,0,1,1) -> 2007-04-25 | C75: =OFFSET(InputPriceData!G$15,CalculationsAndCharts!$A75+$A$11,0,1,1) -> 2557600 | D75: =OFFSET(InputPriceData!C$15,CalculationsAndCharts!$A75+$A$11,IF($C$7,7,0),1,1) -> 98.15 | E75: =OFFSET(InputPriceData!D$15,CalculationsAndCharts!$A75+$A$11,IF($C$7,7,0),1,1) -> 99.58 | F75: =OFFSET(InputPriceData!E$15,CalculationsAndCharts!$A75+$A$11,IF($C$7,7,0),1,1) -> 97.41 | G75: =OFFSET(InputPriceData!F$15,CalculationsAndCharts!$A75+$A$11,IF($C$7,7,0),1,1) -> 99.05 | H75: 0 | I75: 0 | J75: 0 | K75: 0 | L75: 98.68 | M75: 3.59 | N75: 8.410769231 | O75: 7.220982397 | P75: 6.498884157 | Q75: 99.19805699 | R75: 98.72340509 | S75: 99.12036476 | T75: 105.9443875 | U75: 92.22452093 | V75: 2.22 | W75: 2.802923086 | X75: 0.07829806245 | Y75: 0 | BE75: 98.205 | BF75: =AVERAGE(OFFSET(BE$31,$A75,0,$BE$27,1)) -> 98.7175 | BG75: 99.42625 | BH75: 99.944375 | BI75: 100.21875 | BJ75: 100.3182812 | BK75: 100.34125 | BL75: 100.3592187 | BM75: 100.3969727 | BN75: 100.4407129 | BO75: 99.30688428 | BP75: =BO75*$BF$28+$BF$29*BP76 -> 99.76834411 | BQ75: =BP75*$BF$28+$BF$29*BQ76 -> 99.96176926 | BR75: =BP75-BQ75 -> -0.193425154 | BS75: =BP75+BR75 -> 99.57491895 | BT75: 99.97469623 | BU75: 100.1191698 | BV75: 100.0690896 | BW75: 99.63566883 | BX75: 2.383502929 | BY75: -25 | BZ75: 98.9645762 | CA75: 57.03893226 | CB75: 98.99344214 | CC75: 17.82344214 | CD75: 18.47050488 | CE75: 96.49677825 | CF75: 97.03043968 | CG75: 100 | CH75: 50 | CI75: 0 | CJ75: 0
A76: 45 | B76: =OFFSET(InputPriceData!B$15,CalculationsAndCharts!$A76+$A$11,0,1,1) -> 2007-04-24 | C76: =OFFSET(InputPriceData!G$15,CalculationsAndCharts!$A76+$A$11,0,1,1) -> 7096600 | D76: =OFFSET(InputPriceData!C$15,CalculationsAndCharts!$A76+$A$11,IF($C$7,7,0),1,1) -> 98.17 | E76: =OFFSET(InputPriceData!D$15,CalculationsAndCharts!$A76+$A$11,IF($C$7,7,0),1,1) -> 99.16 | F76: =OFFSET(InputPriceData!E$15,CalculationsAndCharts!$A76+$A$11,IF($C$7,7,0),1,1) -> 95.09 | G76: =OFFSET(InputPriceData!F$15,CalculationsAndCharts!$A76+$A$11,IF($C$7,7,0),1,1) -> 97.36 | H76: 0 | I76: 0 | J76: 0 | K76: 0 | L76: 97.20333333 | M76: 6.313333333 | N76: 7.9165 | O76: 6.881043302 | P76: 6.192938971 | Q76: 99.34607327 | R76: 98.58779026 | S76: 98.85487374 | T76: 105.4688336 | U76: 92.39485129 | V76: 6.01 | W76: 3.094384628 | X76: 0.08178291525 | Y76: 0 | BE76: 99.23 | BF76: =AVERAGE(OFFSET(BE$31,$A76,0,$BE$27,1)) -> 100.135 | BG76: 100.4625 | BH76: 100.493125 | BI76: 100.4178125 | BJ76: 100.3642187 | BK76: 100.3771875 | BL76: 100.4347266 | BM76: 100.4844531 | BN76: 100.4747559 | BO76: 100.0808452 | BP76: 100.2298039 | BQ76: 100.1551944 | BR76: 0.0746095208 | BS76: 100.3044135 | BT76: 100.3744735 | BU76: 100.2636434 | BV76: 100.0190094 | BW76: 100.3514997 | BX76: 2.586034097 | BY76: -26 | BZ76: 98.72223827 | CA76: 65.75057923 | CB76: 98.64208927 | CC76: 17.47208927 | CD76: 18.47050488 | CE76: 94.59454078 | CF76: 98.19818026 | CG76: 100 | CH76: 50 | CI76: 0 | CJ76: 0
A77: 46 | B77: =OFFSET(InputPriceData!B$15,CalculationsAndCharts!$A77+$A$11,0,1,1) -> 2007-04-23 | C77: =OFFSET(InputPriceData!G$15,CalculationsAndCharts!$A77+$A$11,0,1,1) -> 2334700 | D77: =OFFSET(InputPriceData!C$15,CalculationsAndCharts!$A77+$A$11,IF($C$7,7,0),1,1) -> 101 | E77: =OFFSET(InputPriceData!D$15,CalculationsAndCharts!$A77+$A$11,IF($C$7,7,0),1,1) -> 102.23 | F77: =OFFSET(InputPriceData!E$15,CalculationsAndCharts!$A77+$A$11,IF($C$7,7,0),1,1) -> 100.88 | G77: =OFFSET(InputPriceData!F$15,CalculationsAndCharts!$A77+$A$11,IF($C$7,7,0),1,1) -> 101.1 | H77: 0 | I77: 0 | J77: 0 | K77: 0 | L77: 101.4033333 | M77: 1.163333333 | N77: 6.521076923 | O77: 6.585198531 | P77: 5.926678677 | Q77: 99.95828468 | R77: 98.37113797 | S77: 98.49364719 | T77: 104.9563365 | U77: 92.44445929 | V77: 1.35 | W77: 1.636576943 | X77: 0.06618770467 | Y77: 0 | BE77: 101.04 | BF77: =AVERAGE(OFFSET(BE$31,$A77,0,$BE$27,1)) -> 100.79 | BG77: 100.52375 | BH77: 100.3425 | BI77: 100.310625 | BJ77: 100.3901562 | BK77: 100.4922656 | BL77: 100.5341797 | BM77: 100.4650586 | BN77: 100.2702832 | BO77: 100.6539409 | BP77: 100.3787627 | BQ77: 100.0805849 | BR77: 0.2981777616 | BS77: 100.6769404 | BT77: 100.4445336 | BU77: 100.1528133 | BV77: 99.77437537 | BW77: 100.6495361 | BX77: 2.748065255 | BY77: -27 | BZ77: 98.35565362 | CA77: 70.86815853 | CB77: 101.0286371 | CC77: 19.85863713 | CD77: 18.47050488 | CE77: 100 | CF77: 100 | CG77: 100 | CH77: 50 | CI77: 0 | CJ77: 0
A78: 47 | B78: =OFFSET(InputPriceData!B$15,CalculationsAndCharts!$A78+$A$11,0,1,1) -> 2007-04-20 | C78: =OFFSET(InputPriceData!G$15,CalculationsAndCharts!$A78+$A$11,0,1,1) -> 2962800 | D78: =OFFSET(InputPriceData!C$15,CalculationsAndCharts!$A78+$A$11,IF($C$7,7,0),1,1) -> 100.94 | E78: =OFFSET(InputPriceData!D$15,CalculationsAndCharts!$A78+$A$11,IF($C$7,7,0),1,1) -> 101.55 | F78: =OFFSET(InputPriceData!E$15,CalculationsAndCharts!$A78+$A$11,IF($C$7,7,0),1,1) -> 100.24 | G78: =OFFSET(InputPriceData!F$15,CalculationsAndCharts!$A78+$A$11,IF($C$7,7,0),1,1) -> 100.98 | H78: 0 | I78: 0 | J78: 0 | K78: 0 | L78: 100.9233333 | M78: 2.553333333 | N78: 6.693115385 | O78: 6.60351899 | P78: 5.943167091 | Q78: 99.54541364 | R78: 97.91766748 | S78: 97.98183211 | T78: 104.5211865 | U78: 91.97450039 | V78: 1.45 | W78: 1.779865414 | X78: 0.06762592012 | Y78: 0 | BE78: 100.54 | BF78: =AVERAGE(OFFSET(BE$31,$A78,0,$BE$27,1)) -> 100.2575 | BG78: 100.16125 | BH78: 100.27875 | BI78: 100.4696875 | BJ78: 100.594375 | BK78: 100.5760938 | BL78: 100.3959375 | BM78: 100.0755078 | BN78: 99.66023438 | BO78: 100.3271543 | BP78: 100.1035844 | BQ78: 99.78240713 | BR78: 0.3211772601 | BS78: 100.4247617 | BT78: 100.2121267 | BU78: 99.8610931 | BV78: 99.3959374 | BW78: 100.4490383 | BX78: 2.871783089 | BY78: -28 | BZ78: 97.90264636 | CA78: 72.16734213 | CB78: 100.6252438 | CC78: 19.45524382 | CD78: 18.39050488 | CE78: 100 | CF78: 99.08738613 | CG78: 100 | CH78: 50 | CI78: 0 | CJ78: 0
A79: 48 | B79: =OFFSET(InputPriceData!B$15,CalculationsAndCharts!$A79+$A$11,0,1,1) -> 2007-04-19 | C79: =OFFSET(InputPriceData!G$15,CalculationsAndCharts!$A79+$A$11,0,1,1) -> 3213000 | D79: =OFFSET(InputPriceData!C$15,CalculationsAndCharts!$A79+$A$11,IF($C$7,7,0),1,1) -> 98.37 | E79: =OFFSET(InputPriceData!D$15,CalculationsAndCharts!$A79+$A$11,IF($C$7,7,0),1,1) -> 100.5 | F79: =OFFSET(InputPriceData!E$15,CalculationsAndCharts!$A79+$A$11,IF($C$7,7,0),1,1) -> 98.37 | G79: =OFFSET(InputPriceData!F$15,CalculationsAndCharts!$A79+$A$11,IF($C$7,7,0),1,1) -> 100.1 | H79: 0 | I79: 0 | J79: 0 | K79: 0 | L79: 99.65666667 | M79: 1.73 | N79: 6.390910256 | O79: 6.57792002 | P79: 5.920128018 | Q79: 99.1517223 | R79: 97.45259715 | S79: 97.4781889 | T79: 104.0305172 | U79: 91.53246913 | V79: 2.13 | W79: 1.944798121 | X79: 0.06942855266 | Y79: 0 | BE79: 99.975 | BF79: =AVERAGE(OFFSET(BE$31,$A79,0,$BE$27,1)) -> 100.065 | BG79: 100.39625 | BH79: 100.660625 | BI79: 100.7190625 | BJ79: 100.5578125 | BK79: 100.2157813 | BL79: 99.75507813 | BM79: 99.24496094 | BN79: 98.74644531 | BO79: 100.094207 | BP79: 99.88001449 | BQ79: 99.46122987 | BR79: 0.418784615 | BS79: 100.2987991 | BT79: 99.9994918 | BU79: 99.51005947 | BV79: 98.93078171 | BW79: 100.3990787 | BX79: 3.018745157 | BY79: -29 | BZ79: 97.41055729 | CA79: 74.74969932 | CB79: 99.87543685 | CC79: 18.70543685 | CD79: 18.39050488 | CE79: 100 | CF79: 98.27113303 | CG79: 100 | CH79: 50 | CI79: 0 | CJ79: 0
A80: 49 | B80: =OFFSET(InputPriceData!B$15,CalculationsAndCharts!$A80+$A$11,0,1,1) -> 2007-04-18 | C80: =OFFSET(InputPriceData!G$15,CalculationsAndCharts!$A80+$A$11,0,1,1) -> 2501400 | D80: =OFFSET(InputPriceData!C$15,CalculationsAndCharts!$A80+$A$11,IF($C$7,7,0),1,1) -> 100.46 | E80: =OFFSET(InputPriceData!D$15,CalculationsAndCharts!$A80+$A$11,IF($C$7,7,0),1,1) -> 101.01 | F80: =OFFSET(InputPriceData!E$15,CalculationsAndCharts!$A80+$A$11,IF($C$7,7,0),1,1) -> 99.44 | G80: =OFFSET(InputPriceData!F$15,CalculationsAndCharts!$A80+$A$11,IF($C$7,7,0),1,1) -> 99.85 | H80: 0 | I80: 0 | J80: 0 | K80: 0 | L80: 100.1 | M80: 1.476666667 | N80: 6.22524359 | O80: 6.631351381 | P80: 5.968216243 | Q80: 99.00745248 | R80: 96.96713282 | S80: 96.9823143 | T80: 103.5984842 | U80: 90.99891658 | V80: 1.57 | W80: 1.852197181 | X80: 0.06854979651 | Y80: 0 | BE80: 100.155 | BF80: =AVERAGE(OFFSET(BE$31,$A80,0,$BE$27,1)) -> 100.7275 | BG80: 100.925 | BH80: 100.7775 | BI80: 100.3965625 | BJ80: 99.87375 | BK80: 99.294375 | BL80: 98.73484375 | BM80: 98.24792969 | BN80: 97.85495117 | BO80: 100.1208706 | BP80: 99.66582194 | BQ80: 99.04244526 | BR80: 0.6233766852 | BS80: 100.2891986 | BT80: 99.70018449 | BU80: 99.02062714 | BV80: 98.35150395 | BW80: 100.390176 | BX80: 3.168176868 | BY80: -30 | BZ80: 96.85737176 | CA80: 77.87726497 | CB80: 100.1104353 | CC80: 18.9404353 | CD80: 19.47359139 | CE80: 97.26215839 | CF80: 98.27113303 | CG80: 100 | CH80: 50 | CI80: 0 | CJ80: 0
A81: 50 | B81: =OFFSET(InputPriceData!B$15,CalculationsAndCharts!$A81+$A$11,0,1,1) -> 2007-04-17 | C81: =OFFSET(InputPriceData!G$15,CalculationsAndCharts!$A81+$A$11,0,1,1) -> 2441300 | D81: =OFFSET(InputPriceData!C$15,CalculationsAndCharts!$A81+$A$11,IF($C$7,7,0),1,1) -> 101.24 | E81: =OFFSET(InputPriceData!D$15,CalculationsAndCharts!$A81+$A$11,IF($C$7,7,0),1,1) -> 101.99 | F81: =OFFSET(InputPriceData!E$15,CalculationsAndCharts!$A81+$A$11,IF($C$7,7,0),1,1) -> 100.3 | G81: =OFFSET(InputPriceData!F$15,CalculationsAndCharts!$A81+$A$11,IF($C$7,7,0),1,1) -> 100.46 | H81: 0 | I81: 0 | J81: 0 | K81: 0 | L81: 100.9166667 | M81: 1.213333333 | N81: 6.655794872 | O81: 6.747382178 | P81: 6.072643961 | Q81: 98.69529604 | R81: 96.38418435 | S81: 96.41178505 | T81: 103.1315665 | U81: 90.31154039 | V81: 1.84 | W81: 1.993295772 | X81: 0.06984168597 | Y81: 0 | BE81: 101.3 | BF81: =AVERAGE(OFFSET(BE$31,$A81,0,$BE$27,1)) -> 101.1225 | BG81: 100.63 | BH81: 100.015625 | BI81: 99.3509375 | BJ81: 98.715 | BK81: 98.1753125 | BL81: 97.76101562 | BM81: 97.46197266 | BN81: 97.24476562 | BO81: 100.0810127 | BP81: 99.21077328 | BQ81: 98.41906857 | BR81: 0.7917047068 | BS81: 100.002478 | BT81: 99.11117036 | BU81: 98.34106979 | BV81: 97.68238076 | BW81: 99.99268246 | BX81: 3.307101319 | BY81: -31 | BZ81: 96.23212128 | CA81: 78.42792533 | CB81: 100.4988397 | CC81: 19.44883968 | CD81: 19.93705005 | CE81: 97.5512407 | CF81: 99.1837469 | CG81: 100 | CH81: 50 | CI81: 0 | CJ81: 0
A82: 51 | B82: =OFFSET(InputPriceData!B$15,CalculationsAndCharts!$A82+$A$11,0,1,1) -> 2007-04-16 | C82: =OFFSET(InputPriceData!G$15,CalculationsAndCharts!$A82+$A$11,0,1,1) -> 3066900 | D82: =OFFSET(InputPriceData!C$15,CalculationsAndCharts!$A82+$A$11,IF($C$7,7,0),1,1) -> 100.41 | E82: =OFFSET(InputPriceData!D$15,CalculationsAndCharts!$A82+$A$11,IF($C$7,7,0),1,1) -> 102.15 | F82: =OFFSET(InputPriceData!E$15,CalculationsAndCharts!$A82+$A$11,IF($C$7,7,0),1,1) -> 100.25 | G82: =OFFSET(InputPriceData!F$15,CalculationsAndCharts!$A82+$A$11,IF($C$7,7,0),1,1) -> 102.14 | H82: 0 | I82: 0 | J82: 0 | K82: 0 | L82: 101.5133333 | M82: 3.393333333 | N82: 6.61574359 | O82: 6.77354998 | P82: 6.096194982 | Q82: 98.06061872 | R82: 95.72386672 | S82: 95.7978903 | T82: 102.4974167 | U82: 89.62767174 | V82: 2.4 | W82: 2.069943658 | X82: 0.07026574954 | Y82: 0 | BE82: 100.945 | BF82: =AVERAGE(OFFSET(BE$31,$A82,0,$BE$27,1)) -> 100.1375 | BG82: 99.40125 | BH82: 98.68625 | BI82: 98.0790625 | BJ82: 97.635625 | BK82: 97.34671875 | BL82: 97.16292969 | BM82: 97.02755859 | BN82: 96.89611328 | BO82: 99.24996289 | BP82: 98.34053386 | BQ82: 97.62736386 | BR82: 0.7131699965 | BS82: 99.05370386 | BT82: 98.21986273 | BU82: 97.57096922 | BV82: 97.02369172 | BW82: 98.97037224 | BX82: 3.49431323 | BY82: -32 | BZ82: 95.56958715 | CA82: 74.33085459 | CB82: 100.3816481 | CC82: 21.05164811 | CD82: 20.70264893 | CE82: 100 | CF82: 100 | CG82: 100 | CH82: 50 | CI82: 0 | CJ82: 0
A83: 52 | B83: =OFFSET(InputPriceData!B$15,CalculationsAndCharts!$A83+$A$11,0,1,1) -> 2007-04-13 | C83: =OFFSET(InputPriceData!G$15,CalculationsAndCharts!$A83+$A$11,0,1,1) -> 2210000 | D83: =OFFSET(InputPriceData!C$15,CalculationsAndCharts!$A83+$A$11,IF($C$7,7,0),1,1) -> 99.02 | E83: =OFFSET(InputPriceData!D$15,CalculationsAndCharts!$A83+$A$11,IF($C$7,7,0),1,1) -> 99.84 | F83: =OFFSET(InputPriceData!E$15,CalculationsAndCharts!$A83+$A$11,IF($C$7,7,0),1,1) -> 98.12 | G83: =OFFSET(InputPriceData!F$15,CalculationsAndCharts!$A83+$A$11,IF($C$7,7,0),1,1) -> 99.75 | H83: 0 | I83: 0 | J83: 0 | K83: 0 | L83: 99.23666667 | M83: 1.756666667 | N83: 6.395461538 | O83: 6.81863752 | P83: 6.136773768 | Q83: 97.07412883 | R83: 95.05622329 | S83: 95.18228753 | T83: 101.8748608 | U83: 88.91944952 | V83: 1.72 | W83: 1.904915487 | X83: 0.06909689712 | Y83: 0 | BE83: 99.33 | BF83: =AVERAGE(OFFSET(BE$31,$A83,0,$BE$27,1)) -> 98.665 | BG83: 97.97125 | BH83: 97.471875 | BI83: 97.1921875 | BJ83: 97.0578125 | BK83: 96.97914062 | BL83: 96.8921875 | BM83: 96.76466797 | BN83: 96.58905273 | BO83: 98.08212744 | BP83: 97.43110483 | BQ83: 96.91419387 | BR83: 0.5169109636 | BS83: 97.9480158 | BT83: 97.3860216 | BU83: 96.92207572 | BV83: 96.47641422 | BW83: 97.86825186 | BX83: 3.756930109 | BY83: -33 | BZ83: 94.93399374 | CA83: 69.52563681 | CB83: 98.65939705 | CC83: 19.32939705 | CD83: 18.39264893 | CE83: 100 | CF83: 100 | CG83: 100 | CH83: 50 | CI83: 0 | CJ83: 0
A84: 53 | B84: =OFFSET(InputPriceData!B$15,CalculationsAndCharts!$A84+$A$11,0,1,1) -> 2007-04-12 | C84: =OFFSET(InputPriceData!G$15,CalculationsAndCharts!$A84+$A$11,0,1,1) -> 3849000 | D84: =OFFSET(InputPriceData!C$15,CalculationsAndCharts!$A84+$A$11,IF($C$7,7,0),1,1) -> 97.79 | E84: =OFFSET(InputPriceData!D$15,CalculationsAndCharts!$A84+$A$11,IF($C$7,7,0),1,1) -> 99.2 | F84: =OFFSET(InputPriceData!E$15,CalculationsAndCharts!$A84+$A$11,IF($C$7,7,0),1,1) -> 97.48 | G84: =OFFSET(InputPriceData!F$15,CalculationsAndCharts!$A84+$A$11,IF($C$7,7,0),1,1) -> 98.91 | H84: 0 | I84: 0 | J84: 0 | K84: 0 | L84: 98.53 | M84: 2.33 | N84: 6.455538462 | O84: 6.939544944 | P84: 6.245590449 | Q84: 96.45626088 | R84: 94.47967885 | S84: 94.60901254 | T84: 101.4192238 | U84: 88.2340884 | V84: 2.11 | W84: 1.997373231 | X84: 0.07019384522 | Y84: 0 | BE84: 98 | BF84: =AVERAGE(OFFSET(BE$31,$A84,0,$BE$27,1)) -> 97.2775 | BG84: 96.9725 | BH84: 96.9125 | BI84: 96.9234375 | BJ84: 96.90046875 | BK84: 96.80523437 | BL84: 96.63714844 | BM84: 96.4134375 | BN84: 96.15675781 | BO84: 97.18444922 | BP84: 96.78008222 | BQ84: 96.3972829 | BR84: 0.3827993174 | BS84: 97.16288154 | BT84: 96.8240274 | BU84: 96.45812984 | BV84: 96.03075272 | BW84: 97.12844541 | BX84: 4.007899735 | BY84: -34 | BZ84: 94.33689959 | CA84: 67.41277226 | CB84: 97.85722461 | CC84: 18.52722461 | CD84: 17.75264893 | CE84: 100 | CF84: 100 | CG84: 100 | CH84: 50 | CI84: 0 | CJ84: 0
A85: 54 | B85: =OFFSET(InputPriceData!B$15,CalculationsAndCharts!$A85+$A$11,0,1,1) -> 2007-04-11 | C85: =OFFSET(InputPriceData!G$15,CalculationsAndCharts!$A85+$A$11,0,1,1) -> 3442900 | D85: =OFFSET(InputPriceData!C$15,CalculationsAndCharts!$A85+$A$11,IF($C$7,7,0),1,1) -> 96.26 | E85: =OFFSET(InputPriceData!D$15,CalculationsAndCharts!$A85+$A$11,IF($C$7,7,0),1,1) -> 97.95 | F85: =OFFSET(InputPriceData!E$15,CalculationsAndCharts!$A85+$A$11,IF($C$7,7,0),1,1) -> 96.2 | G85: =OFFSET(InputPriceData!F$15,CalculationsAndCharts!$A85+$A$11,IF($C$7,7,0),1,1) -> 97.09 | H85: 0 | I85: 0 | J85: 0 | K85: 0 | L85: 97.08 | M85: 1.25 | N85: 6.108730769 | O85: 7.07783251 | P85: 6.370049259 | Q85: 95.86376398 | R85: 93.91494113 | S85: 94.02801613 | T85: 100.9927736 | U85: 87.54489187 | V85: 1.93 | W85: 1.941059846 | X85: 0.06999237662 | Y85: 0 | BE85: 96.555 | BF85: =AVERAGE(OFFSET(BE$31,$A85,0,$BE$27,1)) -> 96.6675 | BG85: 96.8525 | BH85: 96.934375 | BI85: 96.8775 | BJ85: 96.71 | BK85: 96.4690625 | BL85: 96.18972656 | BM85: 95.90007813 | BN85: 95.61614258 | BO85: 96.58168799 | BP85: 96.37571522 | BQ85: 96.01448359 | BR85: 0.3612316379 | BS85: 96.73694686 | BT85: 96.48517327 | BU85: 96.09223228 | BV85: 95.6033756 | BW85: 96.78219856 | BX85: 4.184706371 | BY85: -35 | BZ85: 93.7438137 | CA85: 68.15172078 | CB85: 96.83084399 | CC85: 17.50084399 | CD85: 17.03264893 | CE85: 100 | CF85: 100 | CG85: 100 | CH85: 50 | CI85: 0 | CJ85: 0
A86: 55 | B86: =OFFSET(InputPriceData!B$15,CalculationsAndCharts!$A86+$A$11,0,1,1) -> 2007-04-10 | C86: =OFFSET(InputPriceData!G$15,CalculationsAndCharts!$A86+$A$11,0,1,1) -> 2723700 | D86: =OFFSET(InputPriceData!C$15,CalculationsAndCharts!$A86+$A$11,IF($C$7,7,0),1,1) -> 98.02 | E86: =OFFSET(InputPriceData!D$15,CalculationsAndCharts!$A86+$A$11,IF($C$7,7,0),1,1) -> 98.18 | F86: =OFFSET(InputPriceData!E$15,CalculationsAndCharts!$A86+$A$11,IF($C$7,7,0),1,1) -> 95.83 | G86: =OFFSET(InputPriceData!F$15,CalculationsAndCharts!$A86+$A$11,IF($C$7,7,0),1,1) -> 96.02 | H86: 0 | I86: 0 | J86: 0 | K86: 0 | L86: 96.67666667 | M86: 1.95 | N86: 6.484666667 | O86: 7.354718722 | P86: 6.61924685 | Q86: 95.51626798 | R86: 93.3581346 | S86: 93.42947312 | T86: 100.7128533 | U86: 86.73888775 | V86: 2.35 | W86: 1.946589769 | X86: 0.07027275328 | Y86: 0 | BE86: 96.78 | BF86: =AVERAGE(OFFSET(BE$31,$A86,0,$BE$27,1)) -> 97.0375 | BG86: 97.01625 | BH86: 96.820625 | BI86: 96.5425 | BJ86: 96.228125 | BK86: 95.91039063 | BL86: 95.61042969 | BM86: 95.33220703 | BN86: 95.06700195 | BO86: 96.57153271 | BP86: 96.16974246 | BQ86: 95.65325195 | BR86: 0.5164905124 | BS86: 96.68623297 | BT86: 96.23339967 | BU86: 95.69929129 | BV86: 95.11451893 | BW86: 96.71684406 | BX86: 4.272648032 | BY86: -36 | BZ86: 93.11497379 | CA86: 71.07516369 | CB86: 96.62409969 | CC86: 17.29409969 | CD86: 17.03264893 | CE86: 100 | CF86: 100 | CG86: 100 | CH86: 50 | CI86: 0 | CJ86: 0
A87: 56 | B87: =OFFSET(InputPriceData!B$15,CalculationsAndCharts!$A87+$A$11,0,1,1) -> 2007-04-09 | C87: =OFFSET(InputPriceData!G$15,CalculationsAndCharts!$A87+$A$11,0,1,1) -> 2080500 | D87: =OFFSET(InputPriceData!C$15,CalculationsAndCharts!$A87+$A$11,IF($C$7,7,0),1,1) -> 97.9 | E87: =OFFSET(InputPriceData!D$15,CalculationsAndCharts!$A87+$A$11,IF($C$7,7,0),1,1) -> 98.48 | F87: =OFFSET(InputPriceData!E$15,CalculationsAndCharts!$A87+$A$11,IF($C$7,7,0),1,1) -> 97.32 | G87: =OFFSET(InputPriceData!F$15,CalculationsAndCharts!$A87+$A$11,IF($C$7,7,0),1,1) -> 97.54 | H87: 0 | I87: 0 | J87: 0 | K87: 0 | L87: 97.78 | M87: 2.08 | N87: 7.034461538 | O87: 7.603305023 | P87: 6.842974521 | Q87: 95.18472549 | R87: 92.74152507 | S87: 92.75051305 | T87: 100.3448301 | U87: 85.89855055 | V87: 1.43 | W87: 1.744884654 | X87: 0.06788891382 | Y87: 0 | BE87: 97.295 | BF87: =AVERAGE(OFFSET(BE$31,$A87,0,$BE$27,1)) -> 96.995 | BG87: 96.625 | BH87: 96.264375 | BI87: 95.91375 | BJ87: 95.59265625 | BK87: 95.31046875 | BL87: 95.05398438 | BM87: 94.80179688 | BN87: 94.53832031 | BO87: 96.40348633 | BP87: 95.76795221 | BQ87: 95.13676144 | BR87: 0.6311907716 | BS87: 96.39914298 | BT87: 95.78056636 | BU87: 95.16518292 | BV87: 94.52974657 | BW87: 96.37589691 | BX87: 4.2483117 | BY87: -37 | BZ87: 92.42173778 | CA87: 73.26900311 | CB87: 97.09174316 | CC87: 17.76174316 | CD87: 17.03264893 | CE87: 100 | CF87: 100 | CG87: 100 | CH87: 50 | CI87: 0 | CJ87: 0
A88: 57 | B88: =OFFSET(InputPriceData!B$15,CalculationsAndCharts!$A88+$A$11,0,1,1) -> 2007-04-05 | C88: =OFFSET(InputPriceData!G$15,CalculationsAndCharts!$A88+$A$11,0,1,1) -> 2956900 | D88: =OFFSET(InputPriceData!C$15,CalculationsAndCharts!$A88+$A$11,IF($C$7,7,0),1,1) -> 96.29 | E88: =OFFSET(InputPriceData!D$15,CalculationsAndCharts!$A88+$A$11,IF($C$7,7,0),1,1) -> 97.5 | F88: =OFFSET(InputPriceData!E$15,CalculationsAndCharts!$A88+$A$11,IF($C$7,7,0),1,1) -> 95.7 | G88: =OFFSET(InputPriceData!F$15,CalculationsAndCharts!$A88+$A$11,IF($C$7,7,0),1,1) -> 97.05 | H88: 0 | I88: 0 | J88: 0 | K88: 0 | L88: 96.75 | M88: 1.78 | N88: 7.373076923 | O88: 7.765831733 | P88: 6.98924856 | Q88: 94.44321849 | R88: 92.0434678 | S88: 92.03708821 | T88: 99.80929954 | U88: 85.05421924 | V88: 1.8 | W88: 1.902326981 | X88: 0.06960151449 | Y88: 0 | BE88: 96.695 | BF88: =AVERAGE(OFFSET(BE$31,$A88,0,$BE$27,1)) -> 96.255 | BG88: 95.90375 | BH88: 95.563125 | BI88: 95.2715625 | BJ88: 95.02828125 | BK88: 94.7975 | BL88: 94.54960938 | BM88: 94.27484375 | BN88: 93.97568359 | BO88: 95.76149902 | BP88: 95.13241809 | BQ88: 94.50557067 | BR88: 0.6268474237 | BS88: 95.75926551 | BT88: 95.16198975 | BU88: 94.54979947 | BV88: 93.89431022 | BW88: 95.73088105 | BX88: 4.12267326 | BY88: -38 | BZ88: 91.69726862 | CA88: 74.45993281 | CB88: 96.25574951 | CC88: 16.92574951 | CD88: 16.05264893 | CE88: 100 | CF88: 100 | CG88: 100 | CH88: 50 | CI88: 0 | CJ88: 0
A89: 58 | B89: =OFFSET(InputPriceData!B$15,CalculationsAndCharts!$A89+$A$11,0,1,1) -> 2007-04-04 | C89: =OFFSET(InputPriceData!G$15,CalculationsAndCharts!$A89+$A$11,0,1,1) -> 2475200 | D89: =OFFSET(InputPriceData!C$15,CalculationsAndCharts!$A89+$A$11,IF($C$7,7,0),1,1) -> 95.48 | E89: =OFFSET(InputPriceData!D$15,CalculationsAndCharts!$A89+$A$11,IF($C$7,7,0),1,1) -> 96.85 | F89: =OFFSET(InputPriceData!E$15,CalculationsAndCharts!$A89+$A$11,IF($C$7,7,0),1,1) -> 94.97 | G89: =OFFSET(InputPriceData!F$15,CalculationsAndCharts!$A89+$A$11,IF($C$7,7,0),1,1) -> 96.34 | H89: 0 | I89: 0 | J89: 0 | K89: 0 | L89: 96.05333333 | M89: 1.203333333 | N89: 7.168269231 | O89: 7.878047393 | P89: 7.090242654 | Q89: 93.78413806 | R89: 91.35782475 | S89: 91.30637532 | T89: 99.23587214 | U89: 84.26758209 | V89: 1.88 | W89: 1.953490472 | X89: 0.07027704455 | Y89: 0 | BE89: 95.815 | BF89: =AVERAGE(OFFSET(BE$31,$A89,0,$BE$27,1)) -> 95.5525 | BG89: 95.2225 | BH89: 94.98 | BI89: 94.785 | BJ89: 94.56671875 | BK89: 94.30171875 | BL89: 94.00007813 | BM89: 93.67652344 | BN89: 93.33853516 | BO89: 95.07905371 | BP89: 94.50333715 | BQ89: 93.87872324 | BR89: 0.6246139128 | BS89: 95.12795107 | BT89: 94.56471398 | BU89: 93.93760919 | BV89: 93.23882096 | BW89: 95.12013534 | BX89: 3.96747869 | BY89: -39 | BZ89: 90.97612577 | CA89: 76.1123619 | CB89: 95.56619352 | CC89: 16.23619352 | CD89: 15.40264893 | CE89: 100 | CF89: 100 | CG89: 100 | CH89: 50 | CI89: 0 | CJ89: 0
A90: 59 | B90: =OFFSET(InputPriceData!B$15,CalculationsAndCharts!$A90+$A$11,0,1,1) -> 2007-04-03 | C90: =OFFSET(InputPriceData!G$15,CalculationsAndCharts!$A90+$A$11,0,1,1) -> 2681400 | D90: =OFFSET(InputPriceData!C$15,CalculationsAndCharts!$A90+$A$11,IF($C$7,7,0),1,1) -> 95.53 | E90: =OFFSET(InputPriceData!D$15,CalculationsAndCharts!$A90+$A$11,IF($C$7,7,0),1,1) -> 96.07 | F90: =OFFSET(InputPriceData!E$15,CalculationsAndCharts!$A90+$A$11,IF($C$7,7,0),1,1) -> 94.85 | G90: =OFFSET(InputPriceData!F$15,CalculationsAndCharts!$A90+$A$11,IF($C$7,7,0),1,1) -> 95.29 | H90: 0 | I90: 0 | J90: 0 | K90: 0 | L90: 95.40333333 | M90: 1.793333333 | N90: 7.067230769 | O90: 8.080841154 | P90: 7.272757039 | Q90: 93.13579656 | R90: 90.66459237 | S90: 90.55093494 | T90: 98.74543353 | U90: 83.39183533 | V90: 1.22 | W90: 1.990235708 | X90: 0.07088609201 | Y90: 0 | BE90: 95.29 | BF90: =AVERAGE(OFFSET(BE$31,$A90,0,$BE$27,1)) -> 94.8925 | BG90: 94.7375 | BH90: 94.59 | BI90: 94.3484375 | BJ90: 94.03671875 | BK90: 93.6984375 | BL90: 93.35296875 | BM90: 93.00054687 | BN90: 92.63693359 | BO90: 94.52432715 | BP90: 93.9276206 | BQ90: 93.25410933 | BR90: 0.6735112689 | BS90: 94.60113187 | BT90: 94.0014769 | BU90: 93.3105044 | BV90: 92.54003273 | BW90: 94.61295025 | BX90: 3.834118016 | BY90: -40 | BZ90: 90.25208883 | CA90: 78.43458 | CB90: 94.96383024 | CC90: 15.63383024 | CD90: 14.62264893 | CE90: 100 | CF90: 100 | CG90: 100 | CH90: 50 | CI90: 0 | CJ90: 0
A91: 60 | B91: =OFFSET(InputPriceData!B$15,CalculationsAndCharts!$A91+$A$11,0,1,1) -> 2007-04-02 | C91: =OFFSET(InputPriceData!G$15,CalculationsAndCharts!$A91+$A$11,0,1,1) -> 3449800 | D91: =OFFSET(InputPriceData!C$15,CalculationsAndCharts!$A91+$A$11,IF($C$7,7,0),1,1) -> 93.83 | E91: =OFFSET(InputPriceData!D$15,CalculationsAndCharts!$A91+$A$11,IF($C$7,7,0),1,1) -> 95.7 | F91: =OFFSET(InputPriceData!E$15,CalculationsAndCharts!$A91+$A$11,IF($C$7,7,0),1,1) -> 93.61 | G91: =OFFSET(InputPriceData!F$15,CalculationsAndCharts!$A91+$A$11,IF($C$7,7,0),1,1) -> 95.29 | H91: 0 | I91: 0 | J91: 0 | K91: 0 | L91: 94.86666667 | M91: 1.446666667 | N91: 7.605192308 | O91: 8.370444121 | P91: 7.533399709 | Q91: 92.48792891 | R91: 89.95853404 | S91: 89.77655921 | T91: 98.32897816 | U91: 82.42513433 | V91: 2.09 | W91: 2.375353562 | X91: 0.07492762684 | Y91: 0 | BE91: 94.495 | BF91: =AVERAGE(OFFSET(BE$31,$A91,0,$BE$27,1)) -> 94.5825 | BG91: 94.4425 | BH91: 94.106875 | BI91: 93.725 | BJ91: 93.36015625 | BK91: 93.0075 | BL91: 92.648125 | BM91: 92.27332031 | BN91: 91.88177734 | BO91: 93.96210645 | BP91: 93.33091405 | BQ91: 92.58059806 | BR91: 0.7503159871 | BS91: 94.08123003 | BT91: 93.40182193 | BU91: 92.61953189 | BV91: 91.76956107 | BW91: 94.1164312 | BX91: 3.719445228 | BY91: -41 | BZ91: 89.5104981 | CA91: 80.95846836 | CB91: 94.41438656 | CC91: 15.08438656 | CD91: 14.55264893 | CE91: 100 | CF91: 99.43934251 | CG91: 100 | CH91: 50 | CI91: 0 | CJ91: 0
A92: 61 | B92: =OFFSET(InputPriceData!B$15,CalculationsAndCharts!$A92+$A$11,0,1,1) -> 2007-03-30 | C92: =OFFSET(InputPriceData!G$15,CalculationsAndCharts!$A92+$A$11,0,1,1) -> 4385900 | D92: =OFFSET(InputPriceData!C$15,CalculationsAndCharts!$A92+$A$11,IF($C$7,7,0),1,1) -> 95.64 | E92: =OFFSET(InputPriceData!D$15,CalculationsAndCharts!$A92+$A$11,IF($C$7,7,0),1,1) -> 96 | F92: =OFFSET(InputPriceData!E$15,CalculationsAndCharts!$A92+$A$11,IF($C$7,7,0),1,1) -> 93.42 | G92: =OFFSET(InputPriceData!F$15,CalculationsAndCharts!$A92+$A$11,IF($C$7,7,0),1,1) -> 93.7 | H92: 0 | I92: =IF($S$16,AVERAGE(OFFSET($G92,0,0,I$31,1)),0) -> 0 | J92: 0 | K92: 0 | L92: 94.37333333 | M92: 1.123333333 | N92: 7.924692308 | O92: 8.589087496 | P92: 7.730178747 | Q92: 91.80828955 | R92: 89.23584979 | S92: 88.97295707 | T92: 97.82493728 | U92: 81.50567104 | V92: 2.58 | W92: 2.518030343 | X92: 0.07687332276 | Y92: 0 | BE92: 94.67 | BF92: =AVERAGE(OFFSET(BE$31,$A92,0,$BE$27,1)) -> 94.3025 | BG92: 93.77125 | BH92: 93.343125 | BI92: 92.9953125 | BJ92: 92.65484375 | BK92: 92.28875 | BL92: 91.89851562 | BM92: 91.49023438 | BN92: 91.05905273 | BO92: 93.54733545 | BP92: 92.69972165 | BQ92: 91.83028207 | BR92: 0.8694395758 | BS92: 93.56916122 | BT92: 92.72241384 | BU92: 91.83724185 | BV92: 90.91959025 | BW92: 93.5751062 | BX92: 3.581570306 | BY92: -42 | BZ92: 88.7491902 | CA92: 83.68575507 | CB92: 93.96033439 | CC92: 14.63033439 | CD92: 14.55264893 | CE92: 100 | CF92: 99.43934251 | CG92: 100 | CH92: 50 | CI92: 0 | CJ92: 0
A93: 62 | B93: =OFFSET(InputPriceData!B$15,CalculationsAndCharts!$A93+$A$11,0,1,1) -> 2007-03-29 | C93: =OFFSET(InputPriceData!G$15,CalculationsAndCharts!$A93+$A$11,0,1,1) -> 8493600 | D93: =OFFSET(InputPriceData!C$15,CalculationsAndCharts!$A93+$A$11,IF($C$7,7,0),1,1) -> 92.61 | E93: =OFFSET(InputPriceData!D$15,CalculationsAndCharts!$A93+$A$11,IF($C$7,7,0),1,1) -> 95.99 | F93: =OFFSET(InputPriceData!E$15,CalculationsAndCharts!$A93+$A$11,IF($C$7,7,0),1,1) -> 92 | G93: =OFFSET(InputPriceData!F$15,CalculationsAndCharts!$A93+$A$11,IF($C$7,7,0),1,1) -> 95.64 | H93: 0 | I93: 0 | J93: 0 | K93: 0 | L93: 94.54333333 | M93: 3.053333333 | N93: 8.577346154 | O93: 8.778914693 | P93: 7.901023224 | Q93: 91.07541989 | R93: 88.500867 | S93: 88.13237338 | T93: 97.27978169 | U93: 80.59984377 | V93: 3.99 | W93: 2.487045514 | X93: 0.07600424001 | Y93: 0 | BE93: 93.935 | BF93: =AVERAGE(OFFSET(BE$31,$A93,0,$BE$27,1)) -> 93.24 | BG93: 92.915 | BH93: 92.6475 | BI93: 92.314375 | BJ93: 91.92265625 | BK93: 91.50828125 | BL93: 91.08195312 | BM93: 90.62787109 | BN93: 90.12501953 | BO93: 92.71275781 | BP93: 91.85210785 | BQ93: 90.9608425 | BR93: 0.8912653509 | BS93: 92.7433732 | BT93: 91.87566645 | BU93: 90.95206987 | BV93: 90.00193865 | BW93: 92.77272839 | BX93: 3.372287726 | BY93: -43 | BZ93: 87.97572066 | CA93: 85.56196947 | CB93: 93.62804557 | CC93: 14.29804557 | CD93: 14.54264893 | CE93: 98.31802752 | CF93: 99.43934251 | CG93: 100 | CH93: 50 | CI93: 0 | CJ93: 0
A94: 63 | B94: =OFFSET(InputPriceData!B$15,CalculationsAndCharts!$A94+$A$11,0,1,1) -> 2007-03-28 | C94: =OFFSET(InputPriceData!G$15,CalculationsAndCharts!$A94+$A$11,0,1,1) -> 3586400 | D94: =OFFSET(InputPriceData!C$15,CalculationsAndCharts!$A94+$A$11,IF($C$7,7,0),1,1) -> 91.92 | E94: =OFFSET(InputPriceData!D$15,CalculationsAndCharts!$A94+$A$11,IF($C$7,7,0),1,1) -> 92.91 | F94: =OFFSET(InputPriceData!E$15,CalculationsAndCharts!$A94+$A$11,IF($C$7,7,0),1,1) -> 91.49 | G94: =OFFSET(InputPriceData!F$15,CalculationsAndCharts!$A94+$A$11,IF($C$7,7,0),1,1) -> 92.23 | H94: 0 | I94: 0 | J94: 0 | K94: 0 | L94: 92.21 | M94: 1.066666667 | N94: 8.357974359 | O94: 8.836505704 | P94: 7.952855134 | Q94: 90.08458748 | R94: 87.76528046 | S94: 87.31102768 | T94: 96.60178616 | U94: 79.81242532 | V94: 1.42 | W94: 1.735568272 | X94: 0.06881782795 | Y94: 0 | BE94: 92.545 | BF94: =AVERAGE(OFFSET(BE$31,$A94,0,$BE$27,1)) -> 92.59 | BG94: 92.38 | BH94: 91.98125 | BI94: 91.5309375 | BJ94: 91.09390625 | BK94: 90.655625 | BL94: 90.17378906 | BM94: 89.62216797 | BN94: 89.00572266 | BO94: 91.81348242 | BP94: 90.99145788 | BQ94: 90.06957715 | BR94: 0.9218807372 | BS94: 91.91333862 | BT94: 91.00795969 | BU94: 90.02847329 | BV94: 89.05180743 | BW94: 91.99026665 | BX94: 3.075925877 | BY94: -44 | BZ94: 87.22625435 | CA94: 88.72014874 | CB94: 92.01174121 | CC94: 12.68174121 | CD94: 11.65264893 | CE94: 100 | CF94: 100 | CG94: 100 | CH94: 50 | CI94: 0 | CJ94: 0
A95: 64 | B95: =OFFSET(InputPriceData!B$15,CalculationsAndCharts!$A95+$A$11,0,1,1) -> 2007-03-27 | C95: =OFFSET(InputPriceData!G$15,CalculationsAndCharts!$A95+$A$11,0,1,1) -> 3388600 | D95: =OFFSET(InputPriceData!C$15,CalculationsAndCharts!$A95+$A$11,IF($C$7,7,0),1,1) -> 92.22 | E95: =OFFSET(InputPriceData!D$15,CalculationsAndCharts!$A95+$A$11,IF($C$7,7,0),1,1) -> 93.1 | F95: =OFFSET(InputPriceData!E$15,CalculationsAndCharts!$A95+$A$11,IF($C$7,7,0),1,1) -> 91.71 | G95: =OFFSET(InputPriceData!F$15,CalculationsAndCharts!$A95+$A$11,IF($C$7,7,0),1,1) -> 92.86 | H95: 0 | I95: 0 | J95: 0 | K95: 0 | L95: 92.55666667 | M95: 2.586666667 | N95: 8.640153846 | O95: 8.973228946 | P95: 8.075906051 | Q95: 89.47732676 | R95: 87.1026213 | S95: 86.59120226 | T95: 96.07585025 | U95: 79.02671525 | V95: 1.39 | W95: 1.893352407 | X95: 0.07038932164 | Y95: 0 | BE95: 92.635 | BF95: =AVERAGE(OFFSET(BE$31,$A95,0,$BE$27,1)) -> 92.17 | BG95: 91.5825 | BH95: 91.080625 | BI95: 90.656875 | BJ95: 90.21734375 | BK95: 89.69195312 | BL95: 89.07054687 | BM95: 88.38927734 | BN95: 87.69981445 | BO95: 91.22447803 | BP95: 90.16943334 | BQ95: 89.14769641 | BR95: 1.021736936 | BS95: 91.19117028 | BT95: 90.10258077 | BU95: 89.04898688 | BV95: 88.07514157 | BW95: 91.23592324 | BX95: 2.692156604 | BY95: -45 | BZ95: 86.51005819 | CA95: 93.88549539 | CB95: 91.89057235 | CC95: 12.56057235 | CD95: 11.65264893 | CE95: 100 | CF95: 100 | CG95: 100 | CH95: 50 | CI95: 0 | CJ95: 0
A96: 65 | B96: =OFFSET(InputPriceData!B$15,CalculationsAndCharts!$A96+$A$11,0,1,1) -> 2007-03-26 | C96: =OFFSET(InputPriceData!G$15,CalculationsAndCharts!$A96+$A$11,0,1,1) -> 3314300 | D96: =OFFSET(InputPriceData!C$15,CalculationsAndCharts!$A96+$A$11,IF($C$7,7,0),1,1) -> 91.65 | E96: =OFFSET(InputPriceData!D$15,CalculationsAndCharts!$A96+$A$11,IF($C$7,7,0),1,1) -> 92.41 | F96: =OFFSET(InputPriceData!E$15,CalculationsAndCharts!$A96+$A$11,IF($C$7,7,0),1,1) -> 89.97 | G96: =OFFSET(InputPriceData!F$15,CalculationsAndCharts!$A96+$A$11,IF($C$7,7,0),1,1) -> 92.41 | H96: =IF($S$16,$C$17*G96+$D$17*H97,0) -> 0 | I96: 0 | J96: 0 | K96: 0 | L96: =AVERAGE(E96:G96) -> 91.59666667 | M96: =IF(L96>=L97,L96-F97,L97-F96) -> 1.976666667 | N96: 8.707512821 | O96: 9.06839326 | P96: 8.161553934 | Q96: =(L96*$E$17+Q97*$F$17) -> 88.59751536 | R96: =Q96*$E$17+R97*$F$17 -> 86.42413403 | S96: 85.93987909 | T96: 95.49252729 | U96: 78.2625801 | V96: =MAX(E96-F96,ABS(E96-G97),ABS(F96-G97)) -> 2.44 | W96: =(W97*($W$31-1)+V96)/$W$31 -> 2.145028611 | X96: =$B$16+W96/G96*$F$16 -> 0.07321208323 | Y96: =IF($A96=$B$28,Y$31,0) -> 0 | BE96: 91.705 | BF96: =AVERAGE(OFFSET(BE$31,$A96,0,$BE$27,1)) -> 90.995 | BG96: 90.57875 | BH96: 90.233125 | BI96: 89.7778125 | BJ96: 89.1665625 | BK96: 88.44914062 | BL96: 87.70800781 | BM96: 87.01035156 | BN96: 86.39254883 | BO96: 90.16059619 | BP96: 89.11438866 | BQ96: 88.12595947 | BR96: 0.9884291883 | BS96: 90.10281785 | BT96: 89.01399126 | BU96: 87.99539299 | BV96: 87.10129627 | BW96: 90.15709106 | BX96: 2.257385211 | BY96: -46 | BZ96: 85.83507385 | CA96: 97.86530434 | CB96: 90.87863143 | CC96: 11.95863143 | CD96: 11.68177165 | CE96: 100 | CF96: 99.99226346 | CG96: 100 | CH96: 50 | CI96: 0 | CJ96: 0
A97: 66 | B97: =OFFSET(InputPriceData!B$15,CalculationsAndCharts!$A97+$A$11,0,1,1) -> 2007-03-23 | C97: =OFFSET(InputPriceData!G$15,CalculationsAndCharts!$A97+$A$11,0,1,1) -> 3028400 | D97: =OFFSET(InputPriceData!C$15,CalculationsAndCharts!$A97+$A$11,IF($C$7,7,0),1,1) -> 90.23 | E97: =OFFSET(InputPriceData!D$15,CalculationsAndCharts!$A97+$A$11,IF($C$7,7,0),1,1) -> 91 | F97: =OFFSET(InputPriceData!E$15,CalculationsAndCharts!$A97+$A$11,IF($C$7,7,0),1,1) -> 89.62 | G97: =OFFSET(InputPriceData!F$15,CalculationsAndCharts!$A97+$A$11,IF($C$7,7,0),1,1) -> 91 | H97: 0 | I97: 0 | J97: 0 | K97: 0 | L97: 90.54 | M97: 1.06 | N97: =AVERAGE(OFFSET(M97,0,0,$F$19,1))*$F$20 -> 8.72025641 | O97: =(N97*$E$17+O98*$F$17) -> 9.171501957 | P97: =O97*$F$21 -> 8.254351761 | Q97: 87.74061499 | R97: 85.80316794 | S97: =IF($S$15,AVERAGE(OFFSET(Q97,0,0,$F$18,1)),0) -> 85.3747255 | T97: =IF($S$15,R97+O97,0) -> 94.97466989 | U97: =IF($S$15,R97-P97,0) -> 77.54881617 | V97: 1.43 | W97: 1.997542916 | X97: 0.07195102106 | Y97: 0 | Z97: =IF(AA97="","",OFFSET($B$31,AA97,0,1,1)) ->  | BE97: =AVERAGE(OFFSET($G$31,$A97,0,$BE$27,1)) -> 90.285 | BF97: =AVERAGE(OFFSET(BE$31,$A97,0,$BE$27,1)) -> 90.1625 | BG97: 89.8875 | BH97: 89.3225 | BI97: 88.5553125 | BJ97: 87.73171875 | BK97: 86.966875 | BL97: 86.31269531 | BM97: 85.77474609 | BN97: 85.34321289 | BO97: =(5*BE97+4*BF97+3*BG97+2*BH97+BI97+BJ97+BK97+BL97+BM97+BN97)/20 -> 89.05335303 | BP97: 88.06818113 | BQ97: 87.13753028 | BR97: 0.9306508466 | BS97: 88.99883198 | BT97: 87.92516466 | BU97: 86.97679473 | BV97: 86.20719954 | BW97: 89.05230934 | BX97: =_xlfn.STDEV.P(OFFSET(BW97,0,0,$BG$27,1)) -> 1.879253634 | BY97: -47 | BZ97: =SUMPRODUCT(OFFSET(BW97,0,0,$BG$27,1),OFFSET($BY$31,1,0,$BG$27,1))/$BH$27 -> 85.24905954 | CA97: =(BW97+2*BX97-BZ97)/(4*BX97)*100 -> 100.5952167 | CB97: 89.79667651 | CC97: 11.08667651 | CD97: 10.4081416 | CE97: =IF(CD97<0.000000000001,IF($A97>=$A$8,50,CE98),MIN(100,MAX(0,100*CC97/CD97))) -> 100 | CF97: =AVERAGE(OFFSET(CE$31,$A97,0,$BJ$27,1)) -> 98.68242354 | CG97: =CG$30 -> 100 | CH97: 50 | CI97: 0 | CJ97: =IF($A97=$B$28,CJ$30,0) -> 0
A98: 67 | B98: =OFFSET(InputPriceData!B$15,CalculationsAndCharts!$A98+$A$11,0,1,1) -> 2007-03-22 | C98: =OFFSET(InputPriceData!G$15,CalculationsAndCharts!$A98+$A$11,0,1,1) -> 3239400 | D98: =OFFSET(InputPriceData!C$15,CalculationsAndCharts!$A98+$A$11,IF($C$7,7,0),1,1) -> 90.69 | E98: =OFFSET(InputPriceData!D$15,CalculationsAndCharts!$A98+$A$11,IF($C$7,7,0),1,1) -> 91.03 | F98: =OFFSET(InputPriceData!E$15,CalculationsAndCharts!$A98+$A$11,IF($C$7,7,0),1,1) -> 89.48 | G98: =OFFSET(InputPriceData!F$15,CalculationsAndCharts!$A98+$A$11,IF($C$7,7,0),1,1) -> 89.57 | H98: 0 | I98: 0 | J98: 0 | K98: 0 | L98: 90.02666667 | M98: 2.626666667 | N98: 9.285525641 | O98: 9.300429256 | P98: 8.37038633 | Q98: 86.9407907 | R98: 85.24961163 | S98: 84.9404804 | T98: 94.55004089 | U98: 76.8792253 | V98: 1.55 | W98: 2.281314375 | X98: 0.07546962571 | Y98: 0 | BE98: 90.04 | BF98: =AVERAGE(OFFSET(BE$31,$A98,0,$BE$27,1)) -> 89.6125 | BG98: 88.7575 | BH98: 87.788125 | BI98: 86.908125 | BJ98: 86.20203125 | BK98: 85.65851562 | BL98: 85.23679687 | BM98: 84.91167969 | BN98: 84.67980469 | BO98: 88.20478516 | BP98: 87.08300924 | BQ98: 86.20687944 | BR98: 0.8761297973 | BS98: 87.95913903 | BT98: 86.85149735 | BU98: 86.0284248 | BV98: 85.43760435 | BW98: 87.906822 | BX98: 1.693459542 | BY98: =BY97-1 -> -48 | BZ98: 84.76989548 | CA98: 96.30943999 | CB98: 89.11572591 | CC98: 10.40572591 | CD98: 10.4081416 | CE98: 99.97679038 | CF98: 93.06499772 | CG98: 100 | CH98: 50 | CI98: 0 | CJ98: 0
A99: 68 | B99: =OFFSET(InputPriceData!B$15,CalculationsAndCharts!$A99+$A$11,0,1,1) -> 2007-03-21 | C99: =OFFSET(InputPriceData!G$15,CalculationsAndCharts!$A99+$A$11,0,1,1) -> 4707200 | D99: =OFFSET(InputPriceData!C$15,CalculationsAndCharts!$A99+$A$11,IF($C$7,7,0),1,1) -> 87.86 | E99: =OFFSET(InputPriceData!D$15,CalculationsAndCharts!$A99+$A$11,IF($C$7,7,0),1,1) -> 90.51 | F99: =OFFSET(InputPriceData!E$15,CalculationsAndCharts!$A99+$A$11,IF($C$7,7,0),1,1) -> 87.4 | G99: =OFFSET(InputPriceData!F$15,CalculationsAndCharts!$A99+$A$11,IF($C$7,7,0),1,1) -> 90.51 | H99: 0 | I99: 0 | J99: 0 | K99: 0 | L99: 89.47333333 | M99: 3.963333333 | N99: 9.294628205 | O99: 9.304687432 | P99: 8.374218688 | Q99: 86.05911185 | R99: 84.76641762 | S99: 84.62335576 | T99: 94.07110505 | U99: 76.39219893 | V99: 3.11 | W99: 2.646971562 | X99: 0.07924507305 | Y99: 0 | BE99: 89.185 | BF99: =AVERAGE(OFFSET(BE$31,$A99,0,$BE$27,1)) -> 87.9025 | BG99: 86.81875 | BH99: 86.028125 | BI99: 85.4959375 | BJ99: 85.115 | BK99: 84.81507812 | BL99: 84.5865625 | BM99: 84.44792969 | BN99: 84.40873047 | BO99: 86.94583691 | BP99: 85.96123332 | BQ99: 85.33074964 | BR99: 0.6304836741 | BS99: 86.59171699 | BT99: 85.74385566 | BU99: 85.20535225 | BV99: 84.8467839 | BW99: 86.46229414 | BX99: 1.704256072 | BY99: -49 | BZ99: 84.41186837 | CA99: 80.07801769 | CB99: 88.20958512 | CC99: 9.499585124 | CD99: 9.888141602 | CE99: 96.07048024 | CF99: 81.59493233 | CG99: 100 | CH99: 50 | CI99: 0 | CJ99: 0
A100: 69 | B100: =OFFSET(InputPriceData!B$15,CalculationsAndCharts!$A100+$A$11,0,1,1) -> 2007-03-20 | C100: =OFFSET(InputPriceData!G$15,CalculationsAndCharts!$A100+$A$11,0,1,1) -> 5832600 | D100: =OFFSET(InputPriceData!C$15,CalculationsAndCharts!$A100+$A$11,IF($C$7,7,0),1,1) -> 85.98 | E100: =OFFSET(InputPriceData!D$15,CalculationsAndCharts!$A100+$A$11,IF($C$7,7,0),1,1) -> 87.96 | F100: =OFFSET(InputPriceData!E$15,CalculationsAndCharts!$A100+$A$11,IF($C$7,7,0),1,1) -> 85.51 | G100: =OFFSET(InputPriceData!F$15,CalculationsAndCharts!$A100+$A$11,IF($C$7,7,0),1,1) -> 87.86 | H100: 0 | I100: 0 | J100: 0 | K100: 0 | L100: 87.11 | M100: 3.32 | N100: 8.718435897 | O100: 9.307561496 | P100: 8.376805347 | Q100: 85.08362 | R100: 84.3970764 | S100: 84.37110026 | T100: 93.7046379 | U100: 76.02027106 | V100: 2.58 | W100: 2.415457343 | X100: 0.07749211635 | Y100: 0 | BE100: 86.62 | BF100: =AVERAGE(OFFSET(BE$31,$A100,0,$BE$27,1)) -> 85.735 | BG100: 85.2375 | BH100: 84.96375 | BI100: 84.7340625 | BJ100: 84.51515625 | BK100: 84.35804687 | BL100: 84.30929687 | BM100: 84.36953125 | BN100: 84.4972168 | BO100: 85.42316553 | BP100: 84.97662972 | BQ100: 84.70026597 | BR100: 0.2763637492 | BS100: 85.25299347 | BT100: 84.89599433 | BU100: 84.66684883 | BV100: 84.48821555 | BW100: 85.17565205 | BX100: 1.787257779 | BY100: -50 | BZ100: 84.21210256 | CA100: 63.478043 | CB100: 86.26658276 | CC100: 7.556582764 | CD100: 9.088141602 | CE100: 83.14772255 | CF100: 69.43788856 | CG100: 100 | CH100: 50 | CI100: 0 | CJ100: 0
A101: 70 | B101: =OFFSET(InputPriceData!B$15,CalculationsAndCharts!$A101+$A$11,0,1,1) -> 2007-03-19 | C101: =OFFSET(InputPriceData!G$15,CalculationsAndCharts!$A101+$A$11,0,1,1) -> 5615300 | D101: =OFFSET(InputPriceData!C$15,CalculationsAndCharts!$A101+$A$11,IF($C$7,7,0),1,1) -> 84.88 | E101: =OFFSET(InputPriceData!D$15,CalculationsAndCharts!$A101+$A$11,IF($C$7,7,0),1,1) -> 86.22 | F101: =OFFSET(InputPriceData!E$15,CalculationsAndCharts!$A101+$A$11,IF($C$7,7,0),1,1) -> 83.79 | G101: =OFFSET(InputPriceData!F$15,CalculationsAndCharts!$A101+$A$11,IF($C$7,7,0),1,1) -> 85.38 | H101: 0 | I101: 0 | J101: 0 | K101: 0 | L101: 85.13 | M101: 1.03 | N101: 8.46174359 | O101: 9.475883096 | P101: 8.528294786 | Q101: 84.50465429 | R101: 84.20092109 | S101: 84.17510509 | T101: 93.67680419 | U101: 75.6726263 | V101: 2.43 | W101: 2.333186014 | X101: 0.07732707911 | Y101: 0 | BE101: 84.85 | BF101: =AVERAGE(OFFSET(BE$31,$A101,0,$BE$27,1)) -> 84.74 | BG101: 84.69 | BH101: 84.504375 | BI101: 84.29625 | BJ101: 84.2009375 | BK101: 84.26054687 | BL101: 84.42976562 | BM101: 84.62490234 | BN101: 84.76694336 | BO101: 84.64340479 | BP101: 84.5300939 | BQ101: 84.42390222 | BR101: 0.1061916873 | BS101: 84.63628559 | BT101: 84.5389952 | BU101: 84.43770334 | BV101: 84.30958227 | BW101: 84.61345786 | BX101: 1.852694441 | BY101: -51 | BZ101: 84.15701038 | CA101: 56.15923845 | CB101: 84.88670239 | CC101: 6.176702393 | CD101: 9.420502116 | CE101: 65.56659419 | CF101: 60.93908038 | CG101: 100 | CH101: 50 | CI101: 0 | CJ101: 0
A102: 71 | B102: =OFFSET(InputPriceData!B$15,CalculationsAndCharts!$A102+$A$11,0,1,1) -> 2007-03-16 | C102: =OFFSET(InputPriceData!G$15,CalculationsAndCharts!$A102+$A$11,0,1,1) -> 4642600 | D102: =OFFSET(InputPriceData!C$15,CalculationsAndCharts!$A102+$A$11,IF($C$7,7,0),1,1) -> 84.99 | E102: =OFFSET(InputPriceData!D$15,CalculationsAndCharts!$A102+$A$11,IF($C$7,7,0),1,1) -> 85.18 | F102: =OFFSET(InputPriceData!E$15,CalculationsAndCharts!$A102+$A$11,IF($C$7,7,0),1,1) -> 84.1 | G102: =OFFSET(InputPriceData!F$15,CalculationsAndCharts!$A102+$A$11,IF($C$7,7,0),1,1) -> 84.32 | H102: 0 | I102: 0 | J102: 0 | K102: 0 | L102: 84.53333333 | M102: 0.8333333333 | N102: 8.882282051 | O102: 9.76563724 | P102: 8.789073516 | Q102: 84.32598409 | R102: 84.11414018 | S102: 83.99370655 | T102: 93.87977742 | U102: 75.32506666 | V102: 1.08 | W102: 2.284779022 | X102: 0.0770965254 | Y102: 0 | BE102: 84.63 | BF102: =AVERAGE(OFFSET(BE$31,$A102,0,$BE$27,1)) -> 84.64 | BG102: 84.31875 | BH102: 84.088125 | BI102: 84.105625 | BJ102: 84.32015625 | BK102: 84.59898437 | BL102: 84.82003906 | BM102: 84.90898437 | BN102: 84.84047852 | BO102: 84.52183838 | BP102: 84.41678302 | BQ102: 84.31771053 | BR102: 0.09907249434 | BS102: 84.51585552 | BT102: 84.44170481 | BU102: 84.33641147 | BV102: 84.1814612 | BW102: 84.4973412 | BX102: 1.865375411 | BY102: -52 | BZ102: 84.16688566 | CA102: 54.42880754 | CB102: 84.52758586 | CC102: 6.367585856 | CD102: 10.6839856 | CE102: 59.59934894 | CF102: 59.96192675 | CG102: 100 | CH102: 50 | CI102: 0 | CJ102: 0
A103: 72 | B103: =OFFSET(InputPriceData!B$15,CalculationsAndCharts!$A103+$A$11,0,1,1) -> 2007-03-15 | C103: =OFFSET(InputPriceData!G$15,CalculationsAndCharts!$A103+$A$11,0,1,1) -> 2935300 | D103: =OFFSET(InputPriceData!C$15,CalculationsAndCharts!$A103+$A$11,IF($C$7,7,0),1,1) -> 84.36 | E103: =OFFSET(InputPriceData!D$15,CalculationsAndCharts!$A103+$A$11,IF($C$7,7,0),1,1) -> 85.68 | F103: =OFFSET(InputPriceData!E$15,CalculationsAndCharts!$A103+$A$11,IF($C$7,7,0),1,1) -> 84.18 | G103: =OFFSET(InputPriceData!F$15,CalculationsAndCharts!$A103+$A$11,IF($C$7,7,0),1,1) -> 84.94 | H103: 0 | I103: 0 | J103: 0 | K103: 0 | L103: 84.93333333 | M103: 3.763333333 | N103: 10.86846154 | O103: 10.01802444 | P103: 9.016221994 | Q103: 84.26674144 | R103: 84.05361335 | S103: 83.83393223 | T103: 94.07163778 | U103: 75.03739135 | V103: 1.5 | W103: 2.887168532 | X103: 0.08399068204 | Y103: 0 | BE103: 84.65 | BF103: =AVERAGE(OFFSET(BE$31,$A103,0,$BE$27,1)) -> 83.9975 | BG103: 83.8575 | BH103: 84.123125 | BI103: 84.5346875 | BJ103: 84.8778125 | BK103: 85.04109375 | BL103: 84.99792969 | BM103: 84.77197266 | BN103: 84.4124707 | BO103: 84.38473584 | BP103: 84.31172767 | BQ103: 84.21863804 | BR103: 0.0930896345 | BS103: 84.40481731 | BT103: 84.3675541 | BU103: 84.23111814 | BV103: 84.02651093 | BW103: 84.4358188 | BX103: 1.865235487 | BY103: -53 | BZ103: 84.18912195 | CA103: 53.30651075 | CB103: 84.65903459 | CC103: 6.849034587 | CD103: 11.88010474 | CE103: 57.65129802 | CF103: 65.36871632 | CG103: 100 | CH103: 50 | CI103: 0 | CJ103: 0
A104: 73 | B104: =OFFSET(InputPriceData!B$15,CalculationsAndCharts!$A104+$A$11,0,1,1) -> 2007-03-14 | C104: =OFFSET(InputPriceData!G$15,CalculationsAndCharts!$A104+$A$11,0,1,1) -> 4922100 | D104: =OFFSET(InputPriceData!C$15,CalculationsAndCharts!$A104+$A$11,IF($C$7,7,0),1,1) -> 83.24 | E104: =OFFSET(InputPriceData!D$15,CalculationsAndCharts!$A104+$A$11,IF($C$7,7,0),1,1) -> 84.7 | F104: =OFFSET(InputPriceData!E$15,CalculationsAndCharts!$A104+$A$11,IF($C$7,7,0),1,1) -> 81.17 | G104: =OFFSET(InputPriceData!F$15,CalculationsAndCharts!$A104+$A$11,IF($C$7,7,0),1,1) -> 84.36 | H104: 0 | I104: 0 | J104: 0 | K104: 0 | L104: 83.41 | M104: 2.616666667 | N104: 10.32321795 | O104: 9.775042409 | P104: 8.797538168 | Q104: 84.07628662 | R104: 83.9927196 | S104: 83.70255572 | T104: 93.76776201 | U104: 75.19518144 | V104: 3.53 | W104: 3.580752799 | X104: 0.09244609766 | Y104: 0 | BE104: 83.345 | BF104: =AVERAGE(OFFSET(BE$31,$A104,0,$BE$27,1)) -> 83.7175 | BG104: 84.38875 | BH104: 84.94625 | BI104: 85.2209375 | BJ104: 85.204375 | BK104: 84.95476562 | BL104: 84.54601562 | BM104: 84.05296875 | BN104: 83.54699219 | BO104: 84.10899023 | BP104: 84.2387195 | BQ104: 84.1255484 | BR104: 0.1131710997 | BS104: 84.3518906 | BT104: 84.33029089 | BU104: 84.09468218 | BV104: 83.82190372 | BW104: 84.52872983 | BX104: 1.883495119 | BY104: -54 | BZ104: 84.21263358 | CA104: 54.19560745 | CB104: 83.75949512 | CC104: 8.379495117 | CD104: 13.3782666 | CE104: 62.63513329 | CF104: 71.76460473 | CG104: 100 | CH104: 50 | CI104: 0 | CJ104: 0
A105: 74 | B105: =OFFSET(InputPriceData!B$15,CalculationsAndCharts!$A105+$A$11,0,1,1) -> 2007-03-13 | C105: =OFFSET(InputPriceData!G$15,CalculationsAndCharts!$A105+$A$11,0,1,1) -> 4330400 | D105: =OFFSET(InputPriceData!C$15,CalculationsAndCharts!$A105+$A$11,IF($C$7,7,0),1,1) -> 85.09 | E105: =OFFSET(InputPriceData!D$15,CalculationsAndCharts!$A105+$A$11,IF($C$7,7,0),1,1) -> 86.87 | F105: =OFFSET(InputPriceData!E$15,CalculationsAndCharts!$A105+$A$11,IF($C$7,7,0),1,1) -> 82.16 | G105: =OFFSET(InputPriceData!F$15,CalculationsAndCharts!$A105+$A$11,IF($C$7,7,0),1,1) -> 82.33 | H105: 0 | I105: 0 | J105: 0 | K105: 0 | L105: 83.78666667 | M105: 3.513333333 | N105: 9.866269231 | O105: 9.618420826 | P105: 8.656578743 | Q105: 84.26665422 | R105: 83.96884331 | S105: 83.69054783 | T105: 93.58726414 | U105: 75.31226457 | V105: 4.71 | W105: 3.606129198 | X105: 0.09380091337 | Y105: 0 | BE105: 84.09 | BF105: =AVERAGE(OFFSET(BE$31,$A105,0,$BE$27,1)) -> 85.06 | BG105: 85.50375 | BH105: 85.495625 | BI105: 85.1878125 | BJ105: 84.70515625 | BK105: 84.13726562 | BL105: 83.55992188 | BM105: 83.04101562 | BN105: 82.63088867 | BO105: 84.57272803 | BP105: 84.36844877 | BQ105: 84.0123773 | BR105: 0.3560714663 | BS105: 84.72452023 | BT105: 84.30869117 | BU105: 83.85907348 | BV105: 83.54912525 | BW105: 84.89797833 | BX105: 1.948500094 | BY105: -55 | BZ105: 84.21440526 | CA105: 58.7705034 | CB105: 84.17969735 | CC105: 11.94969735 | CD105: 15.76067244 | CE105: 75.81971765 | CF105: 75.91796213 | CG105: 100 | CH105: 50 | CI105: 0 | CJ105: 0
A106: 75 | B106: =OFFSET(InputPriceData!B$15,CalculationsAndCharts!$A106+$A$11,0,1,1) -> 2007-03-12 | C106: =OFFSET(InputPriceData!G$15,CalculationsAndCharts!$A106+$A$11,0,1,1) -> 4825000 | D106: =OFFSET(InputPriceData!C$15,CalculationsAndCharts!$A106+$A$11,IF($C$7,7,0),1,1) -> 86.69 | E106: =OFFSET(InputPriceData!D$15,CalculationsAndCharts!$A106+$A$11,IF($C$7,7,0),1,1) -> 87.54 | F106: =OFFSET(InputPriceData!E$15,CalculationsAndCharts!$A106+$A$11,IF($C$7,7,0),1,1) -> 83.63 | G106: =OFFSET(InputPriceData!F$15,CalculationsAndCharts!$A106+$A$11,IF($C$7,7,0),1,1) -> 85.85 | H106: 0 | I106: 0 | J106: 0 | K106: 0 | L106: 85.67333333 | M106: 2.25 | N106: 9.702423077 | O106: 9.547606996 | P106: 8.592846296 | Q106: 84.40379353 | R106: 83.88375448 | S106: 83.7258234 | T106: 93.43136148 | U106: 75.29090818 | V106: 3.91 | W106: 3.054193797 | X106: 0.0855759324 | Y106: 0 | BE106: 86.03 | BF106: =AVERAGE(OFFSET(BE$31,$A106,0,$BE$27,1)) -> 85.9475 | BG106: 85.4875 | BH106: 84.88 | BI106: 84.2225 | BJ106: 83.569375 | BK106: 82.98257813 | BL106: 82.52210937 | BM106: 82.22076172 | BN106: 82.08003906 | BO106: 84.88799316 | BP106: 84.16416951 | BQ106: 83.65630584 | BR106: 0.5078636733 | BS106: 84.67203318 | BT106: 83.89286211 | BU106: 83.40945579 | BV106: 83.23917702 | BW106: 84.68939599 | BX106: 2.054261903 | BY106: -56 | BZ106: 84.15837279 | CA106: 56.46245744 | CB106: 85.28066325 | CC106: 13.05066325 | CD106: 16.98443433 | CE106: 76.83896324 | CF106: 73.53524464 | CG106: 100 | CH106: 50 | CI106: 0 | CJ106: 0
A107: 76 | B107: =OFFSET(InputPriceData!B$15,CalculationsAndCharts!$A107+$A$11,0,1,1) -> 2007-03-09 | C107: =OFFSET(InputPriceData!G$15,CalculationsAndCharts!$A107+$A$11,0,1,1) -> 4278400 | D107: =OFFSET(InputPriceData!C$15,CalculationsAndCharts!$A107+$A$11,IF($C$7,7,0),1,1) -> 86.54 | E107: =OFFSET(InputPriceData!D$15,CalculationsAndCharts!$A107+$A$11,IF($C$7,7,0),1,1) -> 86.76 | F107: =OFFSET(InputPriceData!E$15,CalculationsAndCharts!$A107+$A$11,IF($C$7,7,0),1,1) -> 84.67 | G107: =OFFSET(InputPriceData!F$15,CalculationsAndCharts!$A107+$A$11,IF($C$7,7,0),1,1) -> 86.21 | H107: 0 | I107: 0 | J107: 0 | K107: 0 | L107: 85.88 | M107: 2.1 | N107: 9.946371795 | O107: 9.503373829 | P107: 8.553036447 | Q107: 84.04106787 | R107: 83.7351719 | S107: 83.8091539 | T107: 93.23854573 | U107: 75.18213545 | V107: 2.09 | W107: 2.626290695 | X107: 0.08046387536 | Y107: 0 | BE107: 85.865 | BF107: =AVERAGE(OFFSET(BE$31,$A107,0,$BE$27,1)) -> 85.0275 | BG107: 84.2725 | BH107: 83.565 | BI107: 82.91625 | BJ107: 82.39578125 | BK107: 82.06164062 | BL107: 81.91941406 | BM107: 81.93931641 | BN107: 82.08894531 | BO107: 84.13519238 | BP107: 83.44034585 | BQ107: 83.14844216 | BR107: 0.2919036915 | BS107: 83.73224955 | BT107: 83.11369104 | BU107: 82.92604946 | BV107: 83.06889826 | BW107: 83.63182299 | BX107: 2.175817603 | BY107: -57 | BZ107: 84.10387558 | CA107: 44.57614698 | CB107: 85.00759619 | CC107: 12.77759619 | CD107: 17.01519572 | CE107: 75.0952055 | CF107: 69.96972727 | CG107: 100 | CH107: 50 | CI107: 0 | CJ107: 0
A108: 77 | B108: =OFFSET(InputPriceData!B$15,CalculationsAndCharts!$A108+$A$11,0,1,1) -> 2007-03-08 | C108: =OFFSET(InputPriceData!G$15,CalculationsAndCharts!$A108+$A$11,0,1,1) -> 4326400 | D108: =OFFSET(InputPriceData!C$15,CalculationsAndCharts!$A108+$A$11,IF($C$7,7,0),1,1) -> 84.09 | E108: =OFFSET(InputPriceData!D$15,CalculationsAndCharts!$A108+$A$11,IF($C$7,7,0),1,1) -> 86.1 | F108: =OFFSET(InputPriceData!E$15,CalculationsAndCharts!$A108+$A$11,IF($C$7,7,0),1,1) -> 83.78 | G108: =OFFSET(InputPriceData!F$15,CalculationsAndCharts!$A108+$A$11,IF($C$7,7,0),1,1) -> 85.52 | H108: 0 | I108: 0 | J108: 0 | K108: 0 | L108: 85.13333333 | M108: 2.833333333 | N108: 9.64325641 | O108: 9.376802982 | P108: 8.439122684 | Q108: 83.51565869 | R108: 83.64777305 | S108: 84.00248359 | T108: 93.02457603 | U108: 75.20865036 | V108: 3.24 | W108: 2.894436043 | X108: 0.08384513614 | Y108: 0 | BE108: 84.19 | BF108: =AVERAGE(OFFSET(BE$31,$A108,0,$BE$27,1)) -> 83.5175 | BG108: 82.8575 | BH108: 82.2675 | BI108: 81.8753125 | BJ108: 81.7275 | BK108: 81.7771875 | BL108: 81.95921875 | BM108: 82.23857422 | BN108: 82.60884766 | BO108: 83.01570703 | BP108: 82.74549932 | BQ108: 82.85653847 | BR108: -0.1110391461 | BS108: 82.63446018 | BT108: =BS108*$BF$28+$BF$29*BT109 -> 82.49513253 | BU108: =BT108*$BF$28+$BF$29*BU109 -> 82.73840789 | BV108: =BU108*$BF$28+$BF$29*BV109 -> 83.21174706 | BW108: =3*BT108-3*BU108+BV108 -> 82.48192099 | BX108: 2.27435614 | BY108: -58 | BZ108: 84.14681117 | CA108: 31.69932415 | CB108: 84.07452018 | CC108: 11.84452018 | CD108: 17.2480708 | CE108: 68.67156518 | CF108: 68.35703267 | CG108: 100 | CH108: 50 | CI108: 0 | CJ108: 0
A109: 78 | B109: =OFFSET(InputPriceData!B$15,CalculationsAndCharts!$A109+$A$11,0,1,1) -> 2007-03-07 | C109: =OFFSET(InputPriceData!G$15,CalculationsAndCharts!$A109+$A$11,0,1,1) -> 2885500 | D109: =OFFSET(InputPriceData!C$15,CalculationsAndCharts!$A109+$A$11,IF($C$7,7,0),1,1) -> 82.79 | E109: =OFFSET(InputPriceData!D$15,CalculationsAndCharts!$A109+$A$11,IF($C$7,7,0),1,1) -> 84.06 | F109: =OFFSET(InputPriceData!E$15,CalculationsAndCharts!$A109+$A$11,IF($C$7,7,0),1,1) -> 82.3 | G109: =OFFSET(InputPriceData!F$15,CalculationsAndCharts!$A109+$A$11,IF($C$7,7,0),1,1) -> 82.86 | H109: 0 | I109: 0 | J109: 0 | K109: 0 | L109: 83.07333333 | M109: 2.023333333 | N109: 9.523102564 | O109: 9.300673431 | P109: 8.370606088 | Q109: 83.05346593 | R109: 83.68552001 | S109: 84.36021699 | T109: 92.98619344 | U109: 75.31491392 | V109: 1.76 | W109: 2.721654064 | X109: 0.08284641641 | Y109: 0 | BE109: 82.845 | BF109: =AVERAGE(OFFSET(BE$31,$A109,0,$BE$27,1)) -> 82.1975 | BG109: 81.6775 | BH109: 81.483125 | BI109: 81.5796875 | BJ109: 81.826875 | BK109: 82.14125 | BL109: 82.51792969 | BM109: 82.97912109 | BN109: 83.53106445 | BO109: 82.27948389 | BP109: 82.47529162 | BQ109: 82.96757762 | BR109: -0.4922859989 | BS109: 81.98300562 | BT109: 82.35580489 | BU109: 82.98168324 | BV109: 83.68508622 | BW109: 81.80745116 | BX109: 2.305601274 | BY109: -59 | BZ109: 84.30678522 | CA109: 22.89932468 | CB109: 82.67640861 | CC109: 12.45640861 | CD109: 18.83271021 | CE109: 66.14241113 | CF109: 67.43536073 | CG109: 100 | CH109: 50 | CI109: 0 | CJ109: 0
A110: 79 | B110: =OFFSET(InputPriceData!B$15,CalculationsAndCharts!$A110+$A$11,0,1,1) -> 2007-03-06 | C110: =OFFSET(InputPriceData!G$15,CalculationsAndCharts!$A110+$A$11,0,1,1) -> 3582700 | D110: =OFFSET(InputPriceData!C$15,CalculationsAndCharts!$A110+$A$11,IF($C$7,7,0),1,1) -> 81.35 | E110: =OFFSET(InputPriceData!D$15,CalculationsAndCharts!$A110+$A$11,IF($C$7,7,0),1,1) -> 83.5 | F110: =OFFSET(InputPriceData!E$15,CalculationsAndCharts!$A110+$A$11,IF($C$7,7,0),1,1) -> 81.05 | G110: =OFFSET(InputPriceData!F$15,CalculationsAndCharts!$A110+$A$11,IF($C$7,7,0),1,1) -> 82.83 | H110: 0 | I110: 0 | J110: 0 | K110: 0 | L110: 82.46 | M110: 3.13 | N110: 9.666012821 | O110: 9.237122251 | P110: 8.313410025 | Q110: 83.04778953 | R110: 83.86610689 | S110: 84.68932661 | T110: 93.10322914 | U110: 75.55269686 | V110: 3.23 | W110: 3.202481096 | X110: 0.08866329948 | Y110: 0 | BE110: 81.55 | BF110: =AVERAGE(OFFSET(BE$31,$A110,0,$BE$27,1)) -> 81.1575 | BG110: 81.28875 | BH110: 81.67625 | BI110: 82.0740625 | BJ110: 82.455625 | BK110: 82.89460938 | BL110: 83.4403125 | BM110: 84.08300781 | BN110: 84.77163086 | BO110: 81.9658999 | BP110: 82.67109935 | BQ110: 83.45986362 | BR110: -0.7887642663 | BS110: 81.88233508 | BT110: 82.72860416 | BU110: 83.60756159 | BV110: 84.3884892 | BW110: 81.75161689 | BX110: 2.302134579 | BY110: -60 | BZ110: 84.53814481 | CA110: 19.7397369 | CB110: 82.21294995 | CC110: 14.48294995 | CD110: 20.61420907 | CE110: 70.2571217 | CF110: 70.28241997 | CG110: 100 | CH110: 50 | CI110: 0 | CJ110: 0
A111: 80 | B111: =OFFSET(InputPriceData!B$15,CalculationsAndCharts!$A111+$A$11,0,1,1) -> 2007-03-05 | C111: =OFFSET(InputPriceData!G$15,CalculationsAndCharts!$A111+$A$11,0,1,1) -> 4306900 | D111: =OFFSET(InputPriceData!C$15,CalculationsAndCharts!$A111+$A$11,IF($C$7,7,0),1,1) -> 80.31 | E111: =OFFSET(InputPriceData!D$15,CalculationsAndCharts!$A111+$A$11,IF($C$7,7,0),1,1) -> 82.02 | F111: =OFFSET(InputPriceData!E$15,CalculationsAndCharts!$A111+$A$11,IF($C$7,7,0),1,1) -> 79.33 | G111: =OFFSET(InputPriceData!F$15,CalculationsAndCharts!$A111+$A$11,IF($C$7,7,0),1,1) -> 80.27 | H111: 0 | I111: 0 | J111: 0 | K111: 0 | L111: 80.54 | M111: 2.66 | N111: 9.216346154 | O111: 9.114582088 | P111: 8.203123879 | Q111: 83.21572939 | R111: 84.09991185 | S111: 84.9398485 | T111: 93.21449393 | U111: 75.89678797 | V111: 2.69 | W111: 3.188721644 | X111: 0.08972494884 | Y111: 0 | BE111: 80.765 | BF111: =AVERAGE(OFFSET(BE$31,$A111,0,$BE$27,1)) -> 81.42 | BG111: 82.06375 | BH111: 82.471875 | BI111: 82.8371875 | BJ111: 83.33359375 | BK111: 83.98601563 | BL111: 84.72570312 | BM111: 85.46025391 | BN111: 86.11128906 | BO111: 82.35470215 | BP111: 83.3762988 | BQ111: 84.24862788 | BR111: -0.8723290854 | BS111: 82.50396971 | BT111: 83.57487323 | BU111: 84.48651903 | BV111: 85.16941682 | BW111: 82.43447941 | BX111: 2.32830966 | BY111: -61 | BZ111: 84.77279163 | CA111: 24.89259848 | CB111: 81.44735107 | CC111: 14.48735107 | CD111: 21.98165617 | CE111: 65.90654937 | CF111: 73.48204269 | CG111: 100 | CH111: 50 | CI111: 0 | CJ111: 0
A112: 81 | B112: =OFFSET(InputPriceData!B$15,CalculationsAndCharts!$A112+$A$11,0,1,1) -> 2007-03-02 | C112: =OFFSET(InputPriceData!G$15,CalculationsAndCharts!$A112+$A$11,0,1,1) -> 3835900 | D112: =OFFSET(InputPriceData!C$15,CalculationsAndCharts!$A112+$A$11,IF($C$7,7,0),1,1) -> 82.91 | E112: =OFFSET(InputPriceData!D$15,CalculationsAndCharts!$A112+$A$11,IF($C$7,7,0),1,1) -> 83.84 | F112: =OFFSET(InputPriceData!E$15,CalculationsAndCharts!$A112+$A$11,IF($C$7,7,0),1,1) -> 80.87 | G112: =OFFSET(InputPriceData!F$15,CalculationsAndCharts!$A112+$A$11,IF($C$7,7,0),1,1) -> 81.26 | H112: 0 | I112: =IF($S$16,AVERAGE(OFFSET($G112,0,0,I$31,1)),0) -> 0 | J112: 0 | K112: 0 | L112: 81.99 | M112: 1.853333333 | N112: 9.463935897 | O112: 9.08550664 | P112: 8.176955976 | Q112: 83.98022351 | R112: 84.3525354 | S112: 85.06504331 | T112: 93.43804204 | U112: 76.17557943 | V112: 2.97 | W112: 3.438082466 | X112: 0.09230965377 | Y112: 0 | BE112: 82.075 | BF112: =AVERAGE(OFFSET(BE$31,$A112,0,$BE$27,1)) -> 82.7075 | BG112: 82.88 | BH112: 83.2025 | BI112: 83.83 | BJ112: 84.6384375 | BK112: 85.46539062 | BL112: 86.19480469 | BM112: 86.76232422 | BN112: 87.14285156 | BO112: 83.51419043 | BP112: 84.39789545 | BQ112: 85.12095697 | BR112: -0.7230615225 | BS112: 83.67483392 | BT112: 84.64577675 | BU112: 85.39816484 | BV112: 85.8523146 | BW112: 83.59515033 | BX112: 2.440880641 | BY112: -62 | BZ112: 84.92411849 | CA112: 36.38843564 | CB112: 82.75209521 | CC112: 16.64209521 | CD112: 22.28347013 | CE112: 74.68358884 | CF112: 79.05854747 | CG112: 100 | CH112: 50 | CI112: 0 | CJ112: 0
A113: 82 | B113: =OFFSET(InputPriceData!B$15,CalculationsAndCharts!$A113+$A$11,0,1,1) -> 2007-03-01 | C113: =OFFSET(InputPriceData!G$15,CalculationsAndCharts!$A113+$A$11,0,1,1) -> 4857900 | D113: =OFFSET(InputPriceData!C$15,CalculationsAndCharts!$A113+$A$11,IF($C$7,7,0),1,1) -> 81.49 | E113: =OFFSET(InputPriceData!D$15,CalculationsAndCharts!$A113+$A$11,IF($C$7,7,0),1,1) -> 84.4 | F113: =OFFSET(InputPriceData!E$15,CalculationsAndCharts!$A113+$A$11,IF($C$7,7,0),1,1) -> 80.88 | G113: =OFFSET(InputPriceData!F$15,CalculationsAndCharts!$A113+$A$11,IF($C$7,7,0),1,1) -> 82.89 | H113: 0 | I113: 0 | J113: 0 | K113: 0 | L113: 82.72333333 | M113: 2.38 | N113: 9.486692308 | O113: 8.977383995 | P113: 8.079645596 | Q113: 84.5488588 | R113: 84.45891023 | S113: 84.97838902 | T113: 93.43629423 | U113: 76.37926463 | V113: 3.52 | W113: 3.672123698 | X113: 0.09430116659 | Y113: 0 | BE113: 83.34 | BF113: =AVERAGE(OFFSET(BE$31,$A113,0,$BE$27,1)) -> 83.0525 | BG113: 83.525 | BH113: 84.4575 | BI113: 85.446875 | BJ113: 86.29234375 | BK113: 86.92421875 | BL113: 87.32984375 | BM113: 87.52337891 | BN113: 87.53389648 | BO113: 84.47252783 | BP113: 85.28160046 | BQ113: 85.84401849 | BR113: -0.5624180297 | BS113: 84.71918243 | BT113: 85.61671957 | BU113: 86.15055292 | BV113: 86.30646436 | BW113: 84.7049643 | BX113: 2.652552182 | BY113: -63 | BZ113: 84.92842012 | CA113: 47.8939545 | CB113: 83.59793058 | CC113: 18.01793058 | CD113: 22.56302954 | CE113: 79.85598986 | CF113: 82.57116063 | CG113: 100 | CH113: 50 | CI113: 0 | CJ113: 0
A114: 83 | B114: =OFFSET(InputPriceData!B$15,CalculationsAndCharts!$A114+$A$11,0,1,1) -> 2007-02-28 | C114: =OFFSET(InputPriceData!G$15,CalculationsAndCharts!$A114+$A$11,0,1,1) -> 5665800 | D114: =OFFSET(InputPriceData!C$15,CalculationsAndCharts!$A114+$A$11,IF($C$7,7,0),1,1) -> 82.63 | E114: =OFFSET(InputPriceData!D$15,CalculationsAndCharts!$A114+$A$11,IF($C$7,7,0),1,1) -> 84.56 | F114: =OFFSET(InputPriceData!E$15,CalculationsAndCharts!$A114+$A$11,IF($C$7,7,0),1,1) -> 81.43 | G114: =OFFSET(InputPriceData!F$15,CalculationsAndCharts!$A114+$A$11,IF($C$7,7,0),1,1) -> 83.79 | H114: 0 | I114: 0 | J114: 0 | K114: 0 | L114: 83.26 | M114: 2.57 | N114: 9.706064103 | O114: 8.831867335 | P114: 7.948680601 | Q114: 85.0704375 | R114: 84.43321064 | S114: 84.7398335 | T114: 93.26507798 | U114: 76.48453004 | V114: 3.13 | W114: 3.748185547 | X114: 0.09473308924 | Y114: 0 | BE114: 82.765 | BF114: =AVERAGE(OFFSET(BE$31,$A114,0,$BE$27,1)) -> 83.9975 | BG114: 85.39 | BH114: 86.43625 | BI114: 87.1378125 | BJ114: 87.55609375 | BK114: 87.73546875 | BL114: 87.71691406 | BM114: 87.54441406 | BN114: 87.25977539 | BO114: 85.19039893 | BP114: 86.09067309 | BQ114: 86.40643652 | BR114: -0.3157634311 | BS114: 85.77490966 | BT114: 86.51425671 | BU114: 86.68438628 | BV114: 86.4623758 | BW114: 85.9519871 | BX114: 2.938692943 | BY114: -64 | BZ114: 84.77631692 | CA114: 60.00164189 | CB114: 84.22519946 | CC114: 18.64519946 | CD114: 22.56302954 | CE114: 82.63606369 | CF114: 89.28583068 | CG114: 100 | CH114: 50 | CI114: 0 | CJ114: 0
A115: 84 | B115: =OFFSET(InputPriceData!B$15,CalculationsAndCharts!$A115+$A$11,0,1,1) -> 2007-02-27 | C115: =OFFSET(InputPriceData!G$15,CalculationsAndCharts!$A115+$A$11,0,1,1) -> 6414400 | D115: =OFFSET(InputPriceData!C$15,CalculationsAndCharts!$A115+$A$11,IF($C$7,7,0),1,1) -> 85.04 | E115: =OFFSET(InputPriceData!D$15,CalculationsAndCharts!$A115+$A$11,IF($C$7,7,0),1,1) -> 86.04 | F115: =OFFSET(InputPriceData!E$15,CalculationsAndCharts!$A115+$A$11,IF($C$7,7,0),1,1) -> 80.69 | G115: =OFFSET(InputPriceData!F$15,CalculationsAndCharts!$A115+$A$11,IF($C$7,7,0),1,1) -> 81.74 | H115: 0 | I115: 0 | J115: 0 | K115: 0 | L115: 82.82333333 | M115: 8.106666667 | N115: 9.524012821 | O115: 8.58209683 | P115: 7.723887147 | Q115: 85.58770536 | R115: 84.25114582 | S115: 84.33776211 | T115: 92.83324265 | U115: 76.52725868 | V115: 8.03 | W115: 4.057278321 | X115: 0.09963638758 | Y115: 0 | BE115: 85.23 | BF115: =AVERAGE(OFFSET(BE$31,$A115,0,$BE$27,1)) -> 86.7825 | BG115: 87.4825 | BH115: 87.839375 | BI115: 87.974375 | BJ115: 87.91484375 | BK115: 87.69835937 | BL115: 87.37191406 | BM115: 86.97513672 | BN115: 86.53389648 | BO115: 86.79373877 | BP115: 86.99094725 | BQ115: 86.72219995 | BR115: 0.2687473008 | BS115: 87.25969455 | BT115: 87.25360377 | BU115: 86.85451584 | BV115: 86.24036532 | BW115: 87.43762909 | BX115: 3.262843631 | BY115: -65 | BZ115: 84.43642863 | CA115: 72.99528265 | CB115: 84.80853605 | CC115: 19.22853605 | CD115: 22.56302954 | CE115: 85.22142834 | CF115: 95.07380945 | CG115: 100 | CH115: 50 | CI115: 0 | CJ115: 0
A116: 85 | B116: =OFFSET(InputPriceData!B$15,CalculationsAndCharts!$A116+$A$11,0,1,1) -> 2007-02-26 | C116: =OFFSET(InputPriceData!G$15,CalculationsAndCharts!$A116+$A$11,0,1,1) -> 2969700 | D116: =OFFSET(InputPriceData!C$15,CalculationsAndCharts!$A116+$A$11,IF($C$7,7,0),1,1) -> 88.34 | E116: =OFFSET(InputPriceData!D$15,CalculationsAndCharts!$A116+$A$11,IF($C$7,7,0),1,1) -> 89.71 | F116: =OFFSET(InputPriceData!E$15,CalculationsAndCharts!$A116+$A$11,IF($C$7,7,0),1,1) -> 87.96 | G116: =OFFSET(InputPriceData!F$15,CalculationsAndCharts!$A116+$A$11,IF($C$7,7,0),1,1) -> 88.72 | H116: 0 | I116: 0 | J116: 0 | K116: 0 | L116: 88.79666667 | M116: 1.766666667 | N116: 7.709871795 | O116: 8.312977975 | P116: 7.481680177 | Q116: 86.37752593 | R116: 83.86927167 | S116: 83.77093224 | T116: 92.18224965 | U116: 76.38759149 | V116: 1.76 | W116: 2.070917482 | X116: 0.0733421718 | Y116: 0 | BE116: 88.335 | BF116: =AVERAGE(OFFSET(BE$31,$A116,0,$BE$27,1)) -> 88.1825 | BG116: 88.19625 | BH116: 88.109375 | BI116: 87.8553125 | BJ116: 87.481875 | BK116: 87.04546875 | BL116: 86.57835938 | BM116: 86.09265625 | BN116: 85.58982422 | BO116: 87.7927998 | BP116: 87.18815573 | BQ116: 86.45345265 | BR116: 0.7347030836 | BS116: 87.92285882 | BT116: 87.24751298 | BU116: 86.45542792 | BV116: 85.62621479 | BW116: 88.00246999 | BX116: 3.548184098 | BY116: -66 | BZ116: 83.86493282 | CA116: 79.15249781 | CB116: 88.29473324 | CC116: 22.71473324 | CD116: 22.56302954 | CE116: 100 | CF116: 99.6450342 | CG116: 100 | CH116: 50 | CI116: 0 | CJ116: 0
A117: 86 | B117: =OFFSET(InputPriceData!B$15,CalculationsAndCharts!$A117+$A$11,0,1,1) -> 2007-02-23 | C117: =OFFSET(InputPriceData!G$15,CalculationsAndCharts!$A117+$A$11,0,1,1) -> 2334400 | D117: =OFFSET(InputPriceData!C$15,CalculationsAndCharts!$A117+$A$11,IF($C$7,7,0),1,1) -> 88.24 | E117: =OFFSET(InputPriceData!D$15,CalculationsAndCharts!$A117+$A$11,IF($C$7,7,0),1,1) -> 88.74 | F117: =OFFSET(InputPriceData!E$15,CalculationsAndCharts!$A117+$A$11,IF($C$7,7,0),1,1) -> 87.03 | G117: =OFFSET(InputPriceData!F$15,CalculationsAndCharts!$A117+$A$11,IF($C$7,7,0),1,1) -> 87.95 | H117: 0 | I117: 0 | J117: 0 | K117: 0 | L117: 87.90666667 | M117: 0.9433333333 | N117: 7.668 | O117: 8.485294026 | P117: 7.636764624 | Q117: 85.68634287 | R117: 83.1526276 | S117: 83.03429384 | T117: 91.63792162 | U117: 75.51586297 | V117: 1.71 | W117: 2.226376223 | X117: 0.07531411282 | Y117: 0 | BE117: 88.03 | BF117: =AVERAGE(OFFSET(BE$31,$A117,0,$BE$27,1)) -> 88.21 | BG117: 88.0225 | BH117: 87.60125 | BI117: 87.1084375 | BJ117: 86.6090625 | BK117: 86.11125 | BL117: 85.60695313 | BM117: 85.08699219 | BN117: 84.54842773 | BO117: 87.36655615 | BP117: 86.58351166 | BQ117: 85.71874957 | BR117: 0.8647620961 | BS117: 87.44827376 | BT117: 86.57216715 | BU117: 85.66334285 | BV117: 84.79700166 | BW117: 87.52347456 | BX117: 3.761931183 | BY117: -67 | BZ117: 83.14791691 | CA117: 79.07786877 | CB117: 87.63661141 | CC117: 22.05661141 | CD117: 21.83302954 | CE117: 100 | CF117: 98.58107478 | CG117: 100 | CH117: 50 | CI117: 0 | CJ117: 0
A118: 87 | B118: =OFFSET(InputPriceData!B$15,CalculationsAndCharts!$A118+$A$11,0,1,1) -> 2007-02-22 | C118: =OFFSET(InputPriceData!G$15,CalculationsAndCharts!$A118+$A$11,0,1,1) -> 3326900 | D118: =OFFSET(InputPriceData!C$15,CalculationsAndCharts!$A118+$A$11,IF($C$7,7,0),1,1) -> 88.84 | E118: =OFFSET(InputPriceData!D$15,CalculationsAndCharts!$A118+$A$11,IF($C$7,7,0),1,1) -> 88.98 | F118: =OFFSET(InputPriceData!E$15,CalculationsAndCharts!$A118+$A$11,IF($C$7,7,0),1,1) -> 86.83 | G118: =OFFSET(InputPriceData!F$15,CalculationsAndCharts!$A118+$A$11,IF($C$7,7,0),1,1) -> 88.11 | H118: 0 | I118: 0 | J118: 0 | K118: 0 | L118: 87.97333333 | M118: 2.913333333 | N118: 8.264217949 | O118: 8.718806605 | P118: 7.846925945 | Q118: 85.05196464 | R118: 82.42870895 | S118: 82.31254446 | T118: 91.14751555 | U118: 74.581783 | V118: 2.15 | W118: 2.484564334 | X118: 0.07819843757 | Y118: 0 | BE118: 88.39 | BF118: =AVERAGE(OFFSET(BE$31,$A118,0,$BE$27,1)) -> 87.835 | BG118: 87.18 | BH118: 86.615625 | BI118: 86.1096875 | BJ118: 85.6134375 | BK118: 85.10265625 | BL118: 84.56703125 | BM118: 84.00986328 | BN118: 83.45181641 | BO118: 86.84578711 | BP118: 85.80046717 | BQ118: 84.85398747 | BR118: 0.9464797023 | BS118: 86.74694688 | BT118: 85.69606054 | BU118: 84.75451855 | BV118: 83.93066047 | BW118: 86.75528643 | BX118: 3.909081938 | BY118: -68 | BZ118: 82.39443123 | CA118: 77.88925428 | CB118: 87.40956022 | CC118: 22.29956022 | CD118: 22.53958366 | CE118: 98.93510261 | CF118: 98.58107478 | CG118: 100 | CH118: 50 | CI118: 0 | CJ118: 0
A119: 88 | B119: =OFFSET(InputPriceData!B$15,CalculationsAndCharts!$A119+$A$11,0,1,1) -> 2007-02-21 | C119: =OFFSET(InputPriceData!G$15,CalculationsAndCharts!$A119+$A$11,0,1,1) -> 3522100 | D119: =OFFSET(InputPriceData!C$15,CalculationsAndCharts!$A119+$A$11,IF($C$7,7,0),1,1) -> 85.5 | E119: =OFFSET(InputPriceData!D$15,CalculationsAndCharts!$A119+$A$11,IF($C$7,7,0),1,1) -> 88.69 | F119: =OFFSET(InputPriceData!E$15,CalculationsAndCharts!$A119+$A$11,IF($C$7,7,0),1,1) -> 85.06 | G119: =OFFSET(InputPriceData!F$15,CalculationsAndCharts!$A119+$A$11,IF($C$7,7,0),1,1) -> 88.67 | H119: 0 | I119: 0 | J119: 0 | K119: 0 | L119: 87.47333333 | M119: 3.143333333 | N119: 8.066692308 | O119: 8.848689079 | P119: 7.963820171 | Q119: 84.21728787 | R119: 81.67920732 | S119: 81.64386668 | T119: 90.5278964 | U119: 73.71538715 | V119: 3.63 | W119: 2.651846501 | X119: 0.07990691892 | Y119: 0 | BE119: 87.28 | BF119: =AVERAGE(OFFSET(BE$31,$A119,0,$BE$27,1)) -> 86.525 | BG119: 86.05125 | BH119: 85.60375 | BI119: 85.1171875 | BJ119: 84.591875 | BK119: 84.03140625 | BL119: 83.45269531 | BM119: 82.89376953 | BN119: 82.40115234 | BO119: 85.7174668 | BP119: 84.75514724 | BQ119: 83.90750777 | BR119: 0.8476394681 | BS119: 85.6027867 | BT119: 84.6451742 | BU119: 83.81297656 | BV119: 83.10680239 | BW119: 85.60339531 | BX119: 4.03266514 | BY119: -69 | BZ119: 81.635282 | CA119: 74.59981905 | CB119: 86.59540007 | CC119: 21.71540007 | CD119: 22.43138249 | CE119: 96.80812174 | CF119: 98.93604058 | CG119: 100 | CH119: 50 | CI119: 0 | CJ119: 0
A120: 89 | B120: =OFFSET(InputPriceData!B$15,CalculationsAndCharts!$A120+$A$11,0,1,1) -> 2007-02-20 | C120: =OFFSET(InputPriceData!G$15,CalculationsAndCharts!$A120+$A$11,0,1,1) -> 2971700 | D120: =OFFSET(InputPriceData!C$15,CalculationsAndCharts!$A120+$A$11,IF($C$7,7,0),1,1) -> 84.81 | E120: =OFFSET(InputPriceData!D$15,CalculationsAndCharts!$A120+$A$11,IF($C$7,7,0),1,1) -> 86.43 | F120: =OFFSET(InputPriceData!E$15,CalculationsAndCharts!$A120+$A$11,IF($C$7,7,0),1,1) -> 84.33 | G120: =OFFSET(InputPriceData!F$15,CalculationsAndCharts!$A120+$A$11,IF($C$7,7,0),1,1) -> 85.89 | H120: 0 | I120: 0 | J120: 0 | K120: 0 | L120: 85.55 | M120: 0.99 | N120: 8.210512821 | O120: 9.072116728 | P120: 8.164905055 | Q120: 83.28698917 | R120: 80.95404145 | S120: 81.07247145 | T120: 90.02615818 | U120: 72.7891364 | V120: 2.1 | W120: 2.162769751 | X120: 0.07518069335 | Y120: 0 | BE120: 85.77 | BF120: =AVERAGE(OFFSET(BE$31,$A120,0,$BE$27,1)) -> 85.5775 | BG120: 85.15625 | BH120: 84.630625 | BI120: 84.0665625 | BJ120: 83.4709375 | BK120: 82.87398438 | BL120: 82.33484375 | BM120: 81.90853516 | BN120: 81.62111328 | BO120: 84.60829883 | BP120: 83.79282768 | BQ120: 83.0598683 | BR120: 0.7329593754 | BS120: 84.52578705 | BT120: 83.6875617 | BU120: 82.98077893 | BV120: 82.40062823 | BW120: 84.52097654 | BX120: 4.226223127 | BY120: -70 | BZ120: 80.91036432 | CA120: 71.35838617 | CB120: =(BO120+L120)/2 -> 85.07914941 | CC120: =CB120-MIN(OFFSET(F120,0,0,$BI$27,1)) -> 20.19914941 | CD120: =MAX(OFFSET(E120,0,0,$BI$27,1))-MIN(OFFSET(CB120,0,0,$BI$27,1)) -> 20.17138249 | CE120: 100 | CF120: 98.71699579 | CG120: 100 | CH120: 50 | CI120: 0 | CJ120: 0
A121: 90 | B121: =OFFSET(InputPriceData!B$15,CalculationsAndCharts!$A121+$A$11,0,1,1) -> 2007-02-16 | C121: =OFFSET(InputPriceData!G$15,CalculationsAndCharts!$A121+$A$11,0,1,1) -> 3046500 | D121: =OFFSET(InputPriceData!C$15,CalculationsAndCharts!$A121+$A$11,IF($C$7,7,0),1,1) -> 85.18 | E121: =OFFSET(InputPriceData!D$15,CalculationsAndCharts!$A121+$A$11,IF($C$7,7,0),1,1) -> 85.97 | F121: =OFFSET(InputPriceData!E$15,CalculationsAndCharts!$A121+$A$11,IF($C$7,7,0),1,1) -> 84.56 | G121: =OFFSET(InputPriceData!F$15,CalculationsAndCharts!$A121+$A$11,IF($C$7,7,0),1,1) -> 85.65 | H121: 0 | I121: 0 | J121: 0 | K121: 0 | L121: 85.39333333 | M121: 2.393333333 | N121: 9.463935897 | O121: 9.318289272 | P121: 8.386460345 | Q121: 82.64041464 | R121: 80.28748496 | S121: 80.53710615 | T121: 89.60577423 | U121: 71.90102462 | V121: 1.41 | W121: 2.194154627 | X121: 0.07561768391 | Y121: 0 | BE121: 85.385 | BF121: =AVERAGE(OFFSET(BE$31,$A121,0,$BE$27,1)) -> 84.735 | BG121: 84.105 | BH121: 83.5025 | BI121: 82.8753125 | BJ121: 82.27703125 | BK121: 81.79570313 | BL121: 81.48222656 | BM121: 81.33369141 | BN121: 81.31000977 | BO121: 83.81294873 | BP121: 82.97735652 | BQ121: 82.32690892 | BR121: 0.6504475983 | BS121: 83.62780412 | BT121: 82.84933635 | BU121: 82.27399616 | BV121: 81.82047752 | BW121: 83.5464981 | BX121: 4.49799674 | BY121: -71 | BZ121: 80.21018139 | CA121: 68.54334774 | CB121: 84.60314103 | CC121: 19.72314103 | CD121: 19.71138249 | CE121: 100 | CF121: 98.50557952 | CG121: 100 | CH121: 50 | CI121: 0 | CJ121: 0
A122: 91 | B122: =OFFSET(InputPriceData!B$15,CalculationsAndCharts!$A122+$A$11,0,1,1) -> 2007-02-15 | C122: =OFFSET(InputPriceData!G$15,CalculationsAndCharts!$A122+$A$11,0,1,1) -> 4547400 | D122: =OFFSET(InputPriceData!C$15,CalculationsAndCharts!$A122+$A$11,IF($C$7,7,0),1,1) -> 83.05 | E122: =OFFSET(InputPriceData!D$15,CalculationsAndCharts!$A122+$A$11,IF($C$7,7,0),1,1) -> 85.85 | F122: =OFFSET(InputPriceData!E$15,CalculationsAndCharts!$A122+$A$11,IF($C$7,7,0),1,1) -> 83 | G122: =OFFSET(InputPriceData!F$15,CalculationsAndCharts!$A122+$A$11,IF($C$7,7,0),1,1) -> 85.12 | H122: 0 | I122: 0 | J122: 0 | K122: 0 | L122: 84.65666667 | M122: 2.546666667 | N122: 9.493974359 | O122: 9.276675951 | P122: 8.349008356 | Q122: 81.85386644 | R122: 79.61521934 | S122: 79.96651743 | T122: 88.89189529 | U122: 71.26621098 | V122: 2.85 | W122: 2.586231941 | X122: 0.08038336396 | Y122: 0 | BE122: 84.085 | BF122: =AVERAGE(OFFSET(BE$31,$A122,0,$BE$27,1)) -> 83.475 | BG122: 82.9 | BH122: 82.248125 | BI122: 81.67875 | BJ122: 81.314375 | BK122: 81.16875 | BL122: 81.18515625 | BM122: 81.28632812 | BN122: 81.40436523 | BO122: 82.77794873 | BP122: 82.14176432 | BQ122: 81.67646133 | BR122: 0.4653029889 | BS122: 82.6070673 | BT122: 82.07086857 | BU122: 81.69865596 | BV122: 81.36695889 | BW122: 82.48359672 | BX122: 4.798741273 | BY122: -72 | BZ122: 79.52212168 | CA122: 65.42839501 | CB122: 83.7173077 | CC122: 18.8373077 | CD122: 19.59138249 | CE122: 96.15098736 | CF122: 98.00168888 | CG122: 100 | CH122: 50 | CI122: 0 | CJ122: 0
A123: 92 | B123: =OFFSET(InputPriceData!B$15,CalculationsAndCharts!$A123+$A$11,0,1,1) -> 2007-02-14 | C123: =OFFSET(InputPriceData!G$15,CalculationsAndCharts!$A123+$A$11,0,1,1) -> 3172900 | D123: =OFFSET(InputPriceData!C$15,CalculationsAndCharts!$A123+$A$11,IF($C$7,7,0),1,1) -> 82.77 | E123: =OFFSET(InputPriceData!D$15,CalculationsAndCharts!$A123+$A$11,IF($C$7,7,0),1,1) -> 83.97 | F123: =OFFSET(InputPriceData!E$15,CalculationsAndCharts!$A123+$A$11,IF($C$7,7,0),1,1) -> 82.11 | G123: =OFFSET(InputPriceData!F$15,CalculationsAndCharts!$A123+$A$11,IF($C$7,7,0),1,1) -> 83.05 | H123: 0 | I123: 0 | J123: 0 | K123: 0 | L123: 83.04333333 | M123: 1.483333333 | N123: 9.106205128 | O123: 9.214590692 | P123: 8.293131623 | Q123: 81.05306638 | R123: 78.97560588 | S123: 79.36183193 | T123: 88.19019657 | U123: 70.68247426 | V123: 1.86 | W123: 2.454347911 | X123: 0.07955265396 | Y123: 0 | BE123: 82.865 | BF123: =AVERAGE(OFFSET(BE$31,$A123,0,$BE$27,1)) -> 82.325 | BG123: 81.59625 | BH123: 81.109375 | BI123: 80.95 | BJ123: 81.023125 | BK123: 81.2015625 | BL123: 81.3875 | BM123: 81.52240234 | BN123: 81.57817383 | BO123: 81.91476318 | BP123: 81.5055799 | BQ123: 81.21115834 | BR123: 0.2944215628 | BS123: 81.80000146 | BT123: 81.53466984 | BU123: 81.32644336 | BV123: 81.03526181 | BW123: 81.65994128 | BX123: 5.062836866 | BY123: -73 | BZ123: 78.85870369 | CA123: 63.83235161 | CB123: 82.47904826 | CC123: 17.59904826 | CD123: 17.71138249 | CE123: 99.36575121 | CF123: 96.59126227 | CG123: 100 | CH123: 50 | CI123: 0 | CJ123: 0
A124: 93 | B124: =OFFSET(InputPriceData!B$15,CalculationsAndCharts!$A124+$A$11,0,1,1) -> 2007-02-13 | C124: =OFFSET(InputPriceData!G$15,CalculationsAndCharts!$A124+$A$11,0,1,1) -> 3831200 | D124: =OFFSET(InputPriceData!C$15,CalculationsAndCharts!$A124+$A$11,IF($C$7,7,0),1,1) -> 82.62 | E124: =OFFSET(InputPriceData!D$15,CalculationsAndCharts!$A124+$A$11,IF($C$7,7,0),1,1) -> 83.22 | F124: =OFFSET(InputPriceData!E$15,CalculationsAndCharts!$A124+$A$11,IF($C$7,7,0),1,1) -> 81.56 | G124: =OFFSET(InputPriceData!F$15,CalculationsAndCharts!$A124+$A$11,IF($C$7,7,0),1,1) -> 82.68 | H124: 0 | I124: 0 | J124: 0 | K124: 0 | L124: 82.48666667 | M124: 3.566666667 | N124: 9.143525641 | O124: 9.245557996 | P124: 8.321002196 | Q124: 80.48441868 | R124: 78.38204574 | S124: 78.70473629 | T124: 87.62760373 | U124: 70.06104354 | V124: 2.33 | W124: 2.751521867 | X124: 0.0832791711 | Y124: 0 | BE124: 81.785 | BF124: =AVERAGE(OFFSET(BE$31,$A124,0,$BE$27,1)) -> 80.8675 | BG124: 80.6225 | BH124: 80.790625 | BI124: 81.09625 | BJ124: 81.38 | BK124: 81.5734375 | BL124: 81.65730469 | BM124: 81.63394531 | BN124: 81.51195312 | BO124: 81.23483203 | BP124: 81.09639662 | BQ124: 80.91673677 | BR124: 0.1796598422 | BS124: 81.27605646 | BT124: 81.26933822 | BU124: 81.11821687 | BV124: 80.74408027 | BW124: 81.19744434 | BX124: 5.244862645 | BY124: -74 | BZ124: 78.19934009 | CA124: 64.29067093 | CB124: 81.86074935 | CC124: 16.98074935 | CD124: 17.24138249 | CE124: 98.48832808 | CF124: 93.90359916 | CG124: 100 | CH124: 50 | CI124: 0 | CJ124: 0
A125: 94 | B125: =OFFSET(InputPriceData!B$15,CalculationsAndCharts!$A125+$A$11,0,1,1) -> 2007-02-12 | C125: =OFFSET(InputPriceData!G$15,CalculationsAndCharts!$A125+$A$11,0,1,1) -> 5403200 | D125: =OFFSET(InputPriceData!C$15,CalculationsAndCharts!$A125+$A$11,IF($C$7,7,0),1,1) -> 79.21 | E125: =OFFSET(InputPriceData!D$15,CalculationsAndCharts!$A125+$A$11,IF($C$7,7,0),1,1) -> 82.13 | F125: =OFFSET(InputPriceData!E$15,CalculationsAndCharts!$A125+$A$11,IF($C$7,7,0),1,1) -> 78.92 | G125: =OFFSET(InputPriceData!F$15,CalculationsAndCharts!$A125+$A$11,IF($C$7,7,0),1,1) -> 80.89 | H125: 0 | I125: 0 | J125: 0 | K125: 0 | L125: 80.64666667 | M125: 1.936666667 | N125: 9.160820513 | O125: 9.274710097 | P125: 8.347239087 | Q125: 79.91234783 | R125: 77.78136775 | S125: 77.96858952 | T125: 87.05607785 | U125: 69.43412867 | V125: 3.21 | W125: 2.9622828 | X125: 0.08662112498 | Y125: 0 | BE125: 79.95 | BF125: =AVERAGE(OFFSET(BE$31,$A125,0,$BE$27,1)) -> 80.3775 | BG125: 80.95875 | BH125: 81.401875 | BI125: 81.66375 | BJ125: 81.766875 | BK125: 81.74117187 | BL125: 81.61058594 | BM125: 81.38996094 | BN125: 81.08345703 | BO125: 80.80979004 | BP125: 80.9579612 | BQ125: 80.73707693 | BR125: 0.2208842699 | BS125: 81.17884547 | BT125: 81.26261999 | BU125: 80.96709551 | BV125: 80.36994368 | BW125: 81.25651709 | BX125: 5.317519606 | BY125: -75 | BZ125: 77.5104224 | CA125: 67.61203985 | CB125: 80.72822835 | CC125: 15.84822835 | CD125: 17.24138249 | CE125: 91.91970751 | CF125: 93.71213091 | CG125: 100 | CH125: 50 | CI125: 0 | CJ125: 0
A126: 95 | B126: =OFFSET(InputPriceData!B$15,CalculationsAndCharts!$A126+$A$11,0,1,1) -> 2007-02-09 | C126: =OFFSET(InputPriceData!G$15,CalculationsAndCharts!$A126+$A$11,0,1,1) -> 3980000 | D126: =OFFSET(InputPriceData!C$15,CalculationsAndCharts!$A126+$A$11,IF($C$7,7,0),1,1) -> 81.58 | E126: =OFFSET(InputPriceData!D$15,CalculationsAndCharts!$A126+$A$11,IF($C$7,7,0),1,1) -> 81.98 | F126: =OFFSET(InputPriceData!E$15,CalculationsAndCharts!$A126+$A$11,IF($C$7,7,0),1,1) -> 78.71 | G126: =OFFSET(InputPriceData!F$15,CalculationsAndCharts!$A126+$A$11,IF($C$7,7,0),1,1) -> 79.01 | H126: 0 | I126: 0 | J126: 0 | K126: 0 | L126: 79.9 | M126: 3.183333333 | N126: 9.803461538 | O126: 9.307249978 | P126: 8.37652498 | Q126: 79.70254244 | R126: 77.1725163 | S126: 77.14485319 | T126: 86.47976628 | U126: 68.79599132 | V126: 3.89 | W126: 2.8384242 | X126: 0.0859248728 | Y126: 0 | BE126: 80.805 | BF126: =AVERAGE(OFFSET(BE$31,$A126,0,$BE$27,1)) -> 81.54 | BG126: 81.845 | BH126: 81.925625 | BI126: 81.87 | BJ126: 81.71546875 | BK126: 81.48 | BL126: 81.16933594 | BM126: 80.77695312 | BN126: 80.29132812 | BO126: 81.3437168 | BP126: 81.10613237 | BQ126: 80.51619266 | BR126: 0.5899397032 | BS126: 81.69607207 | BT126: 81.3463945 | BU126: 80.67157104 | BV126: 79.77279184 | BW126: 81.79726221 | BX126: 5.267945451 | BY126: -76 | BZ126: 76.73792721 | CA126: 74.01000089 | CB126: 80.6218584 | CC126: 15.7418584 | CD126: 17.24138249 | CE126: 91.30276189 | CF126: 95.52904634 | CG126: 100 | CH126: 50 | CI126: 0 | CJ126: 0
A127: 96 | B127: =OFFSET(InputPriceData!B$15,CalculationsAndCharts!$A127+$A$11,0,1,1) -> 2007-02-08 | C127: =OFFSET(InputPriceData!G$15,CalculationsAndCharts!$A127+$A$11,0,1,1) -> 2773300 | D127: =OFFSET(InputPriceData!C$15,CalculationsAndCharts!$A127+$A$11,IF($C$7,7,0),1,1) -> 81.63 | E127: =OFFSET(InputPriceData!D$15,CalculationsAndCharts!$A127+$A$11,IF($C$7,7,0),1,1) -> 82.73 | F127: =OFFSET(InputPriceData!E$15,CalculationsAndCharts!$A127+$A$11,IF($C$7,7,0),1,1) -> 80.35 | G127: =OFFSET(InputPriceData!F$15,CalculationsAndCharts!$A127+$A$11,IF($C$7,7,0),1,1) -> 82.6 | H127: 0 | I127: 0 | J127: 0 | K127: 0 | L127: 81.89333333 | M127: 1.903333333 | N127: 9.721538462 | O127: 9.165475246 | P127: 8.248927722 | Q127: 79.646126 | R127: 76.44965169 | S127: 76.18707315 | T127: 85.61512694 | U127: 68.20072397 | V127: 2.38 | W127: 2.3126363 | X127: 0.07799801816 | Y127: 0 | BE127: 82.275 | BF127: =AVERAGE(OFFSET(BE$31,$A127,0,$BE$27,1)) -> 82.15 | BG127: 82.00625 | BH127: 81.814375 | BI127: 81.5609375 | BJ127: 81.24453125 | BK127: 80.85867187 | BL127: 80.38457031 | BM127: 79.80570312 | BN127: 79.12498047 | BO127: 81.63009473 | BP127: 80.86854793 | BQ127: 79.92625296 | BR127: 0.9422949753 | BS127: 81.81084291 | BT127: 80.99671693 | BU127: 79.99674759 | BV127: 78.87401264 | BW127: 81.87392066 | BX127: 5.079820999 | BY127: -77 | BZ127: 75.82638203 | CA127: 79.76255773 | CB127: 81.76171403 | CC127: 16.88171403 | CD127: 17.24138249 | CE127: 97.91392333 | CF127: 98.368672 | CG127: 100 | CH127: 50 | CI127: 0 | CJ127: 0
A128: 97 | B128: =OFFSET(InputPriceData!B$15,CalculationsAndCharts!$A128+$A$11,0,1,1) -> 2007-02-07 | C128: =OFFSET(InputPriceData!G$15,CalculationsAndCharts!$A128+$A$11,0,1,1) -> 3271900 | D128: =OFFSET(InputPriceData!C$15,CalculationsAndCharts!$A128+$A$11,IF($C$7,7,0),1,1) -> 82.1 | E128: =OFFSET(InputPriceData!D$15,CalculationsAndCharts!$A128+$A$11,IF($C$7,7,0),1,1) -> 83.5 | F128: =OFFSET(InputPriceData!E$15,CalculationsAndCharts!$A128+$A$11,IF($C$7,7,0),1,1) -> 81.31 | G128: =OFFSET(InputPriceData!F$15,CalculationsAndCharts!$A128+$A$11,IF($C$7,7,0),1,1) -> 81.95 | H128: 0 | I128: 0 | J128: 0 | K128: 0 | L128: 82.25333333 | M128: 1.463333333 | N128: 9.665102564 | O128: 9.006600042 | P128: 8.105940038 | Q128: 79.00406676 | R128: 75.53637332 | S128: 75.13980833 | T128: 84.54297336 | U128: 67.43043328 | V128: 2.19 | W128: 2.278954449 | X128: 0.07780908419 | Y128: 0 | BE128: 82.025 | BF128: =AVERAGE(OFFSET(BE$31,$A128,0,$BE$27,1)) -> 81.8625 | BG128: 81.6225 | BH128: 81.3075 | BI128: 80.928125 | BJ128: 80.4728125 | BK128: 79.91046875 | BL128: 79.22683594 | BM128: 78.44425781 | BN128: 77.61382812 | BO128: 81.08269141 | BP128: 80.10700114 | BQ128: 78.98395798 | BR128: 1.123043159 | BS128: 81.2300443 | BT128: 80.18259094 | BU128: 78.99677825 | BV128: 77.7512777 | BW128: 81.30871578 | BX128: 4.784231703 | BY128: -78 | BZ128: 74.82064363 | CA128: 83.90341728 | CB128: 81.66801237 | CC128: 16.78801237 | CD128: 17.24138249 | CE128: 97.3704538 | CF128: 97.5723534 | CG128: 100 | CH128: 50 | CI128: 0 | CJ128: 0
A129: 98 | B129: =OFFSET(InputPriceData!B$15,CalculationsAndCharts!$A129+$A$11,0,1,1) -> 2007-02-06 | C129: =OFFSET(InputPriceData!G$15,CalculationsAndCharts!$A129+$A$11,0,1,1) -> 2855700 | D129: =OFFSET(InputPriceData!C$15,CalculationsAndCharts!$A129+$A$11,IF($C$7,7,0),1,1) -> 81.4 | E129: =OFFSET(InputPriceData!D$15,CalculationsAndCharts!$A129+$A$11,IF($C$7,7,0),1,1) -> 82.46 | F129: =OFFSET(InputPriceData!E$15,CalculationsAndCharts!$A129+$A$11,IF($C$7,7,0),1,1) -> 80.79 | G129: =OFFSET(InputPriceData!F$15,CalculationsAndCharts!$A129+$A$11,IF($C$7,7,0),1,1) -> 82.1 | H129: 0 | I129: 0 | J129: 0 | K129: 0 | L129: 81.78333333 | M129: 1.613333333 | N129: 9.786166667 | O129: 8.818456464 | P129: 7.936610818 | Q129: 78.07570488 | R129: 74.54560377 | S129: 74.1105869 | T129: 83.36406023 | U129: 66.60899295 | V129: 1.67 | W129: 2.323431674 | X129: 0.07830002039 | Y129: 0 | BE129: 81.7 | BF129: =AVERAGE(OFFSET(BE$31,$A129,0,$BE$27,1)) -> 81.3825 | BG129: 80.9925 | BH129: 80.54875 | BI129: 80.0175 | BJ129: 79.348125 | BK129: 78.54320312 | BL129: 77.66167969 | BM129: 76.78339844 | BN129: 75.97384766 | BO129: 80.3216377 | BP129: 79.13131088 | BQ129: 77.86091483 | BR129: 1.270396054 | BS129: 80.40170693 | BT129: 79.13513759 | BU129: 77.81096556 | BV129: 76.50577714 | BW129: 80.47829323 | BX129: 4.423116745 | BY129: -79 | BZ129: 73.7882258 | CA129: 87.81308417 | CB129: 81.05248551 | CC129: 16.17248551 | CD129: 16.20138249 | CE129: 99.82163885 | CF129: 97.08093354 | CG129: 100 | CH129: 50 | CI129: 0 | CJ129: 0
A130: 99 | B130: =OFFSET(InputPriceData!B$15,CalculationsAndCharts!$A130+$A$11,0,1,1) -> 2007-02-05 | C130: =OFFSET(InputPriceData!G$15,CalculationsAndCharts!$A130+$A$11,0,1,1) -> 4366600 | D130: =OFFSET(InputPriceData!C$15,CalculationsAndCharts!$A130+$A$11,IF($C$7,7,0),1,1) -> 80.59 | E130: =OFFSET(InputPriceData!D$15,CalculationsAndCharts!$A130+$A$11,IF($C$7,7,0),1,1) -> 82.39 | F130: =OFFSET(InputPriceData!E$15,CalculationsAndCharts!$A130+$A$11,IF($C$7,7,0),1,1) -> 80.17 | G130: =OFFSET(InputPriceData!F$15,CalculationsAndCharts!$A130+$A$11,IF($C$7,7,0),1,1) -> 81.3 | H130: 0 | I130: 0 | J130: 0 | K130: 0 | L130: 81.28666667 | M130: 3.126666667 | N130: 9.967307692 | O130: 8.541967835 | P130: 7.687771052 | Q130: 77.01638247 | R130: 73.53700345 | S130: 73.10468316 | T130: 82.07897128 | U130: 65.8492324 | V130: 2.22 | W130: 2.650147511 | X130: 0.08259714036 | Y130: 0 | BE130: 81.065 | BF130: =AVERAGE(OFFSET(BE$31,$A130,0,$BE$27,1)) -> 80.6025 | BG130: 80.105 | BH130: 79.48625 | BI130: 78.67875 | BJ130: 77.73828125 | BK130: 76.78015625 | BL130: 75.90511719 | BM130: 75.16429687 | BN130: 74.55748047 | BO130: 79.2923291 | BP130: 77.94098406 | BQ130: 76.59051877 | BR130: 1.350465292 | BS130: 79.29144936 | BT130: 77.86856824 | BU130: 76.48679353 | BV130: 75.20058873 | BW130: 79.34591286 | BX130: 3.990937658 | BY130: -80 | BZ130: 72.76080046 | CA130: 91.25040884 | CB130: 80.28949788 | CC130: 15.40949788 | CD130: 16.13138249 | CE130: 95.52496754 | CF130: 95.47392087 | CG130: 100 | CH130: 50 | CI130: 0 | CJ130: 0
A131: 100 | B131: =OFFSET(InputPriceData!B$15,CalculationsAndCharts!$A131+$A$11,0,1,1) -> 2007-02-02 | C131: =OFFSET(InputPriceData!G$15,CalculationsAndCharts!$A131+$A$11,0,1,1) -> 3692700 | D131: =OFFSET(InputPriceData!C$15,CalculationsAndCharts!$A131+$A$11,IF($C$7,7,0),1,1) -> 79.46 | E131: =OFFSET(InputPriceData!D$15,CalculationsAndCharts!$A131+$A$11,IF($C$7,7,0),1,1) -> 81.01 | F131: =OFFSET(InputPriceData!E$15,CalculationsAndCharts!$A131+$A$11,IF($C$7,7,0),1,1) -> 78.16 | G131: =OFFSET(InputPriceData!F$15,CalculationsAndCharts!$A131+$A$11,IF($C$7,7,0),1,1) -> 80.83 | H131: 0 | I131: 0 | J131: 0 | K131: 0 | L131: 80 | M131: 2.19 | N131: 9.396576923 | O131: 8.134727876 | P131: 7.321255088 | Q131: 75.79630127 | R131: 72.54289516 | S131: 72.09471168 | T131: 80.67762303 | U131: 65.22164007 | V131: 2.85 | W131: 2.865221267 | X131: 0.08544749804 | Y131: 0 | BE131: 80.14 | BF131: =AVERAGE(OFFSET(BE$31,$A131,0,$BE$27,1)) -> 79.6075 | BG131: 78.8675 | BH131: 77.87125 | BI131: 76.7978125 | BJ131: 75.82203125 | BK131: 75.03007813 | BL131: 74.42347656 | BM131: 73.95066406 | BN131: 73.54151367 | BO131: 78.05202881 | BP131: 76.58963903 | BQ131: 75.24005348 | BR131: 1.349585545 | BS131: 77.93922457 | BT131: 76.44568713 | BU131: 75.10501882 | BV131: 73.91438393 | BW131: 77.93638886 | BX131: 3.502048199 | BY131: -81 | BZ131: 71.77754694 | CA131: 93.96599912 | CB131: 79.0260144 | CC131: 14.1460144 | CD131: 14.75138249 | CE131: 95.89619425 | CF131: 92.79071693 | CG131: 100 | CH131: 50 | CI131: 0 | CJ131: 0
A132: 101 | B132: =OFFSET(InputPriceData!B$15,CalculationsAndCharts!$A132+$A$11,0,1,1) -> 2007-02-01 | C132: =OFFSET(InputPriceData!G$15,CalculationsAndCharts!$A132+$A$11,0,1,1) -> 4401200 | D132: =OFFSET(InputPriceData!C$15,CalculationsAndCharts!$A132+$A$11,IF($C$7,7,0),1,1) -> 79.53 | E132: =OFFSET(InputPriceData!D$15,CalculationsAndCharts!$A132+$A$11,IF($C$7,7,0),1,1) -> 79.89 | F132: =OFFSET(InputPriceData!E$15,CalculationsAndCharts!$A132+$A$11,IF($C$7,7,0),1,1) -> 77.81 | G132: =OFFSET(InputPriceData!F$15,CalculationsAndCharts!$A132+$A$11,IF($C$7,7,0),1,1) -> 79.45 | H132: 0 | I132: =IF($S$16,AVERAGE(OFFSET($G132,0,0,I$31,1)),0) -> 0 | J132: 0 | K132: 0 | L132: 79.05 | M132: 3.67 | N132: 9.038846154 | O132: 7.774199577 | P132: 6.996779619 | Q132: 74.59524449 | R132: 71.61335056 | S132: 71.1271293 | T132: 79.38755013 | U132: 64.61657094 | V132: 2.08 | W132: 2.8728319 | X132: 0.08615899182 | Y132: 0 | BE132: 79.075 | BF132: =AVERAGE(OFFSET(BE$31,$A132,0,$BE$27,1)) -> 78.1275 | BG132: 76.875 | BH132: 75.724375 | BI132: 74.84625 | BJ132: 74.238125 | BK132: 73.816875 | BL132: 73.47785156 | BM132: 73.13236328 | BN132: 72.7255957 | BO132: 76.60979053 | BP132: 75.12724924 | BQ132: 73.89046793 | BR132: 1.236781307 | BS132: 76.36403055 | BT132: 74.95214969 | BU132: 73.76435051 | BV132: 72.72374903 | BW132: 76.28714658 | BX132: 2.990368821 | BY132: -82 | BZ132: 70.87784967 | CA132: 95.22265674 | CB132: 77.82989526 | CC132: 12.94989526 | CD132: 13.63138249 | CE132: 95.00060083 | CF132: 90.81236863 | CG132: 100 | CH132: 50 | CI132: 0 | CJ132: 0
A133: 102 | B133: =OFFSET(InputPriceData!B$15,CalculationsAndCharts!$A133+$A$11,0,1,1) -> 2007-01-31 | C133: =OFFSET(InputPriceData!G$15,CalculationsAndCharts!$A133+$A$11,0,1,1) -> 7391900 | D133: =OFFSET(InputPriceData!C$15,CalculationsAndCharts!$A133+$A$11,IF($C$7,7,0),1,1) -> 76.19 | E133: =OFFSET(InputPriceData!D$15,CalculationsAndCharts!$A133+$A$11,IF($C$7,7,0),1,1) -> 79.35 | F133: =OFFSET(InputPriceData!E$15,CalculationsAndCharts!$A133+$A$11,IF($C$7,7,0),1,1) -> 75.38 | G133: =OFFSET(InputPriceData!F$15,CalculationsAndCharts!$A133+$A$11,IF($C$7,7,0),1,1) -> 78.7 | H133: 0 | I133: 0 | J133: 0 | K133: 0 | L133: 77.81 | M133: 5.58 | N133: 8.580076923 | O133: 7.412871983 | P133: 6.671584785 | Q133: 73.3224572 | R133: 70.76138086 | S133: 70.24583291 | T133: 78.17425284 | U133: 64.08979608 | V133: 3.97 | W133: 3.26924785 | X133: 0.09154063342 | Y133: 0 | BE133: 77.18 | BF133: =AVERAGE(OFFSET(BE$31,$A133,0,$BE$27,1)) -> 75.6225 | BG133: 74.57375 | BH133: 73.968125 | BI133: 73.63 | BJ133: 73.395625 | BK133: 73.13882813 | BL133: 72.786875 | BM133: 72.31882813 | BN133: 71.75167969 | BO133: 74.8534668 | BP133: 73.64470796 | BQ133: 72.65368663 | BR133: 0.9910213283 | BS133: 74.63572928 | BT133: 73.54026883 | BU133: 72.57655133 | BV133: 71.68314756 | BW133: 74.57430007 | BX133: 2.502614849 | BY133: -83 | BZ133: 70.10021475 | CA133: 94.69410589 | CB133: 76.3317334 | CC133: 11.4517334 | CD133: 13.09138249 | CE133: 87.47535571 | CF133: 87.47482898 | CG133: 100 | CH133: 50 | CI133: 0 | CJ133: 0
A134: 103 | B134: =OFFSET(InputPriceData!B$15,CalculationsAndCharts!$A134+$A$11,0,1,1) -> 2007-01-30 | C134: =OFFSET(InputPriceData!G$15,CalculationsAndCharts!$A134+$A$11,0,1,1) -> 6981500 | D134: =OFFSET(InputPriceData!C$15,CalculationsAndCharts!$A134+$A$11,IF($C$7,7,0),1,1) -> 73.43 | E134: =OFFSET(InputPriceData!D$15,CalculationsAndCharts!$A134+$A$11,IF($C$7,7,0),1,1) -> 76.34 | F134: =OFFSET(InputPriceData!E$15,CalculationsAndCharts!$A134+$A$11,IF($C$7,7,0),1,1) -> 72.23 | G134: =OFFSET(InputPriceData!F$15,CalculationsAndCharts!$A134+$A$11,IF($C$7,7,0),1,1) -> 75.66 | H134: 0 | I134: 0 | J134: 0 | K134: 0 | L134: 74.74333333 | M134: 2.503333333 | N134: 7.740820513 | O134: 7.079384858 | P134: 6.371446372 | Q134: 72.04030211 | R134: 70.02964477 | S134: 69.51428517 | T134: 77.10902962 | U134: 63.65819839 | V134: 4.11 | W134: 2.918871775 | X134: 0.08857879692 | Y134: 0 | BE134: 74.065 | BF134: =AVERAGE(OFFSET(BE$31,$A134,0,$BE$27,1)) -> 73.525 | BG134: 73.3625 | BH134: 73.291875 | BI134: 73.16125 | BJ134: 72.88203125 | BK134: 72.43492188 | BL134: 71.85078125 | BM134: 71.18453125 | BN134: 70.49666992 | BO134: 73.15532178 | BP134: 72.43594912 | BQ134: 71.6626653 | BR134: 0.7732838159 | BS134: 73.20923293 | BT134: 72.44480838 | BU134: 71.61283383 | BV134: 70.78974379 | BW134: 73.28566746 | BX134: 2.091435332 | BY134: -84 | BZ134: 69.46589067 | CA134: 95.6597526 | CB134: 73.94932756 | CC134: 9.069327555 | CD134: 10.08138249 | CE134: 89.96114935 | CF134: 86.53462893 | CG134: 100 | CH134: 50 | CI134: 0 | CJ134: 0
A135: 104 | B135: =OFFSET(InputPriceData!B$15,CalculationsAndCharts!$A135+$A$11,0,1,1) -> 2007-01-29 | C135: =OFFSET(InputPriceData!G$15,CalculationsAndCharts!$A135+$A$11,0,1,1) -> 3186800 | D135: =OFFSET(InputPriceData!C$15,CalculationsAndCharts!$A135+$A$11,IF($C$7,7,0),1,1) -> 73.52 | E135: =OFFSET(InputPriceData!D$15,CalculationsAndCharts!$A135+$A$11,IF($C$7,7,0),1,1) -> 74.32 | F135: =OFFSET(InputPriceData!E$15,CalculationsAndCharts!$A135+$A$11,IF($C$7,7,0),1,1) -> 72.24 | G135: =OFFSET(InputPriceData!F$15,CalculationsAndCharts!$A135+$A$11,IF($C$7,7,0),1,1) -> 72.47 | H135: 0 | I135: 0 | J135: 0 | K135: 0 | L135: 73.01 | M135: 1.126666667 | N135: 7.457730769 | O135: 6.890403242 | P135: 6.201362918 | Q135: 71.26800747 | R135: 69.45517124 | S135: 68.94241427 | T135: 76.34557448 | U135: 63.25380832 | V135: 2.08 | W135: 2.323307663 | X135: 0.08205888868 | Y135: 0 | BE135: 72.985 | BF135: =AVERAGE(OFFSET(BE$31,$A135,0,$BE$27,1)) -> 73.2 | BG135: 73.22125 | BH135: 73.030625 | BI135: 72.6028125 | BJ135: 71.9878125 | BK135: 71.26664063 | BL135: 70.51828125 | BM135: 69.80880859 | BN135: 69.18827148 | BO135: 72.44113135 | BP135: 71.71657645 | BQ135: 70.88938148 | BR135: 0.8271949698 | BS135: 72.54377142 | BT135: 71.68038384 | BU135: 70.78085927 | BV135: 69.96665375 | BW135: 72.66522746 | BX135: 1.752441448 | BY135: -85 | BZ135: 68.94122137 | CA135: 103.1259703 | CB135: 72.72556567 | CC135: 7.845565674 | CD135: 9.231382487 | CE135: 84.98798186 | CF135: 83.92494908 | CG135: 100 | CH135: 50 | CI135: 0 | CJ135: 0
A136: 105 | B136: =OFFSET(InputPriceData!B$15,CalculationsAndCharts!$A136+$A$11,0,1,1) -> 2007-01-26 | C136: =OFFSET(InputPriceData!G$15,CalculationsAndCharts!$A136+$A$11,0,1,1) -> 2623500 | D136: =OFFSET(InputPriceData!C$15,CalculationsAndCharts!$A136+$A$11,IF($C$7,7,0),1,1) -> 74.27 | E136: =OFFSET(InputPriceData!D$15,CalculationsAndCharts!$A136+$A$11,IF($C$7,7,0),1,1) -> 74.37 | F136: =OFFSET(InputPriceData!E$15,CalculationsAndCharts!$A136+$A$11,IF($C$7,7,0),1,1) -> 72.23 | G136: =OFFSET(InputPriceData!F$15,CalculationsAndCharts!$A136+$A$11,IF($C$7,7,0),1,1) -> 73.5 | H136: 0 | I136: 0 | J136: 0 | K136: 0 | L136: 73.36666667 | M136: 1.62 | N136: 7.552397436 | O136: 6.728309663 | P136: 6.055478696 | Q136: 70.77029532 | R136: 68.93721803 | S136: 68.49262787 | T136: 75.66552769 | U136: 62.88173933 | V136: 2.14 | W136: 2.444961494 | X136: 0.08326478224 | Y136: 0 | BE136: 73.415 | BF136: =AVERAGE(OFFSET(BE$31,$A136,0,$BE$27,1)) -> 73.2425 | BG136: 72.84 | BH136: 72.175 | BI136: 71.3728125 | BJ136: 70.54546875 | BK136: 69.76992187 | BL136: 69.09933594 | BM136: 68.56773438 | BN136: 68.18856445 | BO136: 72.02294189 | BP136: 70.99202156 | BQ136: 70.06218651 | BR136: 0.9298350454 | BS136: 71.9218566 | BT136: 70.81699625 | BU136: 69.8813347 | BV136: 69.15244823 | BW136: 71.95943289 | BX136: 1.413429313 | BY136: -86 | BZ136: 68.46037245 | CA136: 111.8895549 | CB136: 72.69480428 | CC136: 7.814804281 | CD136: 9.231382487 | CE136: 84.65475558 | CF136: 79.91144217 | CG136: 100 | CH136: 50 | CI136: 0 | CJ136: 0
A137: 106 | B137: =OFFSET(InputPriceData!B$15,CalculationsAndCharts!$A137+$A$11,0,1,1) -> 2007-01-25 | C137: =OFFSET(InputPriceData!G$15,CalculationsAndCharts!$A137+$A$11,0,1,1) -> 6511700 | D137: =OFFSET(InputPriceData!C$15,CalculationsAndCharts!$A137+$A$11,IF($C$7,7,0),1,1) -> 74.65 | E137: =OFFSET(InputPriceData!D$15,CalculationsAndCharts!$A137+$A$11,IF($C$7,7,0),1,1) -> 75.49 | F137: =OFFSET(InputPriceData!E$15,CalculationsAndCharts!$A137+$A$11,IF($C$7,7,0),1,1) -> 72.73 | G137: =OFFSET(InputPriceData!F$15,CalculationsAndCharts!$A137+$A$11,IF($C$7,7,0),1,1) -> 73.33 | H137: 0 | I137: 0 | J137: 0 | K137: 0 | L137: 73.85 | M137: 3.63 | N137: 7.460461538 | O137: 6.492856013 | P137: 5.843570412 | Q137: 70.02847494 | R137: 68.41348166 | S137: 68.09837869 | T137: 74.90633767 | U137: 62.56991125 | V137: 2.76 | W137: 2.597442242 | X137: 0.08542127699 | Y137: 0 | BE137: 73.07 | BF137: =AVERAGE(OFFSET(BE$31,$A137,0,$BE$27,1)) -> 72.4375 | BG137: 71.51 | BH137: 70.570625 | BI137: 69.718125 | BJ137: 68.994375 | BK137: 68.42875 | BL137: 68.03613281 | BM137: 67.80939453 | BN137: 67.71914063 | BO137: 71.0738584 | BP137: 69.96110122 | BQ137: 69.13235147 | BR137: 0.8287497553 | BS137: 70.78985098 | BT137: 69.7121359 | BU137: 68.94567314 | BV137: 68.42356176 | BW137: 70.72295003 | BX137: 1.074475334 | BY137: -87 | BZ137: 68.03462357 | CA137: 112.549748 | CB137: 72.4619292 | CC137: 7.581929199 | CD137: 9.231382487 | CE137: 82.13210979 | CF137: 68.78598032 | CG137: 100 | CH137: 50 | CI137: 0 | CJ137: 0
A138: 107 | B138: =OFFSET(InputPriceData!B$15,CalculationsAndCharts!$A138+$A$11,0,1,1) -> 2007-01-24 | C138: =OFFSET(InputPriceData!G$15,CalculationsAndCharts!$A138+$A$11,0,1,1) -> 3909200 | D138: =OFFSET(InputPriceData!C$15,CalculationsAndCharts!$A138+$A$11,IF($C$7,7,0),1,1) -> 70.8 | E138: =OFFSET(InputPriceData!D$15,CalculationsAndCharts!$A138+$A$11,IF($C$7,7,0),1,1) -> 73.03 | F138: =OFFSET(InputPriceData!E$15,CalculationsAndCharts!$A138+$A$11,IF($C$7,7,0),1,1) -> 70.22 | G138: =OFFSET(InputPriceData!F$15,CalculationsAndCharts!$A138+$A$11,IF($C$7,7,0),1,1) -> 72.81 | H138: 0 | I138: 0 | J138: 0 | K138: 0 | L138: 72.02 | M138: 4.29 | N138: 6.850589744 | O138: 6.216397292 | P138: 5.594757563 | Q138: 68.93661064 | R138: 67.95205501 | S138: 67.77184403 | T138: 74.1684523 | U138: 62.35729744 | V138: 2.81 | W138: 2.516163362 | X138: 0.08455793658 | Y138: 0 | BE138: 71.805 | BF138: =AVERAGE(OFFSET(BE$31,$A138,0,$BE$27,1)) -> 70.5825 | BG138: 69.63125 | BH138: 68.865625 | BI138: 68.270625 | BJ138: 67.863125 | BK138: 67.64351562 | BL138: 67.58265625 | BM138: 67.62888672 | BN138: 67.7227832 | BO138: 69.73457959 | BP138: 68.84834405 | BQ138: 68.30360171 | BR138: 0.5447423357 | BS138: 69.39308638 | BT138: 68.63442082 | BU138: 68.17921039 | BV138: 67.90145037 | BW138: 69.26708168 | BX138: 0.8396706616 | BY138: -88 | BZ138: 67.72470749 | CA138: 95.92199826 | CB138: 70.87728979 | CC138: 5.997289795 | CD138: 8.221382487 | CE138: 72.94746114 | CF138: 52.9571297 | CG138: 100 | CH138: 50 | CI138: 0 | CJ138: 0
A139: 108 | B139: =OFFSET(InputPriceData!B$15,CalculationsAndCharts!$A139+$A$11,0,1,1) -> 2007-01-23 | C139: =OFFSET(InputPriceData!G$15,CalculationsAndCharts!$A139+$A$11,0,1,1) -> 4327100 | D139: =OFFSET(InputPriceData!C$15,CalculationsAndCharts!$A139+$A$11,IF($C$7,7,0),1,1) -> 67.73 | E139: =OFFSET(InputPriceData!D$15,CalculationsAndCharts!$A139+$A$11,IF($C$7,7,0),1,1) -> 71 | F139: =OFFSET(InputPriceData!E$15,CalculationsAndCharts!$A139+$A$11,IF($C$7,7,0),1,1) -> 67.73 | G139: =OFFSET(InputPriceData!F$15,CalculationsAndCharts!$A139+$A$11,IF($C$7,7,0),1,1) -> 70.8 | H139: 0 | I139: 0 | J139: 0 | K139: 0 | L139: 69.84333333 | M139: 2.883333333 | N139: 6.166076923 | O139: 6.035199448 | P139: 5.431679504 | Q139: 68.05564225 | R139: 67.6707534 | S139: 67.53808518 | T139: 73.70595285 | U139: 62.2390739 | V139: 3.27 | W139: 2.369245044 | X139: 0.08346391305 | Y139: 0 | BE139: 69.36 | BF139: =AVERAGE(OFFSET(BE$31,$A139,0,$BE$27,1)) -> 68.68 | BG139: 68.1 | BH139: 67.675625 | BI139: 67.455625 | BJ139: 67.42390625 | BK139: 67.52179688 | BL139: 67.67511719 | BM139: 67.81667969 | BN139: 67.9005957 | BO139: 68.34824854 | BP139: =BO139*$BF$28+$BF$29*BP140 -> 67.96210851 | BQ139: =BP139*$BF$28+$BF$29*BQ140 -> 67.75885938 | BR139: =BP139-BQ139 -> 0.2032491303 | BS139: =BP139+BR139 -> 68.16535764 | BT139: 67.87575526 | BU139: 67.72399995 | BV139: 67.62369036 | BW139: 68.07895627 | BX139: 0.7680484397 | BY139: -89 | BZ139: 67.5619678 | CA139: 66.82799063 | CB139: 69.09579093 | CC139: 4.215790934 | CD139: 8.221382487 | CE139: 51.27837004 | CF139: 38.96613352 | CG139: 100 | CH139: 50 | CI139: 0 | CJ139: 0
A140: 109 | B140: =OFFSET(InputPriceData!B$15,CalculationsAndCharts!$A140+$A$11,0,1,1) -> 2007-01-22 | C140: =OFFSET(InputPriceData!G$15,CalculationsAndCharts!$A140+$A$11,0,1,1) -> 2630200 | D140: =OFFSET(InputPriceData!C$15,CalculationsAndCharts!$A140+$A$11,IF($C$7,7,0),1,1) -> 68.08 | E140: =OFFSET(InputPriceData!D$15,CalculationsAndCharts!$A140+$A$11,IF($C$7,7,0),1,1) -> 68.54 | F140: =OFFSET(InputPriceData!E$15,CalculationsAndCharts!$A140+$A$11,IF($C$7,7,0),1,1) -> 66.96 | G140: =OFFSET(InputPriceData!F$15,CalculationsAndCharts!$A140+$A$11,IF($C$7,7,0),1,1) -> 67.92 | H140: 0 | I140: 0 | J140: 0 | K140: 0 | L140: 67.80666667 | M140: 1.696666667 | N140: 6.109641026 | O140: 5.997805884 | P140: 5.398025296 | Q140: 67.54487337 | R140: 67.56078516 | S140: 67.39479999 | T140: 73.55859104 | U140: 62.16275986 | V140: 1.58 | W140: 1.918867566 | X140: 0.07825187817 | Y140: 0 | BE140: 68 | BF140: =AVERAGE(OFFSET(BE$31,$A140,0,$BE$27,1)) -> 67.52 | BG140: 67.25125 | BH140: 67.235625 | BI140: 67.3921875 | BJ140: 67.6196875 | BK140: 67.8284375 | BL140: 67.95824219 | BM140: 67.98451172 | BN140: 67.91235352 | BO140: 67.650021 | BP140: 67.57596848 | BQ140: 67.55561025 | BR140: 0.02035823297 | BS140: 67.59632671 | BT140: 67.58615287 | BU140: 67.57224464 | BV140: 67.52338076 | BW140: 67.56510545 | BX140: 0.7912720613 | BY140: -90 | BZ140: 67.5274177 | CA140: 51.19073311 | CB140: 67.72834383 | CC140: 2.848343831 | CD140: 8.221382487 | CE140: 34.64555792 | CF140: 31.064703 | CG140: 100 | CH140: 50 | CI140: 0 | CJ140: 0
A141: 110 | B141: =OFFSET(InputPriceData!B$15,CalculationsAndCharts!$A141+$A$11,0,1,1) -> 2007-01-19 | C141: =OFFSET(InputPriceData!G$15,CalculationsAndCharts!$A141+$A$11,0,1,1) -> 3542000 | D141: =OFFSET(InputPriceData!C$15,CalculationsAndCharts!$A141+$A$11,IF($C$7,7,0),1,1) -> 66.51 | E141: =OFFSET(InputPriceData!D$15,CalculationsAndCharts!$A141+$A$11,IF($C$7,7,0),1,1) -> 68.27 | F141: =OFFSET(InputPriceData!E$15,CalculationsAndCharts!$A141+$A$11,IF($C$7,7,0),1,1) -> 66.11 | G141: =OFFSET(InputPriceData!F$15,CalculationsAndCharts!$A141+$A$11,IF($C$7,7,0),1,1) -> 68.08 | H141: 0 | I141: 0 | J141: 0 | K141: 0 | L141: 67.48666667 | M141: 1.906666667 | N141: 6.013153846 | O141: 5.965852987 | P141: 5.369267688 | Q141: 67.47007528 | R141: 67.56533138 | S141: 67.33545714 | T141: 73.53118437 | U141: 62.19606369 | V141: 2.27 | W141: 2.088301348 | X141: 0.08067422662 | Y141: 0 | BE141: 67.04 | BF141: =AVERAGE(OFFSET(BE$31,$A141,0,$BE$27,1)) -> 66.9825 | BG141: 67.22 | BH141: 67.54875 | BI141: 67.8471875 | BJ141: 68.0371875 | BK141: 68.08804687 | BL141: 68.01078125 | BM141: 67.84019531 | BN141: 67.61696289 | BO141: 67.36639307 | BP141: 67.50191596 | BQ141: 67.53525201 | BR141: -0.03333605025 | BS141: 67.46857991 | BT141: 67.57597904 | BU141: 67.55833642 | BV141: 67.47451688 | BW141: 67.52744474 | BX141: 0.8430338732 | BY141: -91 | BZ141: 67.55562043 | CA141: 49.16445566 | CB141: 67.42652987 | CC141: 2.546529867 | CD141: 8.221382487 | CE141: 30.97447261 | CF141: 31.76245757 | CG141: 100 | CH141: 50 | CI141: 0 | CJ141: 0
A142: 111 | B142: =OFFSET(InputPriceData!B$15,CalculationsAndCharts!$A142+$A$11,0,1,1) -> 2007-01-18 | C142: =OFFSET(InputPriceData!G$15,CalculationsAndCharts!$A142+$A$11,0,1,1) -> 3997400 | D142: =OFFSET(InputPriceData!C$15,CalculationsAndCharts!$A142+$A$11,IF($C$7,7,0),1,1) -> 67.85 | E142: =OFFSET(InputPriceData!D$15,CalculationsAndCharts!$A142+$A$11,IF($C$7,7,0),1,1) -> 68.67 | F142: =OFFSET(InputPriceData!E$15,CalculationsAndCharts!$A142+$A$11,IF($C$7,7,0),1,1) -> 65.58 | G142: =OFFSET(InputPriceData!F$15,CalculationsAndCharts!$A142+$A$11,IF($C$7,7,0),1,1) -> 66 | H142: 0 | I142: 0 | J142: 0 | K142: 0 | L142: 66.75 | M142: 2.276666667 | N142: 6.053205128 | O142: 5.952338455 | P142: 5.35710461 | Q142: 67.46533488 | R142: 67.59254741 | S142: 67.3277306 | T142: 73.54488587 | U142: 62.2354428 | V142: 3.09 | W142: 1.997452022 | X142: 0.08026442458 | Y142: 0 | BE142: 66.925 | BF142: =AVERAGE(OFFSET(BE$31,$A142,0,$BE$27,1)) -> 67.4575 | BG142: 67.8775 | BH142: 68.145625 | BI142: 68.2271875 | BJ142: 68.13890625 | BK142: 67.93351562 | BL142: 67.66960937 | BM142: 67.39373047 | BN142: 67.13711914 | BO142: 67.54394092 | BP142: 67.63743886 | BQ142: 67.56858806 | BR142: 0.06885079678 | BS142: 67.70628966 | BT142: 67.68337816 | BU142: 67.5406938 | BV142: 67.39069735 | BW142: 67.81875044 | BX142: 0.9032333541 | BY142: -92 | BZ142: 67.59817072 | CA142: 56.10528032 | CB142: 67.14697046 | CC142: 2.266970459 | CD142: 8.221382487 | CE142: 27.57407848 | CF142: 34.55822122 | CG142: 100 | CH142: 50 | CI142: 0 | CJ142: 0
A143: 112 | B143: =OFFSET(InputPriceData!B$15,CalculationsAndCharts!$A143+$A$11,0,1,1) -> 2007-01-17 | C143: =OFFSET(InputPriceData!G$15,CalculationsAndCharts!$A143+$A$11,0,1,1) -> 2120200 | D143: =OFFSET(InputPriceData!C$15,CalculationsAndCharts!$A143+$A$11,IF($C$7,7,0),1,1) -> 67.89 | E143: =OFFSET(InputPriceData!D$15,CalculationsAndCharts!$A143+$A$11,IF($C$7,7,0),1,1) -> 68.44 | F143: =OFFSET(InputPriceData!E$15,CalculationsAndCharts!$A143+$A$11,IF($C$7,7,0),1,1) -> 67.28 | G143: =OFFSET(InputPriceData!F$15,CalculationsAndCharts!$A143+$A$11,IF($C$7,7,0),1,1) -> 67.85 | H143: 0 | I143: 0 | J143: 0 | K143: 0 | L143: 67.85666667 | M143: 1.036666667 | N143: 5.853858974 | O143: 5.923519406 | P143: 5.331167465 | Q143: 67.66971628 | R143: 67.62889385 | S143: 67.35827268 | T143: 73.55241325 | U143: 62.29772638 | V143: 1.16 | W143: 1.451178034 | X143: 0.07138803292 | Y143: 0 | BE143: 67.99 | BF143: =AVERAGE(OFFSET(BE$31,$A143,0,$BE$27,1)) -> 68.2975 | BG143: 68.41375 | BH143: 68.30875 | BI143: 68.050625 | BJ143: 67.728125 | BK143: 67.40570313 | BL143: 67.11785156 | BM143: 66.88050781 | BN143: 66.70266602 | BO143: 67.94421143 | BP143: 67.7309368 | BQ143: 67.49973727 | BR143: 0.2311995366 | BS143: 67.96213634 | BT143: 67.66046666 | BU143: 67.39800943 | BV143: 67.2407009 | BW143: 68.02807257 | BX143: 0.9777439051 | BY143: -93 | BZ143: 67.62033969 | CA143: 60.42534967 | CB143: 67.90043905 | CC143: 3.020439046 | CD143: 8.221382487 | CE143: 36.73882162 | CF143: 38.21593055 | CG143: 100 | CH143: 50 | CI143: 0 | CJ143: 0
A144: 113 | B144: =OFFSET(InputPriceData!B$15,CalculationsAndCharts!$A144+$A$11,0,1,1) -> 2007-01-16 | C144: =OFFSET(InputPriceData!G$15,CalculationsAndCharts!$A144+$A$11,0,1,1) -> 1934100 | D144: =OFFSET(InputPriceData!C$15,CalculationsAndCharts!$A144+$A$11,IF($C$7,7,0),1,1) -> 68.9 | E144: =OFFSET(InputPriceData!D$15,CalculationsAndCharts!$A144+$A$11,IF($C$7,7,0),1,1) -> 69.06 | F144: =OFFSET(InputPriceData!E$15,CalculationsAndCharts!$A144+$A$11,IF($C$7,7,0),1,1) -> 67.76 | G144: =OFFSET(InputPriceData!F$15,CalculationsAndCharts!$A144+$A$11,IF($C$7,7,0),1,1) -> 68.13 | H144: 0 | I144: 0 | J144: 0 | K144: 0 | L144: 68.31666667 | M144: 0.88 | N144: 5.849307692 | O144: 5.943422387 | P144: 5.349080148 | Q144: 67.61630188 | R144: 67.61723029 | S144: 67.42754107 | T144: 73.56065268 | U144: 62.26815015 | V144: 1.32 | W144: 1.596767051 | X144: 0.07343706224 | Y144: 0 | BE144: 68.605 | BF144: =AVERAGE(OFFSET(BE$31,$A144,0,$BE$27,1)) -> 68.53 | BG144: 68.20375 | BH144: 67.7925 | BI144: 67.405625 | BJ144: 67.08328125 | BK144: 66.83 | BL144: 66.64316406 | BM144: 66.52482422 | BN144: 66.48176758 | BO144: 67.91549561 | BP144: 67.51766218 | BQ144: 67.26853773 | BR144: 0.2491244514 | BS144: 67.76678663 | BT144: 67.35879697 | BU144: 67.13555221 | BV144: 67.08339237 | BW144: 67.75312666 | BX144: 1.080436983 | BY144: -94 | BZ144: 67.63221989 | CA144: 52.79763597 | CB144: 68.11608114 | CC144: 3.236081136 | CD144: 8.221382487 | CE144: 39.36176356 | CF144: 35.43168095 | CG144: 100 | CH144: 50 | CI144: 0 | CJ144: 0
A145: 114 | B145: =OFFSET(InputPriceData!B$15,CalculationsAndCharts!$A145+$A$11,0,1,1) -> 2007-01-12 | C145: =OFFSET(InputPriceData!G$15,CalculationsAndCharts!$A145+$A$11,0,1,1) -> 2923900 | D145: =OFFSET(InputPriceData!C$15,CalculationsAndCharts!$A145+$A$11,IF($C$7,7,0),1,1) -> 67.84 | E145: =OFFSET(InputPriceData!D$15,CalculationsAndCharts!$A145+$A$11,IF($C$7,7,0),1,1) -> 69.25 | F145: =OFFSET(InputPriceData!E$15,CalculationsAndCharts!$A145+$A$11,IF($C$7,7,0),1,1) -> 67.59 | G145: =OFFSET(InputPriceData!F$15,CalculationsAndCharts!$A145+$A$11,IF($C$7,7,0),1,1) -> 69.08 | H145: 0 | I145: 0 | J145: 0 | K145: 0 | L145: 68.64 | M145: 1.99 | N145: 5.972192308 | O145: 5.970312299 | P145: 5.373281069 | Q145: 67.41619766 | R145: 67.61749556 | S145: 67.56624327 | T145: 73.58780785 | U145: 62.24421449 | V145: 1.66 | W145: 1.735150576 | X145: 0.07511798749 | Y145: 0 | BE145: 68.455 | BF145: =AVERAGE(OFFSET(BE$31,$A145,0,$BE$27,1)) -> 67.8775 | BG145: 67.38125 | BH145: 67.01875 | BI145: 66.7609375 | BJ145: 66.57671875 | BK145: 66.45632812 | BL145: 66.40648437 | BM145: 66.43871094 | BN145: 66.55910156 | BO145: 67.45822656 | BP145: 67.11982876 | BQ145: 67.01941328 | BR145: 0.1004154794 | BS145: 67.22024424 | BT145: 66.95080731 | BU145: 66.91230745 | BV145: 67.03123254 | BW145: 67.14673214 | BX145: 1.191601879 | BY145: -95 | BZ145: 67.68849632 | CA145: 38.63369985 | CB145: 68.04911328 | CC145: 3.169113281 | CD145: 8.221382487 | CE145: 38.54720646 | CF145: 28.63775143 | CG145: 100 | CH145: 50 | CI145: 0 | CJ145: 0
A146: 115 | B146: =OFFSET(InputPriceData!B$15,CalculationsAndCharts!$A146+$A$11,0,1,1) -> 2007-01-11 | C146: =OFFSET(InputPriceData!G$15,CalculationsAndCharts!$A146+$A$11,0,1,1) -> 2902400 | D146: =OFFSET(InputPriceData!C$15,CalculationsAndCharts!$A146+$A$11,IF($C$7,7,0),1,1) -> 66.77 | E146: =OFFSET(InputPriceData!D$15,CalculationsAndCharts!$A146+$A$11,IF($C$7,7,0),1,1) -> 68.37 | F146: =OFFSET(InputPriceData!E$15,CalculationsAndCharts!$A146+$A$11,IF($C$7,7,0),1,1) -> 66.65 | G146: =OFFSET(InputPriceData!F$15,CalculationsAndCharts!$A146+$A$11,IF($C$7,7,0),1,1) -> 67.83 | H146: 0 | I146: 0 | J146: 0 | K146: 0 | L146: 67.61666667 | M146: 2.506666667 | N146: 5.929410256 | O146: 5.969775154 | P146: 5.372797639 | Q146: 67.06653985 | R146: 67.67500924 | S146: 67.77683659 | T146: 73.64478439 | U146: 62.3022116 | V146: 1.72 | W146: 1.772725864 | X146: 0.07613483509 | Y146: 0 | BE146: 67.3 | BF146: =AVERAGE(OFFSET(BE$31,$A146,0,$BE$27,1)) -> 66.885 | BG146: 66.65625 | BH146: 66.503125 | BI146: 66.3925 | BJ146: 66.3359375 | BK146: 66.35664062 | BL146: 66.4709375 | BM146: 66.67949219 | BN146: 66.96526367 | BO146: 66.81078857 | BP146: 66.78143096 | BQ146: 66.9189978 | BR146: -0.1375668447 | BS146: 66.64386411 | BT146: 66.68137039 | BU146: 66.87380758 | BV146: 67.15015763 | BW146: 66.57284606 | BX146: 1.292171049 | BY146: -96 | BZ146: 67.83025404 | CA146: 25.67257101 | CB146: 67.21372762 | CC146: 2.33372762 | CD146: 8.221382487 | CE146: 28.38607283 | CF146: 21.37824339 | CG146: 100 | CH146: 50 | CI146: 0 | CJ146: 0
A147: 116 | B147: =OFFSET(InputPriceData!B$15,CalculationsAndCharts!$A147+$A$11,0,1,1) -> 2007-01-10 | C147: =OFFSET(InputPriceData!G$15,CalculationsAndCharts!$A147+$A$11,0,1,1) -> 2338000 | D147: =OFFSET(InputPriceData!C$15,CalculationsAndCharts!$A147+$A$11,IF($C$7,7,0),1,1) -> 66.45 | E147: =OFFSET(InputPriceData!D$15,CalculationsAndCharts!$A147+$A$11,IF($C$7,7,0),1,1) -> 67.16 | F147: =OFFSET(InputPriceData!E$15,CalculationsAndCharts!$A147+$A$11,IF($C$7,7,0),1,1) -> 65.11 | G147: =OFFSET(InputPriceData!F$15,CalculationsAndCharts!$A147+$A$11,IF($C$7,7,0),1,1) -> 66.77 | H147: 0 | I147: 0 | J147: 0 | K147: 0 | L147: 66.34666667 | M147: 1.466666667 | N147: 5.742807692 | O147: 5.981307982 | P147: 5.383177184 | Q147: 66.90936076 | R147: 67.84885764 | S147: 68.0362899 | T147: 73.83016562 | U147: 62.46568045 | V147: 2.05 | W147: 1.799088796 | X147: 0.07694456786 | Y147: 0 | BE147: 66.47 | BF147: =AVERAGE(OFFSET(BE$31,$A147,0,$BE$27,1)) -> 66.4275 | BG147: 66.35 | BH147: 66.281875 | BI147: 66.279375 | BJ147: 66.37734375 | BK147: 66.58523437 | BL147: 66.88804688 | BM147: 67.25103516 | BN147: 67.62853516 | BO147: 66.53416602 | BP147: 66.75207334 | BQ147: 67.05656464 | BR147: -0.3044913081 | BS147: 66.44758203 | BT147: 66.71887667 | BU147: 67.06624477 | BV147: 67.42650768 | BW147: 66.38440338 | BX147: 1.388905585 | BY147: -97 | BZ147: 68.06193301 | CA147: 19.8048297 | CB147: 66.44041634 | CC147: 1.560416341 | CD147: 8.221382487 | CE147: 18.97997501 | CF147: 18.30294759 | CG147: 100 | CH147: 50 | CI147: 0 | CJ147: 0
A148: 117 | B148: =OFFSET(InputPriceData!B$15,CalculationsAndCharts!$A148+$A$11,0,1,1) -> 2007-01-09 | C148: =OFFSET(InputPriceData!G$15,CalculationsAndCharts!$A148+$A$11,0,1,1) -> 3458800 | D148: =OFFSET(InputPriceData!C$15,CalculationsAndCharts!$A148+$A$11,IF($C$7,7,0),1,1) -> 66.61 | E148: =OFFSET(InputPriceData!D$15,CalculationsAndCharts!$A148+$A$11,IF($C$7,7,0),1,1) -> 66.61 | F148: =OFFSET(InputPriceData!E$15,CalculationsAndCharts!$A148+$A$11,IF($C$7,7,0),1,1) -> 64.88 | G148: =OFFSET(InputPriceData!F$15,CalculationsAndCharts!$A148+$A$11,IF($C$7,7,0),1,1) -> 66.17 | H148: 0 | I148: 0 | J148: 0 | K148: 0 | L148: 65.88666667 | M148: 1.473333333 | N148: 5.699115385 | O148: 6.049450922 | P148: 5.444505829 | Q148: 67.0701305 | R148: 68.11728532 | S148: 68.29106321 | T148: 74.16673624 | U148: 62.67277949 | V148: 1.73 | W148: 1.673633194 | X148: 0.07529293024 | Y148: 0 | BE148: 66.385 | BF148: =AVERAGE(OFFSET(BE$31,$A148,0,$BE$27,1)) -> 66.2725 | BG148: 66.21375 | BH148: 66.276875 | BI148: 66.4753125 | BJ148: 66.793125 | BK148: 67.19085938 | BL148: 67.61402344 | BM148: 68.00603516 | BN148: 68.32201172 | BO148: 66.63056836 | BP148: 66.96998066 | BQ148: 67.36105595 | BR148: -0.3910752954 | BS148: 66.57890536 | BT148: 66.99017131 | BU148: 67.41361287 | BV148: 67.78677058 | BW148: 66.51644592 | BX148: 1.503965441 | BY148: -98 | BZ148: 68.34911985 | CA148: 19.53597007 | CB148: 66.25861751 | CC148: 1.378617513 | CD148: 8.221382487 | CE148: 16.76868234 | CF148: 18.32447147 | CG148: 100 | CH148: 50 | CI148: 0 | CJ148: 0
A149: 118 | B149: =OFFSET(InputPriceData!B$15,CalculationsAndCharts!$A149+$A$11,0,1,1) -> 2007-01-08 | C149: =OFFSET(InputPriceData!G$15,CalculationsAndCharts!$A149+$A$11,0,1,1) -> 2396700 | D149: =OFFSET(InputPriceData!C$15,CalculationsAndCharts!$A149+$A$11,IF($C$7,7,0),1,1) -> 65.58 | E149: =OFFSET(InputPriceData!D$15,CalculationsAndCharts!$A149+$A$11,IF($C$7,7,0),1,1) -> 66.92 | F149: =OFFSET(InputPriceData!E$15,CalculationsAndCharts!$A149+$A$11,IF($C$7,7,0),1,1) -> 65.54 | G149: =OFFSET(InputPriceData!F$15,CalculationsAndCharts!$A149+$A$11,IF($C$7,7,0),1,1) -> 66.6 | H149: 0 | I149: 0 | J149: 0 | K149: 0 | L149: 66.35333333 | M149: 1.283333333 | N149: 5.800153846 | O149: 6.149546789 | P149: 5.53459211 | Q149: 67.40826302 | R149: 68.41647241 | S149: 68.52184317 | T149: 74.5660192 | U149: 62.8818803 | V149: 1.38 | W149: 1.645449791 | X149: 0.07470645331 | Y149: 0 | BE149: 66.16 | BF149: =AVERAGE(OFFSET(BE$31,$A149,0,$BE$27,1)) -> 66.155 | BG149: 66.34 | BH149: 66.67375 | BI149: 67.1109375 | BJ149: 67.58859375 | BK149: 68.0371875 | BL149: 68.39804688 | BM149: 68.63798828 | BN149: 68.75455078 | BO149: 66.81574023 | BP149: 67.30939296 | BQ149: 67.75213125 | BR149: -0.4427382926 | BS149: 66.86665466 | BT149: 67.40143726 | BU149: 67.83705442 | BV149: 68.1599283 | BW149: 66.85307683 | BX149: 1.577781386 | BY149: -99 | BZ149: 68.65864999 | CA149: 21.39063148 | CB149: 66.58453678 | CC149: 1.514536784 | CD149: 7.904604004 | CE149: 19.16018542 | CF149: 19.96481708 | CG149: 100 | CH149: 50 | CI149: 0 | CJ149: 0
A150: 119 | B150: =OFFSET(InputPriceData!B$15,CalculationsAndCharts!$A150+$A$11,0,1,1) -> 2007-01-05 | C150: =OFFSET(InputPriceData!G$15,CalculationsAndCharts!$A150+$A$11,0,1,1) -> 3784900 | D150: =OFFSET(InputPriceData!C$15,CalculationsAndCharts!$A150+$A$11,IF($C$7,7,0),1,1) -> 66.59 | E150: =OFFSET(InputPriceData!D$15,CalculationsAndCharts!$A150+$A$11,IF($C$7,7,0),1,1) -> 66.94 | F150: =OFFSET(InputPriceData!E$15,CalculationsAndCharts!$A150+$A$11,IF($C$7,7,0),1,1) -> 65.07 | G150: =OFFSET(InputPriceData!F$15,CalculationsAndCharts!$A150+$A$11,IF($C$7,7,0),1,1) -> 65.72 | H150: 0 | I150: 0 | J150: 0 | K150: 0 | L150: 65.91 | M150: 1.396666667 | N150: 5.824730769 | O150: 6.249373345 | P150: 5.62443601 | Q150: 67.7096715 | R150: 68.70453224 | S150: 68.73772694 | T150: 74.95390558 | U150: 63.08009623 | V150: 1.87 | W150: 1.778174686 | X150: 0.07705682723 | Y150: 0 | BE150: 66.15 | BF150: =AVERAGE(OFFSET(BE$31,$A150,0,$BE$27,1)) -> 66.525 | BG150: 67.0075 | BH150: 67.548125 | BI150: 68.06625 | BJ150: 68.48578125 | BK150: 68.75890625 | BL150: 68.87792969 | BM150: 68.87111328 | BN150: 68.78710938 | BO150: 67.24079199 | BP150: 67.80304568 | BQ150: 68.19486954 | BR150: -0.3918238639 | BS150: 67.41122181 | BT150: 67.93621986 | BU150: 68.27267158 | BV150: 68.48280218 | BW150: 67.47344703 | BX150: 1.545408988 | BY150: -100 | BZ150: 68.96279912 | CA150: 25.90682959 | CB150: 66.575396 | CC150: 1.505395996 | CD150: 7.904604004 | CE150: 19.04454664 | CF150: 32.2257936 | CG150: 100 | CH150: 50 | CI150: 0 | CJ150: 0
A151: 120 | B151: =OFFSET(InputPriceData!B$15,CalculationsAndCharts!$A151+$A$11,0,1,1) -> 2007-01-04 | C151: =OFFSET(InputPriceData!G$15,CalculationsAndCharts!$A151+$A$11,0,1,1) -> 2648600 | D151: =OFFSET(InputPriceData!C$15,CalculationsAndCharts!$A151+$A$11,IF($C$7,7,0),1,1) -> 67.19 | E151: =OFFSET(InputPriceData!D$15,CalculationsAndCharts!$A151+$A$11,IF($C$7,7,0),1,1) -> 67.19 | F151: =OFFSET(InputPriceData!E$15,CalculationsAndCharts!$A151+$A$11,IF($C$7,7,0),1,1) -> 65.63 | G151: =OFFSET(InputPriceData!F$15,CalculationsAndCharts!$A151+$A$11,IF($C$7,7,0),1,1) -> 66.58 | H151: 0 | I151: 0 | J151: 0 | K151: 0 | L151: 66.46666667 | M151: 1.783333333 | N151: 5.756461538 | O151: 6.370699795 | P151: 5.733629815 | Q151: 68.22386336 | R151: 68.98877816 | S151: 68.97041082 | T151: 75.35947795 | U151: 63.25514834 | V151: 1.59 | W151: 1.732262029 | X151: 0.07601775351 | Y151: 0 | BE151: 66.9 | BF151: =AVERAGE(OFFSET(BE$31,$A151,0,$BE$27,1)) -> 67.49 | BG151: 68.08875 | BH151: 68.584375 | BI151: 68.9053125 | BJ151: 69.03203125 | BK151: 68.99695312 | BL151: 68.86429687 | BM151: 68.70310547 | BN151: 68.56618164 | BO151: 67.94814404 | BP151: 68.36529936 | BQ151: 68.5866934 | BR151: -0.2213940432 | BS151: 68.14390532 | BT151: 68.46121792 | BU151: 68.60912329 | BV151: 68.69293278 | BW151: 68.24921664 | BX151: 1.474252418 | BY151: -101 | BZ151: 69.22326888 | CA151: 33.4822682 | CB151: 67.20740535 | CC151: 1.577405355 | CD151: 7.272594645 | CE151: 21.68971917 | CF151: 48.3723281 | CG151: 100 | CH151: 50 | CI151: 0 | CJ151: 0
A152: 121 | B152: =OFFSET(InputPriceData!B$15,CalculationsAndCharts!$A152+$A$11,0,1,1) -> 2007-01-03 | C152: =OFFSET(InputPriceData!G$15,CalculationsAndCharts!$A152+$A$11,0,1,1) -> 3158800 | D152: =OFFSET(InputPriceData!C$15,CalculationsAndCharts!$A152+$A$11,IF($C$7,7,0),1,1) -> 68.39 | E152: =OFFSET(InputPriceData!D$15,CalculationsAndCharts!$A152+$A$11,IF($C$7,7,0),1,1) -> 68.74 | F152: =OFFSET(InputPriceData!E$15,CalculationsAndCharts!$A152+$A$11,IF($C$7,7,0),1,1) -> 66.28 | G152: =OFFSET(InputPriceData!F$15,CalculationsAndCharts!$A152+$A$11,IF($C$7,7,0),1,1) -> 67.22 | H152: 0 | I152: =IF($S$16,AVERAGE(OFFSET($G152,0,0,I$31,1)),0) -> 0 | J152: 0 | K152: 0 | L152: 67.41333333 | M152: 2.676666667 | N152: 5.762833333 | O152: 6.546196439 | P152: 5.891576795 | Q152: 68.72591956 | R152: 69.20732524 | S152: 69.17850439 | T152: 75.75352168 | U152: 63.31574845 | V152: 2.66 | W152: 1.803393043 | X152: 0.07682822141 | Y152: 0 | BE152: 68.08 | BF152: =AVERAGE(OFFSET(BE$31,$A152,0,$BE$27,1)) -> 68.6875 | BG152: 69.08 | BH152: 69.22625 | BI152: 69.15875 | BJ152: 68.961875 | BK152: 68.73164062 | BL152: 68.54191406 | BM152: 68.42925781 | BN152: 68.39791992 | BO152: 68.65319287 | BP152: 68.78245468 | BQ152: 68.80808745 | BR152: -0.02563276777 | BS152: 68.75682191 | BT152: 68.77853051 | BU152: 68.75702867 | BV152: 68.77674226 | BW152: 68.84124777 | BX152: 1.422975372 | BY152: -102 | BZ152: 69.41631217 | CA152: 39.89679644 | CB152: 68.0332631 | CC152: 5.683263102 | CD152: 10.15900366 | CE152: 55.94311501 | CF152: 64.64521339 | CG152: 100 | CH152: 50 | CI152: 0 | CJ152: 0
A153: 122 | B153: =OFFSET(InputPriceData!B$15,CalculationsAndCharts!$A153+$A$11,0,1,1) -> 2006-12-29 | C153: =OFFSET(InputPriceData!G$15,CalculationsAndCharts!$A153+$A$11,0,1,1) -> 1222200 | D153: =OFFSET(InputPriceData!C$15,CalculationsAndCharts!$A153+$A$11,IF($C$7,7,0),1,1) -> 69.45 | E153: =OFFSET(InputPriceData!D$15,CalculationsAndCharts!$A153+$A$11,IF($C$7,7,0),1,1) -> 69.45 | F153: =OFFSET(InputPriceData!E$15,CalculationsAndCharts!$A153+$A$11,IF($C$7,7,0),1,1) -> 68.48 | G153: =OFFSET(InputPriceData!F$15,CalculationsAndCharts!$A153+$A$11,IF($C$7,7,0),1,1) -> 68.94 | H153: 0 | I153: 0 | J153: 0 | K153: 0 | L153: 68.95666667 | M153: 1.343333333 | N153: 6.413666667 | O153: 6.770014469 | P153: 6.093013023 | Q153: 69.10094419 | R153: 69.34486973 | S153: 69.33081517 | T153: 76.1148842 | U153: 63.2518567 | V153: 1.17 | W153: 1.375089564 | X153: 0.06994617877 | Y153: 0 | BE153: 69.295 | BF153: =AVERAGE(OFFSET(BE$31,$A153,0,$BE$27,1)) -> 69.4725 | BG153: 69.3725 | BH153: 69.09125 | BI153: 68.765 | BJ153: 68.50140625 | BK153: 68.3521875 | BL153: 68.31660156 | BM153: 68.36658203 | BN153: 68.4703418 | BO153: 69.07185596 | BP153: 68.91171649 | BQ153: 68.83372022 | BR153: 0.07799627346 | BS153: 68.98971276 | BT153: 68.80023911 | BU153: 68.73552684 | BV153: 68.79645584 | BW153: 68.99059267 | BX153: 1.391120905 | BY153: -103 | BZ153: 69.55556505 | CA153: 39.84681388 | CB153: 69.01426131 | CC153: 8.364261312 | CD153: 12.39440861 | CE153: 67.48415011 | CF153: 67.85195849 | CG153: 100 | CH153: 50 | CI153: 0 | CJ153: 0
A154: 123 | B154: =OFFSET(InputPriceData!B$15,CalculationsAndCharts!$A154+$A$11,0,1,1) -> 2006-12-28 | C154: =OFFSET(InputPriceData!G$15,CalculationsAndCharts!$A154+$A$11,0,1,1) -> 1459000 | D154: =OFFSET(InputPriceData!C$15,CalculationsAndCharts!$A154+$A$11,IF($C$7,7,0),1,1) -> 69.75 | E154: =OFFSET(InputPriceData!D$15,CalculationsAndCharts!$A154+$A$11,IF($C$7,7,0),1,1) -> 70.46 | F154: =OFFSET(InputPriceData!E$15,CalculationsAndCharts!$A154+$A$11,IF($C$7,7,0),1,1) -> 69.36 | G154: =OFFSET(InputPriceData!F$15,CalculationsAndCharts!$A154+$A$11,IF($C$7,7,0),1,1) -> 69.65 | H154: 0 | I154: 0 | J154: 0 | K154: 0 | L154: 69.82333333 | M154: 2.053333333 | N154: 6.362692308 | O154: 6.871828127 | P154: 6.184645315 | Q154: 69.14216634 | R154: 69.41456274 | S154: 69.4723576 | T154: 76.28639086 | U154: 63.22991742 | V154: 1.1 | W154: 1.477634347 | X154: 0.07121513778 | Y154: 0 | BE154: 69.65 | BF154: =AVERAGE(OFFSET(BE$31,$A154,0,$BE$27,1)) -> 69.2725 | BG154: 68.81 | BH154: 68.43875 | BI154: 68.2378125 | BJ154: 68.20296875 | BK154: 68.28101562 | BL154: 68.4165625 | BM154: 68.57410156 | BN154: 68.7372168 | BO154: 68.95485889 | BP154: 68.75157702 | BQ154: 68.75572394 | BR154: -0.004146921031 | BS154: 68.7474301 | BT154: 68.61076546 | BU154: 68.67081456 | BV154: 68.85738485 | BW154: 68.67723756 | BX154: 1.366071995 | BY154: -104 | BZ154: 69.68357327 | CA154: 31.58340645 | CB154: 69.38909611 | CC154: 8.73909611 | CD154: 12.39440861 | CE154: 70.50837507 | CF154: 65.63757364 | CG154: 100 | CH154: 50 | CI154: 0 | CJ154: 0
A155: 124 | B155: =OFFSET(InputPriceData!B$15,CalculationsAndCharts!$A155+$A$11,0,1,1) -> 2006-12-27 | C155: =OFFSET(InputPriceData!G$15,CalculationsAndCharts!$A155+$A$11,0,1,1) -> 2331100 | D155: =OFFSET(InputPriceData!C$15,CalculationsAndCharts!$A155+$A$11,IF($C$7,7,0),1,1) -> 68.43 | E155: =OFFSET(InputPriceData!D$15,CalculationsAndCharts!$A155+$A$11,IF($C$7,7,0),1,1) -> 69.75 | F155: =OFFSET(InputPriceData!E$15,CalculationsAndCharts!$A155+$A$11,IF($C$7,7,0),1,1) -> 67.77 | G155: =OFFSET(InputPriceData!F$15,CalculationsAndCharts!$A155+$A$11,IF($C$7,7,0),1,1) -> 69.65 | H155: 0 | I155: 0 | J155: 0 | K155: 0 | L155: 69.05666667 | M155: 1.546666667 | N155: 6.399102564 | O155: 7.017295504 | P155: 6.315565954 | Q155: 68.9475472 | R155: 69.49239028 | S155: 69.64648358 | T155: 76.50968578 | U155: 63.17682432 | V155: 1.98 | W155: 1.66645152 | X155: 0.07392608069 | Y155: 0 | BE155: 68.895 | BF155: =AVERAGE(OFFSET(BE$31,$A155,0,$BE$27,1)) -> 68.3475 | BG155: 68.0675 | BH155: 68.036875 | BI155: 68.168125 | BJ155: 68.3590625 | BK155: 68.55210938 | BL155: 68.73164063 | BM155: 68.90033203 | BN155: 69.06172852 | BO155: 68.4957124 | BP155: 68.54829516 | BQ155: 68.75987086 | BR155: -0.2115757076 | BS155: 68.33671945 | BT155: 68.47410083 | BU155: 68.73086366 | BV155: 69.04395514 | BW155: 68.27366665 | BX155: 1.329107842 | BY155: -105 | BZ155: 69.84906145 | CA155: 20.36743831 | CB155: 68.77618953 | CC155: 8.126189535 | CD155: 12.39440861 | CE155: 65.5633503 | CF155: 62.11256262 | CG155: 100 | CH155: 50 | CI155: 0 | CJ155: 0
A156: 125 | B156: =OFFSET(InputPriceData!B$15,CalculationsAndCharts!$A156+$A$11,0,1,1) -> 2006-12-26 | C156: =OFFSET(InputPriceData!G$15,CalculationsAndCharts!$A156+$A$11,0,1,1) -> 1199100 | D156: =OFFSET(InputPriceData!C$15,CalculationsAndCharts!$A156+$A$11,IF($C$7,7,0),1,1) -> 68.33 | E156: =OFFSET(InputPriceData!D$15,CalculationsAndCharts!$A156+$A$11,IF($C$7,7,0),1,1) -> 68.8 | F156: =OFFSET(InputPriceData!E$15,CalculationsAndCharts!$A156+$A$11,IF($C$7,7,0),1,1) -> 67.51 | G156: =OFFSET(InputPriceData!F$15,CalculationsAndCharts!$A156+$A$11,IF($C$7,7,0),1,1) -> 68.14 | H156: 0 | I156: 0 | J156: 0 | K156: 0 | L156: 68.15 | M156: 1.02 | N156: 6.754102564 | O156: 7.193922059 | P156: 6.474529853 | Q156: 68.91637021 | R156: 69.64805973 | S156: 69.8575027 | T156: 76.84198179 | U156: 63.17352988 | V156: 1.34 | W156: 1.50967728 | X156: 0.07215552216 | Y156: 0 | BE156: 67.8 | BF156: =AVERAGE(OFFSET(BE$31,$A156,0,$BE$27,1)) -> 67.7875 | BG156: 68.00625 | BH156: 68.299375 | BI156: 68.55 | BJ156: 68.74515625 | BK156: 68.91117188 | BL156: 69.06902344 | BM156: 69.223125 | BN156: 69.36928711 | BO156: 68.23176318 | BP156: 68.60087791 | BQ156: 68.97144657 | BR156: -0.370568662 | BS156: 68.23030925 | BT156: 68.6114822 | BU156: 68.98762649 | BV156: 69.35704662 | BW156: 68.22861377 | BX156: 1.265721295 | BY156: -106 | BZ156: 70.06274856 | CA156: 13.77293342 | CB156: 68.19088159 | CC156: 7.540881592 | CD156: 12.39440861 | CE156: 60.84099556 | CF156: 62.11400689 | CG156: 100 | CH156: 50 | CI156: 0 | CJ156: 0
A157: 126 | B157: =OFFSET(InputPriceData!B$15,CalculationsAndCharts!$A157+$A$11,0,1,1) -> 2006-12-22 | C157: =OFFSET(InputPriceData!G$15,CalculationsAndCharts!$A157+$A$11,0,1,1) -> 1806900 | D157: =OFFSET(InputPriceData!C$15,CalculationsAndCharts!$A157+$A$11,IF($C$7,7,0),1,1) -> 68.09 | E157: =OFFSET(InputPriceData!D$15,CalculationsAndCharts!$A157+$A$11,IF($C$7,7,0),1,1) -> 68.24 | F157: =OFFSET(InputPriceData!E$15,CalculationsAndCharts!$A157+$A$11,IF($C$7,7,0),1,1) -> 67.13 | G157: =OFFSET(InputPriceData!F$15,CalculationsAndCharts!$A157+$A$11,IF($C$7,7,0),1,1) -> 67.46 | H157: 0 | I157: 0 | J157: 0 | K157: 0 | L157: 67.61 | M157: 1.33 | N157: 6.836025641 | O157: 7.319584772 | P157: 6.587626295 | Q157: 69.13533313 | R157: 69.85711388 | S157: 70.09905109 | T157: 77.17669865 | U157: 63.26948758 | V157: 1.11 | W157: 1.59451592 | X157: 0.07363646487 | Y157: 0 | BE157: 67.775 | BF157: =AVERAGE(OFFSET(BE$31,$A157,0,$BE$27,1)) -> 68.225 | BG157: 68.5925 | BH157: 68.800625 | BI157: 68.9403125 | BJ157: 69.0771875 | BK157: 69.226875 | BL157: 69.37722656 | BM157: 69.51544922 | BN157: 69.64453125 | BO157: 68.5467666 | BP157: 68.96999263 | BQ157: 69.34201523 | BR157: -0.3720225989 | BS157: 68.59797004 | BT157: 68.99265516 | BU157: 69.36377077 | BV157: 69.72646675 | BW157: 68.61311993 | BX157: 1.200898734 | BY157: -107 | BZ157: 70.28622456 | CA157: 15.16973956 | CB157: 68.0783833 | CC157: 7.428383301 | CD157: 12.39440861 | CE157: 59.933342 | CF157: 65.75356758 | CG157: 100 | CH157: 50 | CI157: 0 | CJ157: 0
A158: 127 | B158: =OFFSET(InputPriceData!B$15,CalculationsAndCharts!$A158+$A$11,0,1,1) -> 2006-12-21 | C158: =OFFSET(InputPriceData!G$15,CalculationsAndCharts!$A158+$A$11,0,1,1) -> 2269600 | D158: =OFFSET(InputPriceData!C$15,CalculationsAndCharts!$A158+$A$11,IF($C$7,7,0),1,1) -> 69.27 | E158: =OFFSET(InputPriceData!D$15,CalculationsAndCharts!$A158+$A$11,IF($C$7,7,0),1,1) -> 69.43 | F158: =OFFSET(InputPriceData!E$15,CalculationsAndCharts!$A158+$A$11,IF($C$7,7,0),1,1) -> 67.86 | G158: =OFFSET(InputPriceData!F$15,CalculationsAndCharts!$A158+$A$11,IF($C$7,7,0),1,1) -> 68.09 | H158: 0 | I158: 0 | J158: 0 | K158: 0 | L158: 68.46 | M158: 1.833333333 | N158: 6.753192308 | O158: 7.457744523 | P158: 6.711970071 | Q158: 69.5711426 | R158: 70.06333695 | S158: 70.3450895 | T158: 77.52108147 | U158: 63.35136688 | V158: 1.57 | W158: 1.83677388 | X158: 0.07697567748 | Y158: 0 | BE158: 68.675 | BF158: =AVERAGE(OFFSET(BE$31,$A158,0,$BE$27,1)) -> 68.96 | BG158: 69.00875 | BH158: 69.08 | BI158: 69.2140625 | BJ158: 69.3765625 | BK158: 69.52757813 | BL158: 69.65367188 | BM158: 69.77361328 | BN158: 69.92232422 | BO158: 69.09345313 | BP158: 69.39321867 | BQ158: 69.71403783 | BR158: -0.3208191653 | BS158: 69.0723995 | BT158: 69.38734029 | BU158: 69.73488637 | BV158: 70.08916273 | BW158: 69.04652447 | BX158: 1.144836457 | BY158: -108 | BZ158: 70.47449861 | CA158: 18.81707137 | CB158: 68.77672656 | CC158: 8.126726563 | CD158: 12.39440861 | CE158: 65.56768312 | CF158: 68.88046431 | CG158: 100 | CH158: 50 | CI158: 0 | CJ158: 0
A159: 128 | B159: =OFFSET(InputPriceData!B$15,CalculationsAndCharts!$A159+$A$11,0,1,1) -> 2006-12-20 | C159: =OFFSET(InputPriceData!G$15,CalculationsAndCharts!$A159+$A$11,0,1,1) -> 2387800 | D159: =OFFSET(InputPriceData!C$15,CalculationsAndCharts!$A159+$A$11,IF($C$7,7,0),1,1) -> 69.75 | E159: =OFFSET(InputPriceData!D$15,CalculationsAndCharts!$A159+$A$11,IF($C$7,7,0),1,1) -> 70.64 | F159: =OFFSET(InputPriceData!E$15,CalculationsAndCharts!$A159+$A$11,IF($C$7,7,0),1,1) -> 69.18 | G159: =OFFSET(InputPriceData!F$15,CalculationsAndCharts!$A159+$A$11,IF($C$7,7,0),1,1) -> 69.26 | H159: 0 | I159: 0 | J159: 0 | K159: 0 | L159: 69.69333333 | M159: 1.823333333 | N159: 7.095448718 | O159: 7.659045156 | P159: 6.893140641 | Q159: 69.88861191 | R159: 70.20396391 | S159: 70.60059126 | T159: 77.86300906 | U159: 63.31082326 | V159: 1.46 | W159: 1.97016082 | X159: 0.07844586803 | Y159: 0 | BE159: 69.245 | BF159: =AVERAGE(OFFSET(BE$31,$A159,0,$BE$27,1)) -> 69.0575 | BG159: 69.15125 | BH159: 69.348125 | BI159: 69.5390625 | BJ159: 69.67859375 | BK159: 69.77976562 | BL159: 69.89355469 | BM159: 70.07103516 | BN159: 70.33382812 | BO159: 69.39504199 | BP159: 69.69298421 | BQ159: 70.034857 | BR159: -0.3418727891 | BS159: 69.35111142 | BT159: 69.70228107 | BU159: 70.08243246 | BV159: 70.44343909 | BW159: 69.30298491 | BX159: 1.103496935 | BY159: -109 | BZ159: 70.6224065 | CA159: 20.10817289 | CB159: 69.54418766 | CC159: 8.894187663 | CD159: 12.39440861 | CE159: 71.75967763 | CF159: 71.17963963 | CG159: 100 | CH159: 50 | CI159: 0 | CJ159: 0
A160: 129 | B160: =OFFSET(InputPriceData!B$15,CalculationsAndCharts!$A160+$A$11,0,1,1) -> 2006-12-19 | C160: =OFFSET(InputPriceData!G$15,CalculationsAndCharts!$A160+$A$11,0,1,1) -> 2756000 | D160: =OFFSET(InputPriceData!C$15,CalculationsAndCharts!$A160+$A$11,IF($C$7,7,0),1,1) -> 68.33 | E160: =OFFSET(InputPriceData!D$15,CalculationsAndCharts!$A160+$A$11,IF($C$7,7,0),1,1) -> 69.7 | F160: =OFFSET(InputPriceData!E$15,CalculationsAndCharts!$A160+$A$11,IF($C$7,7,0),1,1) -> 67.87 | G160: =OFFSET(InputPriceData!F$15,CalculationsAndCharts!$A160+$A$11,IF($C$7,7,0),1,1) -> 69.23 | H160: =IF($S$16,$C$17*G160+$D$17*H161,0) -> 0 | I160: 0 | J160: 0 | K160: 0 | L160: =AVERAGE(E160:G160) -> 68.93333333 | M160: =IF(L160>=L161,L160-F161,L161-F160) -> 1.306666667 | N160: 7.196487179 | O160: 7.82007271 | P160: 7.038065439 | Q160: =(L160*$E$17+Q161*$F$17) -> 69.94440579 | R160: =Q160*$E$17+R161*$F$17 -> 70.29406448 | S160: 70.75945067 | T160: 78.11413719 | U160: 63.25599904 | V160: =MAX(E160-F160,ABS(E160-G161),ABS(F160-G161)) -> 1.83 | W160: =(W161*($W$31-1)+V160)/$W$31 -> 2.22524123 | X160: =$B$16+W160/G160*$F$16 -> 0.08214273046 | Y160: =IF($A160=$B$28,Y$31,0) -> 0 | BE160: 68.87 | BF160: =AVERAGE(OFFSET(BE$31,$A160,0,$BE$27,1)) -> 69.245 | BG160: 69.545 | BH160: 69.73 | BI160: 69.818125 | BJ160: 69.8809375 | BK160: 70.00734375 | BL160: 70.24851562 | BM160: 70.59662109 | BN160: 70.99936523 | BO160: 69.54879541 | BP160: 69.99092642 | BQ160: 70.37672979 | BR160: -0.3858033625 | BS160: 69.60512306 | BT160: 70.05345072 | BU160: 70.46258385 | BV160: 70.80444572 | BW160: 69.57704632 | BX160: 1.09772217 | BY160: -110 | BZ160: 70.74392702 | CA160: 23.42495372 | CB160: 69.24106437 | CC160: 8.591064372 | CD160: 12.39440861 | CE160: 69.31403217 | CF160: 73.2452007 | CG160: 100 | CH160: 50 | CI160: 0 | CJ160: 0
A161: 130 | B161: =OFFSET(InputPriceData!B$15,CalculationsAndCharts!$A161+$A$11,0,1,1) -> 2006-12-18 | C161: =OFFSET(InputPriceData!G$15,CalculationsAndCharts!$A161+$A$11,0,1,1) -> 3233800 | D161: =OFFSET(InputPriceData!C$15,CalculationsAndCharts!$A161+$A$11,IF($C$7,7,0),1,1) -> 70.62 | E161: =OFFSET(InputPriceData!D$15,CalculationsAndCharts!$A161+$A$11,IF($C$7,7,0),1,1) -> 70.68 | F161: =OFFSET(InputPriceData!E$15,CalculationsAndCharts!$A161+$A$11,IF($C$7,7,0),1,1) -> 68.34 | G161: =OFFSET(InputPriceData!F$15,CalculationsAndCharts!$A161+$A$11,IF($C$7,7,0),1,1) -> 68.51 | H161: 0 | I161: 0 | J161: 0 | K161: 0 | L161: 69.17666667 | M161: 1.843333333 | N161: =AVERAGE(OFFSET(M161,0,0,$F$19,1))*$F$20 -> 7.460461538 | O161: =(N161*$E$17+O162*$F$17) -> 7.998240005 | P161: =O161*$F$21 -> 7.198416004 | Q161: 70.23328363 | R161: 70.39396696 | S161: =IF($S$15,AVERAGE(OFFSET(Q161,0,0,$F$18,1)),0) -> 70.82715086 | T161: =IF($S$15,R161+O161,0) -> 78.39220696 | U161: =IF($S$15,R161-P161,0) -> 63.19555095 | V161: 2.39 | W161: 2.422861845 | X161: 0.08536508312 | Y161: 0 | Z161: =IF(AA161="","",OFFSET($B$31,AA161,0,1,1)) ->  | BE161: =AVERAGE(OFFSET($G$31,$A161,0,$BE$27,1)) -> 69.62 | BF161: =AVERAGE(OFFSET(BE$31,$A161,0,$BE$27,1)) -> 69.845 | BG161: 69.915 | BH161: 69.90625 | BI161: 69.94375 | BJ161: 70.13375 | BK161: 70.4896875 | BL161: 70.94472656 | BM161: 71.40210937 | BN161: 71.78050781 | BO161: =(5*BE161+4*BF161+3*BG161+2*BH161+BI161+BJ161+BK161+BL161+BM161+BN161)/20 -> 70.08660156 | BP161: 70.43305744 | BQ161: 70.76253315 | BR161: -0.3294757115 | BS161: 70.10358173 | BT161: 70.50177838 | BU161: 70.87171699 | BV161: 71.14630758 | BW161: 70.03649177 | BX161: =_xlfn.STDEV.P(OFFSET(BW161,0,0,$BG$27,1)) -> 1.226548274 | BY161: -111 | BZ161: =SUMPRODUCT(OFFSET(BW161,0,0,$BG$27,1),OFFSET($BY$31,1,0,$BG$27,1))/$BH$27 -> 70.82705432 | CA161: =(BW161+2*BX161-BZ161)/(4*BX161)*100 -> 33.88643619 | CB161: 69.63163411 | CC161: 8.981634115 | CD161: 12.39440861 | CE161: =IF(CD161<0.000000000001,IF($A161>=$A$8,50,CE162),MIN(100,MAX(0,100*CC161/CD161))) -> 72.46520909 | CF161: =AVERAGE(OFFSET(CE$31,$A161,0,$BJ$27,1)) -> 76.01619824 | CG161: =CG$30 -> 100 | CH161: 50 | CI161: 0 | CJ161: =IF($A161=$B$28,CJ$30,0) -> 0
A162: 131 | B162: =OFFSET(InputPriceData!B$15,CalculationsAndCharts!$A162+$A$11,0,1,1) -> 2006-12-15 | C162: =OFFSET(InputPriceData!G$15,CalculationsAndCharts!$A162+$A$11,0,1,1) -> 3939000 | D162: =OFFSET(InputPriceData!C$15,CalculationsAndCharts!$A162+$A$11,IF($C$7,7,0),1,1) -> 69.65 | E162: =OFFSET(InputPriceData!D$15,CalculationsAndCharts!$A162+$A$11,IF($C$7,7,0),1,1) -> 70.76 | F162: =OFFSET(InputPriceData!E$15,CalculationsAndCharts!$A162+$A$11,IF($C$7,7,0),1,1) -> 69.06 | G162: =OFFSET(InputPriceData!F$15,CalculationsAndCharts!$A162+$A$11,IF($C$7,7,0),1,1) -> 70.73 | H162: 0 | I162: 0 | J162: 0 | K162: 0 | L162: 70.18333333 | M162: 1.373333333 | N162: 7.707141026 | O162: 8.151890995 | P162: 7.336701895 | Q162: 70.53517419 | R162: 70.43987648 | S162: 70.78121777 | T162: 78.59176748 | U162: 63.10317459 | V162: 1.7 | W162: 2.439292767 | X162: 0.08448738537 | Y162: 0 | BE162: 70.07 | BF162: =AVERAGE(OFFSET(BE$31,$A162,0,$BE$27,1)) -> 69.985 | BG162: 69.8975 | BH162: 69.98125 | BI162: 70.32375 | BJ162: 70.845625 | BK162: 71.39976562 | BL162: 71.85949219 | BM162: 72.15890625 | BN162: 72.28999023 | BO162: 70.44112646 | BP162: 70.77951331 | BQ162: 71.09200886 | BR162: -0.3124955484 | BS162: 70.46701776 | BT162: 70.89997504 | BU162: 71.24165559 | BV162: 71.42089818 | BW162: 70.39585652 | BX162: 1.568696721 | BY162: =BY161-1 -> -112 | BZ162: 70.83881316 | CA162: 42.94069028 | CB162: 70.3122299 | CC162: 9.662229899 | CD162: 12.39440861 | CE162: 77.95636083 | CF162: 78.42629602 | CG162: 100 | CH162: 50 | CI162: 0 | CJ162: 0
A163: 132 | B163: =OFFSET(InputPriceData!B$15,CalculationsAndCharts!$A163+$A$11,0,1,1) -> 2006-12-14 | C163: =OFFSET(InputPriceData!G$15,CalculationsAndCharts!$A163+$A$11,0,1,1) -> 4890200 | D163: =OFFSET(InputPriceData!C$15,CalculationsAndCharts!$A163+$A$11,IF($C$7,7,0),1,1) -> 70.61 | E163: =OFFSET(InputPriceData!D$15,CalculationsAndCharts!$A163+$A$11,IF($C$7,7,0),1,1) -> 71.45 | F163: =OFFSET(InputPriceData!E$15,CalculationsAndCharts!$A163+$A$11,IF($C$7,7,0),1,1) -> 68.81 | G163: =OFFSET(InputPriceData!F$15,CalculationsAndCharts!$A163+$A$11,IF($C$7,7,0),1,1) -> 69.41 | H163: 0 | I163: 0 | J163: 0 | K163: 0 | L163: 69.89 | M163: 1.146666667 | N163: 7.914679487 | O163: 8.278962415 | P163: 7.451066173 | Q163: 70.63570015 | R163: 70.41264856 | S163: 70.65132761 | T163: 78.69161098 | U163: 62.96158239 | V163: 2.64 | W163: 2.80893915 | X163: 0.09046879629 | Y163: 0 | BE163: 69.9 | BF163: =AVERAGE(OFFSET(BE$31,$A163,0,$BE$27,1)) -> 69.81 | BG163: 70.065 | BH163: 70.66625 | BI163: 71.3675 | BJ163: 71.95390625 | BK163: 72.31921875 | BL163: 72.45832031 | BM163: 72.42107422 | BN163: 72.26890625 | BO163: 70.65282129 | BP163: 71.11790016 | BQ163: 71.40450441 | BR163: -0.2866042499 | BS163: 70.83129591 | BT163: 71.33293231 | BU163: 71.58333614 | BV163: 71.60014077 | BW163: 70.84892926 | BX163: 2.068121169 | BY163: -113 | BZ163: 70.77676943 | CA163: 50.87228725 | CB163: 70.27141064 | CC163: 9.621410645 | CD163: 12.39440861 | CE163: 77.62702479 | CF163: 79.37171521 | CG163: 100 | CH163: 50 | CI163: 0 | CJ163: 0
A164: 133 | B164: =OFFSET(InputPriceData!B$15,CalculationsAndCharts!$A164+$A$11,0,1,1) -> 2006-12-13 | C164: =OFFSET(InputPriceData!G$15,CalculationsAndCharts!$A164+$A$11,0,1,1) -> 5133700 | D164: =OFFSET(InputPriceData!C$15,CalculationsAndCharts!$A164+$A$11,IF($C$7,7,0),1,1) -> 69.45 | E164: =OFFSET(InputPriceData!D$15,CalculationsAndCharts!$A164+$A$11,IF($C$7,7,0),1,1) -> 70.9 | F164: =OFFSET(InputPriceData!E$15,CalculationsAndCharts!$A164+$A$11,IF($C$7,7,0),1,1) -> 68.58 | G164: =OFFSET(InputPriceData!F$15,CalculationsAndCharts!$A164+$A$11,IF($C$7,7,0),1,1) -> 70.39 | H164: 0 | I164: 0 | J164: 0 | K164: 0 | L164: 69.95666667 | M164: 1.806666667 | N164: 8.414410256 | O164: 8.383043251 | P164: 7.544738926 | Q164: 70.84875734 | R164: 70.34891954 | S164: 70.46099264 | T164: 78.73196279 | U164: 62.80418061 | V164: 2.32 | W164: 2.893408726 | X164: 0.0911053946 | Y164: 0 | BE164: 69.72 | BF164: =AVERAGE(OFFSET(BE$31,$A164,0,$BE$27,1)) -> 70.32 | BG164: 71.2675 | BH164: 72.06875 | BI164: 72.5403125 | BJ164: 72.68453125 | BK164: 72.59742187 | BL164: 72.38382812 | BM164: 72.11673828 | BN164: 71.8352832 | BO164: 71.09890576 | BP164: 71.58297903 | BQ164: 71.69110866 | BR164: -0.1081296302 | BS164: 71.4748494 | BT164: 71.83456871 | BU164: 71.83373998 | BV164: 71.61694539 | BW164: 71.61943157 | BX164: 2.575771194 | BY164: -114 | BZ164: 70.62085185 | CA164: 59.69204606 | CB164: 70.52778621 | CC164: 9.877786214 | CD164: 12.39440861 | CE164: 79.69550242 | CF164: 86.65360717 | CG164: 100 | CH164: 50 | CI164: 0 | CJ164: 0
A165: 134 | B165: =OFFSET(InputPriceData!B$15,CalculationsAndCharts!$A165+$A$11,0,1,1) -> 2006-12-12 | C165: =OFFSET(InputPriceData!G$15,CalculationsAndCharts!$A165+$A$11,0,1,1) -> 7409000 | D165: =OFFSET(InputPriceData!C$15,CalculationsAndCharts!$A165+$A$11,IF($C$7,7,0),1,1) -> 70.74 | E165: =OFFSET(InputPriceData!D$15,CalculationsAndCharts!$A165+$A$11,IF($C$7,7,0),1,1) -> 70.74 | F165: =OFFSET(InputPriceData!E$15,CalculationsAndCharts!$A165+$A$11,IF($C$7,7,0),1,1) -> 68.15 | G165: =OFFSET(InputPriceData!F$15,CalculationsAndCharts!$A165+$A$11,IF($C$7,7,0),1,1) -> 69.05 | H165: 0 | I165: 0 | J165: 0 | K165: 0 | L165: 69.31333333 | M165: 5.06 | N165: 8.232358974 | O165: 8.37408125 | P165: 7.536673125 | Q165: 71.10364039 | R165: 70.20610874 | S165: 70.1813953 | T165: 78.58018999 | U165: 62.66943561 | V165: 4.64 | W165: 3.180113088 | X165: 0.09605522213 | Y165: 0 | BE165: 70.92 | BF165: =AVERAGE(OFFSET(BE$31,$A165,0,$BE$27,1)) -> 72.215 | BG165: 72.87 | BH165: 73.011875 | BI165: 72.82875 | BJ165: 72.5103125 | BK165: 72.17023437 | BL165: 71.84964844 | BM165: 71.55382812 | BN165: 71.2775 | BO165: 72.01420117 | BP165: 72.0670523 | BQ165: 71.79923829 | BR165: 0.2678140063 | BS165: 72.3348663 | BT165: 72.19428802 | BU165: 71.83291125 | BV165: 71.40015079 | BW165: 72.48428109 | BX165: 2.912816111 | BY165: -115 | BZ165: 70.33246791 | CA165: 68.4684949 | CB165: 70.66376725 | CC165: 10.01376725 | CD165: 12.39440861 | CE165: 80.79261841 | CF165: 93.12695811 | CG165: 100 | CH165: 50 | CI165: 0 | CJ165: 0
A166: 135 | B166: =OFFSET(InputPriceData!B$15,CalculationsAndCharts!$A166+$A$11,0,1,1) -> 2006-12-11 | C166: =OFFSET(InputPriceData!G$15,CalculationsAndCharts!$A166+$A$11,0,1,1) -> 3217100 | D166: =OFFSET(InputPriceData!C$15,CalculationsAndCharts!$A166+$A$11,IF($C$7,7,0),1,1) -> 74 | E166: =OFFSET(InputPriceData!D$15,CalculationsAndCharts!$A166+$A$11,IF($C$7,7,0),1,1) -> 74.48 | F166: =OFFSET(InputPriceData!E$15,CalculationsAndCharts!$A166+$A$11,IF($C$7,7,0),1,1) -> 72.36 | G166: =OFFSET(InputPriceData!F$15,CalculationsAndCharts!$A166+$A$11,IF($C$7,7,0),1,1) -> 72.79 | H166: 0 | I166: 0 | J166: 0 | K166: 0 | L166: 73.21 | M166: 1.156666667 | N166: 7.424051282 | O166: 8.414573328 | P166: 7.573115996 | Q166: 71.61515669 | R166: 69.94967113 | S166: 69.85846062 | T166: 78.36424445 | U166: 62.37655513 | V166: 2.12 | W166: 2.450169633 | X166: 0.08366080001 | Y166: 0 | BE166: 73.51 | BF166: =AVERAGE(OFFSET(BE$31,$A166,0,$BE$27,1)) -> 73.525 | BG166: 73.15375 | BH166: 72.645625 | BI166: 72.191875 | BJ166: 71.83015625 | BK166: 71.5290625 | BL166: 71.25800781 | BM166: 71.00117188 | BN166: 70.7493457 | BO166: 72.74810596 | BP166: 72.11990342 | BQ166: 71.53142428 | BR166: 0.5884791357 | BS166: 72.70838255 | BT166: 72.05370974 | BU166: 71.47153449 | BV166: 70.96739033 | BW166: 72.71391608 | BX166: 3.057800914 | BY166: -116 | BZ166: 69.89813464 | CA166: 73.02129477 | CB166: 72.97905298 | CC166: 12.32905298 | CD166: 12.39440861 | CE166: 99.47270069 | CF166: 98.36638815 | CG166: 100 | CH166: 50 | CI166: 0 | CJ166: 0
A167: 136 | B167: =OFFSET(InputPriceData!B$15,CalculationsAndCharts!$A167+$A$11,0,1,1) -> 2006-12-08 | C167: =OFFSET(InputPriceData!G$15,CalculationsAndCharts!$A167+$A$11,0,1,1) -> 5188100 | D167: =OFFSET(InputPriceData!C$15,CalculationsAndCharts!$A167+$A$11,IF($C$7,7,0),1,1) -> 72.53 | E167: =OFFSET(InputPriceData!D$15,CalculationsAndCharts!$A167+$A$11,IF($C$7,7,0),1,1) -> 74.4 | F167: =OFFSET(InputPriceData!E$15,CalculationsAndCharts!$A167+$A$11,IF($C$7,7,0),1,1) -> 71.92 | G167: =OFFSET(InputPriceData!F$15,CalculationsAndCharts!$A167+$A$11,IF($C$7,7,0),1,1) -> 74.23 | H167: 0 | I167: 0 | J167: 0 | K167: 0 | L167: 73.51666667 | M167: 2.186666667 | N167: 7.486858974 | O167: 8.697579627 | P167: 7.827821665 | Q167: 71.15948717 | R167: 69.47381811 | S167: 69.41968747 | T167: 78.17139774 | U167: 61.64599644 | V167: 2.48 | W167: 2.615254449 | X167: 0.08523177218 | Y167: 0 | BE167: 73.54 | BF167: =AVERAGE(OFFSET(BE$31,$A167,0,$BE$27,1)) -> 72.7825 | BG167: 72.1375 | BH167: 71.738125 | BI167: 71.4684375 | BJ167: 71.22796875 | BK167: 70.98695313 | BL167: 70.74433594 | BM167: 70.49751953 | BN167: 70.24248047 | BO167: 72.19432227 | BP167: 71.49170088 | BQ167: 70.94294515 | BR167: 0.5487557327 | BS167: 72.04045661 | BT167: 71.39903692 | BU167: 70.88935924 | BV167: 70.46324618 | BW167: 71.99227923 | BX167: 3.095929519 | BY167: -117 | BZ167: 69.38298749 | CA167: 71.07034191 | CB167: 72.85549447 | CC167: 12.20549447 | CD167: 12.31440861 | CE167: 99.11555522 | CF167: 98.16571879 | CG167: 100 | CH167: 50 | CI167: 0 | CJ167: 0
A168: 137 | B168: =OFFSET(InputPriceData!B$15,CalculationsAndCharts!$A168+$A$11,0,1,1) -> 2006-12-07 | C168: =OFFSET(InputPriceData!G$15,CalculationsAndCharts!$A168+$A$11,0,1,1) -> 4628900 | D168: =OFFSET(InputPriceData!C$15,CalculationsAndCharts!$A168+$A$11,IF($C$7,7,0),1,1) -> 71.8 | E168: =OFFSET(InputPriceData!D$15,CalculationsAndCharts!$A168+$A$11,IF($C$7,7,0),1,1) -> 73.79 | F168: =OFFSET(InputPriceData!E$15,CalculationsAndCharts!$A168+$A$11,IF($C$7,7,0),1,1) -> 71.33 | G168: =OFFSET(InputPriceData!F$15,CalculationsAndCharts!$A168+$A$11,IF($C$7,7,0),1,1) -> 72.85 | H168: 0 | I168: 0 | J168: 0 | K168: 0 | L168: 72.65666667 | M168: 2.846666667 | N168: 8.846782051 | O168: 9.043499814 | P168: 8.139149832 | Q168: 70.48600731 | R168: 68.99219838 | S168: 68.9981696 | T168: 78.03569819 | U168: 60.85304854 | V168: 2.59 | W168: 2.682881673 | X168: 0.08682747664 | Y168: 0 | BE168: 72.025 | BF168: =AVERAGE(OFFSET(BE$31,$A168,0,$BE$27,1)) -> 71.4925 | BG168: 71.33875 | BH168: 71.19875 | BI168: 70.9875 | BJ168: 70.7459375 | BK168: 70.50171875 | BL168: 70.25070313 | BM168: 69.98744141 | BN168: 69.72585937 | BO168: 71.23539551 | BP168: 70.78907949 | BQ168: 70.39418941 | BR168: 0.3948900793 | BS168: 71.18396957 | BT168: 70.75761723 | BU168: 70.37968155 | BV168: 70.03713312 | BW168: 71.17094015 | BX168: 3.107806287 | BY168: -118 | BZ168: 68.89121995 | CA168: 68.33866073 | CB168: 71.94603109 | CC168: 11.29603109 | CD168: 11.70440861 | CE168: 96.51090853 | CF168: 98.1482699 | CG168: 100 | CH168: 50 | CI168: 0 | CJ168: 0
A169: 138 | B169: =OFFSET(InputPriceData!B$15,CalculationsAndCharts!$A169+$A$11,0,1,1) -> 2006-12-06 | C169: =OFFSET(InputPriceData!G$15,CalculationsAndCharts!$A169+$A$11,0,1,1) -> 4577300 | D169: =OFFSET(InputPriceData!C$15,CalculationsAndCharts!$A169+$A$11,IF($C$7,7,0),1,1) -> 70.13 | E169: =OFFSET(InputPriceData!D$15,CalculationsAndCharts!$A169+$A$11,IF($C$7,7,0),1,1) -> 72.47 | F169: =OFFSET(InputPriceData!E$15,CalculationsAndCharts!$A169+$A$11,IF($C$7,7,0),1,1) -> 69.81 | G169: =OFFSET(InputPriceData!F$15,CalculationsAndCharts!$A169+$A$11,IF($C$7,7,0),1,1) -> 71.2 | H169: 0 | I169: 0 | J169: 0 | K169: 0 | L169: 71.16 | M169: 1.32 | N169: 9.410230769 | O169: 9.099704889 | P169: 8.1897344 | Q169: 69.86581893 | R169: 68.56539582 | S169: 68.67764663 | T169: 77.66510071 | U169: 60.37566142 | V169: 2.66 | W169: 2.72932251 | X169: 0.08833318132 | Y169: 0 | BE169: 70.96 | BF169: =AVERAGE(OFFSET(BE$31,$A169,0,$BE$27,1)) -> 71.185 | BG169: 71.05875 | BH169: 70.77625 | BI169: 70.504375 | BJ169: 70.2575 | BK169: 69.9996875 | BL169: 69.72417969 | BM169: 69.46427734 | BN169: 69.26669922 | BO169: 70.67427344 | BP169: 70.34276348 | BQ169: 69.99929933 | BR169: 0.3434641443 | BS169: 70.68622762 | BT169: 70.33126489 | BU169: 70.00174588 | BV169: 69.69458469 | BW169: 70.68314172 | BX169: 3.107160418 | BY169: -119 | BZ169: 68.43828046 | CA169: 68.06200005 | CB169: 70.91713672 | CC169: 10.26713672 | CD169: 10.38440861 | CE169: 98.87069263 | CF169: 98.01983785 | CG169: 100 | CH169: 50 | CI169: 0 | CJ169: 0
A170: 139 | B170: =OFFSET(InputPriceData!B$15,CalculationsAndCharts!$A170+$A$11,0,1,1) -> 2006-12-05 | C170: =OFFSET(InputPriceData!G$15,CalculationsAndCharts!$A170+$A$11,0,1,1) -> 5458600 | D170: =OFFSET(InputPriceData!C$15,CalculationsAndCharts!$A170+$A$11,IF($C$7,7,0),1,1) -> 71.92 | E170: =OFFSET(InputPriceData!D$15,CalculationsAndCharts!$A170+$A$11,IF($C$7,7,0),1,1) -> 71.95 | F170: =OFFSET(InputPriceData!E$15,CalculationsAndCharts!$A170+$A$11,IF($C$7,7,0),1,1) -> 69.84 | G170: =OFFSET(InputPriceData!F$15,CalculationsAndCharts!$A170+$A$11,IF($C$7,7,0),1,1) -> 70.72 | H170: 0 | I170: 0 | J170: 0 | K170: 0 | L170: 70.83666667 | M170: 1.026666667 | N170: 9.809833333 | O170: 9.010983209 | P170: 8.109884888 | Q170: 69.4960529 | R170: 68.19384637 | S170: 68.41030757 | T170: 77.20482957 | U170: 60.08396148 | V170: 2.26 | W170: 2.763983765 | X170: 0.08908348084 | Y170: 0 | BE170: 71.41 | BF170: =AVERAGE(OFFSET(BE$31,$A170,0,$BE$27,1)) -> 70.9325 | BG170: 70.49375 | BH170: 70.2325 | BI170: 70.010625 | BJ170: 69.741875 | BK170: 69.44867188 | BL170: 69.204375 | BM170: 69.06912109 | BN170: 69.05955078 | BO170: 70.46302344 | BP170: 70.01125352 | BQ170: 69.65583519 | BR170: 0.35541833 | BS170: 70.36667185 | BT170: 69.97630215 | BU170: 69.67222687 | BV170: 69.38742351 | BW170: 70.29964936 | BX170: 3.085431616 | BY170: -120 | BZ170: 67.9913776 | CA170: 68.70298907 | CB170: 70.64984505 | CC170: 9.999845052 | CD170: 10.09440861 | CE170: 99.06320854 | CF170: 94.49094128 | CG170: 100 | CH170: 50 | CI170: 0 | CJ170: 0
A171: 140 | B171: =OFFSET(InputPriceData!B$15,CalculationsAndCharts!$A171+$A$11,0,1,1) -> 2006-12-04 | C171: =OFFSET(InputPriceData!G$15,CalculationsAndCharts!$A171+$A$11,0,1,1) -> 4842200 | D171: =OFFSET(InputPriceData!C$15,CalculationsAndCharts!$A171+$A$11,IF($C$7,7,0),1,1) -> 68.34 | E171: =OFFSET(InputPriceData!D$15,CalculationsAndCharts!$A171+$A$11,IF($C$7,7,0),1,1) -> 72.18 | F171: =OFFSET(InputPriceData!E$15,CalculationsAndCharts!$A171+$A$11,IF($C$7,7,0),1,1) -> 68.32 | G171: =OFFSET(InputPriceData!F$15,CalculationsAndCharts!$A171+$A$11,IF($C$7,7,0),1,1) -> 72.1 | H171: 0 | I171: 0 | J171: 0 | K171: 0 | L171: 70.86666667 | M171: 3.086666667 | N171: 9.858076923 | O171: 8.782740316 | P171: 7.904466284 | Q171: 69.1130204 | R171: 67.82178735 | S171: 68.08741926 | T171: 76.60452767 | U171: 59.91732107 | V171: 3.86 | W171: 3.015975647 | X171: 0.09183045281 | Y171: 0 | BE171: 70.455 | BF171: =AVERAGE(OFFSET(BE$31,$A171,0,$BE$27,1)) -> 70.055 | BG171: 69.97125 | BH171: 69.78875 | BI171: 69.473125 | BJ171: 69.15546875 | BK171: 68.96007812 | BL171: 68.93386719 | BM171: 69.04998047 | BN171: 69.24038086 | BO171: 69.83995752 | BP171: 69.5594836 | BQ171: 69.30041686 | BR171: 0.259066743 | BS171: 69.81855035 | BT171: 69.58593245 | BU171: 69.36815158 | BV171: 69.10262015 | BW171: 69.75596274 | BX171: 3.042232175 | BY171: -121 | BZ171: 67.54094512 | CA171: 68.20224009 | CB171: 70.35331209 | CC171: 9.703312093 | CD171: 10.09440861 | CE171: 96.12561239 | CF171: 92.49009998 | CG171: 100 | CH171: 50 | CI171: 0 | CJ171: 0
A172: 141 | B172: =OFFSET(InputPriceData!B$15,CalculationsAndCharts!$A172+$A$11,0,1,1) -> 2006-12-01 | C172: =OFFSET(InputPriceData!G$15,CalculationsAndCharts!$A172+$A$11,0,1,1) -> 3592400 | D172: =OFFSET(InputPriceData!C$15,CalculationsAndCharts!$A172+$A$11,IF($C$7,7,0),1,1) -> 69.91 | E172: =OFFSET(InputPriceData!D$15,CalculationsAndCharts!$A172+$A$11,IF($C$7,7,0),1,1) -> 70.21 | F172: =OFFSET(InputPriceData!E$15,CalculationsAndCharts!$A172+$A$11,IF($C$7,7,0),1,1) -> 67.78 | G172: =OFFSET(InputPriceData!F$15,CalculationsAndCharts!$A172+$A$11,IF($C$7,7,0),1,1) -> 68.81 | H172: 0 | I172: =IF($S$16,AVERAGE(OFFSET($G172,0,0,I$31,1)),0) -> 0 | J172: 0 | K172: 0 | L172: 68.93333333 | M172: 2.193333333 | N172: 9.364717949 | O172: 8.475501285 | P172: 7.627951157 | Q172: 68.61197861 | R172: 67.45286363 | S172: 67.67680096 | T172: 75.92836491 | U172: 59.82491247 | V172: 2.72 | W172: 2.593963471 | X172: 0.08769747814 | Y172: 0 | BE172: 69.655 | BF172: =AVERAGE(OFFSET(BE$31,$A172,0,$BE$27,1)) -> 69.8875 | BG172: 69.60625 | BH172: 69.1575 | BI172: 68.8378125 | BJ172: 68.7646875 | BK172: 68.90765625 | BL172: 69.16609375 | BM172: 69.43078125 | BN172: 69.61203125 | BO172: 69.48389062 | BP172: 69.27900969 | BQ172: 69.04135012 | BR172: 0.2376595699 | BS172: 69.51666926 | BT172: =BS172*$BF$28+$BF$29*BT173 -> 69.35331454 | BU172: =BT172*$BF$28+$BF$29*BU173 -> 69.15037072 | BV172: =BU172*$BF$28+$BF$29*BV173 -> 68.83708872 | BW172: =3*BT172-3*BU172+BV172 -> 69.44592019 | BX172: 2.99129617 | BY172: -122 | BZ172: 67.10631935 | CA172: 69.55340353 | CB172: 69.20861198 | CC172: 8.558611979 | CD172: 9.69440861 | CE172: 88.28400291 | CF172: 89.13646258 | CG172: 100 | CH172: 50 | CI172: 0 | CJ172: 0
A173: 142 | B173: =OFFSET(InputPriceData!B$15,CalculationsAndCharts!$A173+$A$11,0,1,1) -> 2006-11-30 | C173: =OFFSET(InputPriceData!G$15,CalculationsAndCharts!$A173+$A$11,0,1,1) -> 3661100 | D173: =OFFSET(InputPriceData!C$15,CalculationsAndCharts!$A173+$A$11,IF($C$7,7,0),1,1) -> 69.76 | E173: =OFFSET(InputPriceData!D$15,CalculationsAndCharts!$A173+$A$11,IF($C$7,7,0),1,1) -> 70.95 | F173: =OFFSET(InputPriceData!E$15,CalculationsAndCharts!$A173+$A$11,IF($C$7,7,0),1,1) -> 68.47 | G173: =OFFSET(InputPriceData!F$15,CalculationsAndCharts!$A173+$A$11,IF($C$7,7,0),1,1) -> 70.5 | H173: 0 | I173: 0 | J173: 0 | K173: 0 | L173: 69.97333333 | M173: 2.273333333 | N173: 9.016089744 | O173: 8.221439382 | P173: 7.399295443 | Q173: 68.52016298 | R173: 67.12168792 | S173: 67.19457742 | T173: 75.3431273 | U173: 59.72239247 | V173: 2.48 | W173: 2.530945207 | X173: 0.08589993201 | Y173: 0 | BE173: 70.12 | BF173: =AVERAGE(OFFSET(BE$31,$A173,0,$BE$27,1)) -> 69.325 | BG173: 68.70875 | BH173: 68.518125 | BI173: 68.6915625 | BJ173: 69.050625 | BK173: 69.42453125 | BL173: 69.69546875 | BM173: 69.79328125 | BN173: 69.68268555 | BO173: 69.37003271 | BP173: 69.07412875 | BQ173: 68.80369055 | BR173: 0.2704382021 | BS173: 69.34456695 | BT173: 69.18995983 | BU173: 68.94742689 | BV173: 68.52380672 | BW173: 69.25140553 | BX173: 2.919378784 | BY173: -123 | BZ173: 66.66388752 | CA173: 72.1581216 | CB173: 69.67168302 | CC173: 9.021683024 | CD173: 9.69440861 | CE173: 93.06068464 | CF173: 85.19520545 | CG173: 100 | CH173: 50 | CI173: 0 | CJ173: 0
A174: 143 | B174: =OFFSET(InputPriceData!B$15,CalculationsAndCharts!$A174+$A$11,0,1,1) -> 2006-11-29 | C174: =OFFSET(InputPriceData!G$15,CalculationsAndCharts!$A174+$A$11,0,1,1) -> 5098800 | D174: =OFFSET(InputPriceData!C$15,CalculationsAndCharts!$A174+$A$11,IF($C$7,7,0),1,1) -> 67.86 | E174: =OFFSET(InputPriceData!D$15,CalculationsAndCharts!$A174+$A$11,IF($C$7,7,0),1,1) -> 70.21 | F174: =OFFSET(InputPriceData!E$15,CalculationsAndCharts!$A174+$A$11,IF($C$7,7,0),1,1) -> 67.7 | G174: =OFFSET(InputPriceData!F$15,CalculationsAndCharts!$A174+$A$11,IF($C$7,7,0),1,1) -> 69.74 | H174: 0 | I174: 0 | J174: 0 | K174: 0 | L174: 69.21666667 | M174: 2.746666667 | N174: 8.956012821 | O174: 7.994396421 | P174: 7.194956779 | Q174: 68.10497145 | R174: 66.72212361 | S174: 66.5537424 | T174: 74.71652003 | U174: 59.52716683 | V174: 2.89 | W174: 2.55641781 | X174: 0.0866564068 | Y174: 0 | BE174: 68.53 | BF174: =AVERAGE(OFFSET(BE$31,$A174,0,$BE$27,1)) -> 68.0925 | BG174: 68.3275 | BH174: 68.865 | BI174: 69.4096875 | BJ174: 69.7984375 | BK174: 69.96640625 | BL174: 69.89109375 | BM174: 69.57208984 | BN174: 69.035 | BO174: 68.77026074 | BP174: 68.77822478 | BQ174: 68.53325235 | BR174: 0.2449724391 | BS174: 69.02319722 | BT174: 69.03535271 | BU174: 68.70489396 | BV174: 68.10018654 | BW174: 69.0915628 | BX174: 2.799763113 | BY174: -124 | BZ174: 66.20406403 | CA174: 75.7834203 | CB174: 68.9934637 | CC174: 8.343463704 | CD174: 9.69440861 | CE174: 86.06470018 | CF174: 83.00439803 | CG174: 100 | CH174: 50 | CI174: 0 | CJ174: 0
A175: 144 | B175: =OFFSET(InputPriceData!B$15,CalculationsAndCharts!$A175+$A$11,0,1,1) -> 2006-11-28 | C175: =OFFSET(InputPriceData!G$15,CalculationsAndCharts!$A175+$A$11,0,1,1) -> 4170400 | D175: =OFFSET(InputPriceData!C$15,CalculationsAndCharts!$A175+$A$11,IF($C$7,7,0),1,1) -> 67.16 | E175: =OFFSET(InputPriceData!D$15,CalculationsAndCharts!$A175+$A$11,IF($C$7,7,0),1,1) -> 68.16 | F175: =OFFSET(InputPriceData!E$15,CalculationsAndCharts!$A175+$A$11,IF($C$7,7,0),1,1) -> 66.47 | G175: =OFFSET(InputPriceData!F$15,CalculationsAndCharts!$A175+$A$11,IF($C$7,7,0),1,1) -> 67.32 | H175: 0 | I175: 0 | J175: 0 | K175: 0 | L175: 67.31666667 | M175: 2.133333333 | N175: 8.692948718 | O175: 7.719648878 | P175: 6.947683991 | Q175: 67.78734424 | R175: 66.32702423 | S175: 65.8874307 | T175: 74.04667311 | U175: 59.37934024 | V175: 1.69 | W175: 2.389626715 | X175: 0.08549653469 | Y175: 0 | BE175: 67.655 | BF175: =AVERAGE(OFFSET(BE$31,$A175,0,$BE$27,1)) -> 68.5625 | BG175: 69.4025 | BH175: 69.954375 | BI175: 70.1871875 | BJ175: 70.134375 | BK175: 69.81578125 | BL175: 69.25308594 | BM175: 68.49791016 | BN175: 67.63176758 | BO175: 68.80806787 | BP175: 68.78618883 | BQ175: 68.28827991 | BR175: 0.4979089206 | BS175: 69.28409775 | BT175: 69.0475082 | BU175: 68.3744352 | BV175: 67.49547911 | BW175: 69.5146981 | BX175: 2.621301068 | BY175: -125 | BZ175: 65.72804431 | CA175: 86.11425864 | CB175: 68.06236727 | CC175: 7.412367269 | CD175: 9.69440861 | CE175: 76.46023153 | CF175: 83.73556427 | CG175: 100 | CH175: 50 | CI175: 0 | CJ175: 0
A176: 145 | B176: =OFFSET(InputPriceData!B$15,CalculationsAndCharts!$A176+$A$11,0,1,1) -> 2006-11-27 | C176: =OFFSET(InputPriceData!G$15,CalculationsAndCharts!$A176+$A$11,0,1,1) -> 4500300 | D176: =OFFSET(InputPriceData!C$15,CalculationsAndCharts!$A176+$A$11,IF($C$7,7,0),1,1) -> 69.8 | E176: =OFFSET(InputPriceData!D$15,CalculationsAndCharts!$A176+$A$11,IF($C$7,7,0),1,1) -> 70.22 | F176: =OFFSET(InputPriceData!E$15,CalculationsAndCharts!$A176+$A$11,IF($C$7,7,0),1,1) -> 67.6 | G176: =OFFSET(InputPriceData!F$15,CalculationsAndCharts!$A176+$A$11,IF($C$7,7,0),1,1) -> 67.99 | H176: 0 | I176: 0 | J176: 0 | K176: 0 | L176: 68.60333333 | M176: 2.976666667 | N176: 8.458102564 | O176: 7.44156321 | P176: 6.697406889 | Q176: 67.92182355 | R176: 65.90978994 | S176: 65.30645852 | T176: 73.35135315 | U176: 59.21238305 | V176: 3.35 | W176: 2.739440073 | X176: 0.09029180869 | Y176: 0 | BE176: 69.47 | BF176: =AVERAGE(OFFSET(BE$31,$A176,0,$BE$27,1)) -> 70.2425 | BG176: 70.50625 | BH176: 70.42 | BI176: 70.0815625 | BJ176: 69.4971875 | BK176: 68.69039063 | BL176: 67.74273437 | BM176: 66.765625 | BN176: 65.85810547 | BO176: 69.46571777 | BP176: 68.76430978 | BQ176: 67.79037099 | BR176: 0.9739387971 | BS176: 69.73824858 | BT176: 68.81091865 | BU176: 67.70136221 | BV176: 66.61652302 | BW176: 69.94519234 | BX176: 2.331036533 | BY176: -126 | BZ176: 65.1760111 | CA176: 101.1487183 | CB176: 69.03452555 | CC176: 8.384525553 | CD176: 9.69440861 | CE176: 86.48826237 | CF176: 85.64431175 | CG176: 100 | CH176: 50 | CI176: 0 | CJ176: 0
A177: 146 | B177: =OFFSET(InputPriceData!B$15,CalculationsAndCharts!$A177+$A$11,0,1,1) -> 2006-11-24 | C177: =OFFSET(InputPriceData!G$15,CalculationsAndCharts!$A177+$A$11,0,1,1) -> 2168000 | D177: =OFFSET(InputPriceData!C$15,CalculationsAndCharts!$A177+$A$11,IF($C$7,7,0),1,1) -> 71.07 | E177: =OFFSET(InputPriceData!D$15,CalculationsAndCharts!$A177+$A$11,IF($C$7,7,0),1,1) -> 71.21 | F177: =OFFSET(InputPriceData!E$15,CalculationsAndCharts!$A177+$A$11,IF($C$7,7,0),1,1) -> 69.57 | G177: =OFFSET(InputPriceData!F$15,CalculationsAndCharts!$A177+$A$11,IF($C$7,7,0),1,1) -> 70.95 | H177: 0 | I177: 0 | J177: 0 | K177: 0 | L177: 70.57666667 | M177: 1.14 | N177: 7.850961538 | O177: 7.151123394 | P177: 6.436011055 | Q177: 67.72710647 | R177: 65.3349232 | S177: 64.69818476 | T177: 72.48604659 | U177: 58.89891214 | V177: 1.64 | W177: 2.434160109 | X177: 0.08430810584 | Y177: 0 | BE177: 71.015 | BF177: =AVERAGE(OFFSET(BE$31,$A177,0,$BE$27,1)) -> 70.77 | BG177: 70.33375 | BH177: 69.743125 | BI177: 68.9128125 | BJ177: 67.88359375 | BK177: 66.79507813 | BL177: 65.78851563 | BM177: 64.95058594 | BN177: 64.30763672 | BO177: 69.36403613 | BP177: 68.06290179 | BQ177: 66.81643219 | BR177: 1.246469604 | BS177: 69.3093714 | BT177: 67.88358872 | BU177: 66.59180577 | BV177: 65.53168384 | BW177: 69.40703267 | BX177: 1.887022701 | BY177: -127 | BZ177: 64.54726321 | CA177: 114.3840885 | CB177: 69.9703514 | CC177: 9.5503514 | CD177: 10.82092261 | CE177: 88.25819892 | CF177: 81.04686657 | CG177: 100 | CH177: 50 | CI177: 0 | CJ177: 0
A178: 147 | B178: =OFFSET(InputPriceData!B$15,CalculationsAndCharts!$A178+$A$11,0,1,1) -> 2006-11-22 | C178: =OFFSET(InputPriceData!G$15,CalculationsAndCharts!$A178+$A$11,0,1,1) -> 4305500 | D178: =OFFSET(InputPriceData!C$15,CalculationsAndCharts!$A178+$A$11,IF($C$7,7,0),1,1) -> 70.6 | E178: =OFFSET(InputPriceData!D$15,CalculationsAndCharts!$A178+$A$11,IF($C$7,7,0),1,1) -> 71.45 | F178: =OFFSET(InputPriceData!E$15,CalculationsAndCharts!$A178+$A$11,IF($C$7,7,0),1,1) -> 69.6 | G178: =OFFSET(InputPriceData!F$15,CalculationsAndCharts!$A178+$A$11,IF($C$7,7,0),1,1) -> 71.08 | H178: 0 | I178: 0 | J178: 0 | K178: 0 | L178: 70.71 | M178: 2.1 | N178: 8.179564103 | O178: 6.951169639 | P178: 6.256052675 | Q178: 66.91294641 | R178: 64.65144227 | S178: 64.11552327 | T178: 71.6026119 | U178: 58.39538959 | V178: 1.85 | W178: 2.831240164 | X178: 0.08983174119 | Y178: 0 | BE178: 70.525 | BF178: =AVERAGE(OFFSET(BE$31,$A178,0,$BE$27,1)) -> 69.8975 | BG178: 69.1525 | BH178: 68.0825 | BI178: 66.854375 | BJ178: 65.7065625 | BK178: 64.78195313 | BL178: 64.11265625 | BM178: 63.6646875 | BN178: 63.38239258 | BO178: 68.21700635 | BP178: 66.76176745 | BQ178: 65.56996258 | BR178: 1.191804867 | BS178: 67.95357232 | BT178: 66.45780604 | BU178: 65.30002283 | BV178: 64.4715619 | BW178: 67.94491153 | BX178: 1.369409914 | BY178: -128 | BZ178: 63.94733228 | CA178: 122.9799604 | CB178: 69.46350317 | CC178: 9.623503174 | CD178: 11.70935156 | CE178: 82.18647397 | CF178: 74.0434971 | CG178: 100 | CH178: 50 | CI178: 0 | CJ178: 0
A179: 148 | B179: =OFFSET(InputPriceData!B$15,CalculationsAndCharts!$A179+$A$11,0,1,1) -> 2006-11-21 | C179: =OFFSET(InputPriceData!G$15,CalculationsAndCharts!$A179+$A$11,0,1,1) -> 4312700 | D179: =OFFSET(InputPriceData!C$15,CalculationsAndCharts!$A179+$A$11,IF($C$7,7,0),1,1) -> 69.06 | E179: =OFFSET(InputPriceData!D$15,CalculationsAndCharts!$A179+$A$11,IF($C$7,7,0),1,1) -> 70.18 | F179: =OFFSET(InputPriceData!E$15,CalculationsAndCharts!$A179+$A$11,IF($C$7,7,0),1,1) -> 68.61 | G179: =OFFSET(InputPriceData!F$15,CalculationsAndCharts!$A179+$A$11,IF($C$7,7,0),1,1) -> 69.97 | H179: 0 | I179: 0 | J179: 0 | K179: 0 | L179: 69.58666667 | M179: 1.386666667 | N179: 7.83275641 | O179: 6.600199792 | P179: 5.940179813 | Q179: 65.82807395 | R179: 64.00529823 | S179: 63.64638706 | T179: 70.60549802 | U179: 58.06511841 | V179: 1.61 | W179: 3.321860245 | X179: 0.097475493 | Y179: 0 | BE179: 69.27 | BF179: =AVERAGE(OFFSET(BE$31,$A179,0,$BE$27,1)) -> 68.4075 | BG179: 67.0125 | BH179: 65.62625 | BI179: 64.55875 | BJ179: 63.85734375 | BK179: 63.44335938 | BL179: 63.21671875 | BM179: 63.10009766 | BN179: 63.04480469 | BO179: 66.67455371 | BP179: 65.30652856 | BQ179: 64.37815772 | BR179: 0.9283708387 | BS179: 66.2348994 | BT179: 64.96203976 | BU179: 64.14223962 | BV179: 63.64310098 | BW179: 66.10250139 | BX179: 0.939253545 | BY179: -129 | BZ179: 63.48148192 | CA179: 119.7633638 | CB179: 68.13061019 | CC179: 8.930610189 | CD179: 12.28488387 | CE179: 72.69592682 | CF179: 69.7934033 | CG179: 100 | CH179: 50 | CI179: 0 | CJ179: 0
A180: 149 | B180: =OFFSET(InputPriceData!B$15,CalculationsAndCharts!$A180+$A$11,0,1,1) -> 2006-11-20 | C180: =OFFSET(InputPriceData!G$15,CalculationsAndCharts!$A180+$A$11,0,1,1) -> 10449000 | D180: =OFFSET(InputPriceData!C$15,CalculationsAndCharts!$A180+$A$11,IF($C$7,7,0),1,1) -> 69.29 | E180: =OFFSET(InputPriceData!D$15,CalculationsAndCharts!$A180+$A$11,IF($C$7,7,0),1,1) -> 71.78 | F180: =OFFSET(InputPriceData!E$15,CalculationsAndCharts!$A180+$A$11,IF($C$7,7,0),1,1) -> 68.2 | G180: =OFFSET(InputPriceData!F$15,CalculationsAndCharts!$A180+$A$11,IF($C$7,7,0),1,1) -> 68.57 | H180: 0 | I180: 0 | J180: 0 | K180: 0 | L180: 69.51666667 | M180: 7.166666667 | N180: 7.902846154 | O180: 6.248040759 | P180: 5.623236683 | Q180: 64.75419032 | R180: 63.48450516 | S180: 63.32797383 | T180: 69.73254592 | U180: 57.86126848 | V180: 5.26 | W180: 4.177790368 | X180: 0.1109273789 | Y180: 0 | BE180: 67.545 | BF180: =AVERAGE(OFFSET(BE$31,$A180,0,$BE$27,1)) -> 65.6175 | BG180: 64.24 | BH180: 63.49125 | BI180: 63.1559375 | BJ180: 63.029375 | BK180: 62.99007812 | BL180: 62.98347656 | BM180: 62.98951172 | BN180: 63.00150391 | BO180: 64.90236914 | BP180: 63.9385034 | BQ180: 63.44978688 | BR180: 0.4887165229 | BS180: 64.42721992 | BT180: 63.68918012 | BU180: 63.32243948 | BV180: 63.14396234 | BW180: 64.24418425 | BX180: 0.7386990156 | BY180: -130 | BZ180: 63.19961583 | CA180: 85.35162478 | CB180: 67.2095179 | CC180: 8.709517904 | CD180: 12.95132373 | CE180: 67.2480905 | CF180: 66.02290114 | CG180: 100 | CH180: 50 | CI180: 0 | CJ180: 0
A181: 150 | B181: =OFFSET(InputPriceData!B$15,CalculationsAndCharts!$A181+$A$11,0,1,1) -> 2006-11-17 | C181: =OFFSET(InputPriceData!G$15,CalculationsAndCharts!$A181+$A$11,0,1,1) -> 12792500 | D181: =OFFSET(InputPriceData!C$15,CalculationsAndCharts!$A181+$A$11,IF($C$7,7,0),1,1) -> 62.59 | E181: =OFFSET(InputPriceData!D$15,CalculationsAndCharts!$A181+$A$11,IF($C$7,7,0),1,1) -> 67.81 | F181: =OFFSET(InputPriceData!E$15,CalculationsAndCharts!$A181+$A$11,IF($C$7,7,0),1,1) -> 62.35 | G181: =OFFSET(InputPriceData!F$15,CalculationsAndCharts!$A181+$A$11,IF($C$7,7,0),1,1) -> 66.52 | H181: 0 | I181: 0 | J181: 0 | K181: 0 | L181: 65.56 | M181: 4.91 | N181: 6.268935897 | O181: 5.775239217 | P181: 5.197715295 | Q181: 63.39348279 | R181: 63.12173797 | S181: 63.12263303 | T181: 68.89697719 | U181: 57.92402268 | V181: 6.95 | W181: 3.636685552 | X181: 0.1046705585 | Y181: 0 | BE181: 63.69 | BF181: =AVERAGE(OFFSET(BE$31,$A181,0,$BE$27,1)) -> 62.8625 | BG181: 62.7425 | BH181: 62.820625 | BI181: 62.9028125 | BJ181: 62.95078125 | BK181: 62.976875 | BL181: 62.99554688 | BM181: 63.01349609 | BN181: 63.0315918 | BO181: 63.08199268 | BP181: 62.97463766 | BQ181: 62.96107036 | BR181: 0.01356730703 | BS181: 62.98820497 | BT181: 62.95114031 | BU181: 62.95569885 | BV181: 62.96548519 | BW181: 62.95180959 | BX181: 0.7226735239 | BY181: -131 | BZ181: 63.11152539 | CA181: 44.47482864 | CB181: 64.32099634 | CC181: 6.910996338 | CD181: 9.953017415 | CE181: 69.43619256 | CF181: 72.18489468 | CG181: 100 | CH181: 50 | CI181: 0 | CJ181: 0
A182: 151 | B182: =OFFSET(InputPriceData!B$15,CalculationsAndCharts!$A182+$A$11,0,1,1) -> 2006-11-16 | C182: =OFFSET(InputPriceData!G$15,CalculationsAndCharts!$A182+$A$11,0,1,1) -> 4611800 | D182: =OFFSET(InputPriceData!C$15,CalculationsAndCharts!$A182+$A$11,IF($C$7,7,0),1,1) -> 62.97 | E182: =OFFSET(InputPriceData!D$15,CalculationsAndCharts!$A182+$A$11,IF($C$7,7,0),1,1) -> 62.98 | F182: =OFFSET(InputPriceData!E$15,CalculationsAndCharts!$A182+$A$11,IF($C$7,7,0),1,1) -> 60.65 | G182: =OFFSET(InputPriceData!F$15,CalculationsAndCharts!$A182+$A$11,IF($C$7,7,0),1,1) -> 60.86 | H182: 0 | I182: 0 | J182: 0 | K182: 0 | L182: 61.49666667 | M182: 2.783333333 | N182: 5.616282051 | O182: 5.634183023 | P182: 5.07076472 | Q182: 62.77447788 | R182: 63.04409659 | S182: 63.0965996 | T182: 68.67827962 | U182: 57.97333187 | V182: 2.56 | W182: 1.980028328 | X182: 0.08253414933 | Y182: 0 | BE182: 62.035 | BF182: =AVERAGE(OFFSET(BE$31,$A182,0,$BE$27,1)) -> 62.6225 | BG182: 62.89875 | BH182: 62.985 | BI182: 62.99875 | BJ182: 63.00296875 | BK182: 63.01421875 | BL182: 63.03144531 | BM182: 63.0496875 | BN182: 63.06200195 | BO182: 62.67451611 | BP182: 62.86728265 | BQ182: 62.94750305 | BR182: -0.08022039855 | BS182: 62.78706225 | BT182: 62.91407566 | BU182: 62.96025738 | BV182: 62.97527153 | BW182: 62.83672637 | BX182: 0.716682783 | BY182: -132 | BZ182: 63.1607668 | CA182: 38.69651819 | CB182: 62.08559139 | CC182: 6.31559139 | CD182: 10.28859009 | CE182: 61.38442037 | CF182: 78.7276547 | CG182: 100 | CH182: 50 | CI182: 0 | CJ182: 0
A183: 152 | B183: =OFFSET(InputPriceData!B$15,CalculationsAndCharts!$A183+$A$11,0,1,1) -> 2006-11-15 | C183: =OFFSET(InputPriceData!G$15,CalculationsAndCharts!$A183+$A$11,0,1,1) -> 3147500 | D183: =OFFSET(InputPriceData!C$15,CalculationsAndCharts!$A183+$A$11,IF($C$7,7,0),1,1) -> 63.79 | E183: =OFFSET(InputPriceData!D$15,CalculationsAndCharts!$A183+$A$11,IF($C$7,7,0),1,1) -> 64.33 | F183: =OFFSET(InputPriceData!E$15,CalculationsAndCharts!$A183+$A$11,IF($C$7,7,0),1,1) -> 62.76 | G183: =OFFSET(InputPriceData!F$15,CalculationsAndCharts!$A183+$A$11,IF($C$7,7,0),1,1) -> 63.21 | H183: 0 | I183: 0 | J183: 0 | K183: 0 | L183: 63.43333333 | M183: 1.203333333 | N183: 5.194833333 | O183: 5.639297586 | P183: 5.075367827 | Q183: 63.13956679 | R183: 63.12113051 | S183: 63.14158044 | T183: 68.7604281 | U183: 58.04576269 | V183: 1.57 | W183: 1.690042492 | X183: 0.07673694815 | Y183: 0 | BE183: 63.21 | BF183: =AVERAGE(OFFSET(BE$31,$A183,0,$BE$27,1)) -> 63.175 | BG183: 63.07125 | BH183: 63.0125 | BI183: 63.0071875 | BJ183: 63.02546875 | BK183: 63.04867187 | BL183: 63.06792969 | BM183: 63.07431641 | BN183: 63.05819336 | BO183: 63.11352588 | BP183: 63.06004919 | BQ183: 63.02772345 | BR183: 0.03232574018 | BS183: 63.09237493 | BT183: 63.04108906 | BU183: 63.0064391 | BV183: 62.99028569 | BW183: 63.09423557 | BX183: 0.7165690584 | BY183: -133 | BZ183: 63.22213697 | CA183: 45.5377152 | CB183: 63.27342961 | CC183: 9.693429606 | CD183: 11.30639136 | CE183: 85.73407111 | CF183: 87.5022804 | CG183: 100 | CH183: 50 | CI183: 0 | CJ183: 0
A184: 153 | B184: =OFFSET(InputPriceData!B$15,CalculationsAndCharts!$A184+$A$11,0,1,1) -> 2006-11-14 | C184: =OFFSET(InputPriceData!G$15,CalculationsAndCharts!$A184+$A$11,0,1,1) -> 2376000 | D184: =OFFSET(InputPriceData!C$15,CalculationsAndCharts!$A184+$A$11,IF($C$7,7,0),1,1) -> 63.3 | E184: =OFFSET(InputPriceData!D$15,CalculationsAndCharts!$A184+$A$11,IF($C$7,7,0),1,1) -> 63.62 | F184: =OFFSET(InputPriceData!E$15,CalculationsAndCharts!$A184+$A$11,IF($C$7,7,0),1,1) -> 62.23 | G184: =OFFSET(InputPriceData!F$15,CalculationsAndCharts!$A184+$A$11,IF($C$7,7,0),1,1) -> 63.21 | H184: 0 | I184: 0 | J184: 0 | K184: 0 | L184: 63.02 | M184: 1.28 | N184: 5.230333333 | O184: 5.766287372 | P184: 5.189658635 | Q184: 63.0556335 | R184: 63.11586301 | S184: 63.127032 | T184: 68.88215038 | U184: 57.92620437 | V184: 1.39 | W184: 1.750063739 | X184: 0.07768650117 | Y184: 0 | BE184: 63.14 | BF184: =AVERAGE(OFFSET(BE$31,$A184,0,$BE$27,1)) -> 62.9675 | BG184: 62.95375 | BH184: 63.001875 | BI184: 63.04375 | BJ184: 63.071875 | BK184: 63.0871875 | BL184: 63.08070312 | BM184: 63.04207031 | BN184: 62.97067383 | BO184: 63.03656299 | BP184: 63.0065725 | BQ184: 62.99539771 | BR184: 0.01117478928 | BS184: 63.01774729 | BT184: 62.98980319 | BU184: 62.97178914 | BV184: 62.97413228 | BW184: 63.02817443 | BX184: 0.7205875227 | BY184: -134 | BZ184: 63.25561886 | CA184: 42.109063 | CB184: =(BO184+L184)/2 -> 63.02828149 | CC184: =CB184-MIN(OFFSET(F184,0,0,$BI$27,1)) -> 12.10828149 | CD184: =MAX(OFFSET(E184,0,0,$BI$27,1))-MIN(OFFSET(CB184,0,0,$BI$27,1)) -> 13.59496232 | CE184: 89.06447262 | CF184: 88.27061362 | CG184: 100 | CH184: 50 | CI184: 0 | CJ184: 0
A185: 154 | B185: =OFFSET(InputPriceData!B$15,CalculationsAndCharts!$A185+$A$11,0,1,1) -> 2006-11-13 | C185: =OFFSET(InputPriceData!G$15,CalculationsAndCharts!$A185+$A$11,0,1,1) -> 3374700 | D185: =OFFSET(InputPriceData!C$15,CalculationsAndCharts!$A185+$A$11,IF($C$7,7,0),1,1) -> 62.48 | E185: =OFFSET(InputPriceData!D$15,CalculationsAndCharts!$A185+$A$11,IF($C$7,7,0),1,1) -> 63.4 | F185: =OFFSET(InputPriceData!E$15,CalculationsAndCharts!$A185+$A$11,IF($C$7,7,0),1,1) -> 61.74 | G185: =OFFSET(InputPriceData!F$15,CalculationsAndCharts!$A185+$A$11,IF($C$7,7,0),1,1) -> 63.07 | H185: 0 | I185: 0 | J185: 0 | K185: 0 | L185: 62.73666667 | M185: 0.9166666667 | N185: 5.31225641 | O185: 5.919417098 | P185: 5.327475388 | Q185: 63.06581449 | R185: 63.13307144 | S185: 63.15951733 | T185: 69.05248853 | U185: 57.80559605 | V185: 1.66 | W185: 1.930095608 | X185: 0.08060243552 | Y185: 0 | BE185: 62.795 | BF185: =AVERAGE(OFFSET(BE$31,$A185,0,$BE$27,1)) -> 62.94 | BG185: 63.05 | BH185: 63.085625 | BI185: 63.1 | BJ185: 63.1025 | BK185: 63.07421875 | BL185: 63.0034375 | BM185: 62.89927734 | BN185: 62.78738281 | BO185: 62.95115332 | BP185: 62.97658201 | BQ185: 62.98422292 | BR185: -0.007640912987 | BS185: 62.96894109 | BT185: 62.9618591 | BU185: 62.95377509 | BV185: 62.97647541 | BW185: 63.00072743 | BX185: 0.7255285871 | BY185: -135 | BZ185: 63.29522144 | CA185: 39.85243246 | CB185: 62.84390999 | CC185: 11.92390999 | CD185: 13.59496232 | CE185: 87.70829747 | CF185: 89.28493268 | CG185: 100 | CH185: 50 | CI185: 0 | CJ185: 0
A186: 155 | B186: =OFFSET(InputPriceData!B$15,CalculationsAndCharts!$A186+$A$11,0,1,1) -> 2006-11-10 | C186: =OFFSET(InputPriceData!G$15,CalculationsAndCharts!$A186+$A$11,0,1,1) -> 2892600 | D186: =OFFSET(InputPriceData!C$15,CalculationsAndCharts!$A186+$A$11,IF($C$7,7,0),1,1) -> 63.62 | E186: =OFFSET(InputPriceData!D$15,CalculationsAndCharts!$A186+$A$11,IF($C$7,7,0),1,1) -> 63.87 | F186: =OFFSET(InputPriceData!E$15,CalculationsAndCharts!$A186+$A$11,IF($C$7,7,0),1,1) -> 61.82 | G186: =OFFSET(InputPriceData!F$15,CalculationsAndCharts!$A186+$A$11,IF($C$7,7,0),1,1) -> 62.52 | H186: 0 | I186: 0 | J186: 0 | K186: 0 | L186: 62.73666667 | M186: 2.053333333 | N186: 5.933051282 | O186: 6.09289158 | P186: 5.483602422 | Q186: 63.15985673 | R186: 63.15228771 | S186: 63.23735562 | T186: 69.24517929 | U186: 57.66868529 | V186: 2.05 | W186: 2.065143412 | X186: 0.08303172444 | Y186: 0 | BE186: 63.085 | BF186: =AVERAGE(OFFSET(BE$31,$A186,0,$BE$27,1)) -> 63.16 | BG186: 63.12125 | BH186: 63.114375 | BI186: 63.105 | BJ186: 63.0459375 | BK186: 62.93265625 | BL186: 62.79511719 | BM186: 62.67548828 | BN186: 62.61010742 | BO186: 63.04109033 | BP186: 63.00201069 | BQ186: 62.99186383 | BR186: 0.01014685892 | BS186: 63.01215755 | BT186: 62.9547771 | BU186: 62.94569109 | BV186: 62.99917573 | BW186: 63.02643378 | BX186: 0.7406048201 | BY186: -136 | BZ186: 63.33566798 | CA186: 39.56143035 | CB186: 62.8888785 | CC186: 11.9688785 | CD186: 13.59496232 | CE186: 88.03907077 | CF186: 89.36486589 | CG186: 100 | CH186: 50 | CI186: 0 | CJ186: 0
A187: 156 | B187: =OFFSET(InputPriceData!B$15,CalculationsAndCharts!$A187+$A$11,0,1,1) -> 2006-11-09 | C187: =OFFSET(InputPriceData!G$15,CalculationsAndCharts!$A187+$A$11,0,1,1) -> 4098600 | D187: =OFFSET(InputPriceData!C$15,CalculationsAndCharts!$A187+$A$11,IF($C$7,7,0),1,1) -> 62.98 | E187: =OFFSET(InputPriceData!D$15,CalculationsAndCharts!$A187+$A$11,IF($C$7,7,0),1,1) -> 65.32 | F187: =OFFSET(InputPriceData!E$15,CalculationsAndCharts!$A187+$A$11,IF($C$7,7,0),1,1) -> 62.65 | G187: =OFFSET(InputPriceData!F$15,CalculationsAndCharts!$A187+$A$11,IF($C$7,7,0),1,1) -> 63.65 | H187: 0 | I187: 0 | J187: 0 | K187: 0 | L187: 63.87333333 | M187: 1.783333333 | N187: 6.208858974 | O187: 6.138560236 | P187: 5.524704213 | Q187: 63.28076818 | R187: 63.15012513 | S187: 63.32255246 | T187: 69.28868536 | U187: 57.62542092 | V187: 2.67 | W187: 2.072715118 | X187: 0.08256425951 | Y187: 0 | BE187: 63.235 | BF187: =AVERAGE(OFFSET(BE$31,$A187,0,$BE$27,1)) -> 63.0825 | BG187: 63.1075 | BH187: 63.095625 | BI187: 62.986875 | BJ187: 62.819375 | BK187: 62.65757812 | BL187: 62.55585937 | BM187: 62.54472656 | BN187: 62.62898437 | BO187: 63.01060742 | BP187: 62.96293105 | BQ187: 62.98171697 | BR187: -0.01878592409 | BS187: 62.94414512 | BT187: 62.89739666 | BU187: 62.93660507 | BV187: 63.05266036 | BW187: 62.93503514 | BX187: 0.7860343135 | BY187: -137 | BZ187: 63.36854818 | CA187: 36.21201929 | CB187: 63.44197038 | CC187: 12.52197038 | CD187: 13.59496232 | CE187: 92.10742981 | CF187: 89.99978313 | CG187: 100 | CH187: 50 | CI187: 0 | CJ187: 0
A188: 157 | B188: =OFFSET(InputPriceData!B$15,CalculationsAndCharts!$A188+$A$11,0,1,1) -> 2006-11-08 | C188: =OFFSET(InputPriceData!G$15,CalculationsAndCharts!$A188+$A$11,0,1,1) -> 2221800 | D188: =OFFSET(InputPriceData!C$15,CalculationsAndCharts!$A188+$A$11,IF($C$7,7,0),1,1) -> 62.57 | E188: =OFFSET(InputPriceData!D$15,CalculationsAndCharts!$A188+$A$11,IF($C$7,7,0),1,1) -> 63.65 | F188: =OFFSET(InputPriceData!E$15,CalculationsAndCharts!$A188+$A$11,IF($C$7,7,0),1,1) -> 62.09 | G188: =OFFSET(InputPriceData!F$15,CalculationsAndCharts!$A188+$A$11,IF($C$7,7,0),1,1) -> 62.82 | H188: 0 | I188: 0 | J188: 0 | K188: 0 | L188: 62.85333333 | M188: 1.273333333 | N188: 5.983115385 | O188: 6.118474882 | P188: 5.506627394 | Q188: 63.11146385 | R188: 63.11279854 | S188: 63.40149602 | T188: 69.23127343 | U188: 57.60617115 | V188: 1.56 | W188: 1.774072677 | X188: 0.07824057111 | Y188: 0 | BE188: 62.93 | BF188: =AVERAGE(OFFSET(BE$31,$A188,0,$BE$27,1)) -> 63.1325 | BG188: 63.08375 | BH188: 62.878125 | BI188: 62.651875 | BJ188: 62.49578125 | BK188: 62.45414062 | BL188: 62.53359375 | BM188: 62.71324219 | BN188: 62.95762695 | BO188: 62.89968799 | BP188: 62.91525467 | BQ188: 63.0005029 | BR188: -0.08524822189 | BS188: 62.83000645 | BT188: 62.8506482 | BU188: 62.97581348 | BV188: 63.16871566 | BW188: 62.79321982 | BX188: 0.91070932 | BY188: -138 | BZ188: 63.40154395 | CA188: 33.30081534 | CB188: 62.87651066 | CC188: 11.95651066 | CD188: 13.59496232 | CE188: 87.94809709 | CF188: 89.1769572 | CG188: 100 | CH188: 50 | CI188: 0 | CJ188: 0
A189: 158 | B189: =OFFSET(InputPriceData!B$15,CalculationsAndCharts!$A189+$A$11,0,1,1) -> 2006-11-07 | C189: =OFFSET(InputPriceData!G$15,CalculationsAndCharts!$A189+$A$11,0,1,1) -> 2425600 | D189: =OFFSET(InputPriceData!C$15,CalculationsAndCharts!$A189+$A$11,IF($C$7,7,0),1,1) -> 63.76 | E189: =OFFSET(InputPriceData!D$15,CalculationsAndCharts!$A189+$A$11,IF($C$7,7,0),1,1) -> 64.28 | F189: =OFFSET(InputPriceData!E$15,CalculationsAndCharts!$A189+$A$11,IF($C$7,7,0),1,1) -> 62.77 | G189: =OFFSET(InputPriceData!F$15,CalculationsAndCharts!$A189+$A$11,IF($C$7,7,0),1,1) -> 63.04 | H189: 0 | I189: 0 | J189: 0 | K189: 0 | L189: 63.36333333 | M189: 0.7533333333 | N189: 5.916666667 | O189: 6.157149025 | P189: 5.541434122 | Q189: 63.18521542 | R189: 63.11317989 | S189: 63.46882822 | T189: 69.27032891 | U189: 57.57174576 | V189: 1.51 | W189: 1.881109015 | X189: 0.07983992727 | Y189: 0 | BE189: 63.335 | BF189: =AVERAGE(OFFSET(BE$31,$A189,0,$BE$27,1)) -> 63.035 | BG189: 62.6725 | BH189: 62.425625 | BI189: 62.3396875 | BJ189: 62.4125 | BK189: 62.61304687 | BL189: 62.89289062 | BM189: 63.20201172 | BN189: 63.50259766 | BO189: 62.93232422 | BP189: 62.93082136 | BQ189: 63.08575112 | BR189: -0.1549297576 | BS189: 62.7758916 | BT189: 62.87128994 | BU189: 63.10097876 | BV189: 63.36161785 | BW189: 62.6725514 | BX189: 1.112689762 | BY189: -139 | BZ189: 63.43572399 | CA189: 32.85297897 | CB189: 63.14782878 | CC189: 12.22782878 | CD189: 13.59496232 | CE189: 89.94382248 | CF189: 88.70647722 | CG189: 100 | CH189: 50 | CI189: 0 | CJ189: 0
A190: 159 | B190: =OFFSET(InputPriceData!B$15,CalculationsAndCharts!$A190+$A$11,0,1,1) -> 2006-11-06 | C190: =OFFSET(InputPriceData!G$15,CalculationsAndCharts!$A190+$A$11,0,1,1) -> 3204700 | D190: =OFFSET(InputPriceData!C$15,CalculationsAndCharts!$A190+$A$11,IF($C$7,7,0),1,1) -> 62.87 | E190: =OFFSET(InputPriceData!D$15,CalculationsAndCharts!$A190+$A$11,IF($C$7,7,0),1,1) -> 64.37 | F190: =OFFSET(InputPriceData!E$15,CalculationsAndCharts!$A190+$A$11,IF($C$7,7,0),1,1) -> 62.57 | G190: =OFFSET(InputPriceData!F$15,CalculationsAndCharts!$A190+$A$11,IF($C$7,7,0),1,1) -> 63.63 | H190: 0 | I190: 0 | J190: 0 | K190: 0 | L190: 63.52333333 | M190: 2.343333333 | N190: 5.978564103 | O190: 6.22585827 | P190: 5.603272443 | Q190: 63.13432459 | R190: 63.0925983 | S190: 63.48682676 | T190: 69.31845657 | U190: 57.48932586 | V190: 2.53 | W190: 2.066663523 | X190: 0.08247938901 | Y190: 0 | BE190: 62.735 | BF190: =AVERAGE(OFFSET(BE$31,$A190,0,$BE$27,1)) -> 62.31 | BG190: 62.17875 | BH190: 62.25375 | BI190: 62.4853125 | BJ190: 62.81359375 | BK190: 63.17273437 | BL190: 63.51113281 | BM190: 63.80318359 | BN190: 64.04389648 | BO190: 62.68943018 | BP190: 62.9293185 | BQ190: 63.24068088 | BR190: -0.3113623733 | BS190: 62.61795613 | BT190: 62.96668828 | BU190: 63.33066757 | BV190: 63.62225694 | BW190: 62.53031906 | BX190: 1.355016721 | BY190: -140 | BZ190: 63.46542968 | CA190: 32.74724958 | CB190: 63.10638175 | CC190: 12.18638175 | CD190: 13.59496232 | CE190: 89.63895204 | CF190: 88.22676269 | CG190: 100 | CH190: 50 | CI190: 0 | CJ190: 0
A191: 160 | B191: =OFFSET(InputPriceData!B$15,CalculationsAndCharts!$A191+$A$11,0,1,1) -> 2006-11-03 | C191: =OFFSET(InputPriceData!G$15,CalculationsAndCharts!$A191+$A$11,0,1,1) -> 3117000 | D191: =OFFSET(InputPriceData!C$15,CalculationsAndCharts!$A191+$A$11,IF($C$7,7,0),1,1) -> 62.51 | E191: =OFFSET(InputPriceData!D$15,CalculationsAndCharts!$A191+$A$11,IF($C$7,7,0),1,1) -> 62.98 | F191: =OFFSET(InputPriceData!E$15,CalculationsAndCharts!$A191+$A$11,IF($C$7,7,0),1,1) -> 61.18 | G191: =OFFSET(InputPriceData!F$15,CalculationsAndCharts!$A191+$A$11,IF($C$7,7,0),1,1) -> 61.84 | H191: 0 | I191: 0 | J191: 0 | K191: 0 | L191: 62 | M191: 0.83 | N191: 5.649961538 | O191: 6.296513746 | P191: 5.666862371 | Q191: 63.02317924 | R191: 63.08067651 | S191: 63.47770583 | T191: 69.37719025 | U191: 57.41381414 | V191: 1.8 | W191: 1.834995284 | X191: 0.07967327433 | Y191: 0 | BE191: 61.885 | BF191: =AVERAGE(OFFSET(BE$31,$A191,0,$BE$27,1)) -> 62.0475 | BG191: 62.32875 | BH191: 62.716875 | BI191: 63.141875 | BJ191: 63.531875 | BK191: 63.84953125 | BL191: 64.09523437 | BM191: 64.28460937 | BN191: 64.42673828 | BO191: 62.66824316 | BP191: 63.16920683 | BQ191: 63.55204325 | BR191: -0.3828364198 | BS191: 62.78637041 | BT191: 63.31542043 | BU191: 63.69464686 | BV191: 63.9138463 | BW191: 62.77616701 | BX191: 1.653886809 | BY191: -141 | BZ191: 63.48838291 | CA191: 39.23421034 | CB191: 62.33412158 | CC191: 11.93412158 | CD191: 13.79082804 | CE191: 86.53665715 | CF191: 90.04430274 | CG191: 100 | CH191: 50 | CI191: 0 | CJ191: 0
